Workbook

Sheet Age profile chart

Sheet Forecast Ch1

Sheet Age profile summary
A1: Asset calcs | R1: Remaining life | W1: RC ($ millions) | AB1: RC (%)
R2: Very old | S2: Old | T2: moderate | U2: young | V2: new | W2: =R2 -> Very old | X2: =S2 -> Old | Y2: moderate | Z2: young | AA2: new | AB2: Very old | AC2: Old | AD2: moderate | AE2: young | AF2: new
M3: WARL | O3: WAL | Q3: WAA | R3: > | S3: > | T3: > | U3: > | V3: <=0.2 | W3: =R3 -> > | X3: > | Y3: > | Z3: > | AA3: <=0.2 | AB3: > | AC3: > | AD3: > | AE3: > | AF3: <=0.2
F4: Quantity | G4: Unit | H4: RC | I4: prop total | J4: Rank | K4: prop cat | L4: RC / unit | M4: (Rep life) | O4: Rep life | Q4: % Rep life | R4: =W4 -> 0.9 | S4: =X4 -> 0.8 | T4: =Y4 -> 0.4 | U4: =Z4 -> 0.2 | W4: 0.9 | X4: 0.8 | Y4: 0.4 | Z4: 0.2 | AA4: 0 | AB4: 0.9 | AC4: 0.8 | AD4: 0.4 | AE4: 0.2 | AF4: 0 | AG4: Std life | AH4: Std life | AI4: rep life
G5: Cost | H5: $ millions | I5: % | J5: total | K5: % | L5: $ ('000) | AG5: max | AH5: min
A6: 1 | D6: =VLOOKUP(A6,IDtable,2) -> POLES | F6: =SUMIF($A$21:$A$205,$A6,F$21:F$205) -> 450150 | H6: =SUMIF($A$21:$A$205,$A6,H$21:H$205)/1000 -> 1567.965512 | I6: =H6/($H$18) -> 0.08971081323 | J6: =RANK(I6,I$6:I$17) -> 5 | L6: =H6*1000/(F6+0.001) -> 3.483206728 | M6: =SUMIF($A$21:$A$205,$A6,N$21:N$205)/(H6*1000+0.000001) -> 32.87378283 | O6: =SUMIF($A$21:$A$205,$A6,P$21:P$205)/(H6*1000+0.000001) -> 58.20142148 | Q6: =(O6-M6)/(O6+0.000001) -> 0.4351721585 | R6: =$O6-R$4*$O6 -> 5.820142148 | S6: =$O6-S$4*$O6 -> 11.6402843 | T6: =$O6-T$4*$O6 -> 34.92085289 | U6: =$O6-U$4*$O6 -> 46.56113718 | V6: =$O6-V$4*$O6 -> 58.20142148 | W6: =SUMIF($A$21:$A$205,$A6,W$21:W$205)/1000 -> 110.4270185 | X6: 74.1732147 | Y6: 703.9360509 | Z6: 308.472051 | AA6: 370.9571769 | AB6: =IF($H6=0,0,W6/$H6) -> 0.07042694346 | AC6: =IF($H6=0,0,X6/$H6) -> 0.04730538659 | AD6: =IF($H6=0,0,Y6/$H6) -> 0.4489486826 | AE6: =IF($H6=0,0,Z6/$H6) -> 0.1967339515 | AF6: =IF($H6=0,0,AA6/$H6) -> 0.2365850359 | AG6: =MAX(IF($A$21:$A$205=$A6,$O$21:$O$205)) -> 69.2680522 | AH6: =MIN(IF($A$21:$A$205=$A6,$O$21:$O$205)) -> 14.47844667 | AI6: =IF(H6=0,0,SUMIF($A$21:$A$205,$A6,$AJ$21:$AJ$205)/(H6*1000)) -> 58.20142148
A7: 2 | D7: OVERHEAD CONDUCTORS | F7: =SUMIF($A$21:$A$205,$A7,F$21:F$205) -> 35112 | H7: =SUMIF($A$21:$A$205,$A7,H$21:H$205)/1000 -> 1806.946499 | I7: =H7/($H$18) -> 0.1033840596 | J7: 4 | L7: 51.46236181 | M7: 34.49403564 | O7: 74.21607727 | Q7: 0.5352215121 | R7: =$O7-R$4*$O7 -> 7.421607727 | S7: 14.84321545 | T7: 44.52964636 | U7: 59.37286182 | V7: 74.21607727 | W7: 273.0050064 | X7: 102.6187817 | Y7: 912.360668 | Z7: 307.3693444 | AA7: 211.5926987 | AB7: =IF($H7=0,0,W7/$H7) -> 0.1510863806 | AC7: =IF($H7=0,0,X7/$H7) -> 0.05679126732 | AD7: =IF($H7=0,0,Y7/$H7) -> 0.5049184734 | AE7: =IF($H7=0,0,Z7/$H7) -> 0.1701042862 | AF7: =IF($H7=0,0,AA7/$H7) -> 0.1170995925 | AG7: =MAX(IF($A$21:$A$205=$A7,$O$21:$O$205)) -> 87.00177762 | AH7: =MIN(IF($A$21:$A$205=$A7,$O$21:$O$205)) -> 67.82080267 | AI7: =IF(H7=0,0,SUMIF($A$21:$A$205,$A7,$AJ$21:$AJ$205)/(H7*1000)) -> 74.21607727
A8: 3 | D8: UNDERGROUND CABLES | F8: 16988 | H8: 6118.180526 | I8: 0.3500503973 | J8: 1 | L8: 360.1471725 | M8: 51.24790881 | O8: 68.82929682 | Q8: 0.255434656 | R8: 6.882929682 | S8: 13.76585936 | T8: 41.29757809 | U8: 55.06343745 | V8: 68.82929682 | W8: 281.9703791 | X8: 33.80358927 | Y8: 537.7262754 | Z8: 1991.011771 | AA8: 3273.668511 | AB8: 0.04608729308 | AC8: 0.005525104911 | AD8: 0.08788990012 | AE8: 0.3254254697 | AF8: 0.5350722322 | AG8: =MAX(IF($A$21:$A$205=$A8,$O$21:$O$205)) -> 69.52495101 | AH8: =MIN(IF($A$21:$A$205=$A8,$O$21:$O$205)) -> 67.83429509 | AI8: 68.82929682
A9: 4 | D9: SERVICE LINES | F9: 587193 | H9: 397.7919443 | I9: 0.02275958148 | J9: 6 | L9: 0.6774466719 | M9: 22.96885278 | O9: 39.7789757 | Q9: 0.4225881186 | R9: 3.97789757 | S9: 7.95579514 | T9: 23.86738542 | U9: 31.82318056 | V9: 39.7789757 | W9: 36.33166278 | X9: 27.05512678 | Y9: 101.1636744 | Z9: 97.90372737 | AA9: 135.337753 | AB9: 0.09133332964 | AC9: 0.06801325962 | AD9: 0.2543130292 | AE9: 0.2461179236 | AF9: 0.3402224579 | AG9: =MAX(IF($A$21:$A$205=$A9,$O$21:$O$205)) -> 39.82150394 | AH9: =MIN(IF($A$21:$A$205=$A9,$O$21:$O$205)) -> 39.2912979 | AI9: 39.7789757
A10: 5 | D10: TRANSFORMERS | F10: 48423 | H10: 2743.550037 | I10: 0.1569716318 | J10: 3 | L10: 56.65799271 | M10: 33.5943447 | O10: 51.64618184 | Q10: 0.349528971 | R10: 5.164618184 | S10: 10.32923637 | T10: 30.9877091 | U10: 41.31694547 | V10: 51.64618184 | W10: 123.0469198 | X10: 70.33664149 | Y10: 775.4318738 | Z10: 535.4162067 | AA10: 1239.318396 | AB10: 0.04484952638 | AC10: 0.02563709082 | AD10: 0.2826381379 | AE10: 0.1951545258 | AF10: 0.4517207191 | AG10: =MAX(IF($A$21:$A$205=$A10,$O$21:$O$205)) -> 68.14774494 | AH10: =MIN(IF($A$21:$A$205=$A10,$O$21:$O$205)) -> 42.46666728 | AI10: 51.64618184
A11: 6 | D11: SWITCHGEAR | F11: 214437 | H11: 4843.564571 | I11: 0.2771235166 | J11: 2 | L11: 22.58735455 | M11: 33.86879936 | O11: 48.83850877 | Q11: 0.3065144593 | R11: 4.883850877 | S11: 9.767701755 | T11: 29.30310526 | U11: 39.07080702 | V11: 48.83850877 | W11: 255.4927754 | X11: 187.8550994 | Y11: 987.2446808 | Z11: 775.7592969 | AA11: 2637.212718 | AB11: 0.05274891491 | AC11: 0.03878447301 | AD11: 0.2038260596 | AE11: 0.1601628894 | AF11: 0.5444776631 | AG11: =MAX(IF($A$21:$A$205=$A11,$O$21:$O$205)) -> 62.70859935 | AH11: =MIN(IF($A$21:$A$205=$A11,$O$21:$O$205)) -> 46.54896775 | AI11: 48.83850877
A12: 7 | D12: PUBLIC LIGHTING | F12: 0 | H12: 0 | I12: 0 | J12: 7 | L12: 0 | M12: 0 | O12: 0 | Q12: 0 | R12: 0 | S12: 0 | T12: 0 | U12: 0 | V12: 0 | W12: 0 | X12: 0 | Y12: 0 | Z12: 0 | AA12: 0 | AB12: 0 | AC12: 0 | AD12: 0 | AE12: 0 | AF12: 0 | AG12: =MAX(IF($A$21:$A$205=$A12,$O$21:$O$205)) -> 0 | AH12: =MIN(IF($A$21:$A$205=$A12,$O$21:$O$205)) -> 0 | AI12: 0
A13: 8 | D13: SCADA, NETWORK CONTROL AND PROTECTION | F13: 0 | H13: 0 | I13: 0 | J13: 7 | L13: 0 | M13: 0 | O13: 0 | Q13: 0 | R13: 0 | S13: 0 | T13: 0 | U13: 0 | V13: 0 | W13: 0 | X13: 0 | Y13: 0 | Z13: 0 | AA13: 0 | AB13: 0 | AC13: 0 | AD13: 0 | AE13: 0 | AF13: 0 | AG13: =MAX(IF($A$21:$A$205=$A13,$O$21:$O$205)) -> 0 | AH13: =MIN(IF($A$21:$A$205=$A13,$O$21:$O$205)) -> 0 | AI13: 0
A14: 9 | D14: =VLOOKUP(A14,IDtable,2) -> OTHER | F14: =SUMIF($A$21:$A$205,$A14,F$21:F$205) -> 0 | H14: =SUMIF($A$21:$A$205,$A14,H$21:H$205)/1000 -> 0 | I14: =H14/($H$18) -> 0 | J14: 7 | L14: 0 | M14: 0 | O14: 0 | Q14: 0 | R14: =$O14-R$4*$O14 -> 0 | S14: 0 | T14: 0 | U14: 0 | V14: 0 | W14: 0 | X14: 0 | Y14: 0 | Z14: 0 | AA14: 0 | AB14: 0 | AC14: 0 | AD14: 0 | AE14: 0 | AF14: 0 | AG14: =MAX(IF($A$21:$A$205=$A14,$O$21:$O$205)) -> 0 | AH14: =MIN(IF($A$21:$A$205=$A14,$O$21:$O$205)) -> 0 | AI14: 0
A15: 10 | D15: =VLOOKUP(A15,IDtable,2) -> unused | F15: =SUMIF($A$21:$A$205,$A15,F$21:F$205) -> 0 | H15: =SUMIF($A$21:$A$205,$A15,H$21:H$205)/1000 -> 0 | I15: =H15/($H$18) -> 0 | J15: 7 | L15: 0 | M15: 0 | O15: 0 | Q15: 0 | R15: 0 | S15: 0 | T15: 0 | U15: 0 | V15: 0 | W15: 0 | X15: 0 | Y15: 0 | Z15: 0 | AA15: 0 | AB15: 0 | AC15: 0 | AD15: 0 | AE15: 0 | AF15: 0 | AG15: =MAX(IF($A$21:$A$205=$A15,$O$21:$O$205)) -> 0 | AH15: =MIN(IF($A$21:$A$205=$A15,$O$21:$O$205)) -> 0 | AI15: 0
A16: 11 | D16: =VLOOKUP(A16,IDtable,2) -> unused | F16: =SUMIF($A$21:$A$205,$A16,F$21:F$205) -> 0 | H16: =SUMIF($A$21:$A$205,$A16,H$21:H$205)/1000 -> 0 | I16: =H16/($H$18) -> 0 | J16: 7 | L16: 0 | M16: 0 | O16: 0 | Q16: 0 | R16: 0 | S16: 0 | T16: 0 | U16: 0 | V16: 0 | W16: 0 | X16: 0 | Y16: 0 | Z16: 0 | AA16: 0 | AB16: 0 | AC16: 0 | AD16: 0 | AE16: 0 | AF16: 0 | AG16: =MAX(IF($A$21:$A$205=$A16,$O$21:$O$205)) -> 0 | AH16: =MIN(IF($A$21:$A$205=$A16,$O$21:$O$205)) -> 0 | AI16: 0
A17: 12 | D17: =VLOOKUP(A17,IDtable,2) -> unused | F17: =SUMIF($A$21:$A$205,$A17,F$21:F$205) -> 0 | H17: =SUMIF($A$21:$A$205,$A17,H$21:H$205)/1000 -> 0 | I17: =H17/($H$18) -> 0 | J17: =RANK(I17,I$6:I$17) -> 7 | L17: =H17*1000/(F17+0.001) -> 0 | M17: =SUMIF($A$21:$A$205,$A17,N$21:N$205)/(H17*1000+0.000001) -> 0 | O17: =SUMIF($A$21:$A$205,$A17,P$21:P$205)/(H17*1000+0.000001) -> 0 | Q17: =(O17-M17)/(O17+0.000001) -> 0 | R17: 0 | S17: 0 | T17: 0 | U17: 0 | V17: 0 | W17: 0 | X17: 0 | Y17: 0 | Z17: 0 | AA17: 0 | AB17: 0 | AC17: 0 | AD17: 0 | AE17: 0 | AF17: 0 | AG17: =MAX(IF($A$21:$A$205=$A17,$O$21:$O$205)) -> 0 | AH17: =MIN(IF($A$21:$A$205=$A17,$O$21:$O$205)) -> 0 | AI17: 0
D18: Total | H18: =SUM(H6:H17) -> 17477.99909 | M18: =SUMPRODUCT(M6:M17,$H6:$H17)/$H18 -> 39.63657943 | O18: =SUMPRODUCT(O6:O17,$H6:$H17)/$H18 -> 59.53441648 | Q18: =SUMPRODUCT(Q6:Q17,$H6:$H17)/$H18 -> 0.3332144502 | W18: =SUM(W6:W17) -> 1080.273762 | X18: =SUM(X6:X17) -> 495.8424533 | Y18: =SUM(Y6:Y17) -> 4017.863223 | Z18: =SUM(Z6:Z17) -> 4015.932398 | AA18: =SUM(AA6:AA17) -> 7868.087254 | AB18: =W18/$H18 -> 0.06180763349 | AC18: =X18/$H18 -> 0.02836952049 | AD18: =Y18/$H18 -> 0.2298811896 | AE18: =Z18/$H18 -> 0.2297707179 | AF18: =AA18/$H18 -> 0.4501709385
D20: EDB categories
A21: ='Asset data'!A21 -> 1 | B21: ='Asset data'!B21 -> 0 | C21: ='Asset data'!C21 -> 0 | D21: ='Asset data'!E21 -> Staking of a wooden pole | E21: =IF(A21>0,VLOOKUP(A21,IDtable,2),0) -> POLES | F21: =IF(A21>0,SUM('Asset data'!J21:CV21),0) -> 38707 | G21: =IF(A21>0,'Asset data'!F21,0) -> 4.592879268 | H21: =IF(A21>0,SUM('Asset data'!CX21:GJ21),0) -> 177776.5778 | I21: =H21/$H$18/1000 -> 0.01017144908 | J21: =IF(RANK(0,I$21:I$205)=RANK(I21,I$21:I$205),0,RANK(I21,I$21:I$205)) -> 22 | K21: =IF(A21>0,H21/(VLOOKUP(A21,$A$6:$H$17,8)*1000),0) -> 0.1133804133 | L21: =IF($A21>0,H21/F21,0) -> 4.592879268 | M21: =IF($A21>0,SUMPRODUCT('Age profile (years)'!$CT21:$GF21,'Asset data'!$CX21:$GJ21)/H21-0.5,0) -> 5.501963469 | N21: =IF($A21>0,M21*H21,0) -> 978120.2369 | O21: =IF($A21>0,'Asset data'!G21,0) -> 14.47844667 | P21: =IF($A21>0,H21*O21,0) -> 2573928.701 | Q21: =IF($A21>0,(O21-M21)/O21,0) -> 0.6199893817 | R21: =IF($A21>0,$O21-R$4*$O21,0) -> 1.447844667 | S21: 2.895689333 | T21: 8.687067999 | U21: 11.58275733 | W21: =IF($A21>0,SUMIF('Age profile (years)'!$CT21:$GF21,"<" & R21+0.5,'Asset data'!$CX21:$GJ21),0) -> 29812.37933 | X21: =IF($A21>0,SUMIF('Age profile (years)'!$CT21:$GF21,"<" & S21+0.5,'Asset data'!$CX21:$GJ21)-W21,0) -> 21159.39479 | Y21: =IF($A21>0,SUMIF('Age profile (years)'!$CT21:$GF21,"<" & T21+0.5,'Asset data'!$CX21:$GJ21)-X21-W21,0) -> 95380.32376 | Z21: =IF($A21>0,SUMIF('Age profile (years)'!$CT21:$GF21,"<" & U21+0.5,'Asset data'!$CX21:$GJ21)-Y21-X21-W21,0) -> 17158.99695 | AA21: =IF($A21>0,H21-Z21-Y21-X21-W21,0) -> 14265.48301 | AB21: =IF($A21>0,W21/$H21,0) -> 0.1676957656 | AC21: 0.119022399 | AD21: 0.5365179425 | AE21: 0.0965200093 | AF21: 0.08024388354 | AI21: =IF($A21>0,'RRR hist-forc'!K21,0) -> 14.47844667 | AJ21: =IF($A21>0,AI21*H21,0) -> 2573928.701
A22: ='Asset data'!A22 -> 1 | B22: ='Asset data'!B22 -> 0 | C22: ='Asset data'!C22 -> 0 | D22: ='Asset data'!E22 -> ˂ = 1 kV; Wood | E22: POLES | F22: =IF(A22>0,SUM('Asset data'!J22:CV22),0) -> 176715 | G22: =IF(A22>0,'Asset data'!F22,0) -> 2.634495063 | H22: =IF(A22>0,SUM('Asset data'!CX22:GJ22),0) -> 465554.795 | I22: 0.02663661857 | J22: 11 | K22: =IF(A22>0,H22/(VLOOKUP(A22,$A$6:$H$17,8)*1000),0) -> 0.2969164765 | L22: =IF($A22>0,H22/F22,0) -> 2.634495063 | M22: =IF($A22>0,SUMPRODUCT('Age profile (years)'!$CT22:$GF22,'Asset data'!$CX22:$GJ22)/H22-0.5,0) -> 34.14420111 | N22: =IF($A22>0,M22*H22,0) -> 15895996.55 | O22: =IF($A22>0,'Asset data'!G22,0) -> 63.50314144 | P22: =IF($A22>0,H22*O22,0) -> 29564192 | Q22: =IF($A22>0,(O22-M22)/O22,0) -> 0.4623226451 | R22: 6.350314144 | S22: 12.70062829 | T22: 38.10188486 | U22: 50.80251315 | W22: =IF($A22>0,SUMIF('Age profile (years)'!$CT22:$GF22,"<" & R22+0.5,'Asset data'!$CX22:$GJ22),0) -> 27886.13024 | X22: =IF($A22>0,SUMIF('Age profile (years)'!$CT22:$GF22,"<" & S22+0.5,'Asset data'!$CX22:$GJ22)-W22,0) -> 17856.60754 | Y22: =IF($A22>0,SUMIF('Age profile (years)'!$CT22:$GF22,"<" & T22+0.5,'Asset data'!$CX22:$GJ22)-X22-W22,0) -> 226255.705 | Z22: =IF($A22>0,SUMIF('Age profile (years)'!$CT22:$GF22,"<" & U22+0.5,'Asset data'!$CX22:$GJ22)-Y22-X22-W22,0) -> 104581.5505 | AA22: =IF($A22>0,H22-Z22-Y22-X22-W22,0) -> 88974.80176 | AB22: 0.05989870696 | AC22: 0.03835554424 | AD22: 0.4859915683 | AE22: 0.2246385423 | AF22: 0.1911156382 | AI22: =IF($A22>0,'RRR hist-forc'!K22,0) -> 63.50314144 | AJ22: =IF($A22>0,AI22*H22,0) -> 29564192
A23: ='Asset data'!A23 -> 1 | B23: ='Asset data'!B23 -> 0 | C23: ='Asset data'!C23 -> 0 | D23: ='Asset data'!E23 -> > 1 kV & < = 11 kV; Wood | E23: =IF(A23>0,VLOOKUP(A23,IDtable,2),0) -> POLES | F23: =IF(A23>0,SUM('Asset data'!J23:CV23),0) -> 195657 | G23: =IF(A23>0,'Asset data'!F23,0) -> 3.000444093 | H23: =IF(A23>0,SUM('Asset data'!CX23:GJ23),0) -> 587057.8899 | I23: =H23/$H$18/1000 -> 0.03358839229 | J23: =IF(RANK(0,I$21:I$205)=RANK(I23,I$21:I$205),0,RANK(I23,I$21:I$205)) -> 6 | K23: =IF(A23>0,H23/(VLOOKUP(A23,$A$6:$H$17,8)*1000),0) -> 0.3744073995 | L23: =IF($A23>0,H23/F23,0) -> 3.000444093 | M23: =IF($A23>0,SUMPRODUCT('Age profile (years)'!$CT23:$GF23,'Asset data'!$CX23:$GJ23)/H23-0.5,0) -> 34.21520569 | N23: =IF($A23>0,M23*H23,0) -> 20086306.45 | O23: =IF($A23>0,'Asset data'!G23,0) -> 63.29477376 | P23: =IF($A23>0,H23*O23,0) -> 37157696.33 | Q23: =IF($A23>0,(O23-M23)/O23,0) -> 0.4594307925 | R23: 6.329477376 | S23: 12.65895475 | T23: 37.97686426 | U23: 50.63581901 | W23: =IF($A23>0,SUMIF('Age profile (years)'!$CT23:$GF23,"<" & R23+0.5,'Asset data'!$CX23:$GJ23),0) -> 42420.27858 | X23: =IF($A23>0,SUMIF('Age profile (years)'!$CT23:$GF23,"<" & S23+0.5,'Asset data'!$CX23:$GJ23)-W23,0) -> 27634.09009 | Y23: =IF($A23>0,SUMIF('Age profile (years)'!$CT23:$GF23,"<" & T23+0.5,'Asset data'!$CX23:$GJ23)-X23-W23,0) -> 271972.2543 | Z23: =IF($A23>0,SUMIF('Age profile (years)'!$CT23:$GF23,"<" & U23+0.5,'Asset data'!$CX23:$GJ23)-Y23-X23-W23,0) -> 109984.2787 | AA23: =IF($A23>0,H23-Z23-Y23-X23-W23,0) -> 135046.9882 | AB23: =IF($A23>0,W23/$H23,0) -> 0.0722591065 | AC23: =IF($A23>0,X23/$H23,0) -> 0.04707217222 | AD23: =IF($A23>0,Y23/$H23,0) -> 0.463280128 | AE23: =IF($A23>0,Z23/$H23,0) -> 0.1873482676 | AF23: =IF($A23>0,AA23/$H23,0) -> 0.2300403257 | AI23: =IF($A23>0,'RRR hist-forc'!K23,0) -> 63.29477376 | AJ23: =IF($A23>0,AI23*H23,0) -> 37157696.33
A24: ='Asset data'!A24 -> 1 | B24: ='Asset data'!B24 -> 0 | C24: ='Asset data'!C24 -> 0 | D24: ='Asset data'!E24 -> ˃ 11 kV & < = 22 kV; Wood | E24: POLES | F24: =IF(A24>0,SUM('Asset data'!J24:CV24),0) -> 155 | G24: =IF(A24>0,'Asset data'!F24,0) -> 7.269264737 | H24: =IF(A24>0,SUM('Asset data'!CX24:GJ24),0) -> 1126.736034 | I24: 6.446596251e-05 | J24: 44 | K24: 0.0007185974599 | L24: 7.269264737 | M24: =IF($A24>0,SUMPRODUCT('Age profile (years)'!$CT24:$GF24,'Asset data'!$CX24:$GJ24)/H24-0.5,0) -> 45.55806452 | N24: 51331.91294 | O24: =IF($A24>0,'Asset data'!G24,0) -> 63.67112978 | P24: 71740.55626 | Q24: 0.284478465 | R24: 6.367112978 | S24: 12.73422596 | T24: 38.20267787 | U24: 50.93690383 | W24: =IF($A24>0,SUMIF('Age profile (years)'!$CT24:$GF24,"<" & R24+0.5,'Asset data'!$CX24:$GJ24),0) -> 0 | X24: =IF($A24>0,SUMIF('Age profile (years)'!$CT24:$GF24,"<" & S24+0.5,'Asset data'!$CX24:$GJ24)-W24,0) -> 0 | Y24: =IF($A24>0,SUMIF('Age profile (years)'!$CT24:$GF24,"<" & T24+0.5,'Asset data'!$CX24:$GJ24)-X24-W24,0) -> 7.269264737 | Z24: =IF($A24>0,SUMIF('Age profile (years)'!$CT24:$GF24,"<" & U24+0.5,'Asset data'!$CX24:$GJ24)-Y24-X24-W24,0) -> 915.9273568 | AA24: 203.5394126 | AB24: 0 | AC24: 0 | AD24: 0.006451612903 | AE24: 0.8129032258 | AF24: 0.1806451613 | AI24: =IF($A24>0,'RRR hist-forc'!K24,0) -> 63.67112978 | AJ24: 71740.55626
A25: ='Asset data'!A25 -> 1 | B25: ='Asset data'!B25 -> 0 | C25: ='Asset data'!C25 -> 0 | D25: ='Asset data'!E25 -> > 22 kV & < = 66 kV; Wood | E25: POLES | F25: =IF(A25>0,SUM('Asset data'!J25:CV25),0) -> 23727 | G25: =IF(A25>0,'Asset data'!F25,0) -> 6.168545076 | H25: =IF(A25>0,SUM('Asset data'!CX25:GJ25),0) -> 146361.069 | I25: 0.008374017429 | J25: 25 | K25: 0.09334457161 | L25: 6.168545076 | M25: =IF($A25>0,SUMPRODUCT('Age profile (years)'!$CT25:$GF25,'Asset data'!$CX25:$GJ25)/H25-0.5,0) -> 42.50105365 | N25: 6220499.646 | O25: =IF($A25>0,'Asset data'!G25,0) -> 69.2680522 | P25: 10138146.17 | Q25: 0.3864263206 | R25: 6.92680522 | S25: 13.85361044 | T25: 41.56083132 | U25: 55.41444176 | W25: =IF($A25>0,SUMIF('Age profile (years)'!$CT25:$GF25,"<" & R25+0.5,'Asset data'!$CX25:$GJ25),0) -> 7624.321713 | X25: =IF($A25>0,SUMIF('Age profile (years)'!$CT25:$GF25,"<" & S25+0.5,'Asset data'!$CX25:$GJ25)-W25,0) -> 4459.85809 | Y25: =IF($A25>0,SUMIF('Age profile (years)'!$CT25:$GF25,"<" & T25+0.5,'Asset data'!$CX25:$GJ25)-X25-W25,0) -> 60427.06756 | Z25: =IF($A25>0,SUMIF('Age profile (years)'!$CT25:$GF25,"<" & U25+0.5,'Asset data'!$CX25:$GJ25)-Y25-X25-W25,0) -> 17580.35347 | AA25: 56269.46818 | AB25: 0.05209255279 | AC25: 0.03047161462 | AD25: 0.4128629831 | AE25: 0.1201163232 | AF25: 0.3844565263 | AI25: =IF($A25>0,'RRR hist-forc'!K25,0) -> 69.2680522 | AJ25: 10138146.17
A26: ='Asset data'!A26 -> 1 | B26: ='Asset data'!B26 -> 0 | C26: ='Asset data'!C26 -> 0 | D26: ='Asset data'!E26 -> > 66 kV & < = 132 kV; Wood | E26: POLES | F26: =IF(A26>0,SUM('Asset data'!J26:CV26),0) -> 1925 | G26: =IF(A26>0,'Asset data'!F26,0) -> 8.674756174 | H26: =IF(A26>0,SUM('Asset data'!CX26:GJ26),0) -> 16698.90563 | I26: 0.0009554243337 | J26: 36 | K26: 0.01065004651 | L26: 8.674756174 | M26: =IF($A26>0,SUMPRODUCT('Age profile (years)'!$CT26:$GF26,'Asset data'!$CX26:$GJ26)/H26-0.5,0) -> 29.13428571 | N26: 486510.6879 | O26: =IF($A26>0,'Asset data'!G26,0) -> 42.6501044 | P26: 712210.0687 | Q26: 0.3169000141 | R26: 4.26501044 | S26: 8.53002088 | T26: 25.59006264 | U26: 34.12008352 | W26: =IF($A26>0,SUMIF('Age profile (years)'!$CT26:$GF26,"<" & R26+0.5,'Asset data'!$CX26:$GJ26),0) -> 451.087321 | X26: =IF($A26>0,SUMIF('Age profile (years)'!$CT26:$GF26,"<" & S26+0.5,'Asset data'!$CX26:$GJ26)-W26,0) -> 1049.645497 | Y26: =IF($A26>0,SUMIF('Age profile (years)'!$CT26:$GF26,"<" & T26+0.5,'Asset data'!$CX26:$GJ26)-X26-W26,0) -> 867.4756174 | Z26: =IF($A26>0,SUMIF('Age profile (years)'!$CT26:$GF26,"<" & U26+0.5,'Asset data'!$CX26:$GJ26)-Y26-X26-W26,0) -> 8050.173729 | AA26: 6280.52347 | AB26: 0.02701298701 | AC26: 0.06285714286 | AD26: 0.05194805195 | AE26: 0.4820779221 | AF26: 0.3761038961 | AI26: =IF($A26>0,'RRR hist-forc'!K26,0) -> 42.6501044 | AJ26: 712210.0687
A27: ='Asset data'!A27 -> 0 | B27: ='Asset data'!B27 -> 0 | C27: ='Asset data'!C27 -> 0 | D27: ='Asset data'!E27 -> > 132 kV; Wood | E27: 0 | F27: =IF(A27>0,SUM('Asset data'!J27:CV27),0) -> 0 | G27: =IF(A27>0,'Asset data'!F27,0) -> 0 | H27: =IF(A27>0,SUM('Asset data'!CX27:GJ27),0) -> 0 | I27: 0 | J27: 0 | K27: 0 | L27: 0 | M27: =IF($A27>0,SUMPRODUCT('Age profile (years)'!$CT27:$GF27,'Asset data'!$CX27:$GJ27)/H27-0.5,0) -> 0 | N27: 0 | O27: =IF($A27>0,'Asset data'!G27,0) -> 0 | P27: 0 | Q27: 0 | R27: 0 | S27: 0 | T27: 0 | U27: 0 | W27: =IF($A27>0,SUMIF('Age profile (years)'!$CT27:$GF27,"<" & R27+0.5,'Asset data'!$CX27:$GJ27),0) -> 0 | X27: =IF($A27>0,SUMIF('Age profile (years)'!$CT27:$GF27,"<" & S27+0.5,'Asset data'!$CX27:$GJ27)-W27,0) -> 0 | Y27: =IF($A27>0,SUMIF('Age profile (years)'!$CT27:$GF27,"<" & T27+0.5,'Asset data'!$CX27:$GJ27)-X27-W27,0) -> 0 | Z27: =IF($A27>0,SUMIF('Age profile (years)'!$CT27:$GF27,"<" & U27+0.5,'Asset data'!$CX27:$GJ27)-Y27-X27-W27,0) -> 0 | AA27: 0 | AB27: 0 | AC27: 0 | AD27: 0 | AE27: 0 | AF27: 0 | AI27: =IF($A27>0,'RRR hist-forc'!K27,0) -> 0 | AJ27: 0
A28: ='Asset data'!A28 -> 1 | B28: ='Asset data'!B28 -> 0 | C28: ='Asset data'!C28 -> 0 | D28: ='Asset data'!E28 -> ˂ = 1 kV; Concrete | E28: POLES | F28: =IF(A28>0,SUM('Asset data'!J28:CV28),0) -> 2680 | G28: =IF(A28>0,'Asset data'!F28,0) -> 10.21225459 | H28: =IF(A28>0,SUM('Asset data'!CX28:GJ28),0) -> 27368.8423 | I28: 0.00156590249 | J28: 34 | K28: 0.01745500274 | L28: 10.21225459 | M28: =IF($A28>0,SUMPRODUCT('Age profile (years)'!$CT28:$GF28,'Asset data'!$CX28:$GJ28)/H28-0.5,0) -> 35.86902985 | N28: 981693.8215 | O28: =IF($A28>0,'Asset data'!G28,0) -> 63.67112978 | P28: 1742605.11 | Q28: 0.4366515881 | R28: 6.367112978 | S28: 12.73422596 | T28: 38.20267787 | U28: 50.93690383 | W28: =IF($A28>0,SUMIF('Age profile (years)'!$CT28:$GF28,"<" & R28+0.5,'Asset data'!$CX28:$GJ28),0) -> 245.0941102 | X28: =IF($A28>0,SUMIF('Age profile (years)'!$CT28:$GF28,"<" & S28+0.5,'Asset data'!$CX28:$GJ28)-W28,0) -> 868.0416401 | Y28: =IF($A28>0,SUMIF('Age profile (years)'!$CT28:$GF28,"<" & T28+0.5,'Asset data'!$CX28:$GJ28)-X28-W28,0) -> 12785.74275 | Z28: =IF($A28>0,SUMIF('Age profile (years)'!$CT28:$GF28,"<" & U28+0.5,'Asset data'!$CX28:$GJ28)-Y28-X28-W28,0) -> 10927.11241 | AA28: 2542.851393 | AB28: 0.008955223881 | AC28: 0.03171641791 | AD28: 0.4671641791 | AE28: 0.3992537313 | AF28: 0.09291044776 | AI28: =IF($A28>0,'RRR hist-forc'!K28,0) -> 63.67112978 | AJ28: 1742605.11
A29: ='Asset data'!A29 -> 1 | B29: ='Asset data'!B29 -> 0 | C29: ='Asset data'!C29 -> 0 | D29: ='Asset data'!E29 -> > 1 kV & < = 11 kV; Concrete | E29: POLES | F29: =IF(A29>0,SUM('Asset data'!J29:CV29),0) -> 5496 | G29: =IF(A29>0,'Asset data'!F29,0) -> 12.23133165 | H29: =IF(A29>0,SUM('Asset data'!CX29:GJ29),0) -> 67223.39876 | I29: 0.00384617246 | J29: 28 | K29: 0.04287300852 | L29: 12.23133165 | M29: =IF($A29>0,SUMPRODUCT('Age profile (years)'!$CT29:$GF29,'Asset data'!$CX29:$GJ29)/H29-0.5,0) -> 43.73144105 | N29: 2939776.1 | O29: =IF($A29>0,'Asset data'!G29,0) -> 63.67112978 | P29: 4280189.747 | Q29: 0.3131668749 | R29: 6.367112978 | S29: 12.73422596 | T29: 38.20267787 | U29: 50.93690383 | W29: =IF($A29>0,SUMIF('Age profile (years)'!$CT29:$GF29,"<" & R29+0.5,'Asset data'!$CX29:$GJ29),0) -> 1590.073115 | X29: =IF($A29>0,SUMIF('Age profile (years)'!$CT29:$GF29,"<" & S29+0.5,'Asset data'!$CX29:$GJ29)-W29,0) -> 905.1185423 | Y29: =IF($A29>0,SUMIF('Age profile (years)'!$CT29:$GF29,"<" & T29+0.5,'Asset data'!$CX29:$GJ29)-X29-W29,0) -> 23263.9928 | Z29: =IF($A29>0,SUMIF('Age profile (years)'!$CT29:$GF29,"<" & U29+0.5,'Asset data'!$CX29:$GJ29)-Y29-X29-W29,0) -> 7302.104996 | AA29: 34162.1093 | AB29: 0.02365356623 | AC29: 0.0134643377 | AD29: 0.346069869 | AE29: 0.1086244541 | AF29: 0.5081877729 | AI29: =IF($A29>0,'RRR hist-forc'!K29,0) -> 63.67112978 | AJ29: 4280189.747
A30: ='Asset data'!A30 -> 0 | B30: ='Asset data'!B30 -> 0 | C30: ='Asset data'!C30 -> 0 | D30: ='Asset data'!E30 -> ˃ 11 kV & < = 22 kV; Concrete | E30: 0 | F30: =IF(A30>0,SUM('Asset data'!J30:CV30),0) -> 0 | G30: =IF(A30>0,'Asset data'!F30,0) -> 0 | H30: =IF(A30>0,SUM('Asset data'!CX30:GJ30),0) -> 0 | I30: 0 | J30: 0 | K30: 0 | L30: 0 | M30: =IF($A30>0,SUMPRODUCT('Age profile (years)'!$CT30:$GF30,'Asset data'!$CX30:$GJ30)/H30-0.5,0) -> 0 | N30: 0 | O30: =IF($A30>0,'Asset data'!G30,0) -> 0 | P30: 0 | Q30: 0 | R30: 0 | S30: 0 | T30: 0 | U30: 0 | W30: =IF($A30>0,SUMIF('Age profile (years)'!$CT30:$GF30,"<" & R30+0.5,'Asset data'!$CX30:$GJ30),0) -> 0 | X30: =IF($A30>0,SUMIF('Age profile (years)'!$CT30:$GF30,"<" & S30+0.5,'Asset data'!$CX30:$GJ30)-W30,0) -> 0 | Y30: =IF($A30>0,SUMIF('Age profile (years)'!$CT30:$GF30,"<" & T30+0.5,'Asset data'!$CX30:$GJ30)-X30-W30,0) -> 0 | Z30: =IF($A30>0,SUMIF('Age profile (years)'!$CT30:$GF30,"<" & U30+0.5,'Asset data'!$CX30:$GJ30)-Y30-X30-W30,0) -> 0 | AA30: 0 | AB30: 0 | AC30: 0 | AD30: 0 | AE30: 0 | AF30: 0 | AI30: =IF($A30>0,'RRR hist-forc'!K30,0) -> 0 | AJ30: 0
A31: ='Asset data'!A31 -> 1 | B31: ='Asset data'!B31 -> 0 | C31: ='Asset data'!C31 -> 0 | D31: ='Asset data'!E31 -> > 22 kV & < = 66 kV; Concrete | E31: POLES | F31: =IF(A31>0,SUM('Asset data'!J31:CV31),0) -> 693 | G31: =IF(A31>0,'Asset data'!F31,0) -> 18.49680874 | H31: =IF(A31>0,SUM('Asset data'!CX31:GJ31),0) -> 12818.28846 | I31: 0.0007333956475 | J31: 37 | K31: 0.008175108676 | L31: 18.49680874 | M31: =IF($A31>0,SUMPRODUCT('Age profile (years)'!$CT31:$GF31,'Asset data'!$CX31:$GJ31)/H31-0.5,0) -> 39.15800866 | N31: 501938.6505 | O31: =IF($A31>0,'Asset data'!G31,0) -> 63.67112978 | P31: 816154.9082 | Q31: 0.3849958562 | R31: 6.367112978 | S31: 12.73422596 | T31: 38.20267787 | U31: 50.93690383 | W31: =IF($A31>0,SUMIF('Age profile (years)'!$CT31:$GF31,"<" & R31+0.5,'Asset data'!$CX31:$GJ31),0) -> 388.4329836 | X31: =IF($A31>0,SUMIF('Age profile (years)'!$CT31:$GF31,"<" & S31+0.5,'Asset data'!$CX31:$GJ31)-W31,0) -> 240.4585137 | Y31: =IF($A31>0,SUMIF('Age profile (years)'!$CT31:$GF31,"<" & T31+0.5,'Asset data'!$CX31:$GJ31)-X31-W31,0) -> 4994.138361 | Z31: =IF($A31>0,SUMIF('Age profile (years)'!$CT31:$GF31,"<" & U31+0.5,'Asset data'!$CX31:$GJ31)-Y31-X31-W31,0) -> 5105.119214 | AA31: 2090.139388 | AB31: 0.0303030303 | AC31: 0.01875901876 | AD31: 0.3896103896 | AE31: 0.3982683983 | AF31: 0.1630591631 | AI31: =IF($A31>0,'RRR hist-forc'!K31,0) -> 63.67112978 | AJ31: 816154.9082
A32: ='Asset data'!A32 -> 1 | B32: ='Asset data'!B32 -> 0 | C32: ='Asset data'!C32 -> 0 | D32: ='Asset data'!E32 -> > 66 kV & < = 132 kV; Concrete | E32: POLES | F32: =IF(A32>0,SUM('Asset data'!J32:CV32),0) -> 1317 | G32: =IF(A32>0,'Asset data'!F32,0) -> 21.21201926 | H32: =IF(A32>0,SUM('Asset data'!CX32:GJ32),0) -> 27936.22936 | I32: 0.00159836542 | J32: 33 | K32: 0.01781686469 | L32: 21.21201926 | M32: =IF($A32>0,SUMPRODUCT('Age profile (years)'!$CT32:$GF32,'Asset data'!$CX32:$GJ32)/H32-0.5,0) -> 47.9745634 | N32: 1340228.407 | O32: =IF($A32>0,'Asset data'!G32,0) -> 63.67112978 | P32: 1778731.285 | Q32: 0.2465256457 | R32: 6.367112978 | S32: 12.73422596 | T32: 38.20267787 | U32: 50.93690383 | W32: =IF($A32>0,SUMIF('Age profile (years)'!$CT32:$GF32,"<" & R32+0.5,'Asset data'!$CX32:$GJ32),0) -> 0 | X32: =IF($A32>0,SUMIF('Age profile (years)'!$CT32:$GF32,"<" & S32+0.5,'Asset data'!$CX32:$GJ32)-W32,0) -> 0 | Y32: =IF($A32>0,SUMIF('Age profile (years)'!$CT32:$GF32,"<" & T32+0.5,'Asset data'!$CX32:$GJ32)-X32-W32,0) -> 7466.630779 | Z32: =IF($A32>0,SUMIF('Age profile (years)'!$CT32:$GF32,"<" & U32+0.5,'Asset data'!$CX32:$GJ32)-Y32-X32-W32,0) -> 9227.228377 | AA32: 11242.37021 | AB32: 0 | AC32: 0 | AD32: 0.2672741078 | AE32: 0.3302961276 | AF32: 0.4024297646 | AI32: =IF($A32>0,'RRR hist-forc'!K32,0) -> 63.67112978 | AJ32: 1778731.285
A33: ='Asset data'!A33 -> 0 | B33: ='Asset data'!B33 -> 0 | C33: ='Asset data'!C33 -> 0 | D33: ='Asset data'!E33 -> > 132 kV; Concrete | E33: 0 | F33: =IF(A33>0,SUM('Asset data'!J33:CV33),0) -> 0 | G33: =IF(A33>0,'Asset data'!F33,0) -> 0 | H33: =IF(A33>0,SUM('Asset data'!CX33:GJ33),0) -> 0 | I33: 0 | J33: 0 | K33: 0 | L33: 0 | M33: =IF($A33>0,SUMPRODUCT('Age profile (years)'!$CT33:$GF33,'Asset data'!$CX33:$GJ33)/H33-0.5,0) -> 0 | N33: 0 | O33: =IF($A33>0,'Asset data'!G33,0) -> 0 | P33: 0 | Q33: 0 | R33: 0 | S33: 0 | T33: 0 | U33: 0 | W33: =IF($A33>0,SUMIF('Age profile (years)'!$CT33:$GF33,"<" & R33+0.5,'Asset data'!$CX33:$GJ33),0) -> 0 | X33: =IF($A33>0,SUMIF('Age profile (years)'!$CT33:$GF33,"<" & S33+0.5,'Asset data'!$CX33:$GJ33)-W33,0) -> 0 | Y33: =IF($A33>0,SUMIF('Age profile (years)'!$CT33:$GF33,"<" & T33+0.5,'Asset data'!$CX33:$GJ33)-X33-W33,0) -> 0 | Z33: =IF($A33>0,SUMIF('Age profile (years)'!$CT33:$GF33,"<" & U33+0.5,'Asset data'!$CX33:$GJ33)-Y33-X33-W33,0) -> 0 | AA33: 0 | AB33: 0 | AC33: 0 | AD33: 0 | AE33: 0 | AF33: 0 | AI33: =IF($A33>0,'RRR hist-forc'!K33,0) -> 0 | AJ33: 0
A34: ='Asset data'!A34 -> 1 | B34: ='Asset data'!B34 -> 0 | C34: ='Asset data'!C34 -> 0 | D34: ='Asset data'!E34 -> ˂ = 1 kV; Steel | E34: POLES | F34: =IF(A34>0,SUM('Asset data'!J34:CV34),0) -> 2085 | G34: =IF(A34>0,'Asset data'!F34,0) -> 9.233864229 | H34: =IF(A34>0,SUM('Asset data'!CX34:GJ34),0) -> 19252.60692 | I34: 0.001101533809 | J34: 35 | K34: 0.01227871836 | L34: 9.233864229 | M34: =IF($A34>0,SUMPRODUCT('Age profile (years)'!$CT34:$GF34,'Asset data'!$CX34:$GJ34)/H34-0.5,0) -> 55.1882494 | N34: 1062517.672 | O34: =IF($A34>0,'Asset data'!G34,0) -> 63.67112978 | P34: 1225835.234 | Q34: 0.1332296193 | R34: 6.367112978 | S34: 12.73422596 | T34: 38.20267787 | U34: 50.93690383 | W34: =IF($A34>0,SUMIF('Age profile (years)'!$CT34:$GF34,"<" & R34+0.5,'Asset data'!$CX34:$GJ34),0) -> 0 | X34: =IF($A34>0,SUMIF('Age profile (years)'!$CT34:$GF34,"<" & S34+0.5,'Asset data'!$CX34:$GJ34)-W34,0) -> 0 | Y34: =IF($A34>0,SUMIF('Age profile (years)'!$CT34:$GF34,"<" & T34+0.5,'Asset data'!$CX34:$GJ34)-X34-W34,0) -> 415.5238903 | Z34: =IF($A34>0,SUMIF('Age profile (years)'!$CT34:$GF34,"<" & U34+0.5,'Asset data'!$CX34:$GJ34)-Y34-X34-W34,0) -> 6020.479478 | AA34: 12816.60355 | AB34: 0 | AC34: 0 | AD34: 0.02158273381 | AE34: 0.3127098321 | AF34: 0.6657074341 | AI34: =IF($A34>0,'RRR hist-forc'!K34,0) -> 63.67112978 | AJ34: 1225835.234
A35: ='Asset data'!A35 -> 1 | B35: ='Asset data'!B35 -> 0 | C35: ='Asset data'!C35 -> 0 | D35: ='Asset data'!E35 -> > 1 kV & < = 11 kV; Steel | E35: POLES | F35: =IF(A35>0,SUM('Asset data'!J35:CV35),0) -> 22 | G35: =IF(A35>0,'Asset data'!F35,0) -> 9.221057903 | H35: =IF(A35>0,SUM('Asset data'!CX35:GJ35),0) -> 202.8632739 | I35: 1.160677906e-05 | J35: 48 | K35: 0.0001293799336 | L35: 9.221057903 | M35: =IF($A35>0,SUMPRODUCT('Age profile (years)'!$CT35:$GF35,'Asset data'!$CX35:$GJ35)/H35-0.5,0) -> 48.5 | N35: 9838.868782 | O35: =IF($A35>0,'Asset data'!G35,0) -> 63.67112978 | P35: 12916.53384 | Q35: 0.2382732933 | R35: 6.367112978 | S35: 12.73422596 | T35: 38.20267787 | U35: 50.93690383 | W35: =IF($A35>0,SUMIF('Age profile (years)'!$CT35:$GF35,"<" & R35+0.5,'Asset data'!$CX35:$GJ35),0) -> 9.221057903 | X35: =IF($A35>0,SUMIF('Age profile (years)'!$CT35:$GF35,"<" & S35+0.5,'Asset data'!$CX35:$GJ35)-W35,0) -> 0 | Y35: =IF($A35>0,SUMIF('Age profile (years)'!$CT35:$GF35,"<" & T35+0.5,'Asset data'!$CX35:$GJ35)-X35-W35,0) -> 27.66317371 | Z35: =IF($A35>0,SUMIF('Age profile (years)'!$CT35:$GF35,"<" & U35+0.5,'Asset data'!$CX35:$GJ35)-Y35-X35-W35,0) -> 64.54740532 | AA35: 101.4316369 | AB35: 0.04545454545 | AC35: 0 | AD35: 0.1363636364 | AE35: 0.3181818182 | AF35: 0.5 | AI35: =IF($A35>0,'RRR hist-forc'!K35,0) -> 63.67112978 | AJ35: 12916.53384
A36: ='Asset data'!A36 -> 0 | B36: ='Asset data'!B36 -> 0 | C36: ='Asset data'!C36 -> 0 | D36: ='Asset data'!E36 -> ˃ 11 kV & < = 22 kV; Steel | E36: 0 | F36: =IF(A36>0,SUM('Asset data'!J36:CV36),0) -> 0 | G36: =IF(A36>0,'Asset data'!F36,0) -> 0 | H36: =IF(A36>0,SUM('Asset data'!CX36:GJ36),0) -> 0 | I36: 0 | J36: 0 | K36: 0 | L36: 0 | M36: =IF($A36>0,SUMPRODUCT('Age profile (years)'!$CT36:$GF36,'Asset data'!$CX36:$GJ36)/H36-0.5,0) -> 0 | N36: 0 | O36: =IF($A36>0,'Asset data'!G36,0) -> 0 | P36: 0 | Q36: 0 | R36: 0 | S36: 0 | T36: 0 | U36: 0 | W36: =IF($A36>0,SUMIF('Age profile (years)'!$CT36:$GF36,"<" & R36+0.5,'Asset data'!$CX36:$GJ36),0) -> 0 | X36: =IF($A36>0,SUMIF('Age profile (years)'!$CT36:$GF36,"<" & S36+0.5,'Asset data'!$CX36:$GJ36)-W36,0) -> 0 | Y36: =IF($A36>0,SUMIF('Age profile (years)'!$CT36:$GF36,"<" & T36+0.5,'Asset data'!$CX36:$GJ36)-X36-W36,0) -> 0 | Z36: =IF($A36>0,SUMIF('Age profile (years)'!$CT36:$GF36,"<" & U36+0.5,'Asset data'!$CX36:$GJ36)-Y36-X36-W36,0) -> 0 | AA36: 0 | AB36: 0 | AC36: 0 | AD36: 0 | AE36: 0 | AF36: 0 | AI36: =IF($A36>0,'RRR hist-forc'!K36,0) -> 0 | AJ36: 0
A37: ='Asset data'!A37 -> 1 | B37: ='Asset data'!B37 -> 0 | C37: ='Asset data'!C37 -> 0 | D37: ='Asset data'!E37 -> > 22 kV & < = 66 kV; Steel | E37: POLES | F37: =IF(A37>0,SUM('Asset data'!J37:CV37),0) -> 526 | G37: =IF(A37>0,'Asset data'!F37,0) -> 20.83372953 | H37: =IF(A37>0,SUM('Asset data'!CX37:GJ37),0) -> 10958.54173 | I37: 0.0006269906343 | J37: 38 | K37: 0.006989019625 | L37: 20.83372953 | M37: =IF($A37>0,SUMPRODUCT('Age profile (years)'!$CT37:$GF37,'Asset data'!$CX37:$GJ37)/H37-0.5,0) -> 53.06463878 | N37: 581511.0588 | O37: =IF($A37>0,'Asset data'!G37,0) -> 63.67112978 | P37: 697742.733 | Q37: 0.1665824218 | R37: =IF($A37>0,$O37-R$4*$O37,0) -> 6.367112978 | S37: 12.73422596 | T37: 38.20267787 | U37: 50.93690383 | W37: =IF($A37>0,SUMIF('Age profile (years)'!$CT37:$GF37,"<" & R37+0.5,'Asset data'!$CX37:$GJ37),0) -> 0 | X37: =IF($A37>0,SUMIF('Age profile (years)'!$CT37:$GF37,"<" & S37+0.5,'Asset data'!$CX37:$GJ37)-W37,0) -> 0 | Y37: =IF($A37>0,SUMIF('Age profile (years)'!$CT37:$GF37,"<" & T37+0.5,'Asset data'!$CX37:$GJ37)-X37-W37,0) -> 20.83372953 | Z37: =IF($A37>0,SUMIF('Age profile (years)'!$CT37:$GF37,"<" & U37+0.5,'Asset data'!$CX37:$GJ37)-Y37-X37-W37,0) -> 7062.634312 | AA37: 3875.073693 | AB37: 0 | AC37: 0 | AD37: 0.001901140684 | AE37: 0.644486692 | AF37: 0.3536121673 | AI37: =IF($A37>0,'RRR hist-forc'!K37,0) -> 63.67112978 | AJ37: 697742.733
A38: ='Asset data'!A38 -> 1 | B38: ='Asset data'!B38 -> 0 | C38: ='Asset data'!C38 -> 0 | D38: ='Asset data'!E38 -> > 66 kV & < = 132 kV; Steel | E38: POLES | F38: =IF(A38>0,SUM('Asset data'!J38:CV38),0) -> 445 | G38: =IF(A38>0,'Asset data'!F38,0) -> 17.14329826 | H38: =IF(A38>0,SUM('Asset data'!CX38:GJ38),0) -> 7628.767727 | I38: 0.0004364783227 | J38: 40 | K38: 0.004865392554 | L38: 17.14329826 | M38: =IF($A38>0,SUMPRODUCT('Age profile (years)'!$CT38:$GF38,'Asset data'!$CX38:$GJ38)/H38-0.5,0) -> 53.57191011 | N38: 408687.6589 | O38: =IF($A38>0,'Asset data'!G38,0) -> 63.67112978 | P38: 485732.26 | Q38: 0.1586153678 | R38: 6.367112978 | S38: 12.73422596 | T38: 38.20267787 | U38: 50.93690383 | W38: =IF($A38>0,SUMIF('Age profile (years)'!$CT38:$GF38,"<" & R38+0.5,'Asset data'!$CX38:$GJ38),0) -> 0 | X38: =IF($A38>0,SUMIF('Age profile (years)'!$CT38:$GF38,"<" & S38+0.5,'Asset data'!$CX38:$GJ38)-W38,0) -> 0 | Y38: =IF($A38>0,SUMIF('Age profile (years)'!$CT38:$GF38,"<" & T38+0.5,'Asset data'!$CX38:$GJ38)-X38-W38,0) -> 51.42989479 | Z38: =IF($A38>0,SUMIF('Age profile (years)'!$CT38:$GF38,"<" & U38+0.5,'Asset data'!$CX38:$GJ38)-Y38-X38-W38,0) -> 4491.544145 | AA38: 3085.793687 | AB38: 0 | AC38: 0 | AD38: 0.006741573034 | AE38: 0.5887640449 | AF38: 0.404494382 | AI38: =IF($A38>0,'RRR hist-forc'!K38,0) -> 63.67112978 | AJ38: 485732.26
A39: ='Asset data'!A39 -> 0 | B39: ='Asset data'!B39 -> 0 | C39: ='Asset data'!C39 -> 0 | D39: ='Asset data'!E39 -> > 132 kV; Steel | E39: 0 | F39: =IF(A39>0,SUM('Asset data'!J39:CV39),0) -> 0 | G39: =IF(A39>0,'Asset data'!F39,0) -> 0 | H39: =IF(A39>0,SUM('Asset data'!CX39:GJ39),0) -> 0 | I39: 0 | J39: 0 | K39: 0 | L39: 0 | M39: =IF($A39>0,SUMPRODUCT('Age profile (years)'!$CT39:$GF39,'Asset data'!$CX39:$GJ39)/H39-0.5,0) -> 0 | N39: 0 | O39: =IF($A39>0,'Asset data'!G39,0) -> 0 | P39: 0 | Q39: 0 | R39: 0 | S39: 0 | T39: 0 | U39: 0 | W39: =IF($A39>0,SUMIF('Age profile (years)'!$CT39:$GF39,"<" & R39+0.5,'Asset data'!$CX39:$GJ39),0) -> 0 | X39: =IF($A39>0,SUMIF('Age profile (years)'!$CT39:$GF39,"<" & S39+0.5,'Asset data'!$CX39:$GJ39)-W39,0) -> 0 | Y39: =IF($A39>0,SUMIF('Age profile (years)'!$CT39:$GF39,"<" & T39+0.5,'Asset data'!$CX39:$GJ39)-X39-W39,0) -> 0 | Z39: =IF($A39>0,SUMIF('Age profile (years)'!$CT39:$GF39,"<" & U39+0.5,'Asset data'!$CX39:$GJ39)-Y39-X39-W39,0) -> 0 | AA39: 0 | AB39: 0 | AC39: 0 | AD39: 0 | AE39: 0 | AF39: 0 | AI39: =IF($A39>0,'RRR hist-forc'!K39,0) -> 0 | AJ39: 0
A40: ='Asset data'!A40 -> 0 | B40: ='Asset data'!B40 -> 0 | C40: ='Asset data'!C40 -> 0 | D40: ='Asset data'!E40 -> Other | E40: 0 | F40: =IF(A40>0,SUM('Asset data'!J40:CV40),0) -> 0 | G40: =IF(A40>0,'Asset data'!F40,0) -> 0 | H40: =IF(A40>0,SUM('Asset data'!CX40:GJ40),0) -> 0 | I40: 0 | J40: 0 | K40: 0 | L40: 0 | M40: =IF($A40>0,SUMPRODUCT('Age profile (years)'!$CT40:$GF40,'Asset data'!$CX40:$GJ40)/H40-0.5,0) -> 0 | N40: 0 | O40: =IF($A40>0,'Asset data'!G40,0) -> 0 | P40: 0 | Q40: 0 | R40: 0 | S40: 0 | T40: 0 | U40: 0 | W40: =IF($A40>0,SUMIF('Age profile (years)'!$CT40:$GF40,"<" & R40+0.5,'Asset data'!$CX40:$GJ40),0) -> 0 | X40: =IF($A40>0,SUMIF('Age profile (years)'!$CT40:$GF40,"<" & S40+0.5,'Asset data'!$CX40:$GJ40)-W40,0) -> 0 | Y40: =IF($A40>0,SUMIF('Age profile (years)'!$CT40:$GF40,"<" & T40+0.5,'Asset data'!$CX40:$GJ40)-X40-W40,0) -> 0 | Z40: =IF($A40>0,SUMIF('Age profile (years)'!$CT40:$GF40,"<" & U40+0.5,'Asset data'!$CX40:$GJ40)-Y40-X40-W40,0) -> 0 | AA40: 0 | AB40: 0 | AC40: 0 | AD40: 0 | AE40: 0 | AF40: 0 | AI40: =IF($A40>0,'RRR hist-forc'!K40,0) -> 0 | AJ40: 0
A41: ='Asset data'!A41 -> 0 | B41: ='Asset data'!B41 -> 0 | C41: ='Asset data'!C41 -> 0 | D41: ='Asset data'!E41 -> ˂ = 1 kV | E41: 0 | F41: =IF(A41>0,SUM('Asset data'!J41:CV41),0) -> 0 | G41: =IF(A41>0,'Asset data'!F41,0) -> 0 | H41: =IF(A41>0,SUM('Asset data'!CX41:GJ41),0) -> 0 | I41: 0 | J41: 0 | K41: 0 | L41: 0 | M41: =IF($A41>0,SUMPRODUCT('Age profile (years)'!$CT41:$GF41,'Asset data'!$CX41:$GJ41)/H41-0.5,0) -> 0 | N41: 0 | O41: =IF($A41>0,'Asset data'!G41,0) -> 0 | P41: 0 | Q41: 0 | R41: 0 | S41: 0 | T41: 0 | U41: 0 | W41: =IF($A41>0,SUMIF('Age profile (years)'!$CT41:$GF41,"<" & R41+0.5,'Asset data'!$CX41:$GJ41),0) -> 0 | X41: =IF($A41>0,SUMIF('Age profile (years)'!$CT41:$GF41,"<" & S41+0.5,'Asset data'!$CX41:$GJ41)-W41,0) -> 0 | Y41: =IF($A41>0,SUMIF('Age profile (years)'!$CT41:$GF41,"<" & T41+0.5,'Asset data'!$CX41:$GJ41)-X41-W41,0) -> 0 | Z41: =IF($A41>0,SUMIF('Age profile (years)'!$CT41:$GF41,"<" & U41+0.5,'Asset data'!$CX41:$GJ41)-Y41-X41-W41,0) -> 0 | AA41: 0 | AB41: 0 | AC41: 0 | AD41: 0 | AE41: 0 | AF41: 0 | AI41: =IF($A41>0,'RRR hist-forc'!K41,0) -> 0 | AJ41: 0
A42: ='Asset data'!A42 -> 0 | B42: ='Asset data'!B42 -> 0 | C42: ='Asset data'!C42 -> 0 | D42: ='Asset data'!E42 -> > 1 kV & < = 11 kV | E42: 0 | F42: =IF(A42>0,SUM('Asset data'!J42:CV42),0) -> 0 | G42: =IF(A42>0,'Asset data'!F42,0) -> 0 | H42: =IF(A42>0,SUM('Asset data'!CX42:GJ42),0) -> 0 | I42: 0 | J42: 0 | K42: 0 | L42: 0 | M42: =IF($A42>0,SUMPRODUCT('Age profile (years)'!$CT42:$GF42,'Asset data'!$CX42:$GJ42)/H42-0.5,0) -> 0 | N42: 0 | O42: =IF($A42>0,'Asset data'!G42,0) -> 0 | P42: 0 | Q42: 0 | R42: 0 | S42: 0 | T42: 0 | U42: 0 | W42: =IF($A42>0,SUMIF('Age profile (years)'!$CT42:$GF42,"<" & R42+0.5,'Asset data'!$CX42:$GJ42),0) -> 0 | X42: =IF($A42>0,SUMIF('Age profile (years)'!$CT42:$GF42,"<" & S42+0.5,'Asset data'!$CX42:$GJ42)-W42,0) -> 0 | Y42: =IF($A42>0,SUMIF('Age profile (years)'!$CT42:$GF42,"<" & T42+0.5,'Asset data'!$CX42:$GJ42)-X42-W42,0) -> 0 | Z42: =IF($A42>0,SUMIF('Age profile (years)'!$CT42:$GF42,"<" & U42+0.5,'Asset data'!$CX42:$GJ42)-Y42-X42-W42,0) -> 0 | AA42: 0 | AB42: 0 | AC42: 0 | AD42: 0 | AE42: 0 | AF42: 0 | AI42: =IF($A42>0,'RRR hist-forc'!K42,0) -> 0 | AJ42: 0
A43: ='Asset data'!A43 -> 0 | B43: ='Asset data'!B43 -> 0 | C43: ='Asset data'!C43 -> 0 | D43: ='Asset data'!E43 -> ˃ 11 kV & < = 22 kV | E43: 0 | F43: =IF(A43>0,SUM('Asset data'!J43:CV43),0) -> 0 | G43: =IF(A43>0,'Asset data'!F43,0) -> 0 | H43: =IF(A43>0,SUM('Asset data'!CX43:GJ43),0) -> 0 | I43: 0 | J43: 0 | K43: 0 | L43: 0 | M43: =IF($A43>0,SUMPRODUCT('Age profile (years)'!$CT43:$GF43,'Asset data'!$CX43:$GJ43)/H43-0.5,0) -> 0 | N43: 0 | O43: =IF($A43>0,'Asset data'!G43,0) -> 0 | P43: 0 | Q43: 0 | R43: 0 | S43: 0 | T43: 0 | U43: 0 | W43: =IF($A43>0,SUMIF('Age profile (years)'!$CT43:$GF43,"<" & R43+0.5,'Asset data'!$CX43:$GJ43),0) -> 0 | X43: =IF($A43>0,SUMIF('Age profile (years)'!$CT43:$GF43,"<" & S43+0.5,'Asset data'!$CX43:$GJ43)-W43,0) -> 0 | Y43: =IF($A43>0,SUMIF('Age profile (years)'!$CT43:$GF43,"<" & T43+0.5,'Asset data'!$CX43:$GJ43)-X43-W43,0) -> 0 | Z43: =IF($A43>0,SUMIF('Age profile (years)'!$CT43:$GF43,"<" & U43+0.5,'Asset data'!$CX43:$GJ43)-Y43-X43-W43,0) -> 0 | AA43: 0 | AB43: 0 | AC43: 0 | AD43: 0 | AE43: 0 | AF43: 0 | AI43: =IF($A43>0,'RRR hist-forc'!K43,0) -> 0 | AJ43: 0
A44: ='Asset data'!A44 -> 0 | B44: ='Asset data'!B44 -> 0 | C44: ='Asset data'!C44 -> 0 | D44: ='Asset data'!E44 -> > 22 kV & < = 66 kV | E44: 0 | F44: =IF(A44>0,SUM('Asset data'!J44:CV44),0) -> 0 | G44: =IF(A44>0,'Asset data'!F44,0) -> 0 | H44: =IF(A44>0,SUM('Asset data'!CX44:GJ44),0) -> 0 | I44: 0 | J44: 0 | K44: 0 | L44: 0 | M44: =IF($A44>0,SUMPRODUCT('Age profile (years)'!$CT44:$GF44,'Asset data'!$CX44:$GJ44)/H44-0.5,0) -> 0 | N44: 0 | O44: =IF($A44>0,'Asset data'!G44,0) -> 0 | P44: 0 | Q44: 0 | R44: 0 | S44: 0 | T44: 0 | U44: 0 | W44: =IF($A44>0,SUMIF('Age profile (years)'!$CT44:$GF44,"<" & R44+0.5,'Asset data'!$CX44:$GJ44),0) -> 0 | X44: =IF($A44>0,SUMIF('Age profile (years)'!$CT44:$GF44,"<" & S44+0.5,'Asset data'!$CX44:$GJ44)-W44,0) -> 0 | Y44: =IF($A44>0,SUMIF('Age profile (years)'!$CT44:$GF44,"<" & T44+0.5,'Asset data'!$CX44:$GJ44)-X44-W44,0) -> 0 | Z44: =IF($A44>0,SUMIF('Age profile (years)'!$CT44:$GF44,"<" & U44+0.5,'Asset data'!$CX44:$GJ44)-Y44-X44-W44,0) -> 0 | AA44: 0 | AB44: 0 | AC44: 0 | AD44: 0 | AE44: 0 | AF44: 0 | AI44: =IF($A44>0,'RRR hist-forc'!K44,0) -> 0 | AJ44: 0
A45: ='Asset data'!A45 -> 0 | B45: ='Asset data'!B45 -> 0 | C45: ='Asset data'!C45 -> 0 | D45: ='Asset data'!E45 -> > 66 kV & < = 132 kV | E45: 0 | F45: =IF(A45>0,SUM('Asset data'!J45:CV45),0) -> 0 | G45: =IF(A45>0,'Asset data'!F45,0) -> 0 | H45: =IF(A45>0,SUM('Asset data'!CX45:GJ45),0) -> 0 | I45: 0 | J45: 0 | K45: 0 | L45: 0 | M45: =IF($A45>0,SUMPRODUCT('Age profile (years)'!$CT45:$GF45,'Asset data'!$CX45:$GJ45)/H45-0.5,0) -> 0 | N45: 0 | O45: =IF($A45>0,'Asset data'!G45,0) -> 0 | P45: 0 | Q45: 0 | R45: 0 | S45: 0 | T45: 0 | U45: 0 | W45: =IF($A45>0,SUMIF('Age profile (years)'!$CT45:$GF45,"<" & R45+0.5,'Asset data'!$CX45:$GJ45),0) -> 0 | X45: =IF($A45>0,SUMIF('Age profile (years)'!$CT45:$GF45,"<" & S45+0.5,'Asset data'!$CX45:$GJ45)-W45,0) -> 0 | Y45: =IF($A45>0,SUMIF('Age profile (years)'!$CT45:$GF45,"<" & T45+0.5,'Asset data'!$CX45:$GJ45)-X45-W45,0) -> 0 | Z45: =IF($A45>0,SUMIF('Age profile (years)'!$CT45:$GF45,"<" & U45+0.5,'Asset data'!$CX45:$GJ45)-Y45-X45-W45,0) -> 0 | AA45: 0 | AB45: 0 | AC45: 0 | AD45: 0 | AE45: 0 | AF45: 0 | AI45: =IF($A45>0,'RRR hist-forc'!K45,0) -> 0 | AJ45: 0
A46: ='Asset data'!A46 -> 0 | B46: ='Asset data'!B46 -> 0 | C46: ='Asset data'!C46 -> 0 | D46: ='Asset data'!E46 -> > 132 kV | E46: 0 | F46: =IF(A46>0,SUM('Asset data'!J46:CV46),0) -> 0 | G46: =IF(A46>0,'Asset data'!F46,0) -> 0 | H46: =IF(A46>0,SUM('Asset data'!CX46:GJ46),0) -> 0 | I46: 0 | J46: 0 | K46: 0 | L46: 0 | M46: =IF($A46>0,SUMPRODUCT('Age profile (years)'!$CT46:$GF46,'Asset data'!$CX46:$GJ46)/H46-0.5,0) -> 0 | N46: 0 | O46: =IF($A46>0,'Asset data'!G46,0) -> 0 | P46: 0 | Q46: 0 | R46: 0 | S46: 0 | T46: 0 | U46: 0 | W46: =IF($A46>0,SUMIF('Age profile (years)'!$CT46:$GF46,"<" & R46+0.5,'Asset data'!$CX46:$GJ46),0) -> 0 | X46: =IF($A46>0,SUMIF('Age profile (years)'!$CT46:$GF46,"<" & S46+0.5,'Asset data'!$CX46:$GJ46)-W46,0) -> 0 | Y46: =IF($A46>0,SUMIF('Age profile (years)'!$CT46:$GF46,"<" & T46+0.5,'Asset data'!$CX46:$GJ46)-X46-W46,0) -> 0 | Z46: =IF($A46>0,SUMIF('Age profile (years)'!$CT46:$GF46,"<" & U46+0.5,'Asset data'!$CX46:$GJ46)-Y46-X46-W46,0) -> 0 | AA46: 0 | AB46: 0 | AC46: 0 | AD46: 0 | AE46: 0 | AF46: 0 | AI46: =IF($A46>0,'RRR hist-forc'!K46,0) -> 0 | AJ46: 0
A47: ='Asset data'!A47 -> 0 | B47: ='Asset data'!B47 -> 0 | C47: ='Asset data'!C47 -> 0 | D47: ='Asset data'!E47 -> Other | E47: 0 | F47: =IF(A47>0,SUM('Asset data'!J47:CV47),0) -> 0 | G47: =IF(A47>0,'Asset data'!F47,0) -> 0 | H47: =IF(A47>0,SUM('Asset data'!CX47:GJ47),0) -> 0 | I47: 0 | J47: 0 | K47: 0 | L47: 0 | M47: =IF($A47>0,SUMPRODUCT('Age profile (years)'!$CT47:$GF47,'Asset data'!$CX47:$GJ47)/H47-0.5,0) -> 0 | N47: 0 | O47: =IF($A47>0,'Asset data'!G47,0) -> 0 | P47: 0 | Q47: 0 | R47: 0 | S47: 0 | T47: 0 | U47: 0 | W47: =IF($A47>0,SUMIF('Age profile (years)'!$CT47:$GF47,"<" & R47+0.5,'Asset data'!$CX47:$GJ47),0) -> 0 | X47: =IF($A47>0,SUMIF('Age profile (years)'!$CT47:$GF47,"<" & S47+0.5,'Asset data'!$CX47:$GJ47)-W47,0) -> 0 | Y47: =IF($A47>0,SUMIF('Age profile (years)'!$CT47:$GF47,"<" & T47+0.5,'Asset data'!$CX47:$GJ47)-X47-W47,0) -> 0 | Z47: =IF($A47>0,SUMIF('Age profile (years)'!$CT47:$GF47,"<" & U47+0.5,'Asset data'!$CX47:$GJ47)-Y47-X47-W47,0) -> 0 | AA47: 0 | AB47: 0 | AC47: 0 | AD47: 0 | AE47: 0 | AF47: 0 | AI47: =IF($A47>0,'RRR hist-forc'!K47,0) -> 0 | AJ47: 0
A48: ='Asset data'!A48 -> 2 | B48: ='Asset data'!B48 -> 0 | C48: ='Asset data'!C48 -> 0 | D48: ='Asset data'!E48 -> ˂ = 1 kV | E48: OVERHEAD CONDUCTORS | F48: =IF(A48>0,SUM('Asset data'!J48:CV48),0) -> 14250 | G48: =IF(A48>0,'Asset data'!F48,0) -> 35.38826608 | H48: =IF(A48>0,SUM('Asset data'!CX48:GJ48),0) -> 504282.7916 | I48: 0.02885243265 | J48: 8 | K48: 0.27908009 | L48: 35.38826608 | M48: =IF($A48>0,SUMPRODUCT('Age profile (years)'!$CT48:$GF48,'Asset data'!$CX48:$GJ48)/H48-0.5,0) -> 29.50631579 | N48: 14879527.3 | O48: =IF($A48>0,'Asset data'!G48,0) -> 67.82080267 | P48: 34200863.7 | Q48: 0.5649370897 | R48: 6.782080267 | S48: 13.56416053 | T48: 40.6924816 | U48: 54.25664214 | W48: =IF($A48>0,SUMIF('Age profile (years)'!$CT48:$GF48,"<" & R48+0.5,'Asset data'!$CX48:$GJ48),0) -> 59133.79262 | X48: =IF($A48>0,SUMIF('Age profile (years)'!$CT48:$GF48,"<" & S48+0.5,'Asset data'!$CX48:$GJ48)-W48,0) -> 26859.69396 | Y48: =IF($A48>0,SUMIF('Age profile (years)'!$CT48:$GF48,"<" & T48+0.5,'Asset data'!$CX48:$GJ48)-X48-W48,0) -> 308231.7976 | Z48: =IF($A48>0,SUMIF('Age profile (years)'!$CT48:$GF48,"<" & U48+0.5,'Asset data'!$CX48:$GJ48)-Y48-X48-W48,0) -> 68228.577 | AA48: 41828.93051 | AB48: 0.1172631579 | AC48: 0.05326315789 | AD48: 0.6112280702 | AE48: 0.1352982456 | AF48: 0.08294736842 | AI48: =IF($A48>0,'RRR hist-forc'!K48,0) -> 67.82080267 | AJ48: 34200863.7
A49: ='Asset data'!A49 -> 2 | B49: ='Asset data'!B49 -> 0 | C49: ='Asset data'!C49 -> 0 | D49: ='Asset data'!E49 -> > 1 kV & < = 11 kV | E49: OVERHEAD CONDUCTORS | F49: =IF(A49>0,SUM('Asset data'!J49:CV49),0) -> 17495 | G49: =IF(A49>0,'Asset data'!F49,0) -> 27.38749826 | H49: =IF(A49>0,SUM('Asset data'!CX49:GJ49),0) -> 479144.282 | I49: 0.02741413817 | J49: 10 | K49: 0.2651679406 | L49: 27.38749826 | M49: =IF($A49>0,SUMPRODUCT('Age profile (years)'!$CT49:$GF49,'Asset data'!$CX49:$GJ49)/H49-0.5,0) -> 34.5575593 | N49: 16558056.94 | O49: =IF($A49>0,'Asset data'!G49,0) -> 69.10337904 | P49: 33110488.94 | Q49: 0.499915058 | R49: 6.910337904 | S49: 13.82067581 | T49: 41.46202742 | U49: 55.28270323 | W49: =IF($A49>0,SUMIF('Age profile (years)'!$CT49:$GF49,"<" & R49+0.5,'Asset data'!$CX49:$GJ49),0) -> 36041.94771 | X49: =IF($A49>0,SUMIF('Age profile (years)'!$CT49:$GF49,"<" & S49+0.5,'Asset data'!$CX49:$GJ49)-W49,0) -> 24840.46092 | Y49: =IF($A49>0,SUMIF('Age profile (years)'!$CT49:$GF49,"<" & T49+0.5,'Asset data'!$CX49:$GJ49)-X49-W49,0) -> 263029.5333 | Z49: =IF($A49>0,SUMIF('Age profile (years)'!$CT49:$GF49,"<" & U49+0.5,'Asset data'!$CX49:$GJ49)-Y49-X49-W49,0) -> 91501.63168 | AA49: 63730.70845 | AB49: 0.07522149185 | AC49: 0.05184338382 | AD49: 0.5489568448 | AE49: 0.1909688482 | AF49: 0.1330094313 | AI49: =IF($A49>0,'RRR hist-forc'!K49,0) -> 69.10337904 | AJ49: 33110488.94
A50: ='Asset data'!A50 -> 2 | B50: ='Asset data'!B50 -> 0 | C50: ='Asset data'!C50 -> 0 | D50: ='Asset data'!E50 -> ˃ 11 kV & < = 22 kV ; SWER | E50: OVERHEAD CONDUCTORS | F50: =IF(A50>0,SUM('Asset data'!J50:CV50),0) -> 39 | G50: =IF(A50>0,'Asset data'!F50,0) -> 54.14117106 | H50: =IF(A50>0,SUM('Asset data'!CX50:GJ50),0) -> 2111.505671 | I50: 0.0001208093478 | J50: 41 | K50: 0.001168549081 | L50: 54.14117106 | M50: =IF($A50>0,SUMPRODUCT('Age profile (years)'!$CT50:$GF50,'Asset data'!$CX50:$GJ50)/H50-0.5,0) -> 51.3974359 | N50: 108525.9774 | O50: =IF($A50>0,'Asset data'!G50,0) -> 72.42767779 | P50: 152931.4524 | Q50: 0.2903619518 | R50: 7.242767779 | S50: 14.48553556 | T50: 43.45660667 | U50: 57.94214223 | W50: =IF($A50>0,SUMIF('Age profile (years)'!$CT50:$GF50,"<" & R50+0.5,'Asset data'!$CX50:$GJ50),0) -> 0 | X50: =IF($A50>0,SUMIF('Age profile (years)'!$CT50:$GF50,"<" & S50+0.5,'Asset data'!$CX50:$GJ50)-W50,0) -> 0 | Y50: =IF($A50>0,SUMIF('Age profile (years)'!$CT50:$GF50,"<" & T50+0.5,'Asset data'!$CX50:$GJ50)-X50-W50,0) -> 0 | Z50: =IF($A50>0,SUMIF('Age profile (years)'!$CT50:$GF50,"<" & U50+0.5,'Asset data'!$CX50:$GJ50)-Y50-X50-W50,0) -> 1894.940987 | AA50: 216.5646842 | AB50: 0 | AC50: 0 | AD50: 0 | AE50: 0.8974358974 | AF50: 0.1025641026 | AI50: =IF($A50>0,'RRR hist-forc'!K50,0) -> 72.42767779 | AJ50: 152931.4524
A51: ='Asset data'!A51 -> 0 | B51: ='Asset data'!B51 -> 0 | C51: ='Asset data'!C51 -> 0 | D51: ='Asset data'!E51 -> ˃ 11 kV & < = 22 kV ; Single-Phase | E51: 0 | F51: =IF(A51>0,SUM('Asset data'!J51:CV51),0) -> 0 | G51: =IF(A51>0,'Asset data'!F51,0) -> 0 | H51: =IF(A51>0,SUM('Asset data'!CX51:GJ51),0) -> 0 | I51: 0 | J51: 0 | K51: 0 | L51: 0 | M51: =IF($A51>0,SUMPRODUCT('Age profile (years)'!$CT51:$GF51,'Asset data'!$CX51:$GJ51)/H51-0.5,0) -> 0 | N51: 0 | O51: =IF($A51>0,'Asset data'!G51,0) -> 0 | P51: 0 | Q51: 0 | R51: 0 | S51: 0 | T51: 0 | U51: 0 | W51: =IF($A51>0,SUMIF('Age profile (years)'!$CT51:$GF51,"<" & R51+0.5,'Asset data'!$CX51:$GJ51),0) -> 0 | X51: =IF($A51>0,SUMIF('Age profile (years)'!$CT51:$GF51,"<" & S51+0.5,'Asset data'!$CX51:$GJ51)-W51,0) -> 0 | Y51: =IF($A51>0,SUMIF('Age profile (years)'!$CT51:$GF51,"<" & T51+0.5,'Asset data'!$CX51:$GJ51)-X51-W51,0) -> 0 | Z51: =IF($A51>0,SUMIF('Age profile (years)'!$CT51:$GF51,"<" & U51+0.5,'Asset data'!$CX51:$GJ51)-Y51-X51-W51,0) -> 0 | AA51: 0 | AB51: 0 | AC51: 0 | AD51: 0 | AE51: 0 | AF51: 0 | AI51: =IF($A51>0,'RRR hist-forc'!K51,0) -> 0 | AJ51: 0
A52: ='Asset data'!A52 -> 0 | B52: ='Asset data'!B52 -> 0 | C52: ='Asset data'!C52 -> 0 | D52: ='Asset data'!E52 -> ˃ 11 kV & < = 22 kV ; Multiple-Phase | E52: 0 | F52: =IF(A52>0,SUM('Asset data'!J52:CV52),0) -> 0 | G52: =IF(A52>0,'Asset data'!F52,0) -> 0 | H52: =IF(A52>0,SUM('Asset data'!CX52:GJ52),0) -> 0 | I52: 0 | J52: 0 | K52: 0 | L52: 0 | M52: =IF($A52>0,SUMPRODUCT('Age profile (years)'!$CT52:$GF52,'Asset data'!$CX52:$GJ52)/H52-0.5,0) -> 0 | N52: 0 | O52: =IF($A52>0,'Asset data'!G52,0) -> 0 | P52: 0 | Q52: 0 | R52: 0 | S52: 0 | T52: 0 | U52: 0 | W52: =IF($A52>0,SUMIF('Age profile (years)'!$CT52:$GF52,"<" & R52+0.5,'Asset data'!$CX52:$GJ52),0) -> 0 | X52: =IF($A52>0,SUMIF('Age profile (years)'!$CT52:$GF52,"<" & S52+0.5,'Asset data'!$CX52:$GJ52)-W52,0) -> 0 | Y52: =IF($A52>0,SUMIF('Age profile (years)'!$CT52:$GF52,"<" & T52+0.5,'Asset data'!$CX52:$GJ52)-X52-W52,0) -> 0 | Z52: =IF($A52>0,SUMIF('Age profile (years)'!$CT52:$GF52,"<" & U52+0.5,'Asset data'!$CX52:$GJ52)-Y52-X52-W52,0) -> 0 | AA52: 0 | AB52: 0 | AC52: 0 | AD52: 0 | AE52: 0 | AF52: 0 | AI52: =IF($A52>0,'RRR hist-forc'!K52,0) -> 0 | AJ52: 0
A53: ='Asset data'!A53 -> 2 | B53: ='Asset data'!B53 -> 0 | C53: ='Asset data'!C53 -> 0 | D53: ='Asset data'!E53 -> > 22 kV & < = 66 kV | E53: OVERHEAD CONDUCTORS | F53: =IF(A53>0,SUM('Asset data'!J53:CV53),0) -> 2196 | G53: =IF(A53>0,'Asset data'!F53,0) -> 223.3273105 | H53: =IF(A53>0,SUM('Asset data'!CX53:GJ53),0) -> 490426.7738 | I53: 0.02805966354 | J53: 9 | K53: 0.2714118952 | L53: 223.3273105 | M53: =IF($A53>0,SUMPRODUCT('Age profile (years)'!$CT53:$GF53,'Asset data'!$CX53:$GJ53)/H53-0.5,0) -> 43.58378871 | N53: 21374656.89 | O53: =IF($A53>0,'Asset data'!G53,0) -> 87.00177762 | P53: 42668001.12 | Q53: 0.4990471471 | R53: 8.700177762 | S53: 17.40035552 | T53: 52.20106657 | U53: 69.6014221 | W53: =IF($A53>0,SUMIF('Age profile (years)'!$CT53:$GF53,"<" & R53+0.5,'Asset data'!$CX53:$GJ53),0) -> 23449.3676 | X53: =IF($A53>0,SUMIF('Age profile (years)'!$CT53:$GF53,"<" & S53+0.5,'Asset data'!$CX53:$GJ53)-W53,0) -> 50918.62679 | Y53: =IF($A53>0,SUMIF('Age profile (years)'!$CT53:$GF53,"<" & T53+0.5,'Asset data'!$CX53:$GJ53)-X53-W53,0) -> 288762.2125 | Z53: =IF($A53>0,SUMIF('Age profile (years)'!$CT53:$GF53,"<" & U53+0.5,'Asset data'!$CX53:$GJ53)-Y53-X53-W53,0) -> 60075.04652 | AA53: 67221.52046 | AB53: 0.04781420765 | AC53: 0.1038251366 | AD53: 0.5887978142 | AE53: 0.1224954463 | AF53: 0.1370673953 | AI53: =IF($A53>0,'RRR hist-forc'!K53,0) -> 87.00177762 | AJ53: 42668001.12
A54: ='Asset data'!A54 -> 2 | B54: ='Asset data'!B54 -> 0 | C54: ='Asset data'!C54 -> 0 | D54: ='Asset data'!E54 -> > 66 kV & < = 132 kV | E54: OVERHEAD CONDUCTORS | F54: =IF(A54>0,SUM('Asset data'!J54:CV54),0) -> 1132 | G54: =IF(A54>0,'Asset data'!F54,0) -> 292.3861714 | H54: =IF(A54>0,SUM('Asset data'!CX54:GJ54),0) -> 330981.146 | I54: 0.01893701586 | J54: 19 | K54: 0.1831715251 | L54: 292.3861714 | M54: =IF($A54>0,SUMPRODUCT('Age profile (years)'!$CT54:$GF54,'Asset data'!$CX54:$GJ54)/H54-0.5,0) -> 28.42491166 | N54: 9408109.837 | O54: =IF($A54>0,'Asset data'!G54,0) -> 72.42767779 | P54: 23972195.8 | Q54: 0.6075407561 | R54: 7.242767779 | S54: 14.48553556 | T54: 43.45660667 | U54: 57.94214223 | W54: =IF($A54>0,SUMIF('Age profile (years)'!$CT54:$GF54,"<" & R54+0.5,'Asset data'!$CX54:$GJ54),0) -> 154379.8985 | X54: =IF($A54>0,SUMIF('Age profile (years)'!$CT54:$GF54,"<" & S54+0.5,'Asset data'!$CX54:$GJ54)-W54,0) -> 0 | Y54: =IF($A54>0,SUMIF('Age profile (years)'!$CT54:$GF54,"<" & T54+0.5,'Asset data'!$CX54:$GJ54)-X54-W54,0) -> 52337.12468 | Z54: =IF($A54>0,SUMIF('Age profile (years)'!$CT54:$GF54,"<" & U54+0.5,'Asset data'!$CX54:$GJ54)-Y54-X54-W54,0) -> 85669.14822 | AA54: 38594.97462 | AB54: 0.4664310954 | AC54: 0 | AD54: 0.1581272085 | AE54: 0.2588339223 | AF54: 0.1166077739 | AI54: =IF($A54>0,'RRR hist-forc'!K54,0) -> 72.42767779 | AJ54: 23972195.8
A55: ='Asset data'!A55 -> 0 | B55: ='Asset data'!B55 -> 0 | C55: ='Asset data'!C55 -> 0 | D55: ='Asset data'!E55 -> > 132 kV | E55: 0 | F55: =IF(A55>0,SUM('Asset data'!J55:CV55),0) -> 0 | G55: =IF(A55>0,'Asset data'!F55,0) -> 0 | H55: =IF(A55>0,SUM('Asset data'!CX55:GJ55),0) -> 0 | I55: 0 | J55: 0 | K55: 0 | L55: 0 | M55: =IF($A55>0,SUMPRODUCT('Age profile (years)'!$CT55:$GF55,'Asset data'!$CX55:$GJ55)/H55-0.5,0) -> 0 | N55: 0 | O55: =IF($A55>0,'Asset data'!G55,0) -> 0 | P55: 0 | Q55: 0 | R55: 0 | S55: 0 | T55: 0 | U55: 0 | W55: =IF($A55>0,SUMIF('Age profile (years)'!$CT55:$GF55,"<" & R55+0.5,'Asset data'!$CX55:$GJ55),0) -> 0 | X55: =IF($A55>0,SUMIF('Age profile (years)'!$CT55:$GF55,"<" & S55+0.5,'Asset data'!$CX55:$GJ55)-W55,0) -> 0 | Y55: =IF($A55>0,SUMIF('Age profile (years)'!$CT55:$GF55,"<" & T55+0.5,'Asset data'!$CX55:$GJ55)-X55-W55,0) -> 0 | Z55: =IF($A55>0,SUMIF('Age profile (years)'!$CT55:$GF55,"<" & U55+0.5,'Asset data'!$CX55:$GJ55)-Y55-X55-W55,0) -> 0 | AA55: 0 | AB55: 0 | AC55: 0 | AD55: 0 | AE55: 0 | AF55: 0 | AI55: =IF($A55>0,'RRR hist-forc'!K55,0) -> 0 | AJ55: 0
A56: ='Asset data'!A56 -> 0 | B56: ='Asset data'!B56 -> 0 | C56: ='Asset data'!C56 -> 0 | D56: ='Asset data'!E56 -> Other | E56: 0 | F56: =IF(A56>0,SUM('Asset data'!J56:CV56),0) -> 0 | G56: =IF(A56>0,'Asset data'!F56,0) -> 0 | H56: =IF(A56>0,SUM('Asset data'!CX56:GJ56),0) -> 0 | I56: 0 | J56: 0 | K56: 0 | L56: 0 | M56: =IF($A56>0,SUMPRODUCT('Age profile (years)'!$CT56:$GF56,'Asset data'!$CX56:$GJ56)/H56-0.5,0) -> 0 | N56: 0 | O56: =IF($A56>0,'Asset data'!G56,0) -> 0 | P56: 0 | Q56: 0 | R56: 0 | S56: 0 | T56: 0 | U56: 0 | W56: =IF($A56>0,SUMIF('Age profile (years)'!$CT56:$GF56,"<" & R56+0.5,'Asset data'!$CX56:$GJ56),0) -> 0 | X56: =IF($A56>0,SUMIF('Age profile (years)'!$CT56:$GF56,"<" & S56+0.5,'Asset data'!$CX56:$GJ56)-W56,0) -> 0 | Y56: =IF($A56>0,SUMIF('Age profile (years)'!$CT56:$GF56,"<" & T56+0.5,'Asset data'!$CX56:$GJ56)-X56-W56,0) -> 0 | Z56: =IF($A56>0,SUMIF('Age profile (years)'!$CT56:$GF56,"<" & U56+0.5,'Asset data'!$CX56:$GJ56)-Y56-X56-W56,0) -> 0 | AA56: 0 | AB56: 0 | AC56: 0 | AD56: 0 | AE56: 0 | AF56: 0 | AI56: =IF($A56>0,'RRR hist-forc'!K56,0) -> 0 | AJ56: 0
A57: ='Asset data'!A57 -> 3 | B57: ='Asset data'!B57 -> 0 | C57: ='Asset data'!C57 -> 0 | D57: ='Asset data'!E57 -> ˂ = 1 kV | E57: UNDERGROUND CABLES | F57: =IF(A57>0,SUM('Asset data'!J57:CV57),0) -> 10544 | G57: =IF(A57>0,'Asset data'!F57,0) -> 163.1286715 | H57: =IF(A57>0,SUM('Asset data'!CX57:GJ57),0) -> 1720028.712 | I57: 0.09841107686 | J57: 3 | K57: 0.2811340242 | L57: 163.1286715 | M57: =IF($A57>0,SUMPRODUCT('Age profile (years)'!$CT57:$GF57,'Asset data'!$CX57:$GJ57)/H57-0.5,0) -> 50.42422231 | N57: 86731110.14 | O57: =IF($A57>0,'Asset data'!G57,0) -> 67.83429509 | P57: 116676935.2 | Q57: 0.2566559107 | R57: 6.783429509 | S57: 13.56685902 | T57: 40.70057705 | U57: 54.26743607 | W57: =IF($A57>0,SUMIF('Age profile (years)'!$CT57:$GF57,"<" & R57+0.5,'Asset data'!$CX57:$GJ57),0) -> 71450.3581 | X57: =IF($A57>0,SUMIF('Age profile (years)'!$CT57:$GF57,"<" & S57+0.5,'Asset data'!$CX57:$GJ57)-W57,0) -> 326.2573429 | Y57: =IF($A57>0,SUMIF('Age profile (years)'!$CT57:$GF57,"<" & T57+0.5,'Asset data'!$CX57:$GJ57)-X57-W57,0) -> 160844.8701 | Z57: =IF($A57>0,SUMIF('Age profile (years)'!$CT57:$GF57,"<" & U57+0.5,'Asset data'!$CX57:$GJ57)-Y57-X57-W57,0) -> 687587.3502 | AA57: 799819.8761 | AB57: 0.04154021244 | AC57: 0.0001896813354 | AD57: 0.09351289833 | AE57: 0.3997534143 | AF57: 0.4650037936 | AI57: =IF($A57>0,'RRR hist-forc'!K57,0) -> 67.83429509 | AJ57: 116676935.2
A58: ='Asset data'!A58 -> 3 | B58: ='Asset data'!B58 -> 0 | C58: ='Asset data'!C58 -> 0 | D58: ='Asset data'!E58 -> > 1 kV & < = 11 kV | E58: UNDERGROUND CABLES | F58: =IF(A58>0,SUM('Asset data'!J58:CV58),0) -> 5407 | G58: =IF(A58>0,'Asset data'!F58,0) -> 610.1107977 | H58: =IF(A58>0,SUM('Asset data'!CX58:GJ58),0) -> 3298869.083 | I58: 0.1887440928 | J58: 1 | K58: 0.5391911973 | L58: 610.1107977 | M58: =IF($A58>0,SUMPRODUCT('Age profile (years)'!$CT58:$GF58,'Asset data'!$CX58:$GJ58)/H58-0.5,0) -> 52.18485297 | N58: 172150998.1 | O58: =IF($A58>0,'Asset data'!G58,0) -> 69.16445373 | P58: 228164478 | Q58: 0.2454960582 | R58: 6.916445373 | S58: 13.83289075 | T58: 41.49867224 | U58: 55.33156298 | W58: =IF($A58>0,SUMIF('Age profile (years)'!$CT58:$GF58,"<" & R58+0.5,'Asset data'!$CX58:$GJ58),0) -> 154358.0318 | X58: =IF($A58>0,SUMIF('Age profile (years)'!$CT58:$GF58,"<" & S58+0.5,'Asset data'!$CX58:$GJ58)-W58,0) -> 2440.443191 | Y58: =IF($A58>0,SUMIF('Age profile (years)'!$CT58:$GF58,"<" & T58+0.5,'Asset data'!$CX58:$GJ58)-X58-W58,0) -> 217199.444 | Z58: =IF($A58>0,SUMIF('Age profile (years)'!$CT58:$GF58,"<" & U58+0.5,'Asset data'!$CX58:$GJ58)-Y58-X58-W58,0) -> 1078675.89 | AA58: 1846195.274 | AB58: 0.0467911966 | AC58: 0.0007397817644 | AD58: 0.06584057703 | AE58: 0.3269835399 | AF58: 0.5596449048 | AI58: =IF($A58>0,'RRR hist-forc'!K58,0) -> 69.16445373 | AJ58: 228164478
A59: ='Asset data'!A59 -> 0 | B59: ='Asset data'!B59 -> 0 | C59: ='Asset data'!C59 -> 0 | D59: ='Asset data'!E59 -> > 11 kV & < = 22 kV | E59: 0 | F59: =IF(A59>0,SUM('Asset data'!J59:CV59),0) -> 0 | G59: =IF(A59>0,'Asset data'!F59,0) -> 0 | H59: =IF(A59>0,SUM('Asset data'!CX59:GJ59),0) -> 0 | I59: 0 | J59: 0 | K59: 0 | L59: 0 | M59: =IF($A59>0,SUMPRODUCT('Age profile (years)'!$CT59:$GF59,'Asset data'!$CX59:$GJ59)/H59-0.5,0) -> 0 | N59: 0 | O59: =IF($A59>0,'Asset data'!G59,0) -> 0 | P59: 0 | Q59: 0 | R59: 0 | S59: 0 | T59: 0 | U59: 0 | W59: =IF($A59>0,SUMIF('Age profile (years)'!$CT59:$GF59,"<" & R59+0.5,'Asset data'!$CX59:$GJ59),0) -> 0 | X59: =IF($A59>0,SUMIF('Age profile (years)'!$CT59:$GF59,"<" & S59+0.5,'Asset data'!$CX59:$GJ59)-W59,0) -> 0 | Y59: =IF($A59>0,SUMIF('Age profile (years)'!$CT59:$GF59,"<" & T59+0.5,'Asset data'!$CX59:$GJ59)-X59-W59,0) -> 0 | Z59: =IF($A59>0,SUMIF('Age profile (years)'!$CT59:$GF59,"<" & U59+0.5,'Asset data'!$CX59:$GJ59)-Y59-X59-W59,0) -> 0 | AA59: 0 | AB59: 0 | AC59: 0 | AD59: 0 | AE59: 0 | AF59: 0 | AI59: =IF($A59>0,'RRR hist-forc'!K59,0) -> 0 | AJ59: 0
A60: ='Asset data'!A60 -> 3 | B60: ='Asset data'!B60 -> 0 | C60: ='Asset data'!C60 -> 0 | D60: ='Asset data'!E60 -> > 22 kV & < = 33 kV | E60: UNDERGROUND CABLES | F60: =IF(A60>0,SUM('Asset data'!J60:CV60),0) -> 891 | G60: =IF(A60>0,'Asset data'!F60,0) -> 738.9735413 | H60: =IF(A60>0,SUM('Asset data'!CX60:GJ60),0) -> 658425.4253 | I60: 0.03767167065 | J60: 5 | K60: 0.1076178486 | L60: 738.9735413 | M60: =IF($A60>0,SUMPRODUCT('Age profile (years)'!$CT60:$GF60,'Asset data'!$CX60:$GJ60)/H60-0.5,0) -> 43.98260382 | N60: 28959264.62 | O60: =IF($A60>0,'Asset data'!G60,0) -> 69.52495101 | P60: 45776995.44 | Q60: 0.3673838935 | R60: 6.952495101 | S60: 13.9049902 | T60: 41.71497061 | U60: 55.61996081 | W60: =IF($A60>0,SUMIF('Age profile (years)'!$CT60:$GF60,"<" & R60+0.5,'Asset data'!$CX60:$GJ60),0) -> 56161.98914 | X60: =IF($A60>0,SUMIF('Age profile (years)'!$CT60:$GF60,"<" & S60+0.5,'Asset data'!$CX60:$GJ60)-W60,0) -> 31036.88874 | Y60: =IF($A60>0,SUMIF('Age profile (years)'!$CT60:$GF60,"<" & T60+0.5,'Asset data'!$CX60:$GJ60)-X60-W60,0) -> 156662.3908 | Z60: =IF($A60>0,SUMIF('Age profile (years)'!$CT60:$GF60,"<" & U60+0.5,'Asset data'!$CX60:$GJ60)-Y60-X60-W60,0) -> 79809.14246 | AA60: 334755.0142 | AB60: 0.08529741863 | AC60: 0.04713804714 | AD60: 0.2379349046 | AE60: 0.1212121212 | AF60: 0.5084175084 | AI60: =IF($A60>0,'RRR hist-forc'!K60,0) -> 69.52495101 | AJ60: 45776995.44
A61: ='Asset data'!A61 -> 0 | B61: ='Asset data'!B61 -> 0 | C61: ='Asset data'!C61 -> 0 | D61: ='Asset data'!E61 -> > 33 kV & < = 66 kV | E61: 0 | F61: =IF(A61>0,SUM('Asset data'!J61:CV61),0) -> 0 | G61: =IF(A61>0,'Asset data'!F61,0) -> 0 | H61: =IF(A61>0,SUM('Asset data'!CX61:GJ61),0) -> 0 | I61: 0 | J61: 0 | K61: 0 | L61: 0 | M61: =IF($A61>0,SUMPRODUCT('Age profile (years)'!$CT61:$GF61,'Asset data'!$CX61:$GJ61)/H61-0.5,0) -> 0 | N61: 0 | O61: =IF($A61>0,'Asset data'!G61,0) -> 0 | P61: 0 | Q61: 0 | R61: 0 | S61: 0 | T61: 0 | U61: 0 | W61: =IF($A61>0,SUMIF('Age profile (years)'!$CT61:$GF61,"<" & R61+0.5,'Asset data'!$CX61:$GJ61),0) -> 0 | X61: =IF($A61>0,SUMIF('Age profile (years)'!$CT61:$GF61,"<" & S61+0.5,'Asset data'!$CX61:$GJ61)-W61,0) -> 0 | Y61: =IF($A61>0,SUMIF('Age profile (years)'!$CT61:$GF61,"<" & T61+0.5,'Asset data'!$CX61:$GJ61)-X61-W61,0) -> 0 | Z61: =IF($A61>0,SUMIF('Age profile (years)'!$CT61:$GF61,"<" & U61+0.5,'Asset data'!$CX61:$GJ61)-Y61-X61-W61,0) -> 0 | AA61: 0 | AB61: 0 | AC61: 0 | AD61: 0 | AE61: 0 | AF61: 0 | AI61: =IF($A61>0,'RRR hist-forc'!K61,0) -> 0 | AJ61: 0
A62: ='Asset data'!A62 -> 3 | B62: ='Asset data'!B62 -> 0 | C62: ='Asset data'!C62 -> 0 | D62: ='Asset data'!E62 -> > 66 kV & < = 132 kV | E62: UNDERGROUND CABLES | F62: =IF(A62>0,SUM('Asset data'!J62:CV62),0) -> 146 | G62: =IF(A62>0,'Asset data'!F62,0) -> 3019.570588 | H62: =IF(A62>0,SUM('Asset data'!CX62:GJ62),0) -> 440857.3059 | I62: 0.02522355698 | J62: 14 | K62: 0.07205693 | L62: 3019.570588 | M62: =IF($A62>0,SUMPRODUCT('Age profile (years)'!$CT62:$GF62,'Asset data'!$CX62:$GJ62)/H62-0.5,0) -> 58.30136986 | N62: 25702584.85 | O62: =IF($A62>0,'Asset data'!G62,0) -> 69.16445373 | P62: 30491654.73 | Q62: 0.1570616592 | R62: 6.916445373 | S62: 13.83289075 | T62: 41.49867224 | U62: 55.33156298 | W62: =IF($A62>0,SUMIF('Age profile (years)'!$CT62:$GF62,"<" & R62+0.5,'Asset data'!$CX62:$GJ62),0) -> 0 | X62: =IF($A62>0,SUMIF('Age profile (years)'!$CT62:$GF62,"<" & S62+0.5,'Asset data'!$CX62:$GJ62)-W62,0) -> 0 | Y62: =IF($A62>0,SUMIF('Age profile (years)'!$CT62:$GF62,"<" & T62+0.5,'Asset data'!$CX62:$GJ62)-X62-W62,0) -> 3019.570588 | Z62: =IF($A62>0,SUMIF('Age profile (years)'!$CT62:$GF62,"<" & U62+0.5,'Asset data'!$CX62:$GJ62)-Y62-X62-W62,0) -> 144939.3882 | AA62: 292898.3471 | AB62: 0 | AC62: 0 | AD62: 0.006849315068 | AE62: 0.3287671233 | AF62: 0.6643835616 | AI62: =IF($A62>0,'RRR hist-forc'!K62,0) -> 69.16445373 | AJ62: 30491654.73
A63: ='Asset data'!A63 -> 0 | B63: ='Asset data'!B63 -> 0 | C63: ='Asset data'!C63 -> 0 | D63: ='Asset data'!E63 -> > 132 kV | E63: 0 | F63: =IF(A63>0,SUM('Asset data'!J63:CV63),0) -> 0 | G63: =IF(A63>0,'Asset data'!F63,0) -> 0 | H63: =IF(A63>0,SUM('Asset data'!CX63:GJ63),0) -> 0 | I63: 0 | J63: 0 | K63: 0 | L63: 0 | M63: =IF($A63>0,SUMPRODUCT('Age profile (years)'!$CT63:$GF63,'Asset data'!$CX63:$GJ63)/H63-0.5,0) -> 0 | N63: 0 | O63: =IF($A63>0,'Asset data'!G63,0) -> 0 | P63: 0 | Q63: 0 | R63: 0 | S63: 0 | T63: 0 | U63: 0 | W63: =IF($A63>0,SUMIF('Age profile (years)'!$CT63:$GF63,"<" & R63+0.5,'Asset data'!$CX63:$GJ63),0) -> 0 | X63: =IF($A63>0,SUMIF('Age profile (years)'!$CT63:$GF63,"<" & S63+0.5,'Asset data'!$CX63:$GJ63)-W63,0) -> 0 | Y63: =IF($A63>0,SUMIF('Age profile (years)'!$CT63:$GF63,"<" & T63+0.5,'Asset data'!$CX63:$GJ63)-X63-W63,0) -> 0 | Z63: =IF($A63>0,SUMIF('Age profile (years)'!$CT63:$GF63,"<" & U63+0.5,'Asset data'!$CX63:$GJ63)-Y63-X63-W63,0) -> 0 | AA63: 0 | AB63: 0 | AC63: 0 | AD63: 0 | AE63: 0 | AF63: 0 | AI63: =IF($A63>0,'RRR hist-forc'!K63,0) -> 0 | AJ63: 0
A64: ='Asset data'!A64 -> 0 | B64: ='Asset data'!B64 -> 0 | C64: ='Asset data'!C64 -> 0 | D64: ='Asset data'!E64 -> Other | E64: 0 | F64: =IF(A64>0,SUM('Asset data'!J64:CV64),0) -> 0 | G64: =IF(A64>0,'Asset data'!F64,0) -> 0 | H64: =IF(A64>0,SUM('Asset data'!CX64:GJ64),0) -> 0 | I64: 0 | J64: 0 | K64: 0 | L64: 0 | M64: =IF($A64>0,SUMPRODUCT('Age profile (years)'!$CT64:$GF64,'Asset data'!$CX64:$GJ64)/H64-0.5,0) -> 0 | N64: 0 | O64: =IF($A64>0,'Asset data'!G64,0) -> 0 | P64: 0 | Q64: 0 | R64: 0 | S64: 0 | T64: 0 | U64: 0 | W64: =IF($A64>0,SUMIF('Age profile (years)'!$CT64:$GF64,"<" & R64+0.5,'Asset data'!$CX64:$GJ64),0) -> 0 | X64: =IF($A64>0,SUMIF('Age profile (years)'!$CT64:$GF64,"<" & S64+0.5,'Asset data'!$CX64:$GJ64)-W64,0) -> 0 | Y64: =IF($A64>0,SUMIF('Age profile (years)'!$CT64:$GF64,"<" & T64+0.5,'Asset data'!$CX64:$GJ64)-X64-W64,0) -> 0 | Z64: =IF($A64>0,SUMIF('Age profile (years)'!$CT64:$GF64,"<" & U64+0.5,'Asset data'!$CX64:$GJ64)-Y64-X64-W64,0) -> 0 | AA64: 0 | AB64: 0 | AC64: 0 | AD64: 0 | AE64: 0 | AF64: 0 | AI64: =IF($A64>0,'RRR hist-forc'!K64,0) -> 0 | AJ64: 0
A65: ='Asset data'!A65 -> 4 | B65: ='Asset data'!B65 -> 0 | C65: ='Asset data'!C65 -> 0 | D65: ='Asset data'!E65 -> ˂ = 11 kV ; Residential ; Simple Type | E65: SERVICE LINES | F65: =IF(A65>0,SUM('Asset data'!J65:CV65),0) -> 540217.56 | G65: =IF(A65>0,'Asset data'!F65,0) -> 0.6772914626 | H65: =IF(A65>0,SUM('Asset data'!CX65:GJ65),0) -> 365884.7413 | I65: 0.02093401764 | J65: 15 | K65: 0.9197892178 | L65: 0.6772914626 | M65: =IF($A65>0,SUMPRODUCT('Age profile (years)'!$CT65:$GF65,'Asset data'!$CX65:$GJ65)/H65-0.5,0) -> 23.04906356 | N65: 8433300.658 | O65: =IF($A65>0,'Asset data'!G65,0) -> 39.82150394 | P65: 14570080.67 | Q65: 0.4211905308 | R65: 3.982150394 | S65: 7.964300788 | T65: 23.89290236 | U65: 31.85720315 | W65: =IF($A65>0,SUMIF('Age profile (years)'!$CT65:$GF65,"<" & R65+0.5,'Asset data'!$CX65:$GJ65),0) -> 32918.46008 | X65: =IF($A65>0,SUMIF('Age profile (years)'!$CT65:$GF65,"<" & S65+0.5,'Asset data'!$CX65:$GJ65)-W65,0) -> 24885.0139 | Y65: =IF($A65>0,SUMIF('Age profile (years)'!$CT65:$GF65,"<" & T65+0.5,'Asset data'!$CX65:$GJ65)-X65-W65,0) -> 92490.67781 | Z65: =IF($A65>0,SUMIF('Age profile (years)'!$CT65:$GF65,"<" & U65+0.5,'Asset data'!$CX65:$GJ65)-Y65-X65-W65,0) -> 91108.38353 | AA65: 124482.206 | AB65: 0.08996948045 | AC65: 0.06801325962 | AD65: 0.2527863761 | AE65: 0.249008426 | AF65: 0.3402224579 | AI65: =IF($A65>0,'RRR hist-forc'!K65,0) -> 39.82150394 | AJ65: 14570080.67
A66: ='Asset data'!A66 -> 4 | B66: ='Asset data'!B66 -> 0 | C66: ='Asset data'!C66 -> 0 | D66: ='Asset data'!E66 -> ˂ = 11 kV ; Commercial & Industrial ; Simple Type | E66: SERVICE LINES | F66: =IF(A66>0,SUM('Asset data'!J66:CV66),0) -> 46975.44 | G66: =IF(A66>0,'Asset data'!F66,0) -> 0.6792315943 | H66: =IF(A66>0,SUM('Asset data'!CX66:GJ66),0) -> 31907.203 | I66: 0.001825563832 | J66: 31 | K66: 0.08021078219 | L66: 0.6792315943 | M66: =IF($A66>0,SUMPRODUCT('Age profile (years)'!$CT66:$GF66,'Asset data'!$CX66:$GJ66)/H66-0.5,0) -> 22.04906356 | N66: 703523.947 | O66: =IF($A66>0,'Asset data'!G66,0) -> 39.2912979 | P66: 1253675.418 | Q66: 0.4388308675 | R66: 3.92912979 | S66: 7.858259581 | T66: 23.57477874 | U66: 31.43303832 | W66: =IF($A66>0,SUMIF('Age profile (years)'!$CT66:$GF66,"<" & R66+0.5,'Asset data'!$CX66:$GJ66),0) -> 3413.202697 | X66: =IF($A66>0,SUMIF('Age profile (years)'!$CT66:$GF66,"<" & S66+0.5,'Asset data'!$CX66:$GJ66)-W66,0) -> 2170.112882 | Y66: =IF($A66>0,SUMIF('Age profile (years)'!$CT66:$GF66,"<" & T66+0.5,'Asset data'!$CX66:$GJ66)-X66-W66,0) -> 8672.996554 | Z66: =IF($A66>0,SUMIF('Age profile (years)'!$CT66:$GF66,"<" & U66+0.5,'Asset data'!$CX66:$GJ66)-Y66-X66-W66,0) -> 6795.343839 | AA66: 10855.54703 | AB66: 0.1069727954 | AC66: 0.06801325962 | AD66: 0.2718193931 | AE66: 0.2129720941 | AF66: 0.3402224579 | AI66: =IF($A66>0,'RRR hist-forc'!K66,0) -> 39.2912979 | AJ66: 1253675.418
A67: ='Asset data'!A67 -> 0 | B67: ='Asset data'!B67 -> 0 | C67: ='Asset data'!C67 -> 0 | D67: ='Asset data'!E67 -> ˂ = 11 kV ; Residential ; Complex Type | E67: 0 | F67: =IF(A67>0,SUM('Asset data'!J67:CV67),0) -> 0 | G67: =IF(A67>0,'Asset data'!F67,0) -> 0 | H67: =IF(A67>0,SUM('Asset data'!CX67:GJ67),0) -> 0 | I67: 0 | J67: 0 | K67: 0 | L67: 0 | M67: =IF($A67>0,SUMPRODUCT('Age profile (years)'!$CT67:$GF67,'Asset data'!$CX67:$GJ67)/H67-0.5,0) -> 0 | N67: 0 | O67: =IF($A67>0,'Asset data'!G67,0) -> 0 | P67: 0 | Q67: 0 | R67: 0 | S67: 0 | T67: 0 | U67: 0 | W67: =IF($A67>0,SUMIF('Age profile (years)'!$CT67:$GF67,"<" & R67+0.5,'Asset data'!$CX67:$GJ67),0) -> 0 | X67: =IF($A67>0,SUMIF('Age profile (years)'!$CT67:$GF67,"<" & S67+0.5,'Asset data'!$CX67:$GJ67)-W67,0) -> 0 | Y67: =IF($A67>0,SUMIF('Age profile (years)'!$CT67:$GF67,"<" & T67+0.5,'Asset data'!$CX67:$GJ67)-X67-W67,0) -> 0 | Z67: =IF($A67>0,SUMIF('Age profile (years)'!$CT67:$GF67,"<" & U67+0.5,'Asset data'!$CX67:$GJ67)-Y67-X67-W67,0) -> 0 | AA67: 0 | AB67: 0 | AC67: 0 | AD67: 0 | AE67: 0 | AF67: 0 | AI67: =IF($A67>0,'RRR hist-forc'!K67,0) -> 0 | AJ67: 0
A68: ='Asset data'!A68 -> 0 | B68: ='Asset data'!B68 -> 0 | C68: ='Asset data'!C68 -> 0 | D68: ='Asset data'!E68 -> ˂ = 11 kV ; Commercial & Industrial ; Complex Type | E68: 0 | F68: =IF(A68>0,SUM('Asset data'!J68:CV68),0) -> 0 | G68: =IF(A68>0,'Asset data'!F68,0) -> 0 | H68: =IF(A68>0,SUM('Asset data'!CX68:GJ68),0) -> 0 | I68: 0 | J68: 0 | K68: 0 | L68: 0 | M68: =IF($A68>0,SUMPRODUCT('Age profile (years)'!$CT68:$GF68,'Asset data'!$CX68:$GJ68)/H68-0.5,0) -> 0 | N68: 0 | O68: =IF($A68>0,'Asset data'!G68,0) -> 0 | P68: 0 | Q68: 0 | R68: 0 | S68: 0 | T68: 0 | U68: 0 | W68: =IF($A68>0,SUMIF('Age profile (years)'!$CT68:$GF68,"<" & R68+0.5,'Asset data'!$CX68:$GJ68),0) -> 0 | X68: =IF($A68>0,SUMIF('Age profile (years)'!$CT68:$GF68,"<" & S68+0.5,'Asset data'!$CX68:$GJ68)-W68,0) -> 0 | Y68: =IF($A68>0,SUMIF('Age profile (years)'!$CT68:$GF68,"<" & T68+0.5,'Asset data'!$CX68:$GJ68)-X68-W68,0) -> 0 | Z68: =IF($A68>0,SUMIF('Age profile (years)'!$CT68:$GF68,"<" & U68+0.5,'Asset data'!$CX68:$GJ68)-Y68-X68-W68,0) -> 0 | AA68: 0 | AB68: 0 | AC68: 0 | AD68: 0 | AE68: 0 | AF68: 0 | AI68: =IF($A68>0,'RRR hist-forc'!K68,0) -> 0 | AJ68: 0
A69: ='Asset data'!A69 -> 0 | B69: ='Asset data'!B69 -> 0 | C69: ='Asset data'!C69 -> 0 | D69: ='Asset data'!E69 -> ˂ = 11 kV ; Subdivision ; Complex Type | E69: 0 | F69: =IF(A69>0,SUM('Asset data'!J69:CV69),0) -> 0 | G69: =IF(A69>0,'Asset data'!F69,0) -> 0 | H69: =IF(A69>0,SUM('Asset data'!CX69:GJ69),0) -> 0 | I69: 0 | J69: 0 | K69: 0 | L69: 0 | M69: =IF($A69>0,SUMPRODUCT('Age profile (years)'!$CT69:$GF69,'Asset data'!$CX69:$GJ69)/H69-0.5,0) -> 0 | N69: 0 | O69: =IF($A69>0,'Asset data'!G69,0) -> 0 | P69: 0 | Q69: 0 | R69: 0 | S69: 0 | T69: 0 | U69: 0 | W69: =IF($A69>0,SUMIF('Age profile (years)'!$CT69:$GF69,"<" & R69+0.5,'Asset data'!$CX69:$GJ69),0) -> 0 | X69: =IF($A69>0,SUMIF('Age profile (years)'!$CT69:$GF69,"<" & S69+0.5,'Asset data'!$CX69:$GJ69)-W69,0) -> 0 | Y69: =IF($A69>0,SUMIF('Age profile (years)'!$CT69:$GF69,"<" & T69+0.5,'Asset data'!$CX69:$GJ69)-X69-W69,0) -> 0 | Z69: =IF($A69>0,SUMIF('Age profile (years)'!$CT69:$GF69,"<" & U69+0.5,'Asset data'!$CX69:$GJ69)-Y69-X69-W69,0) -> 0 | AA69: 0 | AB69: 0 | AC69: 0 | AD69: 0 | AE69: 0 | AF69: 0 | AI69: =IF($A69>0,'RRR hist-forc'!K69,0) -> 0 | AJ69: 0
A70: ='Asset data'!A70 -> 0 | B70: ='Asset data'!B70 -> 0 | C70: ='Asset data'!C70 -> 0 | D70: ='Asset data'!E70 -> > 11 kV & < = 22 kV ; Commercial & Industrial | E70: 0 | F70: =IF(A70>0,SUM('Asset data'!J70:CV70),0) -> 0 | G70: =IF(A70>0,'Asset data'!F70,0) -> 0 | H70: =IF(A70>0,SUM('Asset data'!CX70:GJ70),0) -> 0 | I70: 0 | J70: 0 | K70: 0 | L70: 0 | M70: =IF($A70>0,SUMPRODUCT('Age profile (years)'!$CT70:$GF70,'Asset data'!$CX70:$GJ70)/H70-0.5,0) -> 0 | N70: 0 | O70: =IF($A70>0,'Asset data'!G70,0) -> 0 | P70: 0 | Q70: 0 | R70: 0 | S70: 0 | T70: 0 | U70: 0 | W70: =IF($A70>0,SUMIF('Age profile (years)'!$CT70:$GF70,"<" & R70+0.5,'Asset data'!$CX70:$GJ70),0) -> 0 | X70: =IF($A70>0,SUMIF('Age profile (years)'!$CT70:$GF70,"<" & S70+0.5,'Asset data'!$CX70:$GJ70)-W70,0) -> 0 | Y70: =IF($A70>0,SUMIF('Age profile (years)'!$CT70:$GF70,"<" & T70+0.5,'Asset data'!$CX70:$GJ70)-X70-W70,0) -> 0 | Z70: =IF($A70>0,SUMIF('Age profile (years)'!$CT70:$GF70,"<" & U70+0.5,'Asset data'!$CX70:$GJ70)-Y70-X70-W70,0) -> 0 | AA70: 0 | AB70: 0 | AC70: 0 | AD70: 0 | AE70: 0 | AF70: 0 | AI70: =IF($A70>0,'RRR hist-forc'!K70,0) -> 0 | AJ70: 0
A71: ='Asset data'!A71 -> 0 | B71: ='Asset data'!B71 -> 0 | C71: ='Asset data'!C71 -> 0 | D71: ='Asset data'!E71 -> > 11 kV & < = 22 kV ; Subdivision | E71: 0 | F71: =IF(A71>0,SUM('Asset data'!J71:CV71),0) -> 0 | G71: =IF(A71>0,'Asset data'!F71,0) -> 0 | H71: =IF(A71>0,SUM('Asset data'!CX71:GJ71),0) -> 0 | I71: 0 | J71: 0 | K71: 0 | L71: 0 | M71: =IF($A71>0,SUMPRODUCT('Age profile (years)'!$CT71:$GF71,'Asset data'!$CX71:$GJ71)/H71-0.5,0) -> 0 | N71: 0 | O71: =IF($A71>0,'Asset data'!G71,0) -> 0 | P71: 0 | Q71: 0 | R71: 0 | S71: 0 | T71: 0 | U71: 0 | W71: =IF($A71>0,SUMIF('Age profile (years)'!$CT71:$GF71,"<" & R71+0.5,'Asset data'!$CX71:$GJ71),0) -> 0 | X71: =IF($A71>0,SUMIF('Age profile (years)'!$CT71:$GF71,"<" & S71+0.5,'Asset data'!$CX71:$GJ71)-W71,0) -> 0 | Y71: =IF($A71>0,SUMIF('Age profile (years)'!$CT71:$GF71,"<" & T71+0.5,'Asset data'!$CX71:$GJ71)-X71-W71,0) -> 0 | Z71: =IF($A71>0,SUMIF('Age profile (years)'!$CT71:$GF71,"<" & U71+0.5,'Asset data'!$CX71:$GJ71)-Y71-X71-W71,0) -> 0 | AA71: 0 | AB71: 0 | AC71: 0 | AD71: 0 | AE71: 0 | AF71: 0 | AI71: =IF($A71>0,'RRR hist-forc'!K71,0) -> 0 | AJ71: 0
A72: ='Asset data'!A72 -> 0 | B72: ='Asset data'!B72 -> 0 | C72: ='Asset data'!C72 -> 0 | D72: ='Asset data'!E72 -> > 22 kV & < = 33 kV ; Commercial & Industrial | E72: 0 | F72: =IF(A72>0,SUM('Asset data'!J72:CV72),0) -> 0 | G72: =IF(A72>0,'Asset data'!F72,0) -> 0 | H72: =IF(A72>0,SUM('Asset data'!CX72:GJ72),0) -> 0 | I72: 0 | J72: 0 | K72: 0 | L72: 0 | M72: =IF($A72>0,SUMPRODUCT('Age profile (years)'!$CT72:$GF72,'Asset data'!$CX72:$GJ72)/H72-0.5,0) -> 0 | N72: 0 | O72: =IF($A72>0,'Asset data'!G72,0) -> 0 | P72: 0 | Q72: 0 | R72: 0 | S72: 0 | T72: 0 | U72: 0 | W72: =IF($A72>0,SUMIF('Age profile (years)'!$CT72:$GF72,"<" & R72+0.5,'Asset data'!$CX72:$GJ72),0) -> 0 | X72: =IF($A72>0,SUMIF('Age profile (years)'!$CT72:$GF72,"<" & S72+0.5,'Asset data'!$CX72:$GJ72)-W72,0) -> 0 | Y72: =IF($A72>0,SUMIF('Age profile (years)'!$CT72:$GF72,"<" & T72+0.5,'Asset data'!$CX72:$GJ72)-X72-W72,0) -> 0 | Z72: =IF($A72>0,SUMIF('Age profile (years)'!$CT72:$GF72,"<" & U72+0.5,'Asset data'!$CX72:$GJ72)-Y72-X72-W72,0) -> 0 | AA72: 0 | AB72: 0 | AC72: 0 | AD72: 0 | AE72: 0 | AF72: 0 | AI72: =IF($A72>0,'RRR hist-forc'!K72,0) -> 0 | AJ72: 0
A73: ='Asset data'!A73 -> 0 | B73: ='Asset data'!B73 -> 0 | C73: ='Asset data'!C73 -> 0 | D73: ='Asset data'!E73 -> > 22 kV & < = 33 kV ; Subdivision | E73: 0 | F73: =IF(A73>0,SUM('Asset data'!J73:CV73),0) -> 0 | G73: =IF(A73>0,'Asset data'!F73,0) -> 0 | H73: =IF(A73>0,SUM('Asset data'!CX73:GJ73),0) -> 0 | I73: 0 | J73: 0 | K73: 0 | L73: 0 | M73: =IF($A73>0,SUMPRODUCT('Age profile (years)'!$CT73:$GF73,'Asset data'!$CX73:$GJ73)/H73-0.5,0) -> 0 | N73: 0 | O73: =IF($A73>0,'Asset data'!G73,0) -> 0 | P73: 0 | Q73: 0 | R73: 0 | S73: 0 | T73: 0 | U73: 0 | W73: =IF($A73>0,SUMIF('Age profile (years)'!$CT73:$GF73,"<" & R73+0.5,'Asset data'!$CX73:$GJ73),0) -> 0 | X73: =IF($A73>0,SUMIF('Age profile (years)'!$CT73:$GF73,"<" & S73+0.5,'Asset data'!$CX73:$GJ73)-W73,0) -> 0 | Y73: =IF($A73>0,SUMIF('Age profile (years)'!$CT73:$GF73,"<" & T73+0.5,'Asset data'!$CX73:$GJ73)-X73-W73,0) -> 0 | Z73: =IF($A73>0,SUMIF('Age profile (years)'!$CT73:$GF73,"<" & U73+0.5,'Asset data'!$CX73:$GJ73)-Y73-X73-W73,0) -> 0 | AA73: 0 | AB73: 0 | AC73: 0 | AD73: 0 | AE73: 0 | AF73: 0 | AI73: =IF($A73>0,'RRR hist-forc'!K73,0) -> 0 | AJ73: 0
A74: ='Asset data'!A74 -> 0 | B74: ='Asset data'!B74 -> 0 | C74: ='Asset data'!C74 -> 0 | D74: ='Asset data'!E74 -> > 33 kV & < = 66 kV ; Commercial & Industrial | E74: 0 | F74: =IF(A74>0,SUM('Asset data'!J74:CV74),0) -> 0 | G74: =IF(A74>0,'Asset data'!F74,0) -> 0 | H74: =IF(A74>0,SUM('Asset data'!CX74:GJ74),0) -> 0 | I74: 0 | J74: 0 | K74: 0 | L74: 0 | M74: =IF($A74>0,SUMPRODUCT('Age profile (years)'!$CT74:$GF74,'Asset data'!$CX74:$GJ74)/H74-0.5,0) -> 0 | N74: 0 | O74: =IF($A74>0,'Asset data'!G74,0) -> 0 | P74: 0 | Q74: 0 | R74: 0 | S74: 0 | T74: 0 | U74: 0 | W74: =IF($A74>0,SUMIF('Age profile (years)'!$CT74:$GF74,"<" & R74+0.5,'Asset data'!$CX74:$GJ74),0) -> 0 | X74: =IF($A74>0,SUMIF('Age profile (years)'!$CT74:$GF74,"<" & S74+0.5,'Asset data'!$CX74:$GJ74)-W74,0) -> 0 | Y74: =IF($A74>0,SUMIF('Age profile (years)'!$CT74:$GF74,"<" & T74+0.5,'Asset data'!$CX74:$GJ74)-X74-W74,0) -> 0 | Z74: =IF($A74>0,SUMIF('Age profile (years)'!$CT74:$GF74,"<" & U74+0.5,'Asset data'!$CX74:$GJ74)-Y74-X74-W74,0) -> 0 | AA74: 0 | AB74: 0 | AC74: 0 | AD74: 0 | AE74: 0 | AF74: 0 | AI74: =IF($A74>0,'RRR hist-forc'!K74,0) -> 0 | AJ74: 0
A75: ='Asset data'!A75 -> 0 | B75: ='Asset data'!B75 -> 0 | C75: ='Asset data'!C75 -> 0 | D75: ='Asset data'!E75 -> > 33 kV & < = 66 kV ; Subdivision | E75: 0 | F75: =IF(A75>0,SUM('Asset data'!J75:CV75),0) -> 0 | G75: =IF(A75>0,'Asset data'!F75,0) -> 0 | H75: =IF(A75>0,SUM('Asset data'!CX75:GJ75),0) -> 0 | I75: 0 | J75: 0 | K75: 0 | L75: 0 | M75: =IF($A75>0,SUMPRODUCT('Age profile (years)'!$CT75:$GF75,'Asset data'!$CX75:$GJ75)/H75-0.5,0) -> 0 | N75: 0 | O75: =IF($A75>0,'Asset data'!G75,0) -> 0 | P75: 0 | Q75: 0 | R75: 0 | S75: 0 | T75: 0 | U75: 0 | W75: =IF($A75>0,SUMIF('Age profile (years)'!$CT75:$GF75,"<" & R75+0.5,'Asset data'!$CX75:$GJ75),0) -> 0 | X75: =IF($A75>0,SUMIF('Age profile (years)'!$CT75:$GF75,"<" & S75+0.5,'Asset data'!$CX75:$GJ75)-W75,0) -> 0 | Y75: =IF($A75>0,SUMIF('Age profile (years)'!$CT75:$GF75,"<" & T75+0.5,'Asset data'!$CX75:$GJ75)-X75-W75,0) -> 0 | Z75: =IF($A75>0,SUMIF('Age profile (years)'!$CT75:$GF75,"<" & U75+0.5,'Asset data'!$CX75:$GJ75)-Y75-X75-W75,0) -> 0 | AA75: 0 | AB75: 0 | AC75: 0 | AD75: 0 | AE75: 0 | AF75: 0 | AI75: =IF($A75>0,'RRR hist-forc'!K75,0) -> 0 | AJ75: 0
A76: ='Asset data'!A76 -> 0 | B76: ='Asset data'!B76 -> 0 | C76: ='Asset data'!C76 -> 0 | D76: ='Asset data'!E76 -> > 66 kV & < = 132 kV ; Commercial & Industrial | E76: 0 | F76: =IF(A76>0,SUM('Asset data'!J76:CV76),0) -> 0 | G76: =IF(A76>0,'Asset data'!F76,0) -> 0 | H76: =IF(A76>0,SUM('Asset data'!CX76:GJ76),0) -> 0 | I76: 0 | J76: 0 | K76: 0 | L76: 0 | M76: =IF($A76>0,SUMPRODUCT('Age profile (years)'!$CT76:$GF76,'Asset data'!$CX76:$GJ76)/H76-0.5,0) -> 0 | N76: 0 | O76: =IF($A76>0,'Asset data'!G76,0) -> 0 | P76: 0 | Q76: 0 | R76: 0 | S76: 0 | T76: 0 | U76: 0 | W76: =IF($A76>0,SUMIF('Age profile (years)'!$CT76:$GF76,"<" & R76+0.5,'Asset data'!$CX76:$GJ76),0) -> 0 | X76: =IF($A76>0,SUMIF('Age profile (years)'!$CT76:$GF76,"<" & S76+0.5,'Asset data'!$CX76:$GJ76)-W76,0) -> 0 | Y76: =IF($A76>0,SUMIF('Age profile (years)'!$CT76:$GF76,"<" & T76+0.5,'Asset data'!$CX76:$GJ76)-X76-W76,0) -> 0 | Z76: =IF($A76>0,SUMIF('Age profile (years)'!$CT76:$GF76,"<" & U76+0.5,'Asset data'!$CX76:$GJ76)-Y76-X76-W76,0) -> 0 | AA76: 0 | AB76: 0 | AC76: 0 | AD76: 0 | AE76: 0 | AF76: 0 | AI76: =IF($A76>0,'RRR hist-forc'!K76,0) -> 0 | AJ76: 0
A77: ='Asset data'!A77 -> 0 | B77: ='Asset data'!B77 -> 0 | C77: ='Asset data'!C77 -> 0 | D77: ='Asset data'!E77 -> > 66 kV & < = 132 kV ; Subdivision | E77: 0 | F77: =IF(A77>0,SUM('Asset data'!J77:CV77),0) -> 0 | G77: =IF(A77>0,'Asset data'!F77,0) -> 0 | H77: =IF(A77>0,SUM('Asset data'!CX77:GJ77),0) -> 0 | I77: 0 | J77: 0 | K77: 0 | L77: 0 | M77: =IF($A77>0,SUMPRODUCT('Age profile (years)'!$CT77:$GF77,'Asset data'!$CX77:$GJ77)/H77-0.5,0) -> 0 | N77: 0 | O77: =IF($A77>0,'Asset data'!G77,0) -> 0 | P77: 0 | Q77: 0 | R77: 0 | S77: 0 | T77: 0 | U77: 0 | W77: =IF($A77>0,SUMIF('Age profile (years)'!$CT77:$GF77,"<" & R77+0.5,'Asset data'!$CX77:$GJ77),0) -> 0 | X77: =IF($A77>0,SUMIF('Age profile (years)'!$CT77:$GF77,"<" & S77+0.5,'Asset data'!$CX77:$GJ77)-W77,0) -> 0 | Y77: =IF($A77>0,SUMIF('Age profile (years)'!$CT77:$GF77,"<" & T77+0.5,'Asset data'!$CX77:$GJ77)-X77-W77,0) -> 0 | Z77: =IF($A77>0,SUMIF('Age profile (years)'!$CT77:$GF77,"<" & U77+0.5,'Asset data'!$CX77:$GJ77)-Y77-X77-W77,0) -> 0 | AA77: 0 | AB77: 0 | AC77: 0 | AD77: 0 | AE77: 0 | AF77: 0 | AI77: =IF($A77>0,'RRR hist-forc'!K77,0) -> 0 | AJ77: 0
A78: ='Asset data'!A78 -> 0 | B78: ='Asset data'!B78 -> 0 | C78: ='Asset data'!C78 -> 0 | D78: ='Asset data'!E78 -> > 132 kV ; Commercial & Industrial | E78: 0 | F78: =IF(A78>0,SUM('Asset data'!J78:CV78),0) -> 0 | G78: =IF(A78>0,'Asset data'!F78,0) -> 0 | H78: =IF(A78>0,SUM('Asset data'!CX78:GJ78),0) -> 0 | I78: 0 | J78: 0 | K78: 0 | L78: 0 | M78: =IF($A78>0,SUMPRODUCT('Age profile (years)'!$CT78:$GF78,'Asset data'!$CX78:$GJ78)/H78-0.5,0) -> 0 | N78: 0 | O78: =IF($A78>0,'Asset data'!G78,0) -> 0 | P78: 0 | Q78: 0 | R78: 0 | S78: 0 | T78: 0 | U78: 0 | W78: =IF($A78>0,SUMIF('Age profile (years)'!$CT78:$GF78,"<" & R78+0.5,'Asset data'!$CX78:$GJ78),0) -> 0 | X78: =IF($A78>0,SUMIF('Age profile (years)'!$CT78:$GF78,"<" & S78+0.5,'Asset data'!$CX78:$GJ78)-W78,0) -> 0 | Y78: =IF($A78>0,SUMIF('Age profile (years)'!$CT78:$GF78,"<" & T78+0.5,'Asset data'!$CX78:$GJ78)-X78-W78,0) -> 0 | Z78: =IF($A78>0,SUMIF('Age profile (years)'!$CT78:$GF78,"<" & U78+0.5,'Asset data'!$CX78:$GJ78)-Y78-X78-W78,0) -> 0 | AA78: 0 | AB78: 0 | AC78: 0 | AD78: 0 | AE78: 0 | AF78: 0 | AI78: =IF($A78>0,'RRR hist-forc'!K78,0) -> 0 | AJ78: 0
A79: ='Asset data'!A79 -> 0 | B79: ='Asset data'!B79 -> 0 | C79: ='Asset data'!C79 -> 0 | D79: ='Asset data'!E79 -> > 132 kV ; Subdivision | E79: 0 | F79: =IF(A79>0,SUM('Asset data'!J79:CV79),0) -> 0 | G79: =IF(A79>0,'Asset data'!F79,0) -> 0 | H79: =IF(A79>0,SUM('Asset data'!CX79:GJ79),0) -> 0 | I79: 0 | J79: 0 | K79: 0 | L79: 0 | M79: =IF($A79>0,SUMPRODUCT('Age profile (years)'!$CT79:$GF79,'Asset data'!$CX79:$GJ79)/H79-0.5,0) -> 0 | N79: 0 | O79: =IF($A79>0,'Asset data'!G79,0) -> 0 | P79: 0 | Q79: 0 | R79: 0 | S79: 0 | T79: 0 | U79: 0 | W79: =IF($A79>0,SUMIF('Age profile (years)'!$CT79:$GF79,"<" & R79+0.5,'Asset data'!$CX79:$GJ79),0) -> 0 | X79: =IF($A79>0,SUMIF('Age profile (years)'!$CT79:$GF79,"<" & S79+0.5,'Asset data'!$CX79:$GJ79)-W79,0) -> 0 | Y79: =IF($A79>0,SUMIF('Age profile (years)'!$CT79:$GF79,"<" & T79+0.5,'Asset data'!$CX79:$GJ79)-X79-W79,0) -> 0 | Z79: =IF($A79>0,SUMIF('Age profile (years)'!$CT79:$GF79,"<" & U79+0.5,'Asset data'!$CX79:$GJ79)-Y79-X79-W79,0) -> 0 | AA79: 0 | AB79: 0 | AC79: 0 | AD79: 0 | AE79: 0 | AF79: 0 | AI79: =IF($A79>0,'RRR hist-forc'!K79,0) -> 0 | AJ79: 0
A80: ='Asset data'!A80 -> 0 | B80: ='Asset data'!B80 -> 0 | C80: ='Asset data'!C80 -> 0 | D80: ='Asset data'!E80 -> Other | E80: 0 | F80: =IF(A80>0,SUM('Asset data'!J80:CV80),0) -> 0 | G80: =IF(A80>0,'Asset data'!F80,0) -> 0 | H80: =IF(A80>0,SUM('Asset data'!CX80:GJ80),0) -> 0 | I80: 0 | J80: 0 | K80: 0 | L80: 0 | M80: =IF($A80>0,SUMPRODUCT('Age profile (years)'!$CT80:$GF80,'Asset data'!$CX80:$GJ80)/H80-0.5,0) -> 0 | N80: 0 | O80: =IF($A80>0,'Asset data'!G80,0) -> 0 | P80: 0 | Q80: 0 | R80: 0 | S80: 0 | T80: 0 | U80: 0 | W80: =IF($A80>0,SUMIF('Age profile (years)'!$CT80:$GF80,"<" & R80+0.5,'Asset data'!$CX80:$GJ80),0) -> 0 | X80: =IF($A80>0,SUMIF('Age profile (years)'!$CT80:$GF80,"<" & S80+0.5,'Asset data'!$CX80:$GJ80)-W80,0) -> 0 | Y80: =IF($A80>0,SUMIF('Age profile (years)'!$CT80:$GF80,"<" & T80+0.5,'Asset data'!$CX80:$GJ80)-X80-W80,0) -> 0 | Z80: =IF($A80>0,SUMIF('Age profile (years)'!$CT80:$GF80,"<" & U80+0.5,'Asset data'!$CX80:$GJ80)-Y80-X80-W80,0) -> 0 | AA80: 0 | AB80: 0 | AC80: 0 | AD80: 0 | AE80: 0 | AF80: 0 | AI80: =IF($A80>0,'RRR hist-forc'!K80,0) -> 0 | AJ80: 0
A81: ='Asset data'!A81 -> 5 | B81: ='Asset data'!B81 -> 0 | C81: ='Asset data'!C81 -> 0 | D81: ='Asset data'!E81 -> Pole Mounted ; < = 22kV ; < = 60 kVA ; Single Phase | E81: TRANSFORMERS | F81: =IF(A81>0,SUM('Asset data'!J81:CV81),0) -> 5787 | G81: =IF(A81>0,'Asset data'!F81,0) -> 14.92636095 | H81: =IF(A81>0,SUM('Asset data'!CX81:GJ81),0) -> 86378.85081 | I81: 0.004942147575 | J81: 27 | K81: 0.03148433586 | L81: 14.92636095 | M81: =IF($A81>0,SUMPRODUCT('Age profile (years)'!$CT81:$GF81,'Asset data'!$CX81:$GJ81)/H81-0.5,0) -> 28.44383964 | N81: 2456946.181 | O81: =IF($A81>0,'Asset data'!G81,0) -> 52.23537166 | P81: 4512031.376 | Q81: 0.4554678423 | R81: 5.223537166 | S81: 10.44707433 | T81: 31.341223 | U81: 41.78829733 | W81: =IF($A81>0,SUMIF('Age profile (years)'!$CT81:$GF81,"<" & R81+0.5,'Asset data'!$CX81:$GJ81),0) -> 1865.795119 | X81: =IF($A81>0,SUMIF('Age profile (years)'!$CT81:$GF81,"<" & S81+0.5,'Asset data'!$CX81:$GJ81)-W81,0) -> 2029.985089 | Y81: =IF($A81>0,SUMIF('Age profile (years)'!$CT81:$GF81,"<" & T81+0.5,'Asset data'!$CX81:$GJ81)-X81-W81,0) -> 51197.41806 | Z81: =IF($A81>0,SUMIF('Age profile (years)'!$CT81:$GF81,"<" & U81+0.5,'Asset data'!$CX81:$GJ81)-Y81-X81-W81,0) -> 11523.15065 | AA81: 19762.5019 | AB81: 0.02160013824 | AC81: 0.02350095041 | AD81: 0.5927077933 | AE81: 0.1334024538 | AF81: 0.2287886642 | AI81: =IF($A81>0,'RRR hist-forc'!K81,0) -> 52.23537166 | AJ81: 4512031.376
A82: ='Asset data'!A82 -> 5 | B82: ='Asset data'!B82 -> 0 | C82: ='Asset data'!C82 -> 0 | D82: ='Asset data'!E82 -> Pole Mounted ; < = 22kV ; > 60 kVA and < = 600 kVA ; Single Phase | E82: TRANSFORMERS | F82: =IF(A82>0,SUM('Asset data'!J82:CV82),0) -> 7 | G82: =IF(A82>0,'Asset data'!F82,0) -> 19.86916228 | H82: =IF(A82>0,SUM('Asset data'!CX82:GJ82),0) -> 139.084136 | I82: 7.957669254e-06 | J82: 49 | K82: 5.069495146e-05 | L82: 19.86916228 | M82: =IF($A82>0,SUMPRODUCT('Age profile (years)'!$CT82:$GF82,'Asset data'!$CX82:$GJ82)/H82-0.5,0) -> 42.5 | N82: 5911.075779 | O82: =IF($A82>0,'Asset data'!G82,0) -> 52.23537166 | P82: 7265.111535 | Q82: 0.1863750817 | R82: 5.223537166 | S82: 10.44707433 | T82: 31.341223 | U82: 41.78829733 | W82: =IF($A82>0,SUMIF('Age profile (years)'!$CT82:$GF82,"<" & R82+0.5,'Asset data'!$CX82:$GJ82),0) -> 0 | X82: =IF($A82>0,SUMIF('Age profile (years)'!$CT82:$GF82,"<" & S82+0.5,'Asset data'!$CX82:$GJ82)-W82,0) -> 0 | Y82: =IF($A82>0,SUMIF('Age profile (years)'!$CT82:$GF82,"<" & T82+0.5,'Asset data'!$CX82:$GJ82)-X82-W82,0) -> 39.73832456 | Z82: =IF($A82>0,SUMIF('Age profile (years)'!$CT82:$GF82,"<" & U82+0.5,'Asset data'!$CX82:$GJ82)-Y82-X82-W82,0) -> 0 | AA82: 99.34581141 | AB82: 0 | AC82: 0 | AD82: 0.2857142857 | AE82: 0 | AF82: 0.7142857143 | AI82: =IF($A82>0,'RRR hist-forc'!K82,0) -> 52.23537166 | AJ82: 7265.111535
A83: ='Asset data'!A83 -> 0 | B83: ='Asset data'!B83 -> 0 | C83: ='Asset data'!C83 -> 0 | D83: ='Asset data'!E83 -> Pole Mounted ; < = 22kV ; > 600 kVA ; Single Phase | E83: 0 | F83: =IF(A83>0,SUM('Asset data'!J83:CV83),0) -> 0 | G83: =IF(A83>0,'Asset data'!F83,0) -> 0 | H83: =IF(A83>0,SUM('Asset data'!CX83:GJ83),0) -> 0 | I83: 0 | J83: 0 | K83: 0 | L83: 0 | M83: =IF($A83>0,SUMPRODUCT('Age profile (years)'!$CT83:$GF83,'Asset data'!$CX83:$GJ83)/H83-0.5,0) -> 0 | N83: 0 | O83: =IF($A83>0,'Asset data'!G83,0) -> 0 | P83: 0 | Q83: 0 | R83: 0 | S83: 0 | T83: 0 | U83: 0 | W83: =IF($A83>0,SUMIF('Age profile (years)'!$CT83:$GF83,"<" & R83+0.5,'Asset data'!$CX83:$GJ83),0) -> 0 | X83: =IF($A83>0,SUMIF('Age profile (years)'!$CT83:$GF83,"<" & S83+0.5,'Asset data'!$CX83:$GJ83)-W83,0) -> 0 | Y83: =IF($A83>0,SUMIF('Age profile (years)'!$CT83:$GF83,"<" & T83+0.5,'Asset data'!$CX83:$GJ83)-X83-W83,0) -> 0 | Z83: =IF($A83>0,SUMIF('Age profile (years)'!$CT83:$GF83,"<" & U83+0.5,'Asset data'!$CX83:$GJ83)-Y83-X83-W83,0) -> 0 | AA83: 0 | AB83: 0 | AC83: 0 | AD83: 0 | AE83: 0 | AF83: 0 | AI83: =IF($A83>0,'RRR hist-forc'!K83,0) -> 0 | AJ83: 0
A84: ='Asset data'!A84 -> 5 | B84: ='Asset data'!B84 -> 0 | C84: ='Asset data'!C84 -> 0 | D84: ='Asset data'!E84 -> Pole Mounted ; < = 22kV ; < = 60 kVA ; Multiple Phase | E84: TRANSFORMERS | F84: =IF(A84>0,SUM('Asset data'!J84:CV84),0) -> 6348 | G84: =IF(A84>0,'Asset data'!F84,0) -> 10.23839298 | H84: =IF(A84>0,SUM('Asset data'!CX84:GJ84),0) -> 64993.31862 | I84: 0.003718578899 | J84: 29 | K84: 0.02368949636 | L84: 10.23839298 | M84: =IF($A84>0,SUMPRODUCT('Age profile (years)'!$CT84:$GF84,'Asset data'!$CX84:$GJ84)/H84-0.5,0) -> 23.48582231 | N84: 1526421.532 | O84: =IF($A84>0,'Asset data'!G84,0) -> 49.6690961 | P84: 3228159.389 | Q84: 0.5271542237 | R84: 4.96690961 | S84: 9.933819221 | T84: 29.80145766 | U84: 39.73527688 | W84: =IF($A84>0,SUMIF('Age profile (years)'!$CT84:$GF84,"<" & R84+0.5,'Asset data'!$CX84:$GJ84),0) -> 8682.157244 | X84: =IF($A84>0,SUMIF('Age profile (years)'!$CT84:$GF84,"<" & S84+0.5,'Asset data'!$CX84:$GJ84)-W84,0) -> 4760.852734 | Y84: =IF($A84>0,SUMIF('Age profile (years)'!$CT84:$GF84,"<" & T84+0.5,'Asset data'!$CX84:$GJ84)-X84-W84,0) -> 31800.44859 | Z84: =IF($A84>0,SUMIF('Age profile (years)'!$CT84:$GF84,"<" & U84+0.5,'Asset data'!$CX84:$GJ84)-Y84-X84-W84,0) -> 4474.177731 | AA84: 15275.68232 | AB84: 0.1335853812 | AC84: 0.07325141777 | AD84: 0.4892879647 | AE84: 0.06884057971 | AF84: 0.2350346566 | AI84: =IF($A84>0,'RRR hist-forc'!K84,0) -> 49.6690961 | AJ84: 3228159.389
A85: ='Asset data'!A85 -> 5 | B85: ='Asset data'!B85 -> 0 | C85: ='Asset data'!C85 -> 0 | D85: ='Asset data'!E85 -> Pole Mounted ; < = 22kV ; > 60 kVA and < = 600 kVA ; Multiple Phase | E85: TRANSFORMERS | F85: =IF(A85>0,SUM('Asset data'!J85:CV85),0) -> 21258 | G85: =IF(A85>0,'Asset data'!F85,0) -> 21.59494207 | H85: =IF(A85>0,SUM('Asset data'!CX85:GJ85),0) -> 459065.2785 | I85: 0.02626532226 | J85: 12 | K85: 0.1673252801 | L85: 21.59494207 | M85: =IF($A85>0,SUMPRODUCT('Age profile (years)'!$CT85:$GF85,'Asset data'!$CX85:$GJ85)/H85-0.5,0) -> 28.67160598 | N85: 13162138.79 | O85: =IF($A85>0,'Asset data'!G85,0) -> 44.09483803 | P85: 20242409.1 | Q85: 0.3497740945 | R85: 4.409483803 | S85: 8.818967605 | T85: 26.45690282 | U85: 35.27587042 | W85: =IF($A85>0,SUMIF('Age profile (years)'!$CT85:$GF85,"<" & R85+0.5,'Asset data'!$CX85:$GJ85),0) -> 23840.81605 | X85: =IF($A85>0,SUMIF('Age profile (years)'!$CT85:$GF85,"<" & S85+0.5,'Asset data'!$CX85:$GJ85)-W85,0) -> 11985.19285 | Y85: =IF($A85>0,SUMIF('Age profile (years)'!$CT85:$GF85,"<" & T85+0.5,'Asset data'!$CX85:$GJ85)-X85-W85,0) -> 140367.1235 | Z85: =IF($A85>0,SUMIF('Age profile (years)'!$CT85:$GF85,"<" & U85+0.5,'Asset data'!$CX85:$GJ85)-Y85-X85-W85,0) -> 57485.73579 | AA85: 225386.4104 | AB85: 0.05193338978 | AC85: 0.02610781823 | AD85: 0.3057672406 | AE85: 0.1252234453 | AF85: 0.4909681061 | AI85: =IF($A85>0,'RRR hist-forc'!K85,0) -> 44.09483803 | AJ85: 20242409.1
A86: ='Asset data'!A86 -> 0 | B86: ='Asset data'!B86 -> 0 | C86: ='Asset data'!C86 -> 0 | D86: ='Asset data'!E86 -> Pole Mounted ; < = 22kV ; > 600 kVA ; Multiple Phase | E86: 0 | F86: =IF(A86>0,SUM('Asset data'!J86:CV86),0) -> 0 | G86: =IF(A86>0,'Asset data'!F86,0) -> 0 | H86: =IF(A86>0,SUM('Asset data'!CX86:GJ86),0) -> 0 | I86: 0 | J86: 0 | K86: 0 | L86: 0 | M86: =IF($A86>0,SUMPRODUCT('Age profile (years)'!$CT86:$GF86,'Asset data'!$CX86:$GJ86)/H86-0.5,0) -> 0 | N86: 0 | O86: =IF($A86>0,'Asset data'!G86,0) -> 0 | P86: 0 | Q86: 0 | R86: 0 | S86: 0 | T86: 0 | U86: 0 | W86: =IF($A86>0,SUMIF('Age profile (years)'!$CT86:$GF86,"<" & R86+0.5,'Asset data'!$CX86:$GJ86),0) -> 0 | X86: =IF($A86>0,SUMIF('Age profile (years)'!$CT86:$GF86,"<" & S86+0.5,'Asset data'!$CX86:$GJ86)-W86,0) -> 0 | Y86: =IF($A86>0,SUMIF('Age profile (years)'!$CT86:$GF86,"<" & T86+0.5,'Asset data'!$CX86:$GJ86)-X86-W86,0) -> 0 | Z86: =IF($A86>0,SUMIF('Age profile (years)'!$CT86:$GF86,"<" & U86+0.5,'Asset data'!$CX86:$GJ86)-Y86-X86-W86,0) -> 0 | AA86: 0 | AB86: 0 | AC86: 0 | AD86: 0 | AE86: 0 | AF86: 0 | AI86: =IF($A86>0,'RRR hist-forc'!K86,0) -> 0 | AJ86: 0
A87: ='Asset data'!A87 -> 0 | B87: ='Asset data'!B87 -> 0 | C87: ='Asset data'!C87 -> 0 | D87: ='Asset data'!E87 -> Kiosk Mounted ; < = 22kV ; < = 60 kVA ; Single Phase | E87: =IF(A87>0,VLOOKUP(A87,IDtable,2),0) -> 0 | F87: =IF(A87>0,SUM('Asset data'!J87:CV87),0) -> 0 | G87: =IF(A87>0,'Asset data'!F87,0) -> 0 | H87: =IF(A87>0,SUM('Asset data'!CX87:GJ87),0) -> 0 | I87: =H87/$H$18/1000 -> 0 | J87: =IF(RANK(0,I$21:I$205)=RANK(I87,I$21:I$205),0,RANK(I87,I$21:I$205)) -> 0 | K87: =IF(A87>0,H87/(VLOOKUP(A87,$A$6:$H$17,8)*1000),0) -> 0 | L87: =IF($A87>0,H87/F87,0) -> 0 | M87: =IF($A87>0,SUMPRODUCT('Age profile (years)'!$CT87:$GF87,'Asset data'!$CX87:$GJ87)/H87-0.5,0) -> 0 | N87: =IF($A87>0,M87*H87,0) -> 0 | O87: =IF($A87>0,'Asset data'!G87,0) -> 0 | P87: =IF($A87>0,H87*O87,0) -> 0 | Q87: =IF($A87>0,(O87-M87)/O87,0) -> 0 | R87: 0 | S87: 0 | T87: 0 | U87: 0 | W87: =IF($A87>0,SUMIF('Age profile (years)'!$CT87:$GF87,"<" & R87+0.5,'Asset data'!$CX87:$GJ87),0) -> 0 | X87: =IF($A87>0,SUMIF('Age profile (years)'!$CT87:$GF87,"<" & S87+0.5,'Asset data'!$CX87:$GJ87)-W87,0) -> 0 | Y87: =IF($A87>0,SUMIF('Age profile (years)'!$CT87:$GF87,"<" & T87+0.5,'Asset data'!$CX87:$GJ87)-X87-W87,0) -> 0 | Z87: =IF($A87>0,SUMIF('Age profile (years)'!$CT87:$GF87,"<" & U87+0.5,'Asset data'!$CX87:$GJ87)-Y87-X87-W87,0) -> 0 | AA87: =IF($A87>0,H87-Z87-Y87-X87-W87,0) -> 0 | AB87: =IF($A87>0,W87/$H87,0) -> 0 | AC87: =IF($A87>0,X87/$H87,0) -> 0 | AD87: =IF($A87>0,Y87/$H87,0) -> 0 | AE87: =IF($A87>0,Z87/$H87,0) -> 0 | AF87: =IF($A87>0,AA87/$H87,0) -> 0 | AI87: =IF($A87>0,'RRR hist-forc'!K87,0) -> 0 | AJ87: =IF($A87>0,AI87*H87,0) -> 0
A88: ='Asset data'!A88 -> 0 | B88: ='Asset data'!B88 -> 0 | C88: ='Asset data'!C88 -> 0 | D88: ='Asset data'!E88 -> Kiosk Mounted ; < = 22kV ; > 60 kVA and < = 600 kVA ; Single Phase | E88: 0 | F88: =IF(A88>0,SUM('Asset data'!J88:CV88),0) -> 0 | G88: =IF(A88>0,'Asset data'!F88,0) -> 0 | H88: =IF(A88>0,SUM('Asset data'!CX88:GJ88),0) -> 0 | I88: 0 | J88: 0 | K88: 0 | L88: 0 | M88: =IF($A88>0,SUMPRODUCT('Age profile (years)'!$CT88:$GF88,'Asset data'!$CX88:$GJ88)/H88-0.5,0) -> 0 | N88: 0 | O88: =IF($A88>0,'Asset data'!G88,0) -> 0 | P88: 0 | Q88: 0 | R88: 0 | S88: 0 | T88: 0 | U88: 0 | W88: =IF($A88>0,SUMIF('Age profile (years)'!$CT88:$GF88,"<" & R88+0.5,'Asset data'!$CX88:$GJ88),0) -> 0 | X88: =IF($A88>0,SUMIF('Age profile (years)'!$CT88:$GF88,"<" & S88+0.5,'Asset data'!$CX88:$GJ88)-W88,0) -> 0 | Y88: =IF($A88>0,SUMIF('Age profile (years)'!$CT88:$GF88,"<" & T88+0.5,'Asset data'!$CX88:$GJ88)-X88-W88,0) -> 0 | Z88: =IF($A88>0,SUMIF('Age profile (years)'!$CT88:$GF88,"<" & U88+0.5,'Asset data'!$CX88:$GJ88)-Y88-X88-W88,0) -> 0 | AA88: 0 | AB88: 0 | AC88: 0 | AD88: 0 | AE88: 0 | AF88: 0 | AI88: =IF($A88>0,'RRR hist-forc'!K88,0) -> 0 | AJ88: 0
A89: ='Asset data'!A89 -> 0 | B89: ='Asset data'!B89 -> 0 | C89: ='Asset data'!C89 -> 0 | D89: ='Asset data'!E89 -> Kiosk Mounted ; < = 22kV ; > 600 kVA ; Single Phase | E89: 0 | F89: =IF(A89>0,SUM('Asset data'!J89:CV89),0) -> 0 | G89: =IF(A89>0,'Asset data'!F89,0) -> 0 | H89: =IF(A89>0,SUM('Asset data'!CX89:GJ89),0) -> 0 | I89: 0 | J89: 0 | K89: 0 | L89: 0 | M89: =IF($A89>0,SUMPRODUCT('Age profile (years)'!$CT89:$GF89,'Asset data'!$CX89:$GJ89)/H89-0.5,0) -> 0 | N89: 0 | O89: =IF($A89>0,'Asset data'!G89,0) -> 0 | P89: 0 | Q89: 0 | R89: 0 | S89: 0 | T89: 0 | U89: 0 | W89: =IF($A89>0,SUMIF('Age profile (years)'!$CT89:$GF89,"<" & R89+0.5,'Asset data'!$CX89:$GJ89),0) -> 0 | X89: =IF($A89>0,SUMIF('Age profile (years)'!$CT89:$GF89,"<" & S89+0.5,'Asset data'!$CX89:$GJ89)-W89,0) -> 0 | Y89: =IF($A89>0,SUMIF('Age profile (years)'!$CT89:$GF89,"<" & T89+0.5,'Asset data'!$CX89:$GJ89)-X89-W89,0) -> 0 | Z89: =IF($A89>0,SUMIF('Age profile (years)'!$CT89:$GF89,"<" & U89+0.5,'Asset data'!$CX89:$GJ89)-Y89-X89-W89,0) -> 0 | AA89: 0 | AB89: 0 | AC89: 0 | AD89: 0 | AE89: 0 | AF89: 0 | AI89: =IF($A89>0,'RRR hist-forc'!K89,0) -> 0 | AJ89: 0
A90: ='Asset data'!A90 -> 0 | B90: ='Asset data'!B90 -> 0 | C90: ='Asset data'!C90 -> 0 | D90: ='Asset data'!E90 -> Kiosk Mounted ; < = 22kV ; < = 60 kVA ; Multiple Phase | E90: 0 | F90: =IF(A90>0,SUM('Asset data'!J90:CV90),0) -> 0 | G90: =IF(A90>0,'Asset data'!F90,0) -> 0 | H90: =IF(A90>0,SUM('Asset data'!CX90:GJ90),0) -> 0 | I90: 0 | J90: 0 | K90: 0 | L90: 0 | M90: =IF($A90>0,SUMPRODUCT('Age profile (years)'!$CT90:$GF90,'Asset data'!$CX90:$GJ90)/H90-0.5,0) -> 0 | N90: 0 | O90: =IF($A90>0,'Asset data'!G90,0) -> 0 | P90: 0 | Q90: 0 | R90: 0 | S90: 0 | T90: 0 | U90: 0 | W90: =IF($A90>0,SUMIF('Age profile (years)'!$CT90:$GF90,"<" & R90+0.5,'Asset data'!$CX90:$GJ90),0) -> 0 | X90: =IF($A90>0,SUMIF('Age profile (years)'!$CT90:$GF90,"<" & S90+0.5,'Asset data'!$CX90:$GJ90)-W90,0) -> 0 | Y90: =IF($A90>0,SUMIF('Age profile (years)'!$CT90:$GF90,"<" & T90+0.5,'Asset data'!$CX90:$GJ90)-X90-W90,0) -> 0 | Z90: =IF($A90>0,SUMIF('Age profile (years)'!$CT90:$GF90,"<" & U90+0.5,'Asset data'!$CX90:$GJ90)-Y90-X90-W90,0) -> 0 | AA90: 0 | AB90: 0 | AC90: 0 | AD90: 0 | AE90: 0 | AF90: 0 | AI90: =IF($A90>0,'RRR hist-forc'!K90,0) -> 0 | AJ90: 0
A91: ='Asset data'!A91 -> 5 | B91: ='Asset data'!B91 -> 0 | C91: ='Asset data'!C91 -> 0 | D91: ='Asset data'!E91 -> Kiosk Mounted ; < = 22kV ; > 60 kVA and < = 600 kVA ; Multiple Phase | E91: TRANSFORMERS | F91: =IF(A91>0,SUM('Asset data'!J91:CV91),0) -> 8391 | G91: =IF(A91>0,'Asset data'!F91,0) -> 21.7997188 | H91: =IF(A91>0,SUM('Asset data'!CX91:GJ91),0) -> 182921.4404 | I91: 0.0104658113 | J91: 21 | K91: 0.06667326563 | L91: 21.7997188 | M91: =IF($A91>0,SUMPRODUCT('Age profile (years)'!$CT91:$GF91,'Asset data'!$CX91:$GJ91)/H91-0.5,0) -> 28.76456918 | N91: 5261656.428 | O91: =IF($A91>0,'Asset data'!G91,0) -> 42.46666728 | P91: 7768063.949 | Q91: 0.3226553666 | R91: 4.246666728 | S91: 8.493333456 | T91: 25.48000037 | U91: 33.97333382 | W91: =IF($A91>0,SUMIF('Age profile (years)'!$CT91:$GF91,"<" & R91+0.5,'Asset data'!$CX91:$GJ91),0) -> 3030.160913 | X91: =IF($A91>0,SUMIF('Age profile (years)'!$CT91:$GF91,"<" & S91+0.5,'Asset data'!$CX91:$GJ91)-W91,0) -> 4665.139823 | Y91: =IF($A91>0,SUMIF('Age profile (years)'!$CT91:$GF91,"<" & T91+0.5,'Asset data'!$CX91:$GJ91)-X91-W91,0) -> 46171.80441 | Z91: =IF($A91>0,SUMIF('Age profile (years)'!$CT91:$GF91,"<" & U91+0.5,'Asset data'!$CX91:$GJ91)-Y91-X91-W91,0) -> 48002.98079 | AA91: 81051.35449 | AB91: 0.01656536766 | AC91: 0.02550351567 | AD91: 0.2524133 | AE91: 0.2624240257 | AF91: 0.443093791 | AI91: =IF($A91>0,'RRR hist-forc'!K91,0) -> 42.46666728 | AJ91: 7768063.949
A92: ='Asset data'!A92 -> 5 | B92: ='Asset data'!B92 -> 0 | C92: ='Asset data'!C92 -> 0 | D92: ='Asset data'!E92 -> Kiosk Mounted ; < = 22kV ; > 600 kVA ; Multiple Phase | E92: TRANSFORMERS | F92: =IF(A92>0,SUM('Asset data'!J92:CV92),0) -> 2278 | G92: =IF(A92>0,'Asset data'!F92,0) -> 69.67929396 | H92: =IF(A92>0,SUM('Asset data'!CX92:GJ92),0) -> 158729.4316 | I92: 0.009081670666 | J92: 24 | K92: 0.05785548996 | L92: 69.67929396 | M92: =IF($A92>0,SUMPRODUCT('Age profile (years)'!$CT92:$GF92,'Asset data'!$CX92:$GJ92)/H92-0.5,0) -> 44.60096576 | N92: 7079485.945 | O92: =IF($A92>0,'Asset data'!G92,0) -> 52.23537166 | P92: 8291290.855 | Q92: 0.1461539501 | R92: 5.223537166 | S92: 10.44707433 | T92: 31.341223 | U92: 41.78829733 | W92: =IF($A92>0,SUMIF('Age profile (years)'!$CT92:$GF92,"<" & R92+0.5,'Asset data'!$CX92:$GJ92),0) -> 0 | X92: =IF($A92>0,SUMIF('Age profile (years)'!$CT92:$GF92,"<" & S92+0.5,'Asset data'!$CX92:$GJ92)-W92,0) -> 0 | Y92: =IF($A92>0,SUMIF('Age profile (years)'!$CT92:$GF92,"<" & T92+0.5,'Asset data'!$CX92:$GJ92)-X92-W92,0) -> 1045.189409 | Z92: =IF($A92>0,SUMIF('Age profile (years)'!$CT92:$GF92,"<" & U92+0.5,'Asset data'!$CX92:$GJ92)-Y92-X92-W92,0) -> 29753.05852 | AA92: 127931.1837 | AB92: 0 | AC92: 0 | AD92: 0.006584723442 | AE92: 0.1874451273 | AF92: 0.8059701493 | AI92: =IF($A92>0,'RRR hist-forc'!K92,0) -> 52.23537166 | AJ92: 8291290.855
A93: ='Asset data'!A93 -> 0 | B93: ='Asset data'!B93 -> 0 | C93: ='Asset data'!C93 -> 0 | D93: ='Asset data'!E93 -> Ground Outdoor / Indoor Chamber Mounted; ˂ 22 kV ; < = 60 kVA ; Single Phase | E93: 0 | F93: =IF(A93>0,SUM('Asset data'!J93:CV93),0) -> 0 | G93: =IF(A93>0,'Asset data'!F93,0) -> 0 | H93: =IF(A93>0,SUM('Asset data'!CX93:GJ93),0) -> 0 | I93: 0 | J93: 0 | K93: 0 | L93: 0 | M93: =IF($A93>0,SUMPRODUCT('Age profile (years)'!$CT93:$GF93,'Asset data'!$CX93:$GJ93)/H93-0.5,0) -> 0 | N93: 0 | O93: =IF($A93>0,'Asset data'!G93,0) -> 0 | P93: 0 | Q93: 0 | R93: 0 | S93: 0 | T93: 0 | U93: 0 | W93: =IF($A93>0,SUMIF('Age profile (years)'!$CT93:$GF93,"<" & R93+0.5,'Asset data'!$CX93:$GJ93),0) -> 0 | X93: =IF($A93>0,SUMIF('Age profile (years)'!$CT93:$GF93,"<" & S93+0.5,'Asset data'!$CX93:$GJ93)-W93,0) -> 0 | Y93: =IF($A93>0,SUMIF('Age profile (years)'!$CT93:$GF93,"<" & T93+0.5,'Asset data'!$CX93:$GJ93)-X93-W93,0) -> 0 | Z93: =IF($A93>0,SUMIF('Age profile (years)'!$CT93:$GF93,"<" & U93+0.5,'Asset data'!$CX93:$GJ93)-Y93-X93-W93,0) -> 0 | AA93: 0 | AB93: 0 | AC93: 0 | AD93: 0 | AE93: 0 | AF93: 0 | AI93: =IF($A93>0,'RRR hist-forc'!K93,0) -> 0 | AJ93: 0
A94: ='Asset data'!A94 -> 0 | B94: ='Asset data'!B94 -> 0 | C94: ='Asset data'!C94 -> 0 | D94: ='Asset data'!E94 -> Ground Outdoor / Indoor Chamber Mounted; ˂ 22 kV ; > 60 kVA and < = 600 kVA ; Single Phase | E94: 0 | F94: =IF(A94>0,SUM('Asset data'!J94:CV94),0) -> 0 | G94: =IF(A94>0,'Asset data'!F94,0) -> 0 | H94: =IF(A94>0,SUM('Asset data'!CX94:GJ94),0) -> 0 | I94: 0 | J94: 0 | K94: 0 | L94: 0 | M94: =IF($A94>0,SUMPRODUCT('Age profile (years)'!$CT94:$GF94,'Asset data'!$CX94:$GJ94)/H94-0.5,0) -> 0 | N94: 0 | O94: =IF($A94>0,'Asset data'!G94,0) -> 0 | P94: 0 | Q94: 0 | R94: 0 | S94: 0 | T94: 0 | U94: 0 | W94: =IF($A94>0,SUMIF('Age profile (years)'!$CT94:$GF94,"<" & R94+0.5,'Asset data'!$CX94:$GJ94),0) -> 0 | X94: =IF($A94>0,SUMIF('Age profile (years)'!$CT94:$GF94,"<" & S94+0.5,'Asset data'!$CX94:$GJ94)-W94,0) -> 0 | Y94: =IF($A94>0,SUMIF('Age profile (years)'!$CT94:$GF94,"<" & T94+0.5,'Asset data'!$CX94:$GJ94)-X94-W94,0) -> 0 | Z94: =IF($A94>0,SUMIF('Age profile (years)'!$CT94:$GF94,"<" & U94+0.5,'Asset data'!$CX94:$GJ94)-Y94-X94-W94,0) -> 0 | AA94: 0 | AB94: 0 | AC94: 0 | AD94: 0 | AE94: 0 | AF94: 0 | AI94: =IF($A94>0,'RRR hist-forc'!K94,0) -> 0 | AJ94: 0
A95: ='Asset data'!A95 -> 0 | B95: ='Asset data'!B95 -> 0 | C95: ='Asset data'!C95 -> 0 | D95: ='Asset data'!E95 -> Ground Outdoor / Indoor Chamber Mounted; ˂ 22 kV ; > 600 kVA ; Single Phase | E95: 0 | F95: =IF(A95>0,SUM('Asset data'!J95:CV95),0) -> 0 | G95: =IF(A95>0,'Asset data'!F95,0) -> 0 | H95: =IF(A95>0,SUM('Asset data'!CX95:GJ95),0) -> 0 | I95: 0 | J95: 0 | K95: 0 | L95: 0 | M95: =IF($A95>0,SUMPRODUCT('Age profile (years)'!$CT95:$GF95,'Asset data'!$CX95:$GJ95)/H95-0.5,0) -> 0 | N95: 0 | O95: =IF($A95>0,'Asset data'!G95,0) -> 0 | P95: 0 | Q95: 0 | R95: 0 | S95: 0 | T95: 0 | U95: 0 | W95: =IF($A95>0,SUMIF('Age profile (years)'!$CT95:$GF95,"<" & R95+0.5,'Asset data'!$CX95:$GJ95),0) -> 0 | X95: =IF($A95>0,SUMIF('Age profile (years)'!$CT95:$GF95,"<" & S95+0.5,'Asset data'!$CX95:$GJ95)-W95,0) -> 0 | Y95: =IF($A95>0,SUMIF('Age profile (years)'!$CT95:$GF95,"<" & T95+0.5,'Asset data'!$CX95:$GJ95)-X95-W95,0) -> 0 | Z95: =IF($A95>0,SUMIF('Age profile (years)'!$CT95:$GF95,"<" & U95+0.5,'Asset data'!$CX95:$GJ95)-Y95-X95-W95,0) -> 0 | AA95: 0 | AB95: 0 | AC95: 0 | AD95: 0 | AE95: 0 | AF95: 0 | AI95: =IF($A95>0,'RRR hist-forc'!K95,0) -> 0 | AJ95: 0
A96: ='Asset data'!A96 -> 5 | B96: ='Asset data'!B96 -> 0 | C96: ='Asset data'!C96 -> 0 | D96: ='Asset data'!E96 -> Ground Outdoor / Indoor Chamber Mounted; ˂ 22 kV ; < = 60 kVA ; Multiple Phase | E96: TRANSFORMERS | F96: =IF(A96>0,SUM('Asset data'!J96:CV96),0) -> 2 | G96: =IF(A96>0,'Asset data'!F96,0) -> 108.9735123 | H96: =IF(A96>0,SUM('Asset data'!CX96:GJ96),0) -> 217.9470245 | I96: 1.246979265e-05 | J96: 47 | K96: 7.94397848e-05 | L96: 108.9735123 | M96: =IF($A96>0,SUMPRODUCT('Age profile (years)'!$CT96:$GF96,'Asset data'!$CX96:$GJ96)/H96-0.5,0) -> 2 | N96: 435.8940491 | O96: =IF($A96>0,'Asset data'!G96,0) -> 52.23537166 | P96: 11384.54383 | Q96: 0.9617117686 | R96: 5.223537166 | S96: 10.44707433 | T96: 31.341223 | U96: 41.78829733 | W96: =IF($A96>0,SUMIF('Age profile (years)'!$CT96:$GF96,"<" & R96+0.5,'Asset data'!$CX96:$GJ96),0) -> 217.9470245 | X96: =IF($A96>0,SUMIF('Age profile (years)'!$CT96:$GF96,"<" & S96+0.5,'Asset data'!$CX96:$GJ96)-W96,0) -> 0 | Y96: =IF($A96>0,SUMIF('Age profile (years)'!$CT96:$GF96,"<" & T96+0.5,'Asset data'!$CX96:$GJ96)-X96-W96,0) -> 0 | Z96: =IF($A96>0,SUMIF('Age profile (years)'!$CT96:$GF96,"<" & U96+0.5,'Asset data'!$CX96:$GJ96)-Y96-X96-W96,0) -> 0 | AA96: 0 | AB96: 1 | AC96: 0 | AD96: 0 | AE96: 0 | AF96: 0 | AI96: =IF($A96>0,'RRR hist-forc'!K96,0) -> 52.23537166 | AJ96: 11384.54383
A97: ='Asset data'!A97 -> 5 | B97: ='Asset data'!B97 -> 0 | C97: ='Asset data'!C97 -> 0 | D97: ='Asset data'!E97 -> Ground Outdoor / Indoor Chamber Mounted; ˂ 22 kV ; > 60 kVA and < = 600 kVA ; Multiple Phase | E97: TRANSFORMERS | F97: =IF(A97>0,SUM('Asset data'!J97:CV97),0) -> 676 | G97: =IF(A97>0,'Asset data'!F97,0) -> 69.10119907 | H97: =IF(A97>0,SUM('Asset data'!CX97:GJ97),0) -> 46712.41057 | I97: 0.002672640634 | J97: 30 | K97: 0.01702626522 | L97: 69.10119907 | M97: =IF($A97>0,SUMPRODUCT('Age profile (years)'!$CT97:$GF97,'Asset data'!$CX97:$GJ97)/H97-0.5,0) -> 14.78994083 | N97: 690873.7883 | O97: =IF($A97>0,'Asset data'!G97,0) -> 52.23537166 | P97: 2440040.127 | Q97: 0.7168596612 | R97: 5.223537166 | S97: 10.44707433 | T97: 31.341223 | U97: 41.78829733 | W97: =IF($A97>0,SUMIF('Age profile (years)'!$CT97:$GF97,"<" & R97+0.5,'Asset data'!$CX97:$GJ97),0) -> 16446.08538 | X97: =IF($A97>0,SUMIF('Age profile (years)'!$CT97:$GF97,"<" & S97+0.5,'Asset data'!$CX97:$GJ97)-W97,0) -> 4007.869546 | Y97: =IF($A97>0,SUMIF('Age profile (years)'!$CT97:$GF97,"<" & T97+0.5,'Asset data'!$CX97:$GJ97)-X97-W97,0) -> 17828.10936 | Z97: =IF($A97>0,SUMIF('Age profile (years)'!$CT97:$GF97,"<" & U97+0.5,'Asset data'!$CX97:$GJ97)-Y97-X97-W97,0) -> 2556.744365 | AA97: 5873.601921 | AB97: 0.3520710059 | AC97: 0.08579881657 | AD97: 0.3816568047 | AE97: 0.05473372781 | AF97: 0.125739645 | AI97: =IF($A97>0,'RRR hist-forc'!K97,0) -> 52.23537166 | AJ97: 2440040.127
A98: ='Asset data'!A98 -> 5 | B98: ='Asset data'!B98 -> 0 | C98: ='Asset data'!C98 -> 0 | D98: ='Asset data'!E98 -> Ground Outdoor / Indoor Chamber Mounted; ˂ 22 kV ; > 600 kVA ; Multiple Phase | E98: TRANSFORMERS | F98: =IF(A98>0,SUM('Asset data'!J98:CV98),0) -> 3031 | G98: =IF(A98>0,'Asset data'!F98,0) -> 120.2413178 | H98: =IF(A98>0,SUM('Asset data'!CX98:GJ98),0) -> 364451.4343 | I98: 0.02085201129 | J98: 16 | K98: 0.1328393612 | L98: 120.2413178 | M98: =IF($A98>0,SUMPRODUCT('Age profile (years)'!$CT98:$GF98,'Asset data'!$CX98:$GJ98)/H98-0.5,0) -> 33.47921478 | N98: 12201547.85 | O98: =IF($A98>0,'Asset data'!G98,0) -> 52.23537166 | P98: 19037256.13 | Q98: 0.3590700379 | R98: 5.223537166 | S98: 10.44707433 | T98: 31.341223 | U98: 41.78829733 | W98: =IF($A98>0,SUMIF('Age profile (years)'!$CT98:$GF98,"<" & R98+0.5,'Asset data'!$CX98:$GJ98),0) -> 8176.409612 | X98: =IF($A98>0,SUMIF('Age profile (years)'!$CT98:$GF98,"<" & S98+0.5,'Asset data'!$CX98:$GJ98)-W98,0) -> 6493.031163 | Y98: =IF($A98>0,SUMIF('Age profile (years)'!$CT98:$GF98,"<" & T98+0.5,'Asset data'!$CX98:$GJ98)-X98-W98,0) -> 141283.5484 | Z98: =IF($A98>0,SUMIF('Age profile (years)'!$CT98:$GF98,"<" & U98+0.5,'Asset data'!$CX98:$GJ98)-Y98-X98-W98,0) -> 60842.10682 | AA98: 147656.3383 | AB98: 0.02243483999 | AC98: 0.01781590234 | AD98: 0.387660838 | AE98: 0.1669416034 | AF98: 0.4051468162 | AI98: =IF($A98>0,'RRR hist-forc'!K98,0) -> 52.23537166 | AJ98: 19037256.13
A99: ='Asset data'!A99 -> 5 | B99: ='Asset data'!B99 -> 0 | C99: ='Asset data'!C99 -> 0 | D99: ='Asset data'!E99 -> Ground Outdoor / Indoor Chamber Mounted; > = 22 kV & < = 33 kV ; < = 15 MVA | E99: TRANSFORMERS | F99: =IF(A99>0,SUM('Asset data'!J99:CV99),0) -> 255 | G99: =IF(A99>0,'Asset data'!F99,0) -> 1343.144929 | H99: =IF(A99>0,SUM('Asset data'!CX99:GJ99),0) -> 342501.9568 | I99: 0.0195961766 | J99: 18 | K99: 0.1248389685 | L99: 1343.144929 | M99: =IF($A99>0,SUMPRODUCT('Age profile (years)'!$CT99:$GF99,'Asset data'!$CX99:$GJ99)/H99-0.5,0) -> 36.44117647 | N99: 12481174.25 | O99: =IF($A99>0,'Asset data'!G99,0) -> 68.14774494 | P99: 23340735.99 | Q99: 0.4652621814 | R99: 6.814774494 | S99: 13.62954899 | T99: 40.88864696 | U99: 54.51819595 | W99: =IF($A99>0,SUMIF('Age profile (years)'!$CT99:$GF99,"<" & R99+0.5,'Asset data'!$CX99:$GJ99),0) -> 18804.029 | X99: =IF($A99>0,SUMIF('Age profile (years)'!$CT99:$GF99,"<" & S99+0.5,'Asset data'!$CX99:$GJ99)-W99,0) -> 18804.029 | Y99: =IF($A99>0,SUMIF('Age profile (years)'!$CT99:$GF99,"<" & T99+0.5,'Asset data'!$CX99:$GJ99)-X99-W99,0) -> 153118.5219 | Z99: =IF($A99>0,SUMIF('Age profile (years)'!$CT99:$GF99,"<" & U99+0.5,'Asset data'!$CX99:$GJ99)-Y99-X99-W99,0) -> 55068.94207 | AA99: 96706.43486 | AB99: 0.05490196078 | AC99: 0.05490196078 | AD99: 0.4470588235 | AE99: 0.1607843137 | AF99: 0.2823529412 | AI99: =IF($A99>0,'RRR hist-forc'!K99,0) -> 68.14774494 | AJ99: 23340735.99
A100: ='Asset data'!A100 -> 5 | B100: ='Asset data'!B100 -> 0 | C100: ='Asset data'!C100 -> 0 | D100: ='Asset data'!E100 -> Ground Outdoor / Indoor Chamber Mounted; > = 22 kV & < = 33 kV ; > 15 MVA and < = 40 MVA | E100: TRANSFORMERS | F100: =IF(A100>0,SUM('Asset data'!J100:CV100),0) -> 234 | G100: =IF(A100>0,'Asset data'!F100,0) -> 1954.504587 | H100: =IF(A100>0,SUM('Asset data'!CX100:GJ100),0) -> 457354.0735 | I100: 0.02616741602 | J100: 13 | K100: 0.1667015608 | L100: 1954.504587 | M100: =IF($A100>0,SUMPRODUCT('Age profile (years)'!$CT100:$GF100,'Asset data'!$CX100:$GJ100)/H100-0.5,0) -> 31.75213675 | N100: 14521969.08 | O100: =IF($A100>0,'Asset data'!G100,0) -> 43.75485458 | P100: 20011460.98 | Q100: 0.2743173974 | R100: 4.375485458 | S100: 8.750970917 | T100: 26.25291275 | U100: =IF($A100>0,$O100-U$4*$O100,0) -> 35.00388367 | W100: =IF($A100>0,SUMIF('Age profile (years)'!$CT100:$GF100,"<" & R100+0.5,'Asset data'!$CX100:$GJ100),0) -> 23454.05505 | X100: =IF($A100>0,SUMIF('Age profile (years)'!$CT100:$GF100,"<" & S100+0.5,'Asset data'!$CX100:$GJ100)-W100,0) -> 17590.54129 | Y100: =IF($A100>0,SUMIF('Age profile (years)'!$CT100:$GF100,"<" & T100+0.5,'Asset data'!$CX100:$GJ100)-X100-W100,0) -> 33226.57799 | Z100: =IF($A100>0,SUMIF('Age profile (years)'!$CT100:$GF100,"<" & U100+0.5,'Asset data'!$CX100:$GJ100)-Y100-X100-W100,0) -> 162223.8808 | AA100: 220859.0184 | AB100: 0.05128205128 | AC100: 0.03846153846 | AD100: 0.07264957265 | AE100: 0.3547008547 | AF100: 0.4829059829 | AI100: =IF($A100>0,'RRR hist-forc'!K100,0) -> 43.75485458 | AJ100: 20011460.98
A101: ='Asset data'!A101 -> 0 | B101: ='Asset data'!B101 -> 0 | C101: ='Asset data'!C101 -> 0 | D101: ='Asset data'!E101 -> Ground Outdoor / Indoor Chamber Mounted; > = 22 kV & < = 33 kV ; > 40 MVA | E101: 0 | F101: =IF(A101>0,SUM('Asset data'!J101:CV101),0) -> 0 | G101: =IF(A101>0,'Asset data'!F101,0) -> 0 | H101: =IF(A101>0,SUM('Asset data'!CX101:GJ101),0) -> 0 | I101: 0 | J101: 0 | K101: 0 | L101: 0 | M101: =IF($A101>0,SUMPRODUCT('Age profile (years)'!$CT101:$GF101,'Asset data'!$CX101:$GJ101)/H101-0.5,0) -> 0 | N101: 0 | O101: =IF($A101>0,'Asset data'!G101,0) -> 0 | P101: 0 | Q101: 0 | R101: 0 | S101: 0 | T101: 0 | U101: 0 | W101: =IF($A101>0,SUMIF('Age profile (years)'!$CT101:$GF101,"<" & R101+0.5,'Asset data'!$CX101:$GJ101),0) -> 0 | X101: =IF($A101>0,SUMIF('Age profile (years)'!$CT101:$GF101,"<" & S101+0.5,'Asset data'!$CX101:$GJ101)-W101,0) -> 0 | Y101: =IF($A101>0,SUMIF('Age profile (years)'!$CT101:$GF101,"<" & T101+0.5,'Asset data'!$CX101:$GJ101)-X101-W101,0) -> 0 | Z101: =IF($A101>0,SUMIF('Age profile (years)'!$CT101:$GF101,"<" & U101+0.5,'Asset data'!$CX101:$GJ101)-Y101-X101-W101,0) -> 0 | AA101: 0 | AB101: 0 | AC101: 0 | AD101: 0 | AE101: 0 | AF101: 0 | AI101: =IF($A101>0,'RRR hist-forc'!K101,0) -> 0 | AJ101: 0
A102: ='Asset data'!A102 -> 0 | B102: ='Asset data'!B102 -> 0 | C102: ='Asset data'!C102 -> 0 | D102: ='Asset data'!E102 -> Ground Outdoor / Indoor Chamber Mounted; > 33 kV & < = 66 kV ; < = 15 MVA | E102: 0 | F102: =IF(A102>0,SUM('Asset data'!J102:CV102),0) -> 0 | G102: =IF(A102>0,'Asset data'!F102,0) -> 0 | H102: =IF(A102>0,SUM('Asset data'!CX102:GJ102),0) -> 0 | I102: 0 | J102: 0 | K102: 0 | L102: 0 | M102: =IF($A102>0,SUMPRODUCT('Age profile (years)'!$CT102:$GF102,'Asset data'!$CX102:$GJ102)/H102-0.5,0) -> 0 | N102: 0 | O102: =IF($A102>0,'Asset data'!G102,0) -> 0 | P102: 0 | Q102: 0 | R102: 0 | S102: 0 | T102: 0 | U102: 0 | W102: =IF($A102>0,SUMIF('Age profile (years)'!$CT102:$GF102,"<" & R102+0.5,'Asset data'!$CX102:$GJ102),0) -> 0 | X102: =IF($A102>0,SUMIF('Age profile (years)'!$CT102:$GF102,"<" & S102+0.5,'Asset data'!$CX102:$GJ102)-W102,0) -> 0 | Y102: =IF($A102>0,SUMIF('Age profile (years)'!$CT102:$GF102,"<" & T102+0.5,'Asset data'!$CX102:$GJ102)-X102-W102,0) -> 0 | Z102: =IF($A102>0,SUMIF('Age profile (years)'!$CT102:$GF102,"<" & U102+0.5,'Asset data'!$CX102:$GJ102)-Y102-X102-W102,0) -> 0 | AA102: 0 | AB102: 0 | AC102: 0 | AD102: 0 | AE102: 0 | AF102: 0 | AI102: =IF($A102>0,'RRR hist-forc'!K102,0) -> 0 | AJ102: 0
A103: ='Asset data'!A103 -> 5 | B103: ='Asset data'!B103 -> 0 | C103: ='Asset data'!C103 -> 0 | D103: ='Asset data'!E103 -> Ground Outdoor / Indoor Chamber Mounted; > 33 kV & < = 66 kV ; > 15 MVA and < = 40 MVA | E103: TRANSFORMERS | F103: =IF(A103>0,SUM('Asset data'!J103:CV103),0) -> 1 | G103: =IF(A103>0,'Asset data'!F103,0) -> 1742.501519 | H103: =IF(A103>0,SUM('Asset data'!CX103:GJ103),0) -> 1742.501519 | I103: 9.969685377e-05 | J103: 42 | K103: 0.000635126568 | L103: 1742.501519 | M103: =IF($A103>0,SUMPRODUCT('Age profile (years)'!$CT103:$GF103,'Asset data'!$CX103:$GJ103)/H103-0.5,0) -> 40.5 | N103: 70571.31154 | O103: =IF($A103>0,'Asset data'!G103,0) -> 52.23537166 | P103: 91020.21449 | Q103: 0.2246633132 | R103: 5.223537166 | S103: 10.44707433 | T103: 31.341223 | U103: 41.78829733 | W103: =IF($A103>0,SUMIF('Age profile (years)'!$CT103:$GF103,"<" & R103+0.5,'Asset data'!$CX103:$GJ103),0) -> 0 | X103: =IF($A103>0,SUMIF('Age profile (years)'!$CT103:$GF103,"<" & S103+0.5,'Asset data'!$CX103:$GJ103)-W103,0) -> 0 | Y103: =IF($A103>0,SUMIF('Age profile (years)'!$CT103:$GF103,"<" & T103+0.5,'Asset data'!$CX103:$GJ103)-X103-W103,0) -> 0 | Z103: =IF($A103>0,SUMIF('Age profile (years)'!$CT103:$GF103,"<" & U103+0.5,'Asset data'!$CX103:$GJ103)-Y103-X103-W103,0) -> 1742.501519 | AA103: 0 | AB103: 0 | AC103: 0 | AD103: 0 | AE103: 1 | AF103: 0 | AI103: =IF($A103>0,'RRR hist-forc'!K103,0) -> 52.23537166 | AJ103: 91020.21449
A104: ='Asset data'!A104 -> 0 | B104: ='Asset data'!B104 -> 0 | C104: ='Asset data'!C104 -> 0 | D104: ='Asset data'!E104 -> Ground Outdoor / Indoor Chamber Mounted; > 33 kV & < = 66 kV ; > 40 MVA | E104: 0 | F104: =IF(A104>0,SUM('Asset data'!J104:CV104),0) -> 0 | G104: =IF(A104>0,'Asset data'!F104,0) -> 0 | H104: =IF(A104>0,SUM('Asset data'!CX104:GJ104),0) -> 0 | I104: 0 | J104: 0 | K104: 0 | L104: 0 | M104: =IF($A104>0,SUMPRODUCT('Age profile (years)'!$CT104:$GF104,'Asset data'!$CX104:$GJ104)/H104-0.5,0) -> 0 | N104: 0 | O104: =IF($A104>0,'Asset data'!G104,0) -> 0 | P104: 0 | Q104: 0 | R104: 0 | S104: 0 | T104: 0 | U104: 0 | W104: =IF($A104>0,SUMIF('Age profile (years)'!$CT104:$GF104,"<" & R104+0.5,'Asset data'!$CX104:$GJ104),0) -> 0 | X104: =IF($A104>0,SUMIF('Age profile (years)'!$CT104:$GF104,"<" & S104+0.5,'Asset data'!$CX104:$GJ104)-W104,0) -> 0 | Y104: =IF($A104>0,SUMIF('Age profile (years)'!$CT104:$GF104,"<" & T104+0.5,'Asset data'!$CX104:$GJ104)-X104-W104,0) -> 0 | Z104: =IF($A104>0,SUMIF('Age profile (years)'!$CT104:$GF104,"<" & U104+0.5,'Asset data'!$CX104:$GJ104)-Y104-X104-W104,0) -> 0 | AA104: 0 | AB104: 0 | AC104: 0 | AD104: 0 | AE104: 0 | AF104: 0 | AI104: =IF($A104>0,'RRR hist-forc'!K104,0) -> 0 | AJ104: 0
A105: ='Asset data'!A105 -> 5 | B105: ='Asset data'!B105 -> 0 | C105: ='Asset data'!C105 -> 0 | D105: ='Asset data'!E105 -> Ground Outdoor / Indoor Chamber Mounted; > 66 kV & < = 132 kV ; < = 100 MVA | E105: TRANSFORMERS | F105: =IF(A105>0,SUM('Asset data'!J105:CV105),0) -> 148 | G105: =IF(A105>0,'Asset data'!F105,0) -> 3705.892881 | H105: =IF(A105>0,SUM('Asset data'!CX105:GJ105),0) -> 548472.1464 | I105: 0.03138071718 | J105: 7 | K105: 0.1999133017 | L105: 3705.892881 | M105: =IF($A105>0,SUMPRODUCT('Age profile (years)'!$CT105:$GF105,'Asset data'!$CX105:$GJ105)/H105-0.5,0) -> 39.08108108 | N105: 21434884.42 | O105: =IF($A105>0,'Asset data'!G105,0) -> 56.79866786 | P105: 31152487.27 | Q105: 0.3119366606 | R105: 5.679866786 | S105: 11.35973357 | T105: 34.07920072 | U105: 45.43893429 | W105: =IF($A105>0,SUMIF('Age profile (years)'!$CT105:$GF105,"<" & R105+0.5,'Asset data'!$CX105:$GJ105),0) -> 18529.4644 | X105: =IF($A105>0,SUMIF('Age profile (years)'!$CT105:$GF105,"<" & S105+0.5,'Asset data'!$CX105:$GJ105)-W105,0) -> 0 | Y105: =IF($A105>0,SUMIF('Age profile (years)'!$CT105:$GF105,"<" & T105+0.5,'Asset data'!$CX105:$GJ105)-X105-W105,0) -> 159353.3939 | Z105: =IF($A105>0,SUMIF('Age profile (years)'!$CT105:$GF105,"<" & U105+0.5,'Asset data'!$CX105:$GJ105)-Y105-X105-W105,0) -> 88941.42914 | AA105: 281647.8589 | AB105: 0.03378378378 | AC105: 0 | AD105: 0.2905405405 | AE105: 0.1621621622 | AF105: 0.5135135135 | AI105: =IF($A105>0,'RRR hist-forc'!K105,0) -> 56.79866786 | AJ105: 31152487.27
A106: ='Asset data'!A106 -> 5 | B106: ='Asset data'!B106 -> 0 | C106: ='Asset data'!C106 -> 0 | D106: ='Asset data'!E106 -> Ground Outdoor / Indoor Chamber Mounted; > 66 kV & < = 132 kV ; > 100 MVA | E106: TRANSFORMERS | F106: =IF(A106>0,SUM('Asset data'!J106:CV106),0) -> 7 | G106: =IF(A106>0,'Asset data'!F106,0) -> 4267.16617 | H106: =IF(A106>0,SUM('Asset data'!CX106:GJ106),0) -> 29870.16319 | I106: 0.001709015033 | J106: 32 | K106: 0.01088741331 | L106: 4267.16617 | M106: =IF($A106>0,SUMPRODUCT('Age profile (years)'!$CT106:$GF106,'Asset data'!$CX106:$GJ106)/H106-0.5,0) -> 42.64285714 | N106: 1273749.102 | O106: =IF($A106>0,'Asset data'!G106,0) -> 52.23537166 | P106: 1560279.076 | Q106: 0.1836402081 | R106: 5.223537166 | S106: 10.44707433 | T106: 31.341223 | U106: 41.78829733 | W106: =IF($A106>0,SUMIF('Age profile (years)'!$CT106:$GF106,"<" & R106+0.5,'Asset data'!$CX106:$GJ106),0) -> 0 | X106: =IF($A106>0,SUMIF('Age profile (years)'!$CT106:$GF106,"<" & S106+0.5,'Asset data'!$CX106:$GJ106)-W106,0) -> 0 | Y106: =IF($A106>0,SUMIF('Age profile (years)'!$CT106:$GF106,"<" & T106+0.5,'Asset data'!$CX106:$GJ106)-X106-W106,0) -> 0 | Z106: =IF($A106>0,SUMIF('Age profile (years)'!$CT106:$GF106,"<" & U106+0.5,'Asset data'!$CX106:$GJ106)-Y106-X106-W106,0) -> 12801.49851 | AA106: 17068.66468 | AB106: 0 | AC106: 0 | AD106: 0 | AE106: 0.4285714286 | AF106: 0.5714285714 | AI106: =IF($A106>0,'RRR hist-forc'!K106,0) -> 52.23537166 | AJ106: 1560279.076
A107: ='Asset data'!A107 -> 0 | B107: ='Asset data'!B107 -> 0 | C107: ='Asset data'!C107 -> 0 | D107: ='Asset data'!E107 -> Ground Outdoor / Indoor Chamber Mounted; > 132 kV ; < = 100 MVA | E107: 0 | F107: =IF(A107>0,SUM('Asset data'!J107:CV107),0) -> 0 | G107: =IF(A107>0,'Asset data'!F107,0) -> 0 | H107: =IF(A107>0,SUM('Asset data'!CX107:GJ107),0) -> 0 | I107: 0 | J107: 0 | K107: 0 | L107: 0 | M107: =IF($A107>0,SUMPRODUCT('Age profile (years)'!$CT107:$GF107,'Asset data'!$CX107:$GJ107)/H107-0.5,0) -> 0 | N107: 0 | O107: =IF($A107>0,'Asset data'!G107,0) -> 0 | P107: 0 | Q107: 0 | R107: 0 | S107: 0 | T107: 0 | U107: 0 | W107: =IF($A107>0,SUMIF('Age profile (years)'!$CT107:$GF107,"<" & R107+0.5,'Asset data'!$CX107:$GJ107),0) -> 0 | X107: =IF($A107>0,SUMIF('Age profile (years)'!$CT107:$GF107,"<" & S107+0.5,'Asset data'!$CX107:$GJ107)-W107,0) -> 0 | Y107: =IF($A107>0,SUMIF('Age profile (years)'!$CT107:$GF107,"<" & T107+0.5,'Asset data'!$CX107:$GJ107)-X107-W107,0) -> 0 | Z107: =IF($A107>0,SUMIF('Age profile (years)'!$CT107:$GF107,"<" & U107+0.5,'Asset data'!$CX107:$GJ107)-Y107-X107-W107,0) -> 0 | AA107: 0 | AB107: 0 | AC107: 0 | AD107: 0 | AE107: 0 | AF107: 0 | AI107: =IF($A107>0,'RRR hist-forc'!K107,0) -> 0 | AJ107: 0
A108: ='Asset data'!A108 -> 0 | B108: ='Asset data'!B108 -> 0 | C108: ='Asset data'!C108 -> 0 | D108: ='Asset data'!E108 -> Ground Outdoor / Indoor Chamber Mounted; > 132 kV ; > 100 MVA | E108: 0 | F108: =IF(A108>0,SUM('Asset data'!J108:CV108),0) -> 0 | G108: =IF(A108>0,'Asset data'!F108,0) -> 0 | H108: =IF(A108>0,SUM('Asset data'!CX108:GJ108),0) -> 0 | I108: 0 | J108: 0 | K108: 0 | L108: 0 | M108: =IF($A108>0,SUMPRODUCT('Age profile (years)'!$CT108:$GF108,'Asset data'!$CX108:$GJ108)/H108-0.5,0) -> 0 | N108: 0 | O108: =IF($A108>0,'Asset data'!G108,0) -> 0 | P108: 0 | Q108: 0 | R108: 0 | S108: 0 | T108: 0 | U108: 0 | W108: =IF($A108>0,SUMIF('Age profile (years)'!$CT108:$GF108,"<" & R108+0.5,'Asset data'!$CX108:$GJ108),0) -> 0 | X108: =IF($A108>0,SUMIF('Age profile (years)'!$CT108:$GF108,"<" & S108+0.5,'Asset data'!$CX108:$GJ108)-W108,0) -> 0 | Y108: =IF($A108>0,SUMIF('Age profile (years)'!$CT108:$GF108,"<" & T108+0.5,'Asset data'!$CX108:$GJ108)-X108-W108,0) -> 0 | Z108: =IF($A108>0,SUMIF('Age profile (years)'!$CT108:$GF108,"<" & U108+0.5,'Asset data'!$CX108:$GJ108)-Y108-X108-W108,0) -> 0 | AA108: 0 | AB108: 0 | AC108: 0 | AD108: 0 | AE108: 0 | AF108: 0 | AI108: =IF($A108>0,'RRR hist-forc'!K108,0) -> 0 | AJ108: 0
A109: ='Asset data'!A109 -> 0 | B109: ='Asset data'!B109 -> 0 | C109: ='Asset data'!C109 -> 0 | D109: ='Asset data'!E109 -> Other | E109: 0 | F109: =IF(A109>0,SUM('Asset data'!J109:CV109),0) -> 0 | G109: =IF(A109>0,'Asset data'!F109,0) -> 0 | H109: =IF(A109>0,SUM('Asset data'!CX109:GJ109),0) -> 0 | I109: 0 | J109: 0 | K109: 0 | L109: 0 | M109: =IF($A109>0,SUMPRODUCT('Age profile (years)'!$CT109:$GF109,'Asset data'!$CX109:$GJ109)/H109-0.5,0) -> 0 | N109: 0 | O109: =IF($A109>0,'Asset data'!G109,0) -> 0 | P109: 0 | Q109: 0 | R109: 0 | S109: 0 | T109: 0 | U109: 0 | W109: =IF($A109>0,SUMIF('Age profile (years)'!$CT109:$GF109,"<" & R109+0.5,'Asset data'!$CX109:$GJ109),0) -> 0 | X109: =IF($A109>0,SUMIF('Age profile (years)'!$CT109:$GF109,"<" & S109+0.5,'Asset data'!$CX109:$GJ109)-W109,0) -> 0 | Y109: =IF($A109>0,SUMIF('Age profile (years)'!$CT109:$GF109,"<" & T109+0.5,'Asset data'!$CX109:$GJ109)-X109-W109,0) -> 0 | Z109: =IF($A109>0,SUMIF('Age profile (years)'!$CT109:$GF109,"<" & U109+0.5,'Asset data'!$CX109:$GJ109)-Y109-X109-W109,0) -> 0 | AA109: 0 | AB109: 0 | AC109: 0 | AD109: 0 | AE109: 0 | AF109: 0 | AI109: =IF($A109>0,'RRR hist-forc'!K109,0) -> 0 | AJ109: 0
A110: ='Asset data'!A110 -> 0 | B110: ='Asset data'!B110 -> 0 | C110: ='Asset data'!C110 -> 0 | D110: ='Asset data'!E110 -> ˂ = 11 kV ; Fuse | E110: 0 | F110: =IF(A110>0,SUM('Asset data'!J110:CV110),0) -> 0 | G110: =IF(A110>0,'Asset data'!F110,0) -> 0 | H110: =IF(A110>0,SUM('Asset data'!CX110:GJ110),0) -> 0 | I110: 0 | J110: 0 | K110: 0 | L110: 0 | M110: =IF($A110>0,SUMPRODUCT('Age profile (years)'!$CT110:$GF110,'Asset data'!$CX110:$GJ110)/H110-0.5,0) -> 0 | N110: 0 | O110: =IF($A110>0,'Asset data'!G110,0) -> 0 | P110: 0 | Q110: 0 | R110: 0 | S110: 0 | T110: 0 | U110: 0 | W110: =IF($A110>0,SUMIF('Age profile (years)'!$CT110:$GF110,"<" & R110+0.5,'Asset data'!$CX110:$GJ110),0) -> 0 | X110: =IF($A110>0,SUMIF('Age profile (years)'!$CT110:$GF110,"<" & S110+0.5,'Asset data'!$CX110:$GJ110)-W110,0) -> 0 | Y110: =IF($A110>0,SUMIF('Age profile (years)'!$CT110:$GF110,"<" & T110+0.5,'Asset data'!$CX110:$GJ110)-X110-W110,0) -> 0 | Z110: =IF($A110>0,SUMIF('Age profile (years)'!$CT110:$GF110,"<" & U110+0.5,'Asset data'!$CX110:$GJ110)-Y110-X110-W110,0) -> 0 | AA110: 0 | AB110: 0 | AC110: 0 | AD110: 0 | AE110: 0 | AF110: 0 | AI110: =IF($A110>0,'RRR hist-forc'!K110,0) -> 0 | AJ110: 0
A111: ='Asset data'!A111 -> 6 | B111: ='Asset data'!B111 -> 0 | C111: ='Asset data'!C111 -> 0 | D111: ='Asset data'!E111 -> ˂ = 11 kV ; Switch | E111: SWITCHGEAR | F111: =IF(A111>0,SUM('Asset data'!J111:CV111),0) -> 202543 | G111: =IF(A111>0,'Asset data'!F111,0) -> 14.72160831 | H111: =IF(A111>0,SUM('Asset data'!CX111:GJ111),0) -> 2981758.713 | I111: 0.1706006905 | J111: 2 | K111: 0.6156124624 | L111: 14.72160831 | M111: =IF($A111>0,SUMPRODUCT('Age profile (years)'!$CT111:$GF111,'Asset data'!$CX111:$GJ111)/H111-0.5,0) -> 32.74477271 | N111: 97637011.33 | O111: =IF($A111>0,'Asset data'!G111,0) -> 47.92354947 | P111: 142896461.2 | Q111: 0.3167289762 | R111: 4.792354947 | S111: 9.584709895 | T111: 28.75412968 | U111: 38.33883958 | W111: =IF($A111>0,SUMIF('Age profile (years)'!$CT111:$GF111,"<" & R111+0.5,'Asset data'!$CX111:$GJ111),0) -> 168989.3418 | X111: =IF($A111>0,SUMIF('Age profile (years)'!$CT111:$GF111,"<" & S111+0.5,'Asset data'!$CX111:$GJ111)-W111,0) -> 139413.6307 | Y111: =IF($A111>0,SUMIF('Age profile (years)'!$CT111:$GF111,"<" & T111+0.5,'Asset data'!$CX111:$GJ111)-X111-W111,0) -> 660411.3489 | Z111: =IF($A111>0,SUMIF('Age profile (years)'!$CT111:$GF111,"<" & U111+0.5,'Asset data'!$CX111:$GJ111)-Y111-X111-W111,0) -> 389342.3751 | AA111: 1623602.016 | AB111: 0.05667438519 | AC111: 0.04675550377 | AD111: 0.2214838331 | AE111: 0.1305747422 | AF111: 0.5445115358 | AI111: =IF($A111>0,'RRR hist-forc'!K111,0) -> 47.92354947 | AJ111: 142896461.2
A112: ='Asset data'!A112 -> 6 | B112: ='Asset data'!B112 -> 0 | C112: ='Asset data'!C112 -> 0 | D112: ='Asset data'!E112 -> ˂ = 11 kV ; Circuit Breaker | E112: SWITCHGEAR | F112: =IF(A112>0,SUM('Asset data'!J112:CV112),0) -> 5306 | G112: =IF(A112>0,'Asset data'!F112,0) -> 182.5231899 | H112: =IF(A112>0,SUM('Asset data'!CX112:GJ112),0) -> 968468.0457 | I112: 0.05541069322 | J112: 4 | K112: 0.1999494446 | L112: 182.5231899 | M112: =IF($A112>0,SUMPRODUCT('Age profile (years)'!$CT112:$GF112,'Asset data'!$CX112:$GJ112)/H112-0.5,0) -> 30.67885413 | N112: 29711489.9 | O112: =IF($A112>0,'Asset data'!G112,0) -> 46.54896775 | P112: 45081187.83 | Q112: 0.3409337391 | R112: 4.654896775 | S112: 9.309793551 | T112: 27.92938065 | U112: 37.2391742 | W112: =IF($A112>0,SUMIF('Age profile (years)'!$CT112:$GF112,"<" & R112+0.5,'Asset data'!$CX112:$GJ112),0) -> 74469.46149 | X112: =IF($A112>0,SUMIF('Age profile (years)'!$CT112:$GF112,"<" & S112+0.5,'Asset data'!$CX112:$GJ112)-W112,0) -> 29933.80315 | Y112: =IF($A112>0,SUMIF('Age profile (years)'!$CT112:$GF112,"<" & T112+0.5,'Asset data'!$CX112:$GJ112)-X112-W112,0) -> 213369.609 | Z112: =IF($A112>0,SUMIF('Age profile (years)'!$CT112:$GF112,"<" & U112+0.5,'Asset data'!$CX112:$GJ112)-Y112-X112-W112,0) -> 155874.8042 | AA112: 494820.3679 | AB112: 0.07689408217 | AC112: 0.03090840558 | AD112: 0.2203166227 | AE112: 0.1609498681 | AF112: 0.5109310215 | AI112: =IF($A112>0,'RRR hist-forc'!K112,0) -> 46.54896775 | AJ112: 45081187.83
A113: ='Asset data'!A113 -> 6 | B113: ='Asset data'!B113 -> 0 | C113: ='Asset data'!C113 -> 0 | D113: ='Asset data'!E113 -> > 11 kV & < = 22 kV ; Switch | E113: SWITCHGEAR | F113: =IF(A113>0,SUM('Asset data'!J113:CV113),0) -> 1 | G113: =IF(A113>0,'Asset data'!F113,0) -> 9.836411827 | H113: =IF(A113>0,SUM('Asset data'!CX113:GJ113),0) -> 9.836411827 | I113: 5.627882103e-07 | J113: 51 | K113: 2.030820831e-06 | L113: 9.836411827 | M113: =IF($A113>0,SUMPRODUCT('Age profile (years)'!$CT113:$GF113,'Asset data'!$CX113:$GJ113)/H113-0.5,0) -> 43.5 | N113: 427.8839145 | O113: =IF($A113>0,'Asset data'!G113,0) -> 48.67804505 | P113: 478.8172981 | Q113: 0.1063733157 | R113: 4.867804505 | S113: 9.735609011 | T113: 29.20682703 | U113: 38.94243604 | W113: =IF($A113>0,SUMIF('Age profile (years)'!$CT113:$GF113,"<" & R113+0.5,'Asset data'!$CX113:$GJ113),0) -> 0 | X113: =IF($A113>0,SUMIF('Age profile (years)'!$CT113:$GF113,"<" & S113+0.5,'Asset data'!$CX113:$GJ113)-W113,0) -> 0 | Y113: =IF($A113>0,SUMIF('Age profile (years)'!$CT113:$GF113,"<" & T113+0.5,'Asset data'!$CX113:$GJ113)-X113-W113,0) -> 0 | Z113: =IF($A113>0,SUMIF('Age profile (years)'!$CT113:$GF113,"<" & U113+0.5,'Asset data'!$CX113:$GJ113)-Y113-X113-W113,0) -> 0 | AA113: 9.836411827 | AB113: 0 | AC113: 0 | AD113: 0 | AE113: 0 | AF113: 1 | AI113: =IF($A113>0,'RRR hist-forc'!K113,0) -> 48.67804505 | AJ113: 478.8172981
A114: ='Asset data'!A114 -> 6 | B114: ='Asset data'!B114 -> 0 | C114: ='Asset data'!C114 -> 0 | D114: ='Asset data'!E114 -> > 11 kV & < = 22 kV ; Circuit Breaker | E114: SWITCHGEAR | F114: =IF(A114>0,SUM('Asset data'!J114:CV114),0) -> 1 | G114: =IF(A114>0,'Asset data'!F114,0) -> 89.19023228 | H114: =IF(A114>0,SUM('Asset data'!CX114:GJ114),0) -> 89.19023228 | I114: 5.103000167e-06 | J114: 50 | K114: 1.841417224e-05 | L114: 89.19023228 | M114: =IF($A114>0,SUMPRODUCT('Age profile (years)'!$CT114:$GF114,'Asset data'!$CX114:$GJ114)/H114-0.5,0) -> 43.5 | N114: 3879.775104 | O114: =IF($A114>0,'Asset data'!G114,0) -> 48.67804505 | P114: 4341.606145 | Q114: 0.1063733157 | R114: 4.867804505 | S114: 9.735609011 | T114: 29.20682703 | U114: 38.94243604 | W114: =IF($A114>0,SUMIF('Age profile (years)'!$CT114:$GF114,"<" & R114+0.5,'Asset data'!$CX114:$GJ114),0) -> 0 | X114: =IF($A114>0,SUMIF('Age profile (years)'!$CT114:$GF114,"<" & S114+0.5,'Asset data'!$CX114:$GJ114)-W114,0) -> 0 | Y114: =IF($A114>0,SUMIF('Age profile (years)'!$CT114:$GF114,"<" & T114+0.5,'Asset data'!$CX114:$GJ114)-X114-W114,0) -> 0 | Z114: =IF($A114>0,SUMIF('Age profile (years)'!$CT114:$GF114,"<" & U114+0.5,'Asset data'!$CX114:$GJ114)-Y114-X114-W114,0) -> 0 | AA114: 89.19023228 | AB114: 0 | AC114: 0 | AD114: 0 | AE114: 0 | AF114: 1 | AI114: =IF($A114>0,'RRR hist-forc'!K114,0) -> 48.67804505 | AJ114: 4341.606145
A115: ='Asset data'!A115 -> 6 | B115: ='Asset data'!B115 -> 0 | C115: ='Asset data'!C115 -> 0 | D115: ='Asset data'!E115 -> > 22 kV & < = 33 kV ; Switch | E115: SWITCHGEAR | F115: =IF(A115>0,SUM('Asset data'!J115:CV115),0) -> 2907 | G115: =IF(A115>0,'Asset data'!F115,0) -> 58.72116244 | H115: =IF(A115>0,SUM('Asset data'!CX115:GJ115),0) -> 170702.4192 | I115: 0.009766702603 | J115: 23 | K115: 0.03524313895 | L115: 58.72116244 | M115: =IF($A115>0,SUMPRODUCT('Age profile (years)'!$CT115:$GF115,'Asset data'!$CX115:$GJ115)/H115-0.5,0) -> 36.52098383 | N115: 6234220.292 | O115: =IF($A115>0,'Asset data'!G115,0) -> 48.67804505 | P115: 8309460.053 | Q115: 0.249744237 | R115: 4.867804505 | S115: 9.735609011 | T115: 29.20682703 | U115: 38.94243604 | W115: =IF($A115>0,SUMIF('Age profile (years)'!$CT115:$GF115,"<" & R115+0.5,'Asset data'!$CX115:$GJ115),0) -> 587.2116244 | X115: =IF($A115>0,SUMIF('Age profile (years)'!$CT115:$GF115,"<" & S115+0.5,'Asset data'!$CX115:$GJ115)-W115,0) -> 0 | Y115: =IF($A115>0,SUMIF('Age profile (years)'!$CT115:$GF115,"<" & T115+0.5,'Asset data'!$CX115:$GJ115)-X115-W115,0) -> 26072.19612 | Z115: =IF($A115>0,SUMIF('Age profile (years)'!$CT115:$GF115,"<" & U115+0.5,'Asset data'!$CX115:$GJ115)-Y115-X115-W115,0) -> 52437.99806 | AA115: 91605.0134 | AB115: 0.00343997248 | AC115: 0 | AD115: 0.1527347781 | AE115: 0.3071895425 | AF115: 0.5366357069 | AI115: =IF($A115>0,'RRR hist-forc'!K115,0) -> 48.67804505 | AJ115: 8309460.053
A116: ='Asset data'!A116 -> 6 | B116: ='Asset data'!B116 -> 0 | C116: ='Asset data'!C116 -> 0 | D116: ='Asset data'!E116 -> > 22 kV & < = 33 kV ; Circuit Breaker | E116: SWITCHGEAR | F116: =IF(A116>0,SUM('Asset data'!J116:CV116),0) -> 1623 | G116: =IF(A116>0,'Asset data'!F116,0) -> 223.4751099 | H116: =IF(A116>0,SUM('Asset data'!CX116:GJ116),0) -> 362700.1034 | I116: 0.02075180926 | J116: 17 | K116: 0.07488288802 | L116: 223.4751099 | M116: =IF($A116>0,SUMPRODUCT('Age profile (years)'!$CT116:$GF116,'Asset data'!$CX116:$GJ116)/H116-0.5,0) -> 44.92452249 | N116: 16294128.95 | O116: =IF($A116>0,'Asset data'!G116,0) -> 62.70859935 | P116: 22744415.47 | Q116: 0.2835986937 | R116: 6.270859935 | S116: 12.54171987 | T116: 37.62515961 | U116: 50.16687948 | W116: =IF($A116>0,SUMIF('Age profile (years)'!$CT116:$GF116,"<" & R116+0.5,'Asset data'!$CX116:$GJ116),0) -> 7151.203517 | X116: =IF($A116>0,SUMIF('Age profile (years)'!$CT116:$GF116,"<" & S116+0.5,'Asset data'!$CX116:$GJ116)-W116,0) -> 17207.58346 | Y116: =IF($A116>0,SUMIF('Age profile (years)'!$CT116:$GF116,"<" & T116+0.5,'Asset data'!$CX116:$GJ116)-X116-W116,0) -> 70171.18451 | Z116: =IF($A116>0,SUMIF('Age profile (years)'!$CT116:$GF116,"<" & U116+0.5,'Asset data'!$CX116:$GJ116)-Y116-X116-W116,0) -> 51846.2255 | AA116: 216323.9064 | AB116: 0.01971657425 | AC116: 0.04744300678 | AD116: 0.1934688848 | AE116: 0.1429451633 | AF116: 0.5964263709 | AI116: =IF($A116>0,'RRR hist-forc'!K116,0) -> 62.70859935 | AJ116: 22744415.47
A117: ='Asset data'!A117 -> 6 | B117: ='Asset data'!B117 -> 0 | C117: ='Asset data'!C117 -> 0 | D117: ='Asset data'!E117 -> > 33 kV & < = 66 kV ; Switch | E117: SWITCHGEAR | F117: =IF(A117>0,SUM('Asset data'!J117:CV117),0) -> 9 | G117: =IF(A117>0,'Asset data'!F117,0) -> 71.66604134 | H117: =IF(A117>0,SUM('Asset data'!CX117:GJ117),0) -> 644.9943721 | I117: 3.69032158e-05 | J117: 45 | K117: 0.0001331652263 | L117: 71.66604134 | M117: =IF($A117>0,SUMPRODUCT('Age profile (years)'!$CT117:$GF117,'Asset data'!$CX117:$GJ117)/H117-0.5,0) -> 35.61111111 | N117: 22968.96625 | O117: =IF($A117>0,'Asset data'!G117,0) -> 48.67804505 | P117: 31397.0651 | Q117: 0.2684358817 | R117: 4.867804505 | S117: 9.735609011 | T117: 29.20682703 | U117: 38.94243604 | W117: =IF($A117>0,SUMIF('Age profile (years)'!$CT117:$GF117,"<" & R117+0.5,'Asset data'!$CX117:$GJ117),0) -> 0 | X117: =IF($A117>0,SUMIF('Age profile (years)'!$CT117:$GF117,"<" & S117+0.5,'Asset data'!$CX117:$GJ117)-W117,0) -> 0 | Y117: =IF($A117>0,SUMIF('Age profile (years)'!$CT117:$GF117,"<" & T117+0.5,'Asset data'!$CX117:$GJ117)-X117-W117,0) -> 0 | Z117: =IF($A117>0,SUMIF('Age profile (years)'!$CT117:$GF117,"<" & U117+0.5,'Asset data'!$CX117:$GJ117)-Y117-X117-W117,0) -> 501.6622894 | AA117: 143.3320827 | AB117: 0 | AC117: 0 | AD117: 0 | AE117: 0.7777777778 | AF117: 0.2222222222 | AI117: =IF($A117>0,'RRR hist-forc'!K117,0) -> 48.67804505 | AJ117: 31397.0651
A118: ='Asset data'!A118 -> 6 | B118: ='Asset data'!B118 -> 0 | C118: ='Asset data'!C118 -> 0 | D118: ='Asset data'!E118 -> > 33 kV & < = 66 kV ; Circuit Breaker | E118: SWITCHGEAR | F118: =IF(A118>0,SUM('Asset data'!J118:CV118),0) -> 3 | G118: =IF(A118>0,'Asset data'!F118,0) -> 143.537987 | H118: =IF(A118>0,SUM('Asset data'!CX118:GJ118),0) -> 430.613961 | I118: 2.463748618e-05 | J118: 46 | K118: 8.890435023e-05 | L118: 143.537987 | M118: =IF($A118>0,SUMPRODUCT('Age profile (years)'!$CT118:$GF118,'Asset data'!$CX118:$GJ118)/H118-0.5,0) -> 35.5 | N118: 15286.79561 | O118: =IF($A118>0,'Asset data'!G118,0) -> 48.67804505 | P118: 20961.44579 | Q118: 0.270718453 | R118: 4.867804505 | S118: 9.735609011 | T118: 29.20682703 | U118: 38.94243604 | W118: =IF($A118>0,SUMIF('Age profile (years)'!$CT118:$GF118,"<" & R118+0.5,'Asset data'!$CX118:$GJ118),0) -> 0 | X118: =IF($A118>0,SUMIF('Age profile (years)'!$CT118:$GF118,"<" & S118+0.5,'Asset data'!$CX118:$GJ118)-W118,0) -> 0 | Y118: =IF($A118>0,SUMIF('Age profile (years)'!$CT118:$GF118,"<" & T118+0.5,'Asset data'!$CX118:$GJ118)-X118-W118,0) -> 0 | Z118: =IF($A118>0,SUMIF('Age profile (years)'!$CT118:$GF118,"<" & U118+0.5,'Asset data'!$CX118:$GJ118)-Y118-X118-W118,0) -> 430.613961 | AA118: 0 | AB118: 0 | AC118: 0 | AD118: 0 | AE118: 1 | AF118: 0 | AI118: =IF($A118>0,'RRR hist-forc'!K118,0) -> 48.67804505 | AJ118: 20961.44579
A119: ='Asset data'!A119 -> 6 | B119: ='Asset data'!B119 -> 0 | C119: ='Asset data'!C119 -> 0 | D119: ='Asset data'!E119 -> > 66 kV & < = 132 kV ; Switch | E119: SWITCHGEAR | F119: =IF(A119>0,SUM('Asset data'!J119:CV119),0) -> 1539 | G119: =IF(A119>0,'Asset data'!F119,0) -> 152.263602 | H119: =IF(A119>0,SUM('Asset data'!CX119:GJ119),0) -> 234333.6835 | I119: 0.01340735186 | J119: 20 | K119: 0.04838041903 | L119: 152.263602 | M119: =IF($A119>0,SUMPRODUCT('Age profile (years)'!$CT119:$GF119,'Asset data'!$CX119:$GJ119)/H119-0.5,0) -> 39.83398311 | N119: 9334443.991 | O119: =IF($A119>0,'Asset data'!G119,0) -> 48.67804505 | P119: 11406905.6 | Q119: 0.1816848219 | R119: 4.867804505 | S119: 9.735609011 | T119: 29.20682703 | U119: 38.94243604 | W119: =IF($A119>0,SUMIF('Age profile (years)'!$CT119:$GF119,"<" & R119+0.5,'Asset data'!$CX119:$GJ119),0) -> 1370.372418 | X119: =IF($A119>0,SUMIF('Age profile (years)'!$CT119:$GF119,"<" & S119+0.5,'Asset data'!$CX119:$GJ119)-W119,0) -> 0 | Y119: =IF($A119>0,SUMIF('Age profile (years)'!$CT119:$GF119,"<" & T119+0.5,'Asset data'!$CX119:$GJ119)-X119-W119,0) -> 9744.87053 | Z119: =IF($A119>0,SUMIF('Age profile (years)'!$CT119:$GF119,"<" & U119+0.5,'Asset data'!$CX119:$GJ119)-Y119-X119-W119,0) -> 91205.89762 | AA119: 132012.543 | AB119: 0.005847953216 | AC119: 0 | AD119: 0.04158544509 | AE119: 0.3892137752 | AF119: 0.5633528265 | AI119: =IF($A119>0,'RRR hist-forc'!K119,0) -> 48.67804505 | AJ119: 11406905.6
A120: ='Asset data'!A120 -> 6 | B120: ='Asset data'!B120 -> 0 | C120: ='Asset data'!C120 -> 0 | D120: ='Asset data'!E120 -> > 66 kV & < = 132 kV ; Circuit Breaker | E120: SWITCHGEAR | F120: =IF(A120>0,SUM('Asset data'!J120:CV120),0) -> 346 | G120: =IF(A120>0,'Asset data'!F120,0) -> 325.0205071 | H120: =IF(A120>0,SUM('Asset data'!CX120:GJ120),0) -> 112457.0955 | I120: 0.006434208795 | J120: 26 | K120: 0.02321783757 | L120: 325.0205071 | M120: =IF($A120>0,SUMPRODUCT('Age profile (years)'!$CT120:$GF120,'Asset data'!$CX120:$GJ120)/H120-0.5,0) -> 38.69364162 | N120: 4351374.549 | O120: =IF($A120>0,'Asset data'!G120,0) -> 48.67804505 | P120: 5474191.559 | Q120: 0.2051110192 | R120: 4.867804505 | S120: 9.735609011 | T120: 29.20682703 | U120: 38.94243604 | W120: =IF($A120>0,SUMIF('Age profile (years)'!$CT120:$GF120,"<" & R120+0.5,'Asset data'!$CX120:$GJ120),0) -> 2925.184564 | X120: =IF($A120>0,SUMIF('Age profile (years)'!$CT120:$GF120,"<" & S120+0.5,'Asset data'!$CX120:$GJ120)-W120,0) -> 1300.082028 | Y120: =IF($A120>0,SUMIF('Age profile (years)'!$CT120:$GF120,"<" & T120+0.5,'Asset data'!$CX120:$GJ120)-X120-W120,0) -> 7475.471664 | Z120: =IF($A120>0,SUMIF('Age profile (years)'!$CT120:$GF120,"<" & U120+0.5,'Asset data'!$CX120:$GJ120)-Y120-X120-W120,0) -> 23726.49702 | AA120: 77029.86019 | AB120: 0.02601156069 | AC120: 0.01156069364 | AD120: 0.06647398844 | AE120: 0.210982659 | AF120: 0.6849710983 | AI120: =IF($A120>0,'RRR hist-forc'!K120,0) -> 48.67804505 | AJ120: 5474191.559
A121: ='Asset data'!A121 -> 6 | B121: ='Asset data'!B121 -> 0 | C121: ='Asset data'!C121 -> 0 | D121: ='Asset data'!E121 -> > 132 kV ; Switch | E121: SWITCHGEAR | F121: =IF(A121>0,SUM('Asset data'!J121:CV121),0) -> 151 | G121: =IF(A121>0,'Asset data'!F121,0) -> 71.66604134 | H121: =IF(A121>0,SUM('Asset data'!CX121:GJ121),0) -> 10821.57224 | I121: 0.0006191539539 | J121: 39 | K121: 0.002234216574 | L121: 71.66604134 | M121: =IF($A121>0,SUMPRODUCT('Age profile (years)'!$CT121:$GF121,'Asset data'!$CX121:$GJ121)/H121-0.5,0) -> 36.80463576 | N121: 398284.0248 | O121: =IF($A121>0,'Asset data'!G121,0) -> 48.67804505 | P121: 526772.9812 | Q121: 0.2439171351 | R121: 4.867804505 | S121: 9.735609011 | T121: 29.20682703 | U121: 38.94243604 | W121: =IF($A121>0,SUMIF('Age profile (years)'!$CT121:$GF121,"<" & R121+0.5,'Asset data'!$CX121:$GJ121),0) -> 0 | X121: =IF($A121>0,SUMIF('Age profile (years)'!$CT121:$GF121,"<" & S121+0.5,'Asset data'!$CX121:$GJ121)-W121,0) -> 0 | Y121: =IF($A121>0,SUMIF('Age profile (years)'!$CT121:$GF121,"<" & T121+0.5,'Asset data'!$CX121:$GJ121)-X121-W121,0) -> 0 | Z121: =IF($A121>0,SUMIF('Age profile (years)'!$CT121:$GF121,"<" & U121+0.5,'Asset data'!$CX121:$GJ121)-Y121-X121-W121,0) -> 9244.919333 | AA121: 1576.65291 | AB121: 0 | AC121: 0 | AD121: 0 | AE121: 0.8543046358 | AF121: 0.1456953642 | AI121: =IF($A121>0,'RRR hist-forc'!K121,0) -> 48.67804505 | AJ121: 526772.9812
A122: ='Asset data'!A122 -> 6 | B122: ='Asset data'!B122 -> 0 | C122: ='Asset data'!C122 -> 0 | D122: ='Asset data'!E122 -> > 132 kV ; Circuit Breaker | E122: SWITCHGEAR | F122: =IF(A122>0,SUM('Asset data'!J122:CV122),0) -> 8 | G122: =IF(A122>0,'Asset data'!F122,0) -> 143.537987 | H122: =IF(A122>0,SUM('Asset data'!CX122:GJ122),0) -> 1148.303896 | I122: 6.569996314e-05 | J122: 43 | K122: 0.0002370782673 | L122: 143.537987 | M122: =IF($A122>0,SUMPRODUCT('Age profile (years)'!$CT122:$GF122,'Asset data'!$CX122:$GJ122)/H122-0.5,0) -> 36.75 | N122: 42200.16818 | O122: =IF($A122>0,'Asset data'!G122,0) -> 48.67804505 | P122: 55897.18878 | Q122: 0.2450395253 | R122: 4.867804505 | S122: 9.735609011 | T122: 29.20682703 | U122: 38.94243604 | W122: =IF($A122>0,SUMIF('Age profile (years)'!$CT122:$GF122,"<" & R122+0.5,'Asset data'!$CX122:$GJ122),0) -> 0 | X122: =IF($A122>0,SUMIF('Age profile (years)'!$CT122:$GF122,"<" & S122+0.5,'Asset data'!$CX122:$GJ122)-W122,0) -> 0 | Y122: =IF($A122>0,SUMIF('Age profile (years)'!$CT122:$GF122,"<" & T122+0.5,'Asset data'!$CX122:$GJ122)-X122-W122,0) -> 0 | Z122: =IF($A122>0,SUMIF('Age profile (years)'!$CT122:$GF122,"<" & U122+0.5,'Asset data'!$CX122:$GJ122)-Y122-X122-W122,0) -> 1148.303896 | AA122: 0 | AB122: 0 | AC122: 0 | AD122: 0 | AE122: 1 | AF122: 0 | AI122: =IF($A122>0,'RRR hist-forc'!K122,0) -> 48.67804505 | AJ122: 55897.18878
A123: ='Asset data'!A123 -> 0 | B123: ='Asset data'!B123 -> 0 | C123: ='Asset data'!C123 -> 0 | D123: ='Asset data'!E123 -> 0 | E123: 0 | F123: =IF(A123>0,SUM('Asset data'!J123:CV123),0) -> 0 | G123: =IF(A123>0,'Asset data'!F123,0) -> 0 | H123: =IF(A123>0,SUM('Asset data'!CX123:GJ123),0) -> 0 | I123: 0 | J123: 0 | K123: 0 | L123: 0 | M123: =IF($A123>0,SUMPRODUCT('Age profile (years)'!$CT123:$GF123,'Asset data'!$CX123:$GJ123)/H123-0.5,0) -> 0 | N123: 0 | O123: =IF($A123>0,'Asset data'!G123,0) -> 0 | P123: 0 | Q123: 0 | R123: 0 | S123: 0 | T123: 0 | U123: 0 | W123: =IF($A123>0,SUMIF('Age profile (years)'!$CT123:$GF123,"<" & R123+0.5,'Asset data'!$CX123:$GJ123),0) -> 0 | X123: =IF($A123>0,SUMIF('Age profile (years)'!$CT123:$GF123,"<" & S123+0.5,'Asset data'!$CX123:$GJ123)-W123,0) -> 0 | Y123: =IF($A123>0,SUMIF('Age profile (years)'!$CT123:$GF123,"<" & T123+0.5,'Asset data'!$CX123:$GJ123)-X123-W123,0) -> 0 | Z123: =IF($A123>0,SUMIF('Age profile (years)'!$CT123:$GF123,"<" & U123+0.5,'Asset data'!$CX123:$GJ123)-Y123-X123-W123,0) -> 0 | AA123: 0 | AB123: 0 | AC123: 0 | AD123: 0 | AE123: 0 | AF123: 0 | AI123: =IF($A123>0,'RRR hist-forc'!K123,0) -> 0 | AJ123: 0
A124: ='Asset data'!A124 -> 0 | B124: ='Asset data'!B124 -> 0 | C124: ='Asset data'!C124 -> 0 | D124: ='Asset data'!E124 -> 0 | E124: 0 | F124: =IF(A124>0,SUM('Asset data'!J124:CV124),0) -> 0 | G124: =IF(A124>0,'Asset data'!F124,0) -> 0 | H124: =IF(A124>0,SUM('Asset data'!CX124:GJ124),0) -> 0 | I124: 0 | J124: 0 | K124: 0 | L124: 0 | M124: =IF($A124>0,SUMPRODUCT('Age profile (years)'!$CT124:$GF124,'Asset data'!$CX124:$GJ124)/H124-0.5,0) -> 0 | N124: 0 | O124: =IF($A124>0,'Asset data'!G124,0) -> 0 | P124: 0 | Q124: 0 | R124: 0 | S124: 0 | T124: 0 | U124: 0 | W124: =IF($A124>0,SUMIF('Age profile (years)'!$CT124:$GF124,"<" & R124+0.5,'Asset data'!$CX124:$GJ124),0) -> 0 | X124: =IF($A124>0,SUMIF('Age profile (years)'!$CT124:$GF124,"<" & S124+0.5,'Asset data'!$CX124:$GJ124)-W124,0) -> 0 | Y124: =IF($A124>0,SUMIF('Age profile (years)'!$CT124:$GF124,"<" & T124+0.5,'Asset data'!$CX124:$GJ124)-X124-W124,0) -> 0 | Z124: =IF($A124>0,SUMIF('Age profile (years)'!$CT124:$GF124,"<" & U124+0.5,'Asset data'!$CX124:$GJ124)-Y124-X124-W124,0) -> 0 | AA124: 0 | AB124: 0 | AC124: 0 | AD124: 0 | AE124: 0 | AF124: 0 | AI124: =IF($A124>0,'RRR hist-forc'!K124,0) -> 0 | AJ124: 0
A125: ='Asset data'!A125 -> 0 | B125: ='Asset data'!B125 -> 0 | C125: ='Asset data'!C125 -> 0 | D125: ='Asset data'!E125 -> 0 | E125: 0 | F125: =IF(A125>0,SUM('Asset data'!J125:CV125),0) -> 0 | G125: =IF(A125>0,'Asset data'!F125,0) -> 0 | H125: =IF(A125>0,SUM('Asset data'!CX125:GJ125),0) -> 0 | I125: 0 | J125: 0 | K125: 0 | L125: 0 | M125: =IF($A125>0,SUMPRODUCT('Age profile (years)'!$CT125:$GF125,'Asset data'!$CX125:$GJ125)/H125-0.5,0) -> 0 | N125: 0 | O125: =IF($A125>0,'Asset data'!G125,0) -> 0 | P125: 0 | Q125: 0 | R125: 0 | S125: 0 | T125: 0 | U125: 0 | W125: =IF($A125>0,SUMIF('Age profile (years)'!$CT125:$GF125,"<" & R125+0.5,'Asset data'!$CX125:$GJ125),0) -> 0 | X125: =IF($A125>0,SUMIF('Age profile (years)'!$CT125:$GF125,"<" & S125+0.5,'Asset data'!$CX125:$GJ125)-W125,0) -> 0 | Y125: =IF($A125>0,SUMIF('Age profile (years)'!$CT125:$GF125,"<" & T125+0.5,'Asset data'!$CX125:$GJ125)-X125-W125,0) -> 0 | Z125: =IF($A125>0,SUMIF('Age profile (years)'!$CT125:$GF125,"<" & U125+0.5,'Asset data'!$CX125:$GJ125)-Y125-X125-W125,0) -> 0 | AA125: 0 | AB125: 0 | AC125: 0 | AD125: 0 | AE125: 0 | AF125: 0 | AI125: =IF($A125>0,'RRR hist-forc'!K125,0) -> 0 | AJ125: 0
A126: ='Asset data'!A126 -> 0 | B126: ='Asset data'!B126 -> 0 | C126: ='Asset data'!C126 -> 0 | D126: ='Asset data'!E126 -> 0 | E126: 0 | F126: =IF(A126>0,SUM('Asset data'!J126:CV126),0) -> 0 | G126: =IF(A126>0,'Asset data'!F126,0) -> 0 | H126: =IF(A126>0,SUM('Asset data'!CX126:GJ126),0) -> 0 | I126: 0 | J126: 0 | K126: 0 | L126: 0 | M126: =IF($A126>0,SUMPRODUCT('Age profile (years)'!$CT126:$GF126,'Asset data'!$CX126:$GJ126)/H126-0.5,0) -> 0 | N126: 0 | O126: =IF($A126>0,'Asset data'!G126,0) -> 0 | P126: 0 | Q126: 0 | R126: 0 | S126: 0 | T126: 0 | U126: 0 | W126: =IF($A126>0,SUMIF('Age profile (years)'!$CT126:$GF126,"<" & R126+0.5,'Asset data'!$CX126:$GJ126),0) -> 0 | X126: =IF($A126>0,SUMIF('Age profile (years)'!$CT126:$GF126,"<" & S126+0.5,'Asset data'!$CX126:$GJ126)-W126,0) -> 0 | Y126: =IF($A126>0,SUMIF('Age profile (years)'!$CT126:$GF126,"<" & T126+0.5,'Asset data'!$CX126:$GJ126)-X126-W126,0) -> 0 | Z126: =IF($A126>0,SUMIF('Age profile (years)'!$CT126:$GF126,"<" & U126+0.5,'Asset data'!$CX126:$GJ126)-Y126-X126-W126,0) -> 0 | AA126: 0 | AB126: 0 | AC126: 0 | AD126: 0 | AE126: 0 | AF126: 0 | AI126: =IF($A126>0,'RRR hist-forc'!K126,0) -> 0 | AJ126: 0
A127: ='Asset data'!A127 -> 0 | B127: ='Asset data'!B127 -> 0 | C127: ='Asset data'!C127 -> 0 | D127: ='Asset data'!E127 -> 0 | E127: 0 | F127: =IF(A127>0,SUM('Asset data'!J127:CV127),0) -> 0 | G127: =IF(A127>0,'Asset data'!F127,0) -> 0 | H127: =IF(A127>0,SUM('Asset data'!CX127:GJ127),0) -> 0 | I127: 0 | J127: 0 | K127: 0 | L127: 0 | M127: =IF($A127>0,SUMPRODUCT('Age profile (years)'!$CT127:$GF127,'Asset data'!$CX127:$GJ127)/H127-0.5,0) -> 0 | N127: 0 | O127: =IF($A127>0,'Asset data'!G127,0) -> 0 | P127: 0 | Q127: 0 | R127: 0 | S127: 0 | T127: 0 | U127: 0 | W127: =IF($A127>0,SUMIF('Age profile (years)'!$CT127:$GF127,"<" & R127+0.5,'Asset data'!$CX127:$GJ127),0) -> 0 | X127: =IF($A127>0,SUMIF('Age profile (years)'!$CT127:$GF127,"<" & S127+0.5,'Asset data'!$CX127:$GJ127)-W127,0) -> 0 | Y127: =IF($A127>0,SUMIF('Age profile (years)'!$CT127:$GF127,"<" & T127+0.5,'Asset data'!$CX127:$GJ127)-X127-W127,0) -> 0 | Z127: =IF($A127>0,SUMIF('Age profile (years)'!$CT127:$GF127,"<" & U127+0.5,'Asset data'!$CX127:$GJ127)-Y127-X127-W127,0) -> 0 | AA127: 0 | AB127: 0 | AC127: 0 | AD127: 0 | AE127: 0 | AF127: 0 | AI127: =IF($A127>0,'RRR hist-forc'!K127,0) -> 0 | AJ127: 0
A128: ='Asset data'!A128 -> 0 | B128: ='Asset data'!B128 -> 0 | C128: ='Asset data'!C128 -> 0 | D128: ='Asset data'!E128 -> 0 | E128: 0 | F128: =IF(A128>0,SUM('Asset data'!J128:CV128),0) -> 0 | G128: =IF(A128>0,'Asset data'!F128,0) -> 0 | H128: =IF(A128>0,SUM('Asset data'!CX128:GJ128),0) -> 0 | I128: 0 | J128: 0 | K128: 0 | L128: 0 | M128: =IF($A128>0,SUMPRODUCT('Age profile (years)'!$CT128:$GF128,'Asset data'!$CX128:$GJ128)/H128-0.5,0) -> 0 | N128: 0 | O128: =IF($A128>0,'Asset data'!G128,0) -> 0 | P128: 0 | Q128: 0 | R128: 0 | S128: 0 | T128: 0 | U128: 0 | W128: =IF($A128>0,SUMIF('Age profile (years)'!$CT128:$GF128,"<" & R128+0.5,'Asset data'!$CX128:$GJ128),0) -> 0 | X128: =IF($A128>0,SUMIF('Age profile (years)'!$CT128:$GF128,"<" & S128+0.5,'Asset data'!$CX128:$GJ128)-W128,0) -> 0 | Y128: =IF($A128>0,SUMIF('Age profile (years)'!$CT128:$GF128,"<" & T128+0.5,'Asset data'!$CX128:$GJ128)-X128-W128,0) -> 0 | Z128: =IF($A128>0,SUMIF('Age profile (years)'!$CT128:$GF128,"<" & U128+0.5,'Asset data'!$CX128:$GJ128)-Y128-X128-W128,0) -> 0 | AA128: 0 | AB128: 0 | AC128: 0 | AD128: 0 | AE128: 0 | AF128: 0 | AI128: =IF($A128>0,'RRR hist-forc'!K128,0) -> 0 | AJ128: 0
A129: ='Asset data'!A129 -> 0 | B129: ='Asset data'!B129 -> 0 | C129: ='Asset data'!C129 -> 0 | D129: ='Asset data'!E129 -> 0 | E129: 0 | F129: =IF(A129>0,SUM('Asset data'!J129:CV129),0) -> 0 | G129: =IF(A129>0,'Asset data'!F129,0) -> 0 | H129: =IF(A129>0,SUM('Asset data'!CX129:GJ129),0) -> 0 | I129: 0 | J129: 0 | K129: 0 | L129: 0 | M129: =IF($A129>0,SUMPRODUCT('Age profile (years)'!$CT129:$GF129,'Asset data'!$CX129:$GJ129)/H129-0.5,0) -> 0 | N129: 0 | O129: =IF($A129>0,'Asset data'!G129,0) -> 0 | P129: 0 | Q129: 0 | R129: 0 | S129: 0 | T129: 0 | U129: 0 | W129: =IF($A129>0,SUMIF('Age profile (years)'!$CT129:$GF129,"<" & R129+0.5,'Asset data'!$CX129:$GJ129),0) -> 0 | X129: =IF($A129>0,SUMIF('Age profile (years)'!$CT129:$GF129,"<" & S129+0.5,'Asset data'!$CX129:$GJ129)-W129,0) -> 0 | Y129: =IF($A129>0,SUMIF('Age profile (years)'!$CT129:$GF129,"<" & T129+0.5,'Asset data'!$CX129:$GJ129)-X129-W129,0) -> 0 | Z129: =IF($A129>0,SUMIF('Age profile (years)'!$CT129:$GF129,"<" & U129+0.5,'Asset data'!$CX129:$GJ129)-Y129-X129-W129,0) -> 0 | AA129: 0 | AB129: 0 | AC129: 0 | AD129: 0 | AE129: 0 | AF129: 0 | AI129: =IF($A129>0,'RRR hist-forc'!K129,0) -> 0 | AJ129: 0
A130: ='Asset data'!A130 -> 0 | B130: ='Asset data'!B130 -> 0 | C130: ='Asset data'!C130 -> 0 | D130: ='Asset data'!E130 -> 0 | E130: 0 | F130: =IF(A130>0,SUM('Asset data'!J130:CV130),0) -> 0 | G130: =IF(A130>0,'Asset data'!F130,0) -> 0 | H130: =IF(A130>0,SUM('Asset data'!CX130:GJ130),0) -> 0 | I130: 0 | J130: 0 | K130: 0 | L130: 0 | M130: =IF($A130>0,SUMPRODUCT('Age profile (years)'!$CT130:$GF130,'Asset data'!$CX130:$GJ130)/H130-0.5,0) -> 0 | N130: 0 | O130: =IF($A130>0,'Asset data'!G130,0) -> 0 | P130: 0 | Q130: 0 | R130: 0 | S130: 0 | T130: 0 | U130: 0 | W130: =IF($A130>0,SUMIF('Age profile (years)'!$CT130:$GF130,"<" & R130+0.5,'Asset data'!$CX130:$GJ130),0) -> 0 | X130: =IF($A130>0,SUMIF('Age profile (years)'!$CT130:$GF130,"<" & S130+0.5,'Asset data'!$CX130:$GJ130)-W130,0) -> 0 | Y130: =IF($A130>0,SUMIF('Age profile (years)'!$CT130:$GF130,"<" & T130+0.5,'Asset data'!$CX130:$GJ130)-X130-W130,0) -> 0 | Z130: =IF($A130>0,SUMIF('Age profile (years)'!$CT130:$GF130,"<" & U130+0.5,'Asset data'!$CX130:$GJ130)-Y130-X130-W130,0) -> 0 | AA130: 0 | AB130: 0 | AC130: 0 | AD130: 0 | AE130: 0 | AF130: 0 | AI130: =IF($A130>0,'RRR hist-forc'!K130,0) -> 0 | AJ130: 0
A131: ='Asset data'!A131 -> 0 | B131: ='Asset data'!B131 -> 0 | C131: ='Asset data'!C131 -> 0 | D131: ='Asset data'!E131 -> 0 | E131: 0 | F131: =IF(A131>0,SUM('Asset data'!J131:CV131),0) -> 0 | G131: =IF(A131>0,'Asset data'!F131,0) -> 0 | H131: =IF(A131>0,SUM('Asset data'!CX131:GJ131),0) -> 0 | I131: 0 | J131: 0 | K131: 0 | L131: 0 | M131: =IF($A131>0,SUMPRODUCT('Age profile (years)'!$CT131:$GF131,'Asset data'!$CX131:$GJ131)/H131-0.5,0) -> 0 | N131: 0 | O131: =IF($A131>0,'Asset data'!G131,0) -> 0 | P131: 0 | Q131: 0 | R131: 0 | S131: 0 | T131: 0 | U131: 0 | W131: =IF($A131>0,SUMIF('Age profile (years)'!$CT131:$GF131,"<" & R131+0.5,'Asset data'!$CX131:$GJ131),0) -> 0 | X131: =IF($A131>0,SUMIF('Age profile (years)'!$CT131:$GF131,"<" & S131+0.5,'Asset data'!$CX131:$GJ131)-W131,0) -> 0 | Y131: =IF($A131>0,SUMIF('Age profile (years)'!$CT131:$GF131,"<" & T131+0.5,'Asset data'!$CX131:$GJ131)-X131-W131,0) -> 0 | Z131: =IF($A131>0,SUMIF('Age profile (years)'!$CT131:$GF131,"<" & U131+0.5,'Asset data'!$CX131:$GJ131)-Y131-X131-W131,0) -> 0 | AA131: 0 | AB131: 0 | AC131: 0 | AD131: 0 | AE131: 0 | AF131: 0 | AI131: =IF($A131>0,'RRR hist-forc'!K131,0) -> 0 | AJ131: 0
A132: ='Asset data'!A132 -> 0 | B132: ='Asset data'!B132 -> 0 | C132: ='Asset data'!C132 -> 0 | D132: ='Asset data'!E132 -> 0 | E132: 0 | F132: =IF(A132>0,SUM('Asset data'!J132:CV132),0) -> 0 | G132: =IF(A132>0,'Asset data'!F132,0) -> 0 | H132: =IF(A132>0,SUM('Asset data'!CX132:GJ132),0) -> 0 | I132: 0 | J132: 0 | K132: 0 | L132: 0 | M132: =IF($A132>0,SUMPRODUCT('Age profile (years)'!$CT132:$GF132,'Asset data'!$CX132:$GJ132)/H132-0.5,0) -> 0 | N132: 0 | O132: =IF($A132>0,'Asset data'!G132,0) -> 0 | P132: 0 | Q132: 0 | R132: 0 | S132: 0 | T132: 0 | U132: 0 | W132: =IF($A132>0,SUMIF('Age profile (years)'!$CT132:$GF132,"<" & R132+0.5,'Asset data'!$CX132:$GJ132),0) -> 0 | X132: =IF($A132>0,SUMIF('Age profile (years)'!$CT132:$GF132,"<" & S132+0.5,'Asset data'!$CX132:$GJ132)-W132,0) -> 0 | Y132: =IF($A132>0,SUMIF('Age profile (years)'!$CT132:$GF132,"<" & T132+0.5,'Asset data'!$CX132:$GJ132)-X132-W132,0) -> 0 | Z132: =IF($A132>0,SUMIF('Age profile (years)'!$CT132:$GF132,"<" & U132+0.5,'Asset data'!$CX132:$GJ132)-Y132-X132-W132,0) -> 0 | AA132: 0 | AB132: 0 | AC132: 0 | AD132: 0 | AE132: 0 | AF132: 0 | AI132: =IF($A132>0,'RRR hist-forc'!K132,0) -> 0 | AJ132: 0
A133: ='Asset data'!A133 -> 0 | B133: ='Asset data'!B133 -> 0 | C133: ='Asset data'!C133 -> 0 | D133: ='Asset data'!E133 -> 0 | E133: 0 | F133: =IF(A133>0,SUM('Asset data'!J133:CV133),0) -> 0 | G133: =IF(A133>0,'Asset data'!F133,0) -> 0 | H133: =IF(A133>0,SUM('Asset data'!CX133:GJ133),0) -> 0 | I133: 0 | J133: 0 | K133: 0 | L133: 0 | M133: =IF($A133>0,SUMPRODUCT('Age profile (years)'!$CT133:$GF133,'Asset data'!$CX133:$GJ133)/H133-0.5,0) -> 0 | N133: 0 | O133: =IF($A133>0,'Asset data'!G133,0) -> 0 | P133: 0 | Q133: 0 | R133: 0 | S133: 0 | T133: 0 | U133: 0 | W133: =IF($A133>0,SUMIF('Age profile (years)'!$CT133:$GF133,"<" & R133+0.5,'Asset data'!$CX133:$GJ133),0) -> 0 | X133: =IF($A133>0,SUMIF('Age profile (years)'!$CT133:$GF133,"<" & S133+0.5,'Asset data'!$CX133:$GJ133)-W133,0) -> 0 | Y133: =IF($A133>0,SUMIF('Age profile (years)'!$CT133:$GF133,"<" & T133+0.5,'Asset data'!$CX133:$GJ133)-X133-W133,0) -> 0 | Z133: =IF($A133>0,SUMIF('Age profile (years)'!$CT133:$GF133,"<" & U133+0.5,'Asset data'!$CX133:$GJ133)-Y133-X133-W133,0) -> 0 | AA133: 0 | AB133: 0 | AC133: 0 | AD133: 0 | AE133: 0 | AF133: 0 | AI133: =IF($A133>0,'RRR hist-forc'!K133,0) -> 0 | AJ133: 0
A134: ='Asset data'!A134 -> 0 | B134: ='Asset data'!B134 -> 0 | C134: ='Asset data'!C134 -> 0 | D134: ='Asset data'!E134 -> 0 | E134: 0 | F134: =IF(A134>0,SUM('Asset data'!J134:CV134),0) -> 0 | G134: =IF(A134>0,'Asset data'!F134,0) -> 0 | H134: =IF(A134>0,SUM('Asset data'!CX134:GJ134),0) -> 0 | I134: 0 | J134: 0 | K134: 0 | L134: 0 | M134: =IF($A134>0,SUMPRODUCT('Age profile (years)'!$CT134:$GF134,'Asset data'!$CX134:$GJ134)/H134-0.5,0) -> 0 | N134: 0 | O134: =IF($A134>0,'Asset data'!G134,0) -> 0 | P134: 0 | Q134: 0 | R134: 0 | S134: 0 | T134: 0 | U134: 0 | W134: =IF($A134>0,SUMIF('Age profile (years)'!$CT134:$GF134,"<" & R134+0.5,'Asset data'!$CX134:$GJ134),0) -> 0 | X134: =IF($A134>0,SUMIF('Age profile (years)'!$CT134:$GF134,"<" & S134+0.5,'Asset data'!$CX134:$GJ134)-W134,0) -> 0 | Y134: =IF($A134>0,SUMIF('Age profile (years)'!$CT134:$GF134,"<" & T134+0.5,'Asset data'!$CX134:$GJ134)-X134-W134,0) -> 0 | Z134: =IF($A134>0,SUMIF('Age profile (years)'!$CT134:$GF134,"<" & U134+0.5,'Asset data'!$CX134:$GJ134)-Y134-X134-W134,0) -> 0 | AA134: 0 | AB134: 0 | AC134: 0 | AD134: 0 | AE134: 0 | AF134: 0 | AI134: =IF($A134>0,'RRR hist-forc'!K134,0) -> 0 | AJ134: 0
A135: ='Asset data'!A135 -> 0 | B135: ='Asset data'!B135 -> 0 | C135: ='Asset data'!C135 -> 0 | D135: ='Asset data'!E135 -> 0 | E135: 0 | F135: =IF(A135>0,SUM('Asset data'!J135:CV135),0) -> 0 | G135: =IF(A135>0,'Asset data'!F135,0) -> 0 | H135: =IF(A135>0,SUM('Asset data'!CX135:GJ135),0) -> 0 | I135: 0 | J135: 0 | K135: 0 | L135: 0 | M135: =IF($A135>0,SUMPRODUCT('Age profile (years)'!$CT135:$GF135,'Asset data'!$CX135:$GJ135)/H135-0.5,0) -> 0 | N135: 0 | O135: =IF($A135>0,'Asset data'!G135,0) -> 0 | P135: 0 | Q135: 0 | R135: 0 | S135: 0 | T135: 0 | U135: 0 | W135: =IF($A135>0,SUMIF('Age profile (years)'!$CT135:$GF135,"<" & R135+0.5,'Asset data'!$CX135:$GJ135),0) -> 0 | X135: =IF($A135>0,SUMIF('Age profile (years)'!$CT135:$GF135,"<" & S135+0.5,'Asset data'!$CX135:$GJ135)-W135,0) -> 0 | Y135: =IF($A135>0,SUMIF('Age profile (years)'!$CT135:$GF135,"<" & T135+0.5,'Asset data'!$CX135:$GJ135)-X135-W135,0) -> 0 | Z135: =IF($A135>0,SUMIF('Age profile (years)'!$CT135:$GF135,"<" & U135+0.5,'Asset data'!$CX135:$GJ135)-Y135-X135-W135,0) -> 0 | AA135: 0 | AB135: 0 | AC135: 0 | AD135: 0 | AE135: 0 | AF135: 0 | AI135: =IF($A135>0,'RRR hist-forc'!K135,0) -> 0 | AJ135: 0
A136: ='Asset data'!A136 -> 0 | B136: ='Asset data'!B136 -> 0 | C136: ='Asset data'!C136 -> 0 | D136: ='Asset data'!E136 -> 0 | E136: 0 | F136: =IF(A136>0,SUM('Asset data'!J136:CV136),0) -> 0 | G136: =IF(A136>0,'Asset data'!F136,0) -> 0 | H136: =IF(A136>0,SUM('Asset data'!CX136:GJ136),0) -> 0 | I136: 0 | J136: 0 | K136: 0 | L136: 0 | M136: =IF($A136>0,SUMPRODUCT('Age profile (years)'!$CT136:$GF136,'Asset data'!$CX136:$GJ136)/H136-0.5,0) -> 0 | N136: 0 | O136: =IF($A136>0,'Asset data'!G136,0) -> 0 | P136: 0 | Q136: 0 | R136: 0 | S136: 0 | T136: 0 | U136: 0 | W136: =IF($A136>0,SUMIF('Age profile (years)'!$CT136:$GF136,"<" & R136+0.5,'Asset data'!$CX136:$GJ136),0) -> 0 | X136: =IF($A136>0,SUMIF('Age profile (years)'!$CT136:$GF136,"<" & S136+0.5,'Asset data'!$CX136:$GJ136)-W136,0) -> 0 | Y136: =IF($A136>0,SUMIF('Age profile (years)'!$CT136:$GF136,"<" & T136+0.5,'Asset data'!$CX136:$GJ136)-X136-W136,0) -> 0 | Z136: =IF($A136>0,SUMIF('Age profile (years)'!$CT136:$GF136,"<" & U136+0.5,'Asset data'!$CX136:$GJ136)-Y136-X136-W136,0) -> 0 | AA136: 0 | AB136: 0 | AC136: 0 | AD136: 0 | AE136: 0 | AF136: 0 | AI136: =IF($A136>0,'RRR hist-forc'!K136,0) -> 0 | AJ136: 0
A137: ='Asset data'!A137 -> 0 | B137: ='Asset data'!B137 -> 0 | C137: ='Asset data'!C137 -> 0 | D137: ='Asset data'!E137 -> 0 | E137: 0 | F137: =IF(A137>0,SUM('Asset data'!J137:CV137),0) -> 0 | G137: =IF(A137>0,'Asset data'!F137,0) -> 0 | H137: =IF(A137>0,SUM('Asset data'!CX137:GJ137),0) -> 0 | I137: 0 | J137: 0 | K137: 0 | L137: 0 | M137: =IF($A137>0,SUMPRODUCT('Age profile (years)'!$CT137:$GF137,'Asset data'!$CX137:$GJ137)/H137-0.5,0) -> 0 | N137: 0 | O137: =IF($A137>0,'Asset data'!G137,0) -> 0 | P137: 0 | Q137: 0 | R137: 0 | S137: 0 | T137: 0 | U137: 0 | W137: =IF($A137>0,SUMIF('Age profile (years)'!$CT137:$GF137,"<" & R137+0.5,'Asset data'!$CX137:$GJ137),0) -> 0 | X137: =IF($A137>0,SUMIF('Age profile (years)'!$CT137:$GF137,"<" & S137+0.5,'Asset data'!$CX137:$GJ137)-W137,0) -> 0 | Y137: =IF($A137>0,SUMIF('Age profile (years)'!$CT137:$GF137,"<" & T137+0.5,'Asset data'!$CX137:$GJ137)-X137-W137,0) -> 0 | Z137: =IF($A137>0,SUMIF('Age profile (years)'!$CT137:$GF137,"<" & U137+0.5,'Asset data'!$CX137:$GJ137)-Y137-X137-W137,0) -> 0 | AA137: 0 | AB137: 0 | AC137: 0 | AD137: 0 | AE137: 0 | AF137: 0 | AI137: =IF($A137>0,'RRR hist-forc'!K137,0) -> 0 | AJ137: 0
A138: ='Asset data'!A138 -> 0 | B138: ='Asset data'!B138 -> 0 | C138: ='Asset data'!C138 -> 0 | D138: ='Asset data'!E138 -> 0 | E138: 0 | F138: =IF(A138>0,SUM('Asset data'!J138:CV138),0) -> 0 | G138: =IF(A138>0,'Asset data'!F138,0) -> 0 | H138: =IF(A138>0,SUM('Asset data'!CX138:GJ138),0) -> 0 | I138: 0 | J138: 0 | K138: 0 | L138: 0 | M138: =IF($A138>0,SUMPRODUCT('Age profile (years)'!$CT138:$GF138,'Asset data'!$CX138:$GJ138)/H138-0.5,0) -> 0 | N138: 0 | O138: =IF($A138>0,'Asset data'!G138,0) -> 0 | P138: 0 | Q138: 0 | R138: 0 | S138: 0 | T138: 0 | U138: 0 | W138: =IF($A138>0,SUMIF('Age profile (years)'!$CT138:$GF138,"<" & R138+0.5,'Asset data'!$CX138:$GJ138),0) -> 0 | X138: =IF($A138>0,SUMIF('Age profile (years)'!$CT138:$GF138,"<" & S138+0.5,'Asset data'!$CX138:$GJ138)-W138,0) -> 0 | Y138: =IF($A138>0,SUMIF('Age profile (years)'!$CT138:$GF138,"<" & T138+0.5,'Asset data'!$CX138:$GJ138)-X138-W138,0) -> 0 | Z138: =IF($A138>0,SUMIF('Age profile (years)'!$CT138:$GF138,"<" & U138+0.5,'Asset data'!$CX138:$GJ138)-Y138-X138-W138,0) -> 0 | AA138: 0 | AB138: 0 | AC138: 0 | AD138: 0 | AE138: 0 | AF138: 0 | AI138: =IF($A138>0,'RRR hist-forc'!K138,0) -> 0 | AJ138: 0
A139: ='Asset data'!A139 -> 0 | B139: ='Asset data'!B139 -> 0 | C139: ='Asset data'!C139 -> 0 | D139: ='Asset data'!E139 -> 0 | E139: 0 | F139: =IF(A139>0,SUM('Asset data'!J139:CV139),0) -> 0 | G139: =IF(A139>0,'Asset data'!F139,0) -> 0 | H139: =IF(A139>0,SUM('Asset data'!CX139:GJ139),0) -> 0 | I139: 0 | J139: 0 | K139: 0 | L139: 0 | M139: =IF($A139>0,SUMPRODUCT('Age profile (years)'!$CT139:$GF139,'Asset data'!$CX139:$GJ139)/H139-0.5,0) -> 0 | N139: 0 | O139: =IF($A139>0,'Asset data'!G139,0) -> 0 | P139: 0 | Q139: 0 | R139: 0 | S139: 0 | T139: 0 | U139: 0 | W139: =IF($A139>0,SUMIF('Age profile (years)'!$CT139:$GF139,"<" & R139+0.5,'Asset data'!$CX139:$GJ139),0) -> 0 | X139: =IF($A139>0,SUMIF('Age profile (years)'!$CT139:$GF139,"<" & S139+0.5,'Asset data'!$CX139:$GJ139)-W139,0) -> 0 | Y139: =IF($A139>0,SUMIF('Age profile (years)'!$CT139:$GF139,"<" & T139+0.5,'Asset data'!$CX139:$GJ139)-X139-W139,0) -> 0 | Z139: =IF($A139>0,SUMIF('Age profile (years)'!$CT139:$GF139,"<" & U139+0.5,'Asset data'!$CX139:$GJ139)-Y139-X139-W139,0) -> 0 | AA139: 0 | AB139: 0 | AC139: 0 | AD139: 0 | AE139: 0 | AF139: 0 | AI139: =IF($A139>0,'RRR hist-forc'!K139,0) -> 0 | AJ139: 0
A140: ='Asset data'!A140 -> 0 | B140: ='Asset data'!B140 -> 0 | C140: ='Asset data'!C140 -> 0 | D140: ='Asset data'!E140 -> 0 | E140: 0 | F140: =IF(A140>0,SUM('Asset data'!J140:CV140),0) -> 0 | G140: =IF(A140>0,'Asset data'!F140,0) -> 0 | H140: =IF(A140>0,SUM('Asset data'!CX140:GJ140),0) -> 0 | I140: 0 | J140: 0 | K140: 0 | L140: 0 | M140: =IF($A140>0,SUMPRODUCT('Age profile (years)'!$CT140:$GF140,'Asset data'!$CX140:$GJ140)/H140-0.5,0) -> 0 | N140: 0 | O140: =IF($A140>0,'Asset data'!G140,0) -> 0 | P140: 0 | Q140: 0 | R140: 0 | S140: 0 | T140: 0 | U140: 0 | W140: =IF($A140>0,SUMIF('Age profile (years)'!$CT140:$GF140,"<" & R140+0.5,'Asset data'!$CX140:$GJ140),0) -> 0 | X140: =IF($A140>0,SUMIF('Age profile (years)'!$CT140:$GF140,"<" & S140+0.5,'Asset data'!$CX140:$GJ140)-W140,0) -> 0 | Y140: =IF($A140>0,SUMIF('Age profile (years)'!$CT140:$GF140,"<" & T140+0.5,'Asset data'!$CX140:$GJ140)-X140-W140,0) -> 0 | Z140: =IF($A140>0,SUMIF('Age profile (years)'!$CT140:$GF140,"<" & U140+0.5,'Asset data'!$CX140:$GJ140)-Y140-X140-W140,0) -> 0 | AA140: 0 | AB140: 0 | AC140: 0 | AD140: 0 | AE140: 0 | AF140: 0 | AI140: =IF($A140>0,'RRR hist-forc'!K140,0) -> 0 | AJ140: 0
A141: ='Asset data'!A141 -> 0 | B141: ='Asset data'!B141 -> 0 | C141: ='Asset data'!C141 -> 0 | D141: ='Asset data'!E141 -> 0 | E141: 0 | F141: =IF(A141>0,SUM('Asset data'!J141:CV141),0) -> 0 | G141: =IF(A141>0,'Asset data'!F141,0) -> 0 | H141: =IF(A141>0,SUM('Asset data'!CX141:GJ141),0) -> 0 | I141: 0 | J141: 0 | K141: 0 | L141: 0 | M141: =IF($A141>0,SUMPRODUCT('Age profile (years)'!$CT141:$GF141,'Asset data'!$CX141:$GJ141)/H141-0.5,0) -> 0 | N141: 0 | O141: =IF($A141>0,'Asset data'!G141,0) -> 0 | P141: 0 | Q141: 0 | R141: 0 | S141: 0 | T141: 0 | U141: 0 | W141: =IF($A141>0,SUMIF('Age profile (years)'!$CT141:$GF141,"<" & R141+0.5,'Asset data'!$CX141:$GJ141),0) -> 0 | X141: =IF($A141>0,SUMIF('Age profile (years)'!$CT141:$GF141,"<" & S141+0.5,'Asset data'!$CX141:$GJ141)-W141,0) -> 0 | Y141: =IF($A141>0,SUMIF('Age profile (years)'!$CT141:$GF141,"<" & T141+0.5,'Asset data'!$CX141:$GJ141)-X141-W141,0) -> 0 | Z141: =IF($A141>0,SUMIF('Age profile (years)'!$CT141:$GF141,"<" & U141+0.5,'Asset data'!$CX141:$GJ141)-Y141-X141-W141,0) -> 0 | AA141: 0 | AB141: 0 | AC141: 0 | AD141: 0 | AE141: 0 | AF141: 0 | AI141: =IF($A141>0,'RRR hist-forc'!K141,0) -> 0 | AJ141: 0
A142: ='Asset data'!A142 -> 0 | B142: ='Asset data'!B142 -> 0 | C142: ='Asset data'!C142 -> 0 | D142: ='Asset data'!E142 -> 0 | E142: 0 | F142: =IF(A142>0,SUM('Asset data'!J142:CV142),0) -> 0 | G142: =IF(A142>0,'Asset data'!F142,0) -> 0 | H142: =IF(A142>0,SUM('Asset data'!CX142:GJ142),0) -> 0 | I142: 0 | J142: 0 | K142: 0 | L142: 0 | M142: =IF($A142>0,SUMPRODUCT('Age profile (years)'!$CT142:$GF142,'Asset data'!$CX142:$GJ142)/H142-0.5,0) -> 0 | N142: 0 | O142: =IF($A142>0,'Asset data'!G142,0) -> 0 | P142: 0 | Q142: 0 | R142: 0 | S142: 0 | T142: 0 | U142: 0 | W142: =IF($A142>0,SUMIF('Age profile (years)'!$CT142:$GF142,"<" & R142+0.5,'Asset data'!$CX142:$GJ142),0) -> 0 | X142: =IF($A142>0,SUMIF('Age profile (years)'!$CT142:$GF142,"<" & S142+0.5,'Asset data'!$CX142:$GJ142)-W142,0) -> 0 | Y142: =IF($A142>0,SUMIF('Age profile (years)'!$CT142:$GF142,"<" & T142+0.5,'Asset data'!$CX142:$GJ142)-X142-W142,0) -> 0 | Z142: =IF($A142>0,SUMIF('Age profile (years)'!$CT142:$GF142,"<" & U142+0.5,'Asset data'!$CX142:$GJ142)-Y142-X142-W142,0) -> 0 | AA142: 0 | AB142: 0 | AC142: 0 | AD142: 0 | AE142: 0 | AF142: 0 | AI142: =IF($A142>0,'RRR hist-forc'!K142,0) -> 0 | AJ142: 0
AI206: =IF($A206>0,'RRR hist-forc'!K206,0) -> 0 | AJ206: =IF($A206>0,AI206*H206,0) -> 0

Sheet Asset data
A1: Meth all | D1: 3 | E1: =IF(D1=2,"all normal",IF(D1=1,"all deterministic","individual")) -> individual | L1: Profile type: | M1: 3 | N1: =VLOOKUP(APtype,IDtable,4) -> Installation date
F3: Unit | J3: Quantities | CX3: Replacement Cost (NOT depreciated)
F4: Cost | G4: Replacement life | I4: Rep | J4: =VLOOKUP(APtype,IDtable,4) -> Installation date | CX4: =VLOOKUP(APtype,IDtable,4) -> Installation date
A5: ID | B5: ID | C5: ID | D5: Asset category | E5: Asset ID | F5: $ ('000) | G5: mean | H5: SD | I5: Meth | J5: =IF(OR(APtype=1,APtype=2),0,IF(APtype=3,Now,9999)) -> 2014 | K5: =IF(OR(APtype=1,APtype=2),J5+1,IF(APtype=3,J5-1,9999)) -> 2013 | L5: 2012 | M5: 2011 | N5: 2010 | O5: 2009 | P5: 2008 | Q5: 2007 | R5: 2006 | S5: 2005 | T5: 2004 | U5: 2003 | V5: 2002 | W5: 2001 | X5: 2000 | Y5: 1999 | Z5: 1998 | AA5: 1997 | AB5: 1996 | AC5: 1995 | AD5: 1994 | AE5: 1993 | AF5: 1992 | AG5: 1991 | AH5: 1990 | AI5: 1989 | AJ5: 1988 | AK5: 1987 | AL5: 1986 | AM5: 1985 | AN5: 1984 | AO5: 1983 | AP5: 1982 | AQ5: =IF(OR(APtype=1,APtype=2),AP5+1,IF(APtype=3,AP5-1,9999)) -> 1981 | AR5: 1980 | AS5: 1979 | AT5: 1978 | AU5: 1977 | AV5: 1976 | AW5: 1975 | AX5: 1974 | AY5: 1973 | AZ5: 1972 | BA5: 1971 | BB5: 1970 | BC5: 1969 | BD5: 1968 | BE5: 1967 | BF5: 1966 | BG5: 1965 | BH5: 1964 | BI5: 1963 | BJ5: 1962 | BK5: 1961 | BL5: 1960 | BM5: 1959 | BN5: 1958 | BO5: 1957 | BP5: 1956 | BQ5: 1955 | BR5: 1954 | BS5: 1953 | BT5: 1952 | BU5: 1951 | BV5: 1950 | BW5: =IF(OR(APtype=1,APtype=2),BV5+1,IF(APtype=3,BV5-1,9999)) -> 1949 | BX5: 1948 | BY5: 1947 | BZ5: 1946 | CA5: 1945 | CB5: 1944 | CC5: 1943 | CD5: 1942 | CE5: 1941 | CF5: 1940 | CG5: 1939 | CH5: 1938 | CI5: 1937 | CJ5: 1936 | CK5: 1935 | CL5: 1934 | CM5: 1933 | CN5: 1932 | CO5: 1931 | CP5: 1930 | CQ5: 1929 | CR5: 1928 | CS5: 1927 | CT5: 1926 | CU5: 1925 | CV5: 1924 | CX5: =J5 -> 2014 | CY5: =K5 -> 2013 | CZ5: 2012 | DA5: 2011 | DB5: 2010 | DC5: 2009 | DD5: 2008 | DE5: 2007 | DF5: 2006 | DG5: 2005 | DH5: 2004 | DI5: 2003 | DJ5: 2002 | DK5: 2001 | DL5: 2000 | DM5: 1999 | DN5: 1998 | DO5: 1997 | DP5: 1996 | DQ5: 1995 | DR5: 1994 | DS5: 1993 | DT5: 1992 | DU5: 1991 | DV5: 1990 | DW5: 1989 | DX5: 1988 | DY5: 1987 | DZ5: 1986 | EA5: 1985 | EB5: 1984 | EC5: 1983 | ED5: 1982 | EE5: 1981 | EF5: 1980 | EG5: 1979 | EH5: 1978 | EI5: 1977 | EJ5: 1976 | EK5: 1975 | EL5: 1974 | EM5: 1973 | EN5: 1972 | EO5: 1971 | EP5: 1970 | EQ5: 1969 | ER5: 1968 | ES5: 1967 | ET5: 1966 | EU5: 1965 | EV5: 1964 | EW5: 1963 | EX5: 1962 | EY5: 1961 | EZ5: 1960 | FA5: 1959 | FB5: 1958 | FC5: 1957 | FD5: 1956 | FE5: 1955 | FF5: 1954 | FG5: 1953 | FH5: 1952 | FI5: 1951 | FJ5: 1950 | FK5: =BW5 -> 1949 | FL5: 1948 | FM5: 1947 | FN5: 1946 | FO5: 1945 | FP5: 1944 | FQ5: 1943 | FR5: 1942 | FS5: 1941 | FT5: 1940 | FU5: 1939 | FV5: 1938 | FW5: 1937 | FX5: 1936 | FY5: 1935 | FZ5: 1934 | GA5: 1933 | GB5: 1932 | GC5: 1931 | GD5: 1930 | GE5: 1929 | GF5: 1928 | GG5: 1927 | GH5: 1926 | GI5: 1925 | GJ5: 1924
A21: 1 | D21: POLES | E21: Staking of a wooden pole | F21: 4.592879268 | G21: 14.47844667 | H21: 3.805055409 | I21: 2 | J21: 1484 | K21: 1622 | L21: 1493 | M21: 868 | N21: 1375 | O21: 3621 | P21: 4032 | Q21: 3175 | R21: 3777 | S21: 4339 | T21: 1823 | U21: 2406 | V21: 2201 | W21: 2303 | X21: 1796 | Y21: 1411 | Z21: 957 | AA21: 21 | AB21: 3 | AC21: 0 | AD21: 0 | AE21: 0 | AF21: 0 | AG21: 0 | AH21: 0 | AI21: 0 | AJ21: 0 | AK21: 0 | AL21: 0 | AM21: 0 | AN21: 0 | AO21: 0 | AP21: 0 | AQ21: 0 | AR21: 0 | AS21: 0 | AT21: 0 | AU21: 0 | AV21: 0 | AW21: 0 | AX21: 0 | AY21: 0 | AZ21: 0 | BA21: 0 | BB21: 0 | BC21: 0 | BD21: 0 | BE21: 0 | BF21: 0 | BG21: 0 | BH21: 0 | BI21: 0 | BJ21: 0 | BK21: 0 | BL21: 0 | BM21: 0 | BN21: 0 | BO21: 0 | BP21: 0 | BQ21: 0 | BR21: 0 | BS21: 0 | BT21: 0 | BU21: 0 | BV21: 0 | BW21: 0 | BX21: 0 | BY21: 0 | BZ21: 0 | CA21: 0 | CB21: 0 | CC21: 0 | CD21: 0 | CE21: 0 | CF21: 0 | CG21: 0 | CH21: 0 | CI21: 0 | CJ21: 0 | CK21: 0 | CL21: 0 | CM21: 0 | CN21: 0 | CO21: 0 | CP21: 0 | CQ21: 0 | CR21: 0 | CS21: 0 | CT21: 0 | CU21: 0 | CV21: 0 | CX21: =$F21*J21 -> 6815.832834 | CY21: =$F21*K21 -> 7449.650173 | CZ21: 6857.168747 | DA21: 3986.619205 | DB21: 6315.208994 | DC21: 16630.81583 | DD21: 18518.48921 | DE21: 14582.39168 | DF21: 17347.305 | DG21: 19928.50314 | DH21: 8372.818906 | DI21: 11050.46752 | DJ21: 10108.92727 | DK21: 10577.40095 | DL21: 8248.811166 | DM21: 6480.552647 | DN21: 4395.38546 | DO21: 96.45046463 | DP21: 13.7786378 | DQ21: 0 | DR21: 0 | DS21: 0 | DT21: 0 | DU21: 0 | DV21: 0 | DW21: 0 | DX21: 0 | DY21: 0 | DZ21: 0 | EA21: 0 | EB21: 0 | EC21: 0 | ED21: 0 | EE21: 0 | EF21: 0 | EG21: 0 | EH21: 0 | EI21: 0 | EJ21: 0 | EK21: 0 | EL21: 0 | EM21: 0 | EN21: 0 | EO21: 0 | EP21: 0 | EQ21: 0 | ER21: 0 | ES21: 0 | ET21: 0 | EU21: 0 | EV21: 0 | EW21: 0 | EX21: 0 | EY21: 0 | EZ21: 0 | FA21: 0 | FB21: 0 | FC21: 0 | FD21: 0 | FE21: 0 | FF21: 0 | FG21: 0 | FH21: 0 | FI21: 0 | FJ21: 0 | FK21: =$F21*BW21 -> 0 | FL21: 0 | FM21: 0 | FN21: 0 | FO21: 0 | FP21: 0 | FQ21: 0 | FR21: 0 | FS21: 0 | FT21: 0 | FU21: 0 | FV21: 0 | FW21: 0 | FX21: 0 | FY21: 0 | FZ21: 0 | GA21: 0 | GB21: 0 | GC21: 0 | GD21: 0 | GE21: 0 | GF21: 0 | GG21: 0 | GH21: 0 | GI21: 0 | GJ21: 0
A22: 1 | D22: POLES | E22: ˂ = 1 kV; Wood | F22: 2.634495063 | G22: 63.50314144 | H22: 7.968885834 | I22: 2 | J22: 3043 | K22: 3237 | L22: 3121 | M22: 2807 | N22: 3118 | O22: 3353 | P22: 2755 | Q22: 2411 | R22: 2634 | S22: 1802 | T22: 1702 | U22: 1777 | V22: 2013 | W22: 1900 | X22: 2546 | Y22: 2323 | Z22: 2564 | AA22: 2716 | AB22: 2096 | AC22: 3007 | AD22: 3312 | AE22: 3931 | AF22: 3405 | AG22: 3682 | AH22: 4098 | AI22: 4117 | AJ22: 3184 | AK22: 3420 | AL22: 4562 | AM22: 4268 | AN22: 4694 | AO22: 4965 | AP22: 4051 | AQ22: 3888 | AR22: 3648 | AS22: 3679 | AT22: 4092 | AU22: 4137 | AV22: 3909 | AW22: 3346 | AX22: 3498 | AY22: 3775 | AZ22: 3312 | BA22: 3158 | BB22: 3135 | BC22: 2563 | BD22: 2477 | BE22: 2350 | BF22: 2204 | BG22: 1913 | BH22: 1654 | BI22: 1295 | BJ22: 1081 | BK22: 1136 | BL22: 933 | BM22: 887 | BN22: 765 | BO22: 681 | BP22: 698 | BQ22: 646 | BR22: 758 | BS22: 658 | BT22: 773 | BU22: 656 | BV22: 550 | BW22: 583 | BX22: 518 | BY22: 472 | BZ22: 349 | CA22: 130 | CB22: 44 | CC22: 100 | CD22: 236 | CE22: 316 | CF22: 305 | CG22: 340 | CH22: 288 | CI22: 419 | CJ22: 575 | CK22: 411 | CL22: 195 | CM22: 139 | CN22: 157 | CO22: 59 | CP22: 43 | CQ22: 15 | CR22: 27 | CS22: 15 | CT22: 21 | CU22: 13 | CV22: 76 | CX22: =$F22*J22 -> 8016.768476 | CY22: =$F22*K22 -> 8527.860519 | CZ22: =$F22*L22 -> 8222.259091 | DA22: =$F22*M22 -> 7395.027642 | DB22: =$F22*N22 -> 8214.355606 | DC22: =$F22*O22 -> 8833.461946 | DD22: =$F22*P22 -> 7258.033898 | DE22: =$F22*Q22 -> 6351.767597 | DF22: =$F22*R22 -> 6939.259996 | DG22: =$F22*S22 -> 4747.360103 | DH22: =$F22*T22 -> 4483.910597 | DI22: =$F22*U22 -> 4681.497727 | DJ22: =$F22*V22 -> 5303.238562 | DK22: =$F22*W22 -> 5005.54062 | DL22: =$F22*X22 -> 6707.42443 | DM22: =$F22*Y22 -> 6119.932031 | DN22: =$F22*Z22 -> 6754.845341 | DO22: =$F22*AA22 -> 7155.288591 | DP22: =$F22*AB22 -> 5521.901652 | DQ22: =$F22*AC22 -> 7921.926654 | DR22: =$F22*AD22 -> 8725.447648 | DS22: =$F22*AE22 -> 10356.20009 | DT22: =$F22*AF22 -> 8970.455689 | DU22: =$F22*AG22 -> 9700.210822 | DV22: =$F22*AH22 -> 10796.16077 | DW22: =$F22*AI22 -> 10846.21617 | DX22: =$F22*AJ22 -> 8388.23228 | DY22: =$F22*AK22 -> 9009.973115 | DZ22: =$F22*AL22 -> 12018.56648 | EA22: =$F22*AM22 -> 11244.02493 | EB22: =$F22*AN22 -> 12366.31983 | EC22: =$F22*AO22 -> 13080.26799 | ED22: =$F22*AP22 -> 10672.3395 | EE22: =$F22*AQ22 -> 10242.9168 | EF22: =$F22*AR22 -> 9610.63799 | EG22: =$F22*AS22 -> 9692.307336 | EH22: =$F22*AT22 -> 10780.3538 | EI22: =$F22*AU22 -> 10898.90608 | EJ22: =$F22*AV22 -> 10298.2412 | EK22: =$F22*AW22 -> 8815.020481 | EL22: =$F22*AX22 -> 9215.46373 | EM22: =$F22*AY22 -> 9945.218863 | EN22: =$F22*AZ22 -> 8725.447648 | EO22: =$F22*BA22 -> 8319.735409 | EP22: =$F22*BB22 -> 8259.142022 | EQ22: =$F22*BC22 -> 6752.210846 | ER22: =$F22*BD22 -> 6525.644271 | ES22: =$F22*BE22 -> 6191.063398 | ET22: =$F22*BF22 -> 5806.427119 | EU22: =$F22*BG22 -> 5039.789055 | EV22: =$F22*BH22 -> 4357.454834 | EW22: =$F22*BI22 -> 3411.671106 | EX22: =$F22*BJ22 -> 2847.889163 | EY22: =$F22*BK22 -> 2992.786391 | EZ22: =$F22*BL22 -> 2457.983894 | FA22: =$F22*BM22 -> 2336.797121 | FB22: =$F22*BN22 -> 2015.388723 | FC22: =$F22*BO22 -> 1794.091138 | FD22: =$F22*BP22 -> 1838.877554 | FE22: =$F22*BQ22 -> 1701.883811 | FF22: =$F22*BR22 -> 1996.947258 | FG22: =$F22*BS22 -> 1733.497751 | FH22: =$F22*BT22 -> 2036.464684 | FI22: =$F22*BU22 -> 1728.228761 | FJ22: =$F22*BV22 -> 1448.972285 | FK22: =$F22*BW22 -> 1535.910622 | FL22: =$F22*BX22 -> 1364.668443 | FM22: =$F22*BY22 -> 1243.48167 | FN22: =$F22*BZ22 -> 919.438777 | FO22: =$F22*CA22 -> 342.4843582 | FP22: =$F22*CB22 -> 115.9177828 | FQ22: =$F22*CC22 -> 263.4495063 | FR22: =$F22*CD22 -> 621.7408348 | FS22: =$F22*CE22 -> 832.5004399 | FT22: =$F22*CF22 -> 803.5209942 | FU22: =$F22*CG22 -> 895.7283214 | FV22: =$F22*CH22 -> 758.7345781 | FW22: =$F22*CI22 -> 1103.853431 | FX22: =$F22*CJ22 -> 1514.834661 | FY22: =$F22*CK22 -> 1082.777471 | FZ22: =$F22*CL22 -> 513.7265373 | GA22: =$F22*CM22 -> 366.1948137 | GB22: =$F22*CN22 -> 413.6157249 | GC22: =$F22*CO22 -> 155.4352087 | GD22: =$F22*CP22 -> 113.2832877 | GE22: =$F22*CQ22 -> 39.51742594 | GF22: =$F22*CR22 -> 71.1313667 | GG22: =$F22*CS22 -> 39.51742594 | GH22: =$F22*CT22 -> 55.32439632 | GI22: =$F22*CU22 -> 34.24843582 | GJ22: =$F22*CV22 -> 200.2216248
A23: 1 | D23: POLES | E23: > 1 kV & < = 11 kV; Wood | F23: 3.000444093 | G23: 63.29477376 | H23: 7.955801265 | I23: 2 | J23: 4602 | K23: 4976 | L23: 4835 | M23: 4664 | N23: 4932 | O23: 4563 | P23: 3722 | Q23: 3750 | R23: 2927 | S23: 2584 | T23: 1906 | U23: 1548 | V23: 2507 | W23: 2398 | X23: 2589 | Y23: 2419 | Z23: 2733 | AA23: 2783 | AB23: 2050 | AC23: 2800 | AD23: 2681 | AE23: 2905 | AF23: 3208 | AG23: 3605 | AH23: 3978 | AI23: 3834 | AJ23: 3295 | AK23: 3310 | AL23: 4459 | AM23: 3950 | AN23: 4807 | AO23: 5704 | AP23: 4979 | AQ23: 4695 | AR23: 4355 | AS23: 4131 | AT23: 4372 | AU23: 3804 | AV23: 3742 | AW23: 3620 | AX23: 3420 | AY23: 3402 | AZ23: 3193 | BA23: 3051 | BB23: 3004 | BC23: 2518 | BD23: 2404 | BE23: 2183 | BF23: 2180 | BG23: 2232 | BH23: 1739 | BI23: 1491 | BJ23: 1240 | BK23: 1359 | BL23: 1198 | BM23: 1265 | BN23: 918 | BO23: 1215 | BP23: 894 | BQ23: 964 | BR23: 1277 | BS23: 1111 | BT23: 835 | BU23: 720 | BV23: 542 | BW23: 643 | BX23: 689 | BY23: 533 | BZ23: 488 | CA23: 127 | CB23: 136 | CC23: 102 | CD23: 263 | CE23: 339 | CF23: 434 | CG23: 423 | CH23: 293 | CI23: 430 | CJ23: 363 | CK23: 206 | CL23: 509 | CM23: 175 | CN23: 262 | CO23: 61 | CP23: 20 | CQ23: 12 | CR23: 21 | CS23: 4 | CT23: 5 | CU23: 1 | CV23: 41 | CX23: 13808.04372 | CY23: 14930.20981 | CZ23: 14507.14719 | DA23: 13994.07125 | DB23: 14798.19027 | DC23: 13691.0264 | DD23: 11167.65291 | DE23: 11251.66535 | DF23: 8782.29986 | DG23: 7753.147536 | DH23: 5718.846441 | DI23: 4644.687456 | DJ23: 7522.113341 | DK23: 7195.064935 | DL23: 7768.149756 | DM23: 7258.074261 | DN23: 8200.213706 | DO23: 8350.23591 | DP23: 6150.91039 | DQ23: 8401.24346 | DR23: 8044.190613 | DS23: 8716.29009 | DT23: 9625.42465 | DU23: 10816.60095 | DV23: 11935.7666 | DW23: 11503.70265 | DX23: 9886.463286 | DY23: 9931.469947 | DZ23: 13378.98021 | EA23: 11851.75417 | EB23: 14423.13475 | EC23: 17114.53311 | ED23: 14939.21114 | EE23: 14087.08502 | EF23: 13066.93402 | EG23: 12394.83455 | EH23: 13117.94157 | EI23: 11413.68933 | EJ23: 11227.6618 | EK23: 10861.60762 | EL23: 10261.5188 | EM23: 10207.5108 | EN23: 9580.417988 | EO23: 9154.354927 | EP23: 9013.334055 | EQ23: 7555.118226 | ER23: 7213.067599 | ES23: 6549.969455 | ET23: 6540.968122 | EU23: 6696.991215 | EV23: 5217.772277 | EW23: 4473.662142 | EX23: 3720.550675 | EY23: 4077.603522 | EZ23: 3594.532023 | FA23: 3795.561777 | FB23: 2754.407677 | FC23: 3645.539573 | FD23: 2682.397019 | FE23: 2892.428105 | FF23: 3831.567107 | FG23: 3333.493387 | FH23: 2505.370818 | FI23: 2160.319747 | FJ23: 1626.240698 | FK23: 1929.285552 | FL23: 2067.30598 | FM23: 1599.236701 | FN23: 1464.216717 | FO23: 381.0563998 | FP23: 408.0603966 | FQ23: 306.0452975 | FR23: 789.1167964 | FS23: 1017.150547 | FT23: 1302.192736 | FU23: 1269.187851 | FV23: 879.1301192 | FW23: 1290.19096 | FX23: 1089.161206 | FY23: 618.0914831 | FZ23: 1527.226043 | GA23: 525.0777162 | GB23: 786.1163523 | GC23: 183.0270897 | GD23: 60.00888186 | GE23: 36.00532911 | GF23: 63.00932595 | GG23: 12.00177637 | GH23: 15.00222046 | GI23: 3.000444093 | GJ23: 123.0182078
A24: 1 | D24: POLES | E24: ˃ 11 kV & < = 22 kV; Wood | F24: 7.269264737 | G24: 63.67112978 | H24: 7.979419138 | I24: 2 | J24: 2 | K24: 0 | L24: 3 | M24: 0 | N24: 0 | O24: 4 | P24: 0 | Q24: 8 | R24: 9 | S24: 0 | T24: 2 | U24: 0 | V24: 0 | W24: 8 | X24: 2 | Y24: 0 | Z24: 0 | AA24: 1 | AB24: 2 | AC24: 0 | AD24: 0 | AE24: 95 | AF24: 18 | AG24: 0 | AH24: 0 | AI24: 0 | AJ24: 0 | AK24: 0 | AL24: 0 | AM24: 0 | AN24: 0 | AO24: 1 | AP24: 0 | AQ24: 0 | AR24: 0 | AS24: 0 | AT24: 0 | AU24: 0 | AV24: 0 | AW24: 0 | AX24: 0 | AY24: 0 | AZ24: 0 | BA24: 0 | BB24: 0 | BC24: 0 | BD24: 0 | BE24: 0 | BF24: 0 | BG24: 0 | BH24: 0 | BI24: 0 | BJ24: 0 | BK24: 0 | BL24: 0 | BM24: 0 | BN24: 0 | BO24: 0 | BP24: 0 | BQ24: 0 | BR24: 0 | BS24: 0 | BT24: 0 | BU24: 0 | BV24: 0 | BW24: 0 | BX24: 0 | BY24: 0 | BZ24: 0 | CA24: 0 | CB24: 0 | CC24: 0 | CD24: 0 | CE24: 0 | CF24: 0 | CG24: 0 | CH24: 0 | CI24: 0 | CJ24: 0 | CK24: 0 | CL24: 0 | CM24: 0 | CN24: 0 | CO24: 0 | CP24: 0 | CQ24: 0 | CR24: 0 | CS24: 0 | CT24: 0 | CU24: 0 | CV24: 0 | CX24: 14.53852947 | CY24: 0 | CZ24: 21.80779421 | DA24: 0 | DB24: 0 | DC24: 29.07705895 | DD24: 0 | DE24: 58.15411789 | DF24: 65.42338263 | DG24: 0 | DH24: 14.53852947 | DI24: 0 | DJ24: 0 | DK24: 58.15411789 | DL24: 14.53852947 | DM24: 0 | DN24: 0 | DO24: 7.269264737 | DP24: 14.53852947 | DQ24: 0 | DR24: 0 | DS24: 690.58015 | DT24: 130.8467653 | DU24: 0 | DV24: 0 | DW24: 0 | DX24: 0 | DY24: 0 | DZ24: 0 | EA24: 0 | EB24: 0 | EC24: 7.269264737 | ED24: 0 | EE24: 0 | EF24: 0 | EG24: 0 | EH24: 0 | EI24: 0 | EJ24: 0 | EK24: 0 | EL24: 0 | EM24: 0 | EN24: 0 | EO24: 0 | EP24: 0 | EQ24: 0 | ER24: 0 | ES24: 0 | ET24: 0 | EU24: 0 | EV24: 0 | EW24: 0 | EX24: 0 | EY24: 0 | EZ24: 0 | FA24: 0 | FB24: 0 | FC24: 0 | FD24: 0 | FE24: 0 | FF24: 0 | FG24: 0 | FH24: 0 | FI24: 0 | FJ24: 0 | FK24: 0 | FL24: 0 | FM24: 0 | FN24: 0 | FO24: 0 | FP24: 0 | FQ24: 0 | FR24: 0 | FS24: 0 | FT24: 0 | FU24: 0 | FV24: 0 | FW24: 0 | FX24: 0 | FY24: 0 | FZ24: 0 | GA24: 0 | GB24: 0 | GC24: 0 | GD24: 0 | GE24: 0 | GF24: 0 | GG24: 0 | GH24: 0 | GI24: 0 | GJ24: 0
A25: 1 | D25: POLES | E25: > 22 kV & < = 66 kV; Wood | F25: 6.168545076 | G25: 69.2680522 | H25: 8.322743069 | I25: 2 | J25: 533 | K25: 1365 | L25: 1265 | M25: 930 | N25: 852 | O25: 561 | P25: 649 | Q25: 465 | R25: 565 | S25: 260 | T25: 368 | U25: 360 | V25: 374 | W25: 575 | X25: 314 | Y25: 314 | Z25: 307 | AA25: 312 | AB25: 219 | AC25: 135 | AD25: 156 | AE25: 107 | AF25: 131 | AG25: 140 | AH25: 225 | AI25: 136 | AJ25: 354 | AK25: 173 | AL25: 259 | AM25: 208 | AN25: 248 | AO25: 255 | AP25: 290 | AQ25: 259 | AR25: 488 | AS25: 482 | AT25: 813 | AU25: 767 | AV25: 608 | AW25: 661 | AX25: 528 | AY25: 298 | AZ25: 410 | BA25: 382 | BB25: 501 | BC25: 387 | BD25: 164 | BE25: 426 | BF25: 257 | BG25: 395 | BH25: 126 | BI25: 81 | BJ25: 85 | BK25: 85 | BL25: 160 | BM25: 114 | BN25: 167 | BO25: 177 | BP25: 62 | BQ25: 44 | BR25: 86 | BS25: 73 | BT25: 96 | BU25: 70 | BV25: 70 | BW25: 65 | BX25: 61 | BY25: 43 | BZ25: 103 | CA25: 12 | CB25: 1 | CC25: 27 | CD25: 66 | CE25: 117 | CF25: 132 | CG25: 39 | CH25: 33 | CI25: 66 | CJ25: 51 | CK25: 39 | CL25: 3 | CM25: 0 | CN25: 53 | CO25: 10 | CP25: 2 | CQ25: 26 | CR25: 19 | CS25: 0 | CT25: 1 | CU25: 0 | CV25: 31 | CX25: 3287.834525 | CY25: 8420.064028 | CZ25: 7803.209521 | DA25: 5736.74692 | DB25: 5255.600404 | DC25: 3460.553787 | DD25: 4003.385754 | DE25: 2868.37346 | DF25: 3485.227968 | DG25: 1603.82172 | DH25: 2270.024588 | DI25: 2220.676227 | DJ25: 2307.035858 | DK25: 3546.913418 | DL25: 1936.923154 | DM25: 1936.923154 | DN25: 1893.743338 | DO25: 1924.586064 | DP25: 1350.911372 | DQ25: 832.7535852 | DR25: 962.2930318 | DS25: 660.0343231 | DT25: 808.0794049 | DU25: 863.5963106 | DV25: 1387.922642 | DW25: 838.9221303 | DX25: 2183.664957 | DY25: 1067.158298 | DZ25: 1597.653175 | EA25: 1283.057376 | EB25: 1529.799179 | EC25: 1572.978994 | ED25: 1788.878072 | EE25: 1597.653175 | EF25: 3010.249997 | EG25: 2973.238726 | EH25: 5015.027146 | EI25: 4731.274073 | EJ25: 3750.475406 | EK25: 4077.408295 | EL25: 3256.9918 | EM25: 1838.226433 | EN25: 2529.103481 | EO25: 2356.384219 | EP25: 3090.441083 | EQ25: 2387.226944 | ER25: 1011.641392 | ES25: 2627.800202 | ET25: 1585.316084 | EU25: 2436.575305 | EV25: 777.2366795 | EW25: 499.6521511 | EX25: 524.3263314 | EY25: 524.3263314 | EZ25: 986.9672121 | FA25: 703.2141386 | FB25: 1030.147028 | FC25: 1091.832478 | FD25: 382.4497947 | FE25: 271.4159833 | FF25: 530.4948765 | FG25: 450.3037905 | FH25: 592.1803273 | FI25: 431.7981553 | FJ25: 431.7981553 | FK25: 400.9554299 | FL25: 376.2812496 | FM25: 265.2474382 | FN25: 635.3601428 | FO25: 74.02254091 | FP25: 6.168545076 | FQ25: 166.550717 | FR25: 407.123975 | FS25: 721.7197738 | FT25: 814.24795 | FU25: 240.5732579 | FV25: 203.5619875 | FW25: 407.123975 | FX25: 314.5957989 | FY25: 240.5732579 | FZ25: 18.50563523 | GA25: 0 | GB25: 326.932889 | GC25: 61.68545076 | GD25: 12.33709015 | GE25: 160.382172 | GF25: 117.2023564 | GG25: 0 | GH25: 6.168545076 | GI25: 0 | GJ25: 191.2248973
A26: 1 | D26: POLES | E26: > 66 kV & < = 132 kV; Wood | F26: 8.674756174 | G26: 42.6501044 | H26: 6.53070474 | I26: 2 | J26: 69 | K26: 20 | L26: 14 | M26: 69 | N26: 54 | O26: 11 | P26: 19 | Q26: 242 | R26: 226 | S26: 29 | T26: 8 | U26: 9 | V26: 134 | W26: 343 | X26: 317 | Y26: 42 | Z26: 46 | AA26: 2 | AB26: 11 | AC26: 1 | AD26: 0 | AE26: 12 | AF26: 8 | AG26: 7 | AH26: 1 | AI26: 0 | AJ26: 5 | AK26: 17 | AL26: 14 | AM26: 0 | AN26: 14 | AO26: 5 | AP26: 2 | AQ26: 1 | AR26: 51 | AS26: 67 | AT26: 0 | AU26: 2 | AV26: 1 | AW26: 0 | AX26: 0 | AY26: 0 | AZ26: 2 | BA26: 1 | BB26: 1 | BC26: 1 | BD26: 3 | BE26: 2 | BF26: 32 | BG26: 2 | BH26: 0 | BI26: 1 | BJ26: 1 | BK26: 1 | BL26: 0 | BM26: 1 | BN26: 0 | BO26: 0 | BP26: 0 | BQ26: 0 | BR26: 0 | BS26: 0 | BT26: 0 | BU26: 1 | BV26: 1 | BW26: 0 | BX26: 0 | BY26: 0 | BZ26: 0 | CA26: 0 | CB26: 0 | CC26: 1 | CD26: 0 | CE26: 0 | CF26: 0 | CG26: 0 | CH26: 0 | CI26: 1 | CJ26: 0 | CK26: 0 | CL26: 0 | CM26: 0 | CN26: 0 | CO26: 0 | CP26: 0 | CQ26: 0 | CR26: 0 | CS26: 0 | CT26: 0 | CU26: 0 | CV26: 0 | CX26: 598.558176 | CY26: 173.4951235 | CZ26: 121.4465864 | DA26: 598.558176 | DB26: 468.4368334 | DC26: 95.42231791 | DD26: 164.8203673 | DE26: 2099.290994 | DF26: 1960.494895 | DG26: 251.567929 | DH26: 69.39804939 | DI26: 78.07280557 | DJ26: 1162.417327 | DK26: 2975.441368 | DL26: 2749.897707 | DM26: 364.3397593 | DN26: 399.038784 | DO26: 17.34951235 | DP26: 95.42231791 | DQ26: 8.674756174 | DR26: 0 | DS26: 104.0970741 | DT26: 69.39804939 | DU26: 60.72329322 | DV26: 8.674756174 | DW26: 0 | DX26: 43.37378087 | DY26: 147.470855 | DZ26: 121.4465864 | EA26: 0 | EB26: 121.4465864 | EC26: 43.37378087 | ED26: 17.34951235 | EE26: 8.674756174 | EF26: 442.4125649 | EG26: 581.2086637 | EH26: 0 | EI26: 17.34951235 | EJ26: 8.674756174 | EK26: 0 | EL26: 0 | EM26: 0 | EN26: 17.34951235 | EO26: 8.674756174 | EP26: 8.674756174 | EQ26: 8.674756174 | ER26: 26.02426852 | ES26: 17.34951235 | ET26: 277.5921976 | EU26: 17.34951235 | EV26: 0 | EW26: 8.674756174 | EX26: 8.674756174 | EY26: 8.674756174 | EZ26: 0 | FA26: 8.674756174 | FB26: 0 | FC26: 0 | FD26: 0 | FE26: 0 | FF26: 0 | FG26: 0 | FH26: 0 | FI26: 8.674756174 | FJ26: 8.674756174 | FK26: 0 | FL26: 0 | FM26: 0 | FN26: 0 | FO26: 0 | FP26: 0 | FQ26: 8.674756174 | FR26: 0 | FS26: 0 | FT26: 0 | FU26: 0 | FV26: 0 | FW26: 8.674756174 | FX26: 0 | FY26: 0 | FZ26: 0 | GA26: 0 | GB26: 0 | GC26: 0 | GD26: 0 | GE26: 0 | GF26: 0 | GG26: 0 | GH26: 0 | GI26: 0 | GJ26: 0
E27: > 132 kV; Wood | F27: 0.0001 | G27: 0 | H27: 0 | I27: 2
A28: 1 | D28: POLES | E28: ˂ = 1 kV; Concrete | F28: 10.21225459 | G28: 63.67112978 | H28: 7.979419138 | I28: 2 | J28: 3 | K28: 9 | L28: 0 | M28: 3 | N28: 1 | O28: 7 | P28: 83 | Q28: 21 | R28: 24 | S28: 13 | T28: 12 | U28: 19 | V28: 54 | W28: 29 | X28: 42 | Y28: 47 | Z28: 65 | AA28: 78 | AB28: 103 | AC28: 376 | AD28: 171 | AE28: 42 | AF28: 4 | AG28: 16 | AH28: 62 | AI28: 35 | AJ28: 23 | AK28: 61 | AL28: 72 | AM28: 48 | AN28: 43 | AO28: 60 | AP28: 30 | AQ28: 47 | AR28: 85 | AS28: 94 | AT28: 91 | AU28: 34 | AV28: 35 | AW28: 46 | AX28: 76 | AY28: 165 | AZ28: 55 | BA28: 42 | BB28: 43 | BC28: 26 | BD28: 16 | BE28: 28 | BF28: 11 | BG28: 12 | BH28: 9 | BI28: 7 | BJ28: 38 | BK28: 4 | BL28: 23 | BM28: 4 | BN28: 8 | BO28: 1 | BP28: 0 | BQ28: 2 | BR28: 2 | BS28: 2 | BT28: 1 | BU28: 0 | BV28: 2 | BW28: 0 | BX28: 0 | BY28: 3 | BZ28: 0 | CA28: 1 | CB28: 0 | CC28: 0 | CD28: 1 | CE28: 4 | CF28: 0 | CG28: 2 | CH28: 0 | CI28: 3 | CJ28: 1 | CK28: 0 | CL28: 0 | CM28: 0 | CN28: 0 | CO28: 0 | CP28: 0 | CQ28: 0 | CR28: 0 | CS28: 0 | CT28: 0 | CU28: 0 | CV28: 0 | CX28: 30.63676377 | CY28: 91.91029131 | CZ28: 0 | DA28: 30.63676377 | DB28: 10.21225459 | DC28: 71.48578213 | DD28: 847.6171309 | DE28: 214.4573464 | DF28: 245.0941102 | DG28: 132.7593097 | DH28: 122.5470551 | DI28: 194.0328372 | DJ28: 551.4617478 | DK28: 296.1553831 | DL28: 428.9146928 | DM28: 479.9759657 | DN28: 663.7965483 | DO28: 796.555858 | DP28: 1051.862223 | DQ28: 3839.807726 | DR28: 1746.295535 | DS28: 428.9146928 | DT28: 40.84901836 | DU28: 163.3960734 | DV28: 633.1597846 | DW28: 357.4289106 | DX28: 234.8818556 | DY28: 622.94753 | DZ28: 735.2823305 | EA28: 490.1882203 | EB28: 439.1269474 | EC28: 612.7352754 | ED28: 306.3676377 | EE28: 479.9759657 | EF28: 868.0416401 | EG28: 959.9519314 | EH28: 929.3151677 | EI28: 347.2166561 | EJ28: 357.4289106 | EK28: 469.7637111 | EL28: 776.1313488 | EM28: 1685.022007 | EN28: 561.6740024 | EO28: 428.9146928 | EP28: 439.1269474 | EQ28: 265.5186193 | ER28: 163.3960734 | ES28: 285.9431285 | ET28: 112.3348005 | EU28: 122.5470551 | EV28: 91.91029131 | EW28: 71.48578213 | EX28: 388.0656744 | EY28: 40.84901836 | EZ28: 234.8818556 | FA28: 40.84901836 | FB28: 81.69803672 | FC28: 10.21225459 | FD28: 0 | FE28: 20.42450918 | FF28: 20.42450918 | FG28: 20.42450918 | FH28: 10.21225459 | FI28: 0 | FJ28: 20.42450918 | FK28: 0 | FL28: 0 | FM28: 30.63676377 | FN28: 0 | FO28: 10.21225459 | FP28: 0 | FQ28: 0 | FR28: 10.21225459 | FS28: 40.84901836 | FT28: 0 | FU28: 20.42450918 | FV28: 0 | FW28: 30.63676377 | FX28: 10.21225459 | FY28: 0 | FZ28: 0 | GA28: 0 | GB28: 0 | GC28: 0 | GD28: 0 | GE28: 0 | GF28: 0 | GG28: 0 | GH28: 0 | GI28: 0 | GJ28: 0
A29: 1 | D29: POLES | E29: > 1 kV & < = 11 kV; Concrete | F29: 12.23133165 | G29: 63.67112978 | H29: 7.979419138 | I29: 2 | J29: 138 | K29: 205 | L29: 199 | M29: 185 | N29: 216 | O29: 240 | P29: 324 | Q29: 332 | R29: 343 | S29: 407 | T29: 98 | U29: 63 | V29: 43 | W29: 45 | X29: 85 | Y29: 56 | Z29: 45 | AA29: 41 | AB29: 24 | AC29: 30 | AD29: 59 | AE29: 49 | AF29: 50 | AG29: 43 | AH29: 32 | AI29: 38 | AJ29: 38 | AK29: 261 | AL29: 268 | AM29: 177 | AN29: 48 | AO29: 35 | AP29: 47 | AQ29: 46 | AR29: 30 | AS29: 23 | AT29: 28 | AU29: 36 | AV29: 27 | AW29: 35 | AX29: 54 | AY29: 72 | AZ29: 63 | BA29: 104 | BB29: 132 | BC29: 76 | BD29: 73 | BE29: 77 | BF29: 50 | BG29: 65 | BH29: 37 | BI29: 11 | BJ29: 12 | BK29: 17 | BL29: 12 | BM29: 10 | BN29: 4 | BO29: 8 | BP29: 6 | BQ29: 9 | BR29: 8 | BS29: 4 | BT29: 14 | BU29: 8 | BV29: 3 | BW29: 3 | BX29: 4 | BY29: 8 | BZ29: 9 | CA29: 1 | CB29: 1 | CC29: 3 | CD29: 6 | CE29: 6 | CF29: 3 | CG29: 7 | CH29: 2 | CI29: 3 | CJ29: 1 | CK29: 2 | CL29: 8 | CM29: 4 | CN29: 5 | CO29: 1 | CP29: 1 | CQ29: 0 | CR29: 0 | CS29: 0 | CT29: 0 | CU29: 0 | CV29: 0 | CX29: 1687.923768 | CY29: 2507.422989 | CZ29: 2434.034999 | DA29: 2262.796356 | DB29: 2641.967637 | DC29: 2935.519597 | DD29: 3962.951455 | DE29: 4060.802108 | DF29: 4195.346757 | DG29: 4978.151982 | DH29: 1198.670502 | DI29: 770.5738941 | DJ29: 525.947261 | DK29: 550.4099243 | DL29: 1039.66319 | DM29: 684.9545725 | DN29: 550.4099243 | DO29: 501.4845977 | DP29: 293.5519597 | DQ29: 366.9399496 | DR29: 721.6485675 | DS29: 599.335251 | DT29: 611.5665826 | DU29: 525.947261 | DV29: 391.4026129 | DW29: 464.7906028 | DX29: 464.7906028 | DY29: 3192.377561 | DZ29: 3277.996883 | EA29: 2164.945702 | EB29: 587.1039193 | EC29: 428.0966078 | ED29: 574.8725876 | EE29: 562.641256 | EF29: 366.9399496 | EG29: 281.320628 | EH29: 342.4772863 | EI29: 440.3279395 | EJ29: 330.2459546 | EK29: 428.0966078 | EL29: 660.4919092 | EM29: 880.655879 | EN29: 770.5738941 | EO29: 1272.058492 | EP29: 1614.535778 | EQ29: 929.5812056 | ER29: 892.8872106 | ES29: 941.8125372 | ET29: 611.5665826 | EU29: 795.0365574 | EV29: 452.5592711 | EW29: 134.5446482 | EX29: 146.7759798 | EY29: 207.9326381 | EZ29: 146.7759798 | FA29: 122.3133165 | FB29: 48.92532661 | FC29: 97.85065322 | FD29: 73.38798991 | FE29: 110.0819849 | FF29: 97.85065322 | FG29: 48.92532661 | FH29: 171.2386431 | FI29: 97.85065322 | FJ29: 36.69399496 | FK29: 36.69399496 | FL29: 48.92532661 | FM29: 97.85065322 | FN29: 110.0819849 | FO29: 12.23133165 | FP29: 12.23133165 | FQ29: 36.69399496 | FR29: 73.38798991 | FS29: 73.38798991 | FT29: 36.69399496 | FU29: 85.61932156 | FV29: 24.4626633 | FW29: 36.69399496 | FX29: 12.23133165 | FY29: 24.4626633 | FZ29: 97.85065322 | GA29: 48.92532661 | GB29: 61.15665826 | GC29: 12.23133165 | GD29: 12.23133165 | GE29: 0 | GF29: 0 | GG29: 0 | GH29: 0 | GI29: 0 | GJ29: 0
E30: ˃ 11 kV & < = 22 kV; Concrete | F30: 15.36887348 | G30: 0 | H30: 0 | I30: 2
A31: 1 | D31: POLES | E31: > 22 kV & < = 66 kV; Concrete | F31: 18.49680874 | G31: 63.67112978 | H31: 7.979419138 | I31: 2 | J31: 9 | K31: 7 | L31: 14 | M31: 10 | N31: 27 | O31: 3 | P31: 4 | Q31: 4 | R31: 22 | S31: 0 | T31: 1 | U31: 10 | V31: 2 | W31: 67 | X31: 21 | Y31: 56 | Z31: 0 | AA31: 6 | AB31: 0 | AC31: 23 | AD31: 16 | AE31: 3 | AF31: 2 | AG31: 1 | AH31: 14 | AI31: 67 | AJ31: 21 | AK31: 9 | AL31: 23 | AM31: 1 | AN31: 2 | AO31: 5 | AP31: 0 | AQ31: 158 | AR31: 2 | AS31: 3 | AT31: 1 | AU31: 2 | AV31: 5 | AW31: 0 | AX31: 1 | AY31: 3 | AZ31: 4 | BA31: 2 | BB31: 5 | BC31: 4 | BD31: 5 | BE31: 1 | BF31: 10 | BG31: 2 | BH31: 1 | BI31: 0 | BJ31: 3 | BK31: 1 | BL31: 0 | BM31: 1 | BN31: 4 | BO31: 4 | BP31: 1 | BQ31: 1 | BR31: 2 | BS31: 0 | BT31: 0 | BU31: 0 | BV31: 0 | BW31: 3 | BX31: 0 | BY31: 0 | BZ31: 1 | CA31: 0 | CB31: 0 | CC31: 0 | CD31: 0 | CE31: 0 | CF31: 3 | CG31: 4 | CH31: 2 | CI31: 1 | CJ31: 0 | CK31: 1 | CL31: 0 | CM31: 0 | CN31: 1 | CO31: 0 | CP31: 0 | CQ31: 0 | CR31: 0 | CS31: 0 | CT31: 0 | CU31: 0 | CV31: 1 | CX31: 166.4712787 | CY31: 129.4776612 | CZ31: 258.9553224 | DA31: 184.9680874 | DB31: 499.4138361 | DC31: 55.49042623 | DD31: 73.98723498 | DE31: 73.98723498 | DF31: 406.9297924 | DG31: 0 | DH31: 18.49680874 | DI31: 184.9680874 | DJ31: 36.99361749 | DK31: 1239.286186 | DL31: 388.4329836 | DM31: 1035.82129 | DN31: 0 | DO31: 110.9808525 | DP31: 0 | DQ31: 425.4266011 | DR31: 295.9489399 | DS31: 55.49042623 | DT31: 36.99361749 | DU31: 18.49680874 | DV31: 258.9553224 | DW31: 1239.286186 | DX31: 388.4329836 | DY31: 166.4712787 | DZ31: 425.4266011 | EA31: 18.49680874 | EB31: 36.99361749 | EC31: 92.48404372 | ED31: 0 | EE31: 2922.495782 | EF31: 36.99361749 | EG31: 55.49042623 | EH31: 18.49680874 | EI31: 36.99361749 | EJ31: 92.48404372 | EK31: 0 | EL31: 18.49680874 | EM31: 55.49042623 | EN31: 73.98723498 | EO31: 36.99361749 | EP31: 92.48404372 | EQ31: 73.98723498 | ER31: 92.48404372 | ES31: 18.49680874 | ET31: 184.9680874 | EU31: 36.99361749 | EV31: 18.49680874 | EW31: 0 | EX31: 55.49042623 | EY31: 18.49680874 | EZ31: 0 | FA31: 18.49680874 | FB31: 73.98723498 | FC31: 73.98723498 | FD31: 18.49680874 | FE31: 18.49680874 | FF31: 36.99361749 | FG31: 0 | FH31: 0 | FI31: 0 | FJ31: 0 | FK31: 55.49042623 | FL31: 0 | FM31: 0 | FN31: 18.49680874 | FO31: 0 | FP31: 0 | FQ31: 0 | FR31: 0 | FS31: 0 | FT31: 55.49042623 | FU31: 73.98723498 | FV31: 36.99361749 | FW31: 18.49680874 | FX31: 0 | FY31: 18.49680874 | FZ31: 0 | GA31: 0 | GB31: 18.49680874 | GC31: 0 | GD31: 0 | GE31: 0 | GF31: 0 | GG31: 0 | GH31: 0 | GI31: 0 | GJ31: 18.49680874
A32: 1 | D32: POLES | E32: > 66 kV & < = 132 kV; Concrete | F32: 21.21201926 | G32: 63.67112978 | H32: 7.979419138 | I32: 2 | J32: 73 | K32: 8 | L32: 42 | M32: 27 | N32: 33 | O32: 5 | P32: 76 | Q32: 105 | R32: 31 | S32: 31 | T32: 2 | U32: 1 | V32: 96 | W32: 213 | X32: 38 | Y32: 85 | Z32: 5 | AA32: 0 | AB32: 0 | AC32: 1 | AD32: 0 | AE32: 8 | AF32: 80 | AG32: 2 | AH32: 1 | AI32: 2 | AJ32: 0 | AK32: 102 | AL32: 1 | AM32: 24 | AN32: 2 | AO32: 183 | AP32: 39 | AQ32: 0 | AR32: 1 | AS32: 0 | AT32: 0 | AU32: 0 | AV32: 0 | AW32: 0 | AX32: 0 | AY32: 0 | AZ32: 0 | BA32: 0 | BB32: 0 | BC32: 0 | BD32: 0 | BE32: 0 | BF32: 0 | BG32: 0 | BH32: 0 | BI32: 0 | BJ32: 0 | BK32: 0 | BL32: 0 | BM32: 0 | BN32: 0 | BO32: 0 | BP32: 0 | BQ32: 0 | BR32: 0 | BS32: 0 | BT32: 0 | BU32: 0 | BV32: 0 | BW32: 0 | BX32: 0 | BY32: 0 | BZ32: 0 | CA32: 0 | CB32: 0 | CC32: 0 | CD32: 0 | CE32: 0 | CF32: 0 | CG32: 0 | CH32: 0 | CI32: 0 | CJ32: 0 | CK32: 0 | CL32: 0 | CM32: 0 | CN32: 0 | CO32: 0 | CP32: 0 | CQ32: 0 | CR32: 0 | CS32: 0 | CT32: 0 | CU32: 0 | CV32: 0 | CX32: 1548.477406 | CY32: 169.6961541 | CZ32: 890.9048088 | DA32: 572.72452 | DB32: 699.9966355 | DC32: 106.0600963 | DD32: 1612.113464 | DE32: 2227.262022 | DF32: 657.572597 | DG32: 657.572597 | DH32: 42.42403852 | DI32: 21.21201926 | DJ32: 2036.353849 | DK32: 4518.160102 | DL32: 806.0567318 | DM32: 1803.021637 | DN32: 106.0600963 | DO32: 0 | DP32: 0 | DQ32: 21.21201926 | DR32: 0 | DS32: 169.6961541 | DT32: 1696.961541 | DU32: 42.42403852 | DV32: 21.21201926 | DW32: 42.42403852 | DX32: 0 | DY32: 2163.625964 | DZ32: 21.21201926 | EA32: 509.0884622 | EB32: 42.42403852 | EC32: 3881.799524 | ED32: 827.2687511 | EE32: 0 | EF32: 21.21201926 | EG32: 0 | EH32: 0 | EI32: 0 | EJ32: 0 | EK32: 0 | EL32: 0 | EM32: 0 | EN32: 0 | EO32: 0 | EP32: 0 | EQ32: 0 | ER32: 0 | ES32: 0 | ET32: 0 | EU32: 0 | EV32: 0 | EW32: 0 | EX32: 0 | EY32: 0 | EZ32: 0 | FA32: 0 | FB32: 0 | FC32: 0 | FD32: 0 | FE32: 0 | FF32: 0 | FG32: 0 | FH32: 0 | FI32: 0 | FJ32: 0 | FK32: 0 | FL32: 0 | FM32: 0 | FN32: 0 | FO32: 0 | FP32: 0 | FQ32: 0 | FR32: 0 | FS32: 0 | FT32: 0 | FU32: 0 | FV32: 0 | FW32: 0 | FX32: 0 | FY32: 0 | FZ32: 0 | GA32: 0 | GB32: 0 | GC32: 0 | GD32: 0 | GE32: 0 | GF32: 0 | GG32: 0 | GH32: 0 | GI32: 0 | GJ32: 0
E33: > 132 kV; Concrete | F33: 1151.461797 | G33: 0 | H33: 0 | I33: 2
A34: 1 | D34: POLES | E34: ˂ = 1 kV; Steel | F34: 9.233864229 | G34: 63.67112978 | H34: 7.979419138 | I34: 2 | J34: 110 | K34: 610 | L34: 81 | M34: 97 | N34: 51 | O34: 27 | P34: 17 | Q34: 117 | R34: 49 | S34: 19 | T34: 36 | U34: 60 | V34: 114 | W34: 28 | X34: 241 | Y34: 56 | Z34: 49 | AA34: 77 | AB34: 80 | AC34: 23 | AD34: 18 | AE34: 24 | AF34: 13 | AG34: 13 | AH34: 22 | AI34: 8 | AJ34: 8 | AK34: 8 | AL34: 7 | AM34: 5 | AN34: 3 | AO34: 2 | AP34: 2 | AQ34: 2 | AR34: 1 | AS34: 4 | AT34: 1 | AU34: 2 | AV34: 0 | AW34: 0 | AX34: 0 | AY34: 0 | AZ34: 0 | BA34: 0 | BB34: 0 | BC34: 0 | BD34: 0 | BE34: 0 | BF34: 0 | BG34: 0 | BH34: 0 | BI34: 0 | BJ34: 0 | BK34: 0 | BL34: 0 | BM34: 0 | BN34: 0 | BO34: 0 | BP34: 0 | BQ34: 0 | BR34: 0 | BS34: 0 | BT34: 0 | BU34: 0 | BV34: 0 | BW34: 0 | BX34: 0 | BY34: 0 | BZ34: 0 | CA34: 0 | CB34: 0 | CC34: 0 | CD34: 0 | CE34: 0 | CF34: 0 | CG34: 0 | CH34: 0 | CI34: 0 | CJ34: 0 | CK34: 0 | CL34: 0 | CM34: 0 | CN34: 0 | CO34: 0 | CP34: 0 | CQ34: 0 | CR34: 0 | CS34: 0 | CT34: 0 | CU34: 0 | CV34: 0 | CX34: 1015.725065 | CY34: 5632.65718 | CZ34: 747.9430026 | DA34: 895.6848302 | DB34: 470.9270757 | DC34: 249.3143342 | DD34: 156.9756919 | DE34: 1080.362115 | DF34: 452.4593472 | DG34: 175.4434204 | DH34: 332.4191123 | DI34: 554.0318538 | DJ34: 1052.660522 | DK34: 258.5481984 | DL34: 2225.361279 | DM34: 517.0963968 | DN34: 452.4593472 | DO34: 711.0075457 | DP34: 738.7091383 | DQ34: 212.3788773 | DR34: 166.2095561 | DS34: 221.6127415 | DT34: 120.040235 | DU34: 120.040235 | DV34: 203.145013 | DW34: 73.87091383 | DX34: 73.87091383 | DY34: 73.87091383 | DZ34: 64.63704961 | EA34: 46.16932115 | EB34: 27.70159269 | EC34: 18.46772846 | ED34: 18.46772846 | EE34: 18.46772846 | EF34: 9.233864229 | EG34: 36.93545692 | EH34: 9.233864229 | EI34: 18.46772846 | EJ34: 0 | EK34: 0 | EL34: 0 | EM34: 0 | EN34: 0 | EO34: 0 | EP34: 0 | EQ34: 0 | ER34: 0 | ES34: 0 | ET34: 0 | EU34: 0 | EV34: 0 | EW34: 0 | EX34: 0 | EY34: 0 | EZ34: 0 | FA34: 0 | FB34: 0 | FC34: 0 | FD34: 0 | FE34: 0 | FF34: 0 | FG34: 0 | FH34: 0 | FI34: 0 | FJ34: 0 | FK34: 0 | FL34: 0 | FM34: 0 | FN34: 0 | FO34: 0 | FP34: 0 | FQ34: 0 | FR34: 0 | FS34: 0 | FT34: 0 | FU34: 0 | FV34: 0 | FW34: 0 | FX34: 0 | FY34: 0 | FZ34: 0 | GA34: 0 | GB34: 0 | GC34: 0 | GD34: 0 | GE34: 0 | GF34: 0 | GG34: 0 | GH34: 0 | GI34: 0 | GJ34: 0
A35: 1 | D35: POLES | E35: > 1 kV & < = 11 kV; Steel | F35: 9.221057903 | G35: 63.67112978 | H35: 7.979419138 | I35: 2 | J35: 1 | K35: 1 | L35: 5 | M35: 0 | N35: 0 | O35: 0 | P35: 0 | Q35: 2 | R35: 0 | S35: 0 | T35: 0 | U35: 0 | V35: 2 | W35: 1 | X35: 2 | Y35: 3 | Z35: 0 | AA35: 0 | AB35: 0 | AC35: 0 | AD35: 0 | AE35: 0 | AF35: 1 | AG35: 0 | AH35: 0 | AI35: 0 | AJ35: 0 | AK35: 0 | AL35: 0 | AM35: 0 | AN35: 1 | AO35: 0 | AP35: 1 | AQ35: 0 | AR35: 0 | AS35: 0 | AT35: 0 | AU35: 0 | AV35: 0 | AW35: 0 | AX35: 0 | AY35: 0 | AZ35: 0 | BA35: 0 | BB35: 0 | BC35: 1 | BD35: 0 | BE35: 0 | BF35: 0 | BG35: 0 | BH35: 0 | BI35: 0 | BJ35: 0 | BK35: 0 | BL35: 0 | BM35: 0 | BN35: 0 | BO35: 0 | BP35: 0 | BQ35: 0 | BR35: 0 | BS35: 0 | BT35: 0 | BU35: 0 | BV35: 0 | BW35: 0 | BX35: 1 | BY35: 0 | BZ35: 0 | CA35: 0 | CB35: 0 | CC35: 0 | CD35: 0 | CE35: 0 | CF35: 0 | CG35: 0 | CH35: 0 | CI35: 0 | CJ35: 0 | CK35: 0 | CL35: 0 | CM35: 0 | CN35: 0 | CO35: 0 | CP35: 0 | CQ35: 0 | CR35: 0 | CS35: 0 | CT35: 0 | CU35: 0 | CV35: 0 | CX35: 9.221057903 | CY35: 9.221057903 | CZ35: 46.10528951 | DA35: 0 | DB35: 0 | DC35: 0 | DD35: 0 | DE35: 18.44211581 | DF35: 0 | DG35: 0 | DH35: 0 | DI35: 0 | DJ35: 18.44211581 | DK35: 9.221057903 | DL35: 18.44211581 | DM35: 27.66317371 | DN35: 0 | DO35: 0 | DP35: 0 | DQ35: 0 | DR35: 0 | DS35: 0 | DT35: 9.221057903 | DU35: 0 | DV35: 0 | DW35: 0 | DX35: 0 | DY35: 0 | DZ35: 0 | EA35: 0 | EB35: 9.221057903 | EC35: 0 | ED35: 9.221057903 | EE35: 0 | EF35: 0 | EG35: 0 | EH35: 0 | EI35: 0 | EJ35: 0 | EK35: 0 | EL35: 0 | EM35: 0 | EN35: 0 | EO35: 0 | EP35: 0 | EQ35: 9.221057903 | ER35: 0 | ES35: 0 | ET35: 0 | EU35: 0 | EV35: 0 | EW35: 0 | EX35: 0 | EY35: 0 | EZ35: 0 | FA35: 0 | FB35: 0 | FC35: 0 | FD35: 0 | FE35: 0 | FF35: 0 | FG35: 0 | FH35: 0 | FI35: 0 | FJ35: 0 | FK35: 0 | FL35: 9.221057903 | FM35: 0 | FN35: 0 | FO35: 0 | FP35: 0 | FQ35: 0 | FR35: 0 | FS35: 0 | FT35: 0 | FU35: 0 | FV35: 0 | FW35: 0 | FX35: 0 | FY35: 0 | FZ35: 0 | GA35: 0 | GB35: 0 | GC35: 0 | GD35: 0 | GE35: 0 | GF35: 0 | GG35: 0 | GH35: 0 | GI35: 0 | GJ35: 0
E36: ˃ 11 kV & < = 22 kV; Steel | F36: 10.15017952 | G36: 0 | H36: 0 | I36: 2
A37: 1 | D37: POLES | E37: > 22 kV & < = 66 kV; Steel | F37: 20.83372953 | G37: 63.67112978 | H37: 7.979419138 | I37: 2 | J37: 115 | K37: 12 | L37: 15 | M37: 0 | N37: 13 | O37: 6 | P37: 0 | Q37: 3 | R37: 6 | S37: 7 | T37: 1 | U37: 3 | V37: 5 | W37: 0 | X37: 1 | Y37: 336 | Z37: 0 | AA37: 0 | AB37: 1 | AC37: 0 | AD37: 0 | AE37: 0 | AF37: 0 | AG37: 0 | AH37: 1 | AI37: 0 | AJ37: 0 | AK37: 0 | AL37: 0 | AM37: 0 | AN37: 0 | AO37: 0 | AP37: 0 | AQ37: 0 | AR37: 1 | AS37: 0 | AT37: 0 | AU37: 0 | AV37: 0 | AW37: 0 | AX37: 0 | AY37: 0 | AZ37: 0 | BA37: 0 | BB37: 0 | BC37: 0 | BD37: 0 | BE37: 0 | BF37: 0 | BG37: 0 | BH37: 0 | BI37: 0 | BJ37: 0 | BK37: 0 | BL37: 0 | BM37: 0 | BN37: 0 | BO37: 0 | BP37: 0 | BQ37: 0 | BR37: 0 | BS37: 0 | BT37: 0 | BU37: 0 | BV37: 0 | BW37: 0 | BX37: 0 | BY37: 0 | BZ37: 0 | CA37: 0 | CB37: 0 | CC37: 0 | CD37: 0 | CE37: 0 | CF37: 0 | CG37: 0 | CH37: 0 | CI37: 0 | CJ37: 0 | CK37: 0 | CL37: 0 | CM37: 0 | CN37: 0 | CO37: 0 | CP37: 0 | CQ37: 0 | CR37: 0 | CS37: 0 | CT37: 0 | CU37: 0 | CV37: 0 | CX37: 2395.878896 | CY37: 250.0047544 | CZ37: 312.505943 | DA37: 0 | DB37: 270.8384839 | DC37: 125.0023772 | DD37: 0 | DE37: 62.5011886 | DF37: 125.0023772 | DG37: 145.8361067 | DH37: 20.83372953 | DI37: 62.5011886 | DJ37: 104.1686477 | DK37: 0 | DL37: 20.83372953 | DM37: 7000.133123 | DN37: 0 | DO37: 0 | DP37: 20.83372953 | DQ37: 0 | DR37: 0 | DS37: 0 | DT37: 0 | DU37: 0 | DV37: 20.83372953 | DW37: 0 | DX37: 0 | DY37: 0 | DZ37: 0 | EA37: 0 | EB37: 0 | EC37: 0 | ED37: 0 | EE37: 0 | EF37: 20.83372953 | EG37: 0 | EH37: 0 | EI37: 0 | EJ37: 0 | EK37: 0 | EL37: 0 | EM37: 0 | EN37: 0 | EO37: 0 | EP37: 0 | EQ37: 0 | ER37: 0 | ES37: 0 | ET37: 0 | EU37: 0 | EV37: 0 | EW37: 0 | EX37: 0 | EY37: 0 | EZ37: 0 | FA37: 0 | FB37: 0 | FC37: 0 | FD37: 0 | FE37: 0 | FF37: 0 | FG37: 0 | FH37: 0 | FI37: 0 | FJ37: 0 | FK37: 0 | FL37: 0 | FM37: 0 | FN37: 0 | FO37: 0 | FP37: 0 | FQ37: 0 | FR37: 0 | FS37: 0 | FT37: 0 | FU37: 0 | FV37: 0 | FW37: 0 | FX37: 0 | FY37: 0 | FZ37: 0 | GA37: 0 | GB37: 0 | GC37: 0 | GD37: 0 | GE37: 0 | GF37: 0 | GG37: 0 | GH37: 0 | GI37: 0 | GJ37: 0
A38: 1 | D38: POLES | E38: > 66 kV & < = 132 kV; Steel | F38: 17.14329826 | G38: 63.67112978 | H38: 7.979419138 | I38: 2 | J38: 86 | K38: 1 | L38: 33 | M38: 19 | N38: 17 | O38: 1 | P38: 7 | Q38: 8 | R38: 1 | S38: 0 | T38: 0 | U38: 2 | V38: 5 | W38: 19 | X38: 0 | Y38: 233 | Z38: 0 | AA38: 0 | AB38: 1 | AC38: 0 | AD38: 0 | AE38: 9 | AF38: 0 | AG38: 0 | AH38: 0 | AI38: 0 | AJ38: 0 | AK38: 0 | AL38: 3 | AM38: 0 | AN38: 0 | AO38: 0 | AP38: 0 | AQ38: 0 | AR38: 0 | AS38: 0 | AT38: 0 | AU38: 0 | AV38: 0 | AW38: 0 | AX38: 0 | AY38: 0 | AZ38: 0 | BA38: 0 | BB38: 0 | BC38: 0 | BD38: 0 | BE38: 0 | BF38: 0 | BG38: 0 | BH38: 0 | BI38: 0 | BJ38: 0 | BK38: 0 | BL38: 0 | BM38: 0 | BN38: 0 | BO38: 0 | BP38: 0 | BQ38: 0 | BR38: 0 | BS38: 0 | BT38: 0 | BU38: 0 | BV38: 0 | BW38: 0 | BX38: 0 | BY38: 0 | BZ38: 0 | CA38: 0 | CB38: 0 | CC38: 0 | CD38: 0 | CE38: 0 | CF38: 0 | CG38: 0 | CH38: 0 | CI38: 0 | CJ38: 0 | CK38: 0 | CL38: 0 | CM38: 0 | CN38: 0 | CO38: 0 | CP38: 0 | CQ38: 0 | CR38: 0 | CS38: 0 | CT38: 0 | CU38: 0 | CV38: 0 | CX38: 1474.323651 | CY38: 17.14329826 | CZ38: 565.7288427 | DA38: 325.722667 | DB38: 291.4360705 | DC38: 17.14329826 | DD38: 120.0030878 | DE38: 137.1463861 | DF38: 17.14329826 | DG38: 0 | DH38: 0 | DI38: 34.28659652 | DJ38: 85.71649131 | DK38: 325.722667 | DL38: 0 | DM38: 3994.388495 | DN38: 0 | DO38: 0 | DP38: 17.14329826 | DQ38: 0 | DR38: 0 | DS38: 154.2896844 | DT38: 0 | DU38: 0 | DV38: 0 | DW38: 0 | DX38: 0 | DY38: 0 | DZ38: 51.42989479 | EA38: 0 | EB38: 0 | EC38: 0 | ED38: 0 | EE38: 0 | EF38: 0 | EG38: 0 | EH38: 0 | EI38: 0 | EJ38: 0 | EK38: 0 | EL38: 0 | EM38: 0 | EN38: 0 | EO38: 0 | EP38: 0 | EQ38: 0 | ER38: 0 | ES38: 0 | ET38: 0 | EU38: 0 | EV38: 0 | EW38: 0 | EX38: 0 | EY38: 0 | EZ38: 0 | FA38: 0 | FB38: 0 | FC38: 0 | FD38: 0 | FE38: 0 | FF38: 0 | FG38: 0 | FH38: 0 | FI38: 0 | FJ38: 0 | FK38: 0 | FL38: 0 | FM38: 0 | FN38: 0 | FO38: 0 | FP38: 0 | FQ38: 0 | FR38: 0 | FS38: 0 | FT38: 0 | FU38: 0 | FV38: 0 | FW38: 0 | FX38: 0 | FY38: 0 | FZ38: 0 | GA38: 0 | GB38: 0 | GC38: 0 | GD38: 0 | GE38: 0 | GF38: 0 | GG38: 0 | GH38: 0 | GI38: 0 | GJ38: 0
E39: > 132 kV; Steel | F39: 0.0001 | G39: 0 | H39: 0 | I39: 2
E40: Other | F40: 0.0001 | G40: 0 | H40: 0 | I40: 2
E41: ˂ = 1 kV | F41: 1.282546459 | G41: 0 | H41: 0 | I41: 2
E42: > 1 kV & < = 11 kV | F42: 1.128298953 | G42: 0 | H42: 0 | I42: 2
E43: ˃ 11 kV & < = 22 kV | F43: 0.0001 | G43: 0 | H43: 0 | I43: 2
E44: > 22 kV & < = 66 kV | F44: 1.863679043 | G44: 0 | H44: 0 | I44: 2
E45: > 66 kV & < = 132 kV | F45: 0.0001 | G45: 0 | H45: 0 | I45: 2
E46: > 132 kV | F46: 0.0001 | G46: 0 | H46: 0 | I46: 2
E47: Other | F47: 0.0001 | G47: 0 | H47: 0 | I47: 2
A48: 2 | D48: OVERHEAD CONDUCTORS | E48: ˂ = 1 kV | F48: 35.38826608 | G48: 67.82080267 | H48: 8.235338649 | I48: 2 | J48: 58 | K48: 89 | L48: 106 | M48: 94 | N48: 105 | O48: 101 | P48: 91 | Q48: 99 | R48: 97 | S48: 78 | T48: 65 | U48: 49 | V48: 74 | W48: 76 | X48: 95 | Y48: 80 | Z48: 97 | AA48: 106 | AB48: 77 | AC48: 129 | AD48: 143 | AE48: 172 | AF48: 182 | AG48: 191 | AH48: 231 | AI48: 231 | AJ48: 194 | AK48: 226 | AL48: 306 | AM48: 301 | AN48: 356 | AO48: 441 | AP48: 363 | AQ48: 364 | AR48: 368 | AS48: 428 | AT48: 480 | AU48: 491 | AV48: 496 | AW48: 524 | AX48: 465 | AY48: 489 | AZ48: 460 | BA48: 480 | BB48: 332 | BC48: 142 | BD48: 157 | BE48: 155 | BF48: 170 | BG48: 177 | BH48: 154 | BI48: 134 | BJ48: 121 | BK48: 130 | BL48: 130 | BM48: 123 | BN48: 98 | BO48: 104 | BP48: 94 | BQ48: 103 | BR48: 107 | BS48: 129 | BT48: 114 | BU48: 102 | BV48: 84 | BW48: 98 | BX48: 87 | BY48: 74 | BZ48: 62 | CA48: 166 | CB48: 14 | CC48: 17 | CD48: 35 | CE48: 48 | CF48: 51 | CG48: 56 | CH48: 51 | CI48: 90 | CJ48: 121 | CK48: 83 | CL48: 85 | CM48: 50 | CN48: 44 | CO48: 10 | CP48: 0 | CQ48: 0 | CR48: 0 | CS48: 0 | CT48: 0 | CU48: 0 | CV48: 0 | CX48: 2052.519433 | CY48: 3149.555681 | CZ48: 3751.156205 | DA48: 3326.497012 | DB48: 3715.767938 | DC48: 3574.214874 | DD48: 3220.332213 | DE48: 3503.438342 | DF48: 3432.66181 | DG48: 2760.284754 | DH48: 2300.237295 | DI48: 1734.025038 | DJ48: 2618.73169 | DK48: 2689.508222 | DL48: 3361.885278 | DM48: 2831.061286 | DN48: 3432.66181 | DO48: 3751.156205 | DP48: 2724.896488 | DQ48: 4565.086324 | DR48: 5060.52205 | DS48: 6086.781766 | DT48: 6440.664427 | DU48: 6759.158821 | DV48: 8174.689465 | DW48: 8174.689465 | DX48: 6865.32362 | DY48: 7997.748134 | DZ48: 10828.80942 | EA48: 10651.86809 | EB48: 12598.22272 | EC48: 15606.22534 | ED48: 12845.94059 | EE48: 12881.32885 | EF48: 13022.88192 | EG48: 15146.17788 | EH48: 16986.36772 | EI48: 17375.63865 | EJ48: 17552.57998 | EK48: 18543.45143 | EL48: 16455.54373 | EM48: 17304.86211 | EN48: 16278.6024 | EO48: 16986.36772 | EP48: 11748.90434 | EQ48: 5025.133783 | ER48: 5555.957775 | ES48: 5485.181242 | ET48: 6016.005234 | EU48: 6263.723096 | EV48: 5449.792976 | EW48: 4742.027655 | EX48: 4281.980196 | EY48: 4600.47459 | EZ48: 4600.47459 | FA48: 4352.756728 | FB48: 3468.050076 | FC48: 3680.379672 | FD48: 3326.497012 | FE48: 3644.991406 | FF48: 3786.544471 | FG48: 4565.086324 | FH48: 4034.262333 | FI48: 3609.60314 | FJ48: 2972.614351 | FK48: 3468.050076 | FL48: 3078.779149 | FM48: 2618.73169 | FN48: 2194.072497 | FO48: 5874.452169 | FP48: 495.4357251 | FQ48: 601.6005234 | FR48: 1238.589313 | FS48: 1698.636772 | FT48: 1804.80157 | FU48: 1981.742901 | FV48: 1804.80157 | FW48: 3184.943947 | FX48: 4281.980196 | FY48: 2937.226085 | FZ48: 3008.002617 | GA48: 1769.413304 | GB48: 1557.083708 | GC48: 353.8826608 | GD48: 0 | GE48: 0 | GF48: 0 | GG48: 0 | GH48: 0 | GI48: 0 | GJ48: 0
A49: 2 | D49: OVERHEAD CONDUCTORS | E49: > 1 kV & < = 11 kV | F49: 27.38749826 | G49: 69.10337904 | H49: 8.312844221 | I49: 2 | J49: 117 | K49: 157 | L49: 179 | M49: 189 | N49: 199 | O49: 191 | P49: 185 | Q49: 205 | R49: 182 | S49: 160 | T49: 132 | U49: 115 | V49: 145 | W49: 171 | X49: 185 | Y49: 184 | Z49: 197 | AA49: 200 | AB49: 157 | AC49: 205 | AD49: 200 | AE49: 196 | AF49: 243 | AG49: 304 | AH49: 313 | AI49: 315 | AJ49: 317 | AK49: 325 | AL49: 404 | AM49: 371 | AN49: 422 | AO49: 550 | AP49: 554 | AQ49: 548 | AR49: 508 | AS49: 532 | AT49: 595 | AU49: 538 | AV49: 544 | AW49: 560 | AX49: 521 | AY49: 479 | AZ49: 474 | BA49: 493 | BB49: 333 | BC49: 101 | BD49: 106 | BE49: 135 | BF49: 126 | BG49: 150 | BH49: 124 | BI49: 103 | BJ49: 103 | BK49: 128 | BL49: 102 | BM49: 114 | BN49: 108 | BO49: 149 | BP49: 118 | BQ49: 109 | BR49: 163 | BS49: 146 | BT49: 103 | BU49: 103 | BV49: 72 | BW49: 74 | BX49: 102 | BY49: 77 | BZ49: 66 | CA49: 101 | CB49: 15 | CC49: 14 | CD49: 33 | CE49: 56 | CF49: 87 | CG49: 74 | CH49: 48 | CI49: 59 | CJ49: 52 | CK49: 31 | CL49: 64 | CM49: 22 | CN49: 56 | CO49: 5 | CP49: 0 | CQ49: 0 | CR49: 0 | CS49: 0 | CT49: 0 | CU49: 0 | CV49: 2 | CX49: 3204.337296 | CY49: 4299.837227 | CZ49: 4902.362188 | DA49: 5176.237171 | DB49: 5450.112153 | DC49: 5231.012167 | DD49: 5066.687178 | DE49: 5614.437143 | DF49: 4984.524683 | DG49: 4381.999721 | DH49: 3615.14977 | DI49: 3149.5623 | DJ49: 3971.187247 | DK49: 4683.262202 | DL49: 5066.687178 | DM49: 5039.299679 | DN49: 5395.337157 | DO49: 5477.499652 | DP49: 4299.837227 | DQ49: 5614.437143 | DR49: 5477.499652 | DS49: 5367.949659 | DT49: 6655.162077 | DU49: 8325.79947 | DV49: 8572.286955 | DW49: 8627.061951 | DX49: 8681.836948 | DY49: 8900.936934 | DZ49: 11064.5493 | EA49: 10160.76185 | EB49: 11557.52426 | EC49: 15063.12404 | ED49: 15172.67403 | EE49: 15008.34905 | EF49: 13912.84912 | EG49: 14570.14907 | EH49: 16295.56146 | EI49: 14734.47406 | EJ49: 14898.79905 | EK49: 15336.99902 | EL49: 14268.88659 | EM49: 13118.61167 | EN49: 12981.67417 | EO49: 13502.03664 | EP49: 9120.03692 | EQ49: 2766.137324 | ER49: 2903.074815 | ES49: 3697.312265 | ET49: 3450.824781 | EU49: 4108.124739 | EV49: 3396.049784 | EW49: 2820.912321 | EX49: 2820.912321 | EY49: 3505.599777 | EZ49: 2793.524822 | FA49: 3122.174801 | FB49: 2957.849812 | FC49: 4080.73724 | FD49: 3231.724794 | FE49: 2985.23731 | FF49: 4464.162216 | FG49: 3998.574746 | FH49: 2820.912321 | FI49: 2820.912321 | FJ49: 1971.899875 | FK49: 2026.674871 | FL49: 2793.524822 | FM49: 2108.837366 | FN49: 1807.574885 | FO49: 2766.137324 | FP49: 410.8124739 | FQ49: 383.4249756 | FR49: 903.7874425 | FS49: 1533.699902 | FT49: 2382.712348 | FU49: 2026.674871 | FV49: 1314.599916 | FW49: 1615.862397 | FX49: 1424.149909 | FY49: 849.012446 | FZ49: 1752.799889 | GA49: 602.5249617 | GB49: 1533.699902 | GC49: 136.9374913 | GD49: 0 | GE49: 0 | GF49: 0 | GG49: 0 | GH49: 0 | GI49: 0 | GJ49: 54.77499652
A50: 2 | D50: OVERHEAD CONDUCTORS | E50: ˃ 11 kV & < = 22 kV ; SWER | F50: 54.14117106 | G50: 72.42767779 | H50: 8.510445217 | I50: 2 | J50: 0 | K50: 0 | L50: 0 | M50: 0 | N50: 0 | O50: 0 | P50: 0 | Q50: 2 | R50: 0 | S50: 0 | T50: 1 | U50: 0 | V50: 0 | W50: 1 | X50: 0 | Y50: 0 | Z50: 0 | AA50: 0 | AB50: 0 | AC50: 0 | AD50: 0 | AE50: 23 | AF50: 12 | AG50: 0 | AH50: 0 | AI50: 0 | AJ50: 0 | AK50: 0 | AL50: 0 | AM50: 0 | AN50: 0 | AO50: 0 | AP50: 0 | AQ50: 0 | AR50: 0 | AS50: 0 | AT50: 0 | AU50: 0 | AV50: 0 | AW50: 0 | AX50: 0 | AY50: 0 | AZ50: 0 | BA50: 0 | BB50: 0 | BC50: 0 | BD50: 0 | BE50: 0 | BF50: 0 | BG50: 0 | BH50: 0 | BI50: 0 | BJ50: 0 | BK50: 0 | BL50: 0 | BM50: 0 | BN50: 0 | BO50: 0 | BP50: 0 | BQ50: 0 | BR50: 0 | BS50: 0 | BT50: 0 | BU50: 0 | BV50: 0 | BW50: 0 | BX50: 0 | BY50: 0 | BZ50: 0 | CA50: 0 | CB50: 0 | CC50: 0 | CD50: 0 | CE50: 0 | CF50: 0 | CG50: 0 | CH50: 0 | CI50: 0 | CJ50: 0 | CK50: 0 | CL50: 0 | CM50: 0 | CN50: 0 | CO50: 0 | CP50: 0 | CQ50: 0 | CR50: 0 | CS50: 0 | CT50: 0 | CU50: 0 | CV50: 0 | CX50: 0 | CY50: 0 | CZ50: 0 | DA50: 0 | DB50: 0 | DC50: 0 | DD50: 0 | DE50: 108.2823421 | DF50: 0 | DG50: 0 | DH50: 54.14117106 | DI50: 0 | DJ50: 0 | DK50: 54.14117106 | DL50: 0 | DM50: 0 | DN50: 0 | DO50: 0 | DP50: 0 | DQ50: 0 | DR50: 0 | DS50: 1245.246934 | DT50: 649.6940527 | DU50: 0 | DV50: 0 | DW50: 0 | DX50: 0 | DY50: 0 | DZ50: 0 | EA50: 0 | EB50: 0 | EC50: 0 | ED50: 0 | EE50: 0 | EF50: 0 | EG50: 0 | EH50: 0 | EI50: 0 | EJ50: 0 | EK50: 0 | EL50: 0 | EM50: 0 | EN50: 0 | EO50: 0 | EP50: 0 | EQ50: 0 | ER50: 0 | ES50: 0 | ET50: 0 | EU50: 0 | EV50: 0 | EW50: 0 | EX50: 0 | EY50: 0 | EZ50: 0 | FA50: 0 | FB50: 0 | FC50: 0 | FD50: 0 | FE50: 0 | FF50: 0 | FG50: 0 | FH50: 0 | FI50: 0 | FJ50: 0 | FK50: 0 | FL50: 0 | FM50: 0 | FN50: 0 | FO50: 0 | FP50: 0 | FQ50: 0 | FR50: 0 | FS50: 0 | FT50: 0 | FU50: 0 | FV50: 0 | FW50: 0 | FX50: 0 | FY50: 0 | FZ50: 0 | GA50: 0 | GB50: 0 | GC50: 0 | GD50: 0 | GE50: 0 | GF50: 0 | GG50: 0 | GH50: 0 | GI50: 0 | GJ50: 0
E51: ˃ 11 kV & < = 22 kV ; Single-Phase | F51: 30.55047338 | G51: 0 | H51: 0 | I51: 2
E52: ˃ 11 kV & < = 22 kV ; Multiple-Phase | F52: 58.45200256 | G52: 0 | H52: 0 | I52: 2
A53: 2 | D53: OVERHEAD CONDUCTORS | E53: > 22 kV & < = 66 kV | F53: 223.3273105 | G53: 87.00177762 | H53: 9.327474343 | I53: 2 | J53: 1 | K53: 4 | L53: 3 | M53: 42 | N53: 38 | O53: 9 | P53: 46 | Q53: 10 | R53: 16 | S53: 8 | T53: 13 | U53: 34 | V53: 24 | W53: 18 | X53: 9 | Y53: 17 | Z53: 9 | AA53: 18 | AB53: 9 | AC53: 2 | AD53: 0 | AE53: 0 | AF53: 5 | AG53: 19 | AH53: 32 | AI53: 6 | AJ53: 10 | AK53: 8 | AL53: 20 | AM53: 1 | AN53: 16 | AO53: 23 | AP53: 10 | AQ53: 42 | AR53: 48 | AS53: 39 | AT53: 35 | AU53: 50 | AV53: 82 | AW53: 94 | AX53: 83 | AY53: 97 | AZ53: 126 | BA53: 164 | BB53: 195 | BC53: 3 | BD53: 5 | BE53: 3 | BF53: 15 | BG53: 11 | BH53: 13 | BI53: 10 | BJ53: 6 | BK53: 1 | BL53: 13 | BM53: 3 | BN53: 8 | BO53: 32 | BP53: 9 | BQ53: 5 | BR53: 5 | BS53: 6 | BT53: 42 | BU53: 37 | BV53: 18 | BW53: 1 | BX53: 32 | BY53: 8 | BZ53: 3 | CA53: 39 | CB53: 9 | CC53: 6 | CD53: 13 | CE53: 85 | CF53: 54 | CG53: 27 | CH53: 14 | CI53: 20 | CJ53: 39 | CK53: 28 | CL53: 15 | CM53: 0 | CN53: 23 | CO53: 0 | CP53: 0 | CQ53: 0 | CR53: 0 | CS53: 0 | CT53: 0 | CU53: 0 | CV53: 0 | CX53: 223.3273105 | CY53: 893.309242 | CZ53: 669.9819315 | DA53: 9379.747041 | DB53: 8486.437799 | DC53: 2009.945794 | DD53: 10273.05628 | DE53: 2233.273105 | DF53: 3573.236968 | DG53: 1786.618484 | DH53: 2903.255036 | DI53: 7593.128557 | DJ53: 5359.855452 | DK53: 4019.891589 | DL53: 2009.945794 | DM53: 3796.564278 | DN53: 2009.945794 | DO53: 4019.891589 | DP53: 2009.945794 | DQ53: 446.654621 | DR53: 0 | DS53: 0 | DT53: 1116.636552 | DU53: 4243.218899 | DV53: 7146.473936 | DW53: 1339.963863 | DX53: 2233.273105 | DY53: 1786.618484 | DZ53: 4466.54621 | EA53: 223.3273105 | EB53: 3573.236968 | EC53: 5136.528141 | ED53: 2233.273105 | EE53: 9379.747041 | EF53: 10719.7109 | EG53: 8709.765109 | EH53: 7816.455867 | EI53: 11166.36552 | EJ53: 18312.83946 | EK53: 20992.76719 | EL53: 18536.16677 | EM53: 21662.74912 | EN53: 28139.24112 | EO53: 36625.67892 | EP53: 43548.82555 | EQ53: 669.9819315 | ER53: 1116.636552 | ES53: 669.9819315 | ET53: 3349.909657 | EU53: 2456.600415 | EV53: 2903.255036 | EW53: 2233.273105 | EX53: 1339.963863 | EY53: 223.3273105 | EZ53: 2903.255036 | FA53: 669.9819315 | FB53: 1786.618484 | FC53: 7146.473936 | FD53: 2009.945794 | FE53: 1116.636552 | FF53: 1116.636552 | FG53: 1339.963863 | FH53: 9379.747041 | FI53: 8263.110488 | FJ53: 4019.891589 | FK53: 223.3273105 | FL53: 7146.473936 | FM53: 1786.618484 | FN53: 669.9819315 | FO53: 8709.765109 | FP53: 2009.945794 | FQ53: 1339.963863 | FR53: 2903.255036 | FS53: 18982.82139 | FT53: 12059.67477 | FU53: 6029.837383 | FV53: 3126.582347 | FW53: 4466.54621 | FX53: 8709.765109 | FY53: 6253.164694 | FZ53: 3349.909657 | GA53: 0 | GB53: 5136.528141 | GC53: 0 | GD53: 0 | GE53: 0 | GF53: 0 | GG53: 0 | GH53: 0 | GI53: 0 | GJ53: 0
A54: 2 | D54: OVERHEAD CONDUCTORS | E54: > 66 kV & < = 132 kV | F54: 292.3861714 | G54: 72.42767779 | H54: 8.510445217 | I54: 2 | J54: 2 | K54: 0 | L54: 6 | M54: 23 | N54: 4 | O54: 0 | P54: 9 | Q54: 41 | R54: 16 | S54: 0 | T54: 11 | U54: 0 | V54: 6 | W54: 14 | X54: 12 | Y54: 197 | Z54: 0 | AA54: 0 | AB54: 0 | AC54: 0 | AD54: 0 | AE54: 35 | AF54: 10 | AG54: 7 | AH54: 0 | AI54: 0 | AJ54: 13 | AK54: 15 | AL54: 4 | AM54: 12 | AN54: 0 | AO54: 40 | AP54: 7 | AQ54: 0 | AR54: 7 | AS54: 59 | AT54: 0 | AU54: 20 | AV54: 0 | AW54: 2 | AX54: 0 | AY54: 0 | AZ54: 6 | BA54: 24 | BB54: 2 | BC54: 0 | BD54: 0 | BE54: 0 | BF54: 0 | BG54: 0 | BH54: 0 | BI54: 0 | BJ54: 0 | BK54: 0 | BL54: 0 | BM54: 0 | BN54: 0 | BO54: 0 | BP54: 0 | BQ54: 0 | BR54: 0 | BS54: 0 | BT54: 0 | BU54: 0 | BV54: 0 | BW54: 0 | BX54: 0 | BY54: 0 | BZ54: 0 | CA54: 528 | CB54: 0 | CC54: 0 | CD54: 0 | CE54: 0 | CF54: 0 | CG54: 0 | CH54: 0 | CI54: 0 | CJ54: 0 | CK54: 0 | CL54: 0 | CM54: 0 | CN54: 0 | CO54: 0 | CP54: 0 | CQ54: 0 | CR54: 0 | CS54: 0 | CT54: 0 | CU54: 0 | CV54: 0 | CX54: 584.7723428 | CY54: 0 | CZ54: 1754.317028 | DA54: 6724.881942 | DB54: 1169.544686 | DC54: 0 | DD54: 2631.475542 | DE54: 11987.83303 | DF54: 4678.178742 | DG54: 0 | DH54: 3216.247885 | DI54: 0 | DJ54: 1754.317028 | DK54: 4093.406399 | DL54: 3508.634057 | DM54: 57600.07576 | DN54: 0 | DO54: 0 | DP54: 0 | DQ54: 0 | DR54: 0 | DS54: 10233.516 | DT54: 2923.861714 | DU54: 2046.7032 | DV54: 0 | DW54: 0 | DX54: 3801.020228 | DY54: 4385.792571 | DZ54: 1169.544686 | EA54: 3508.634057 | EB54: 0 | EC54: 11695.44686 | ED54: 2046.7032 | EE54: 0 | EF54: 2046.7032 | EG54: 17250.78411 | EH54: 0 | EI54: 5847.723428 | EJ54: 0 | EK54: 584.7723428 | EL54: 0 | EM54: 0 | EN54: 1754.317028 | EO54: 7017.268113 | EP54: 584.7723428 | EQ54: 0 | ER54: 0 | ES54: 0 | ET54: 0 | EU54: 0 | EV54: 0 | EW54: 0 | EX54: 0 | EY54: 0 | EZ54: 0 | FA54: 0 | FB54: 0 | FC54: 0 | FD54: 0 | FE54: 0 | FF54: 0 | FG54: 0 | FH54: 0 | FI54: 0 | FJ54: 0 | FK54: 0 | FL54: 0 | FM54: 0 | FN54: 0 | FO54: 154379.8985 | FP54: 0 | FQ54: 0 | FR54: 0 | FS54: 0 | FT54: 0 | FU54: 0 | FV54: 0 | FW54: 0 | FX54: 0 | FY54: 0 | FZ54: 0 | GA54: 0 | GB54: 0 | GC54: 0 | GD54: 0 | GE54: 0 | GF54: 0 | GG54: 0 | GH54: 0 | GI54: 0 | GJ54: 0
E55: > 132 kV | F55: 911.106186 | G55: 0 | H55: 0 | I55: 2
E56: Other | F56: 0.0001 | G56: 0 | H56: 0 | I56: 2
A57: 3 | D57: UNDERGROUND CABLES | E57: ˂ = 1 kV | F57: 163.1286715 | G57: 67.83429509 | H57: 8.236157787 | I57: 2 | J57: 64 | K57: 143 | L57: 227 | M57: 265 | N57: 263 | O57: 381 | P57: 461 | Q57: 488 | R57: 445 | S57: 553 | T57: 472 | U57: 311 | V57: 413 | W57: 417 | X57: 348 | Y57: 326 | Z57: 322 | AA57: 322 | AB57: 322 | AC57: 321 | AD57: 322 | AE57: 323 | AF57: 322 | AG57: 322 | AH57: 322 | AI57: 321 | AJ57: 322 | AK57: 321 | AL57: 321 | AM57: 322 | AN57: 0 | AO57: 0 | AP57: 0 | AQ57: 0 | AR57: 0 | AS57: 0 | AT57: 1 | AU57: 1 | AV57: 0 | AW57: 1 | AX57: 1 | AY57: 1 | AZ57: 1 | BA57: 2 | BB57: 1 | BC57: 2 | BD57: 2 | BE57: 2 | BF57: 2 | BG57: 1 | BH57: 1 | BI57: 1 | BJ57: 1 | BK57: 1 | BL57: 0 | BM57: 0 | BN57: 1 | BO57: 0 | BP57: 0 | BQ57: 0 | BR57: 1 | BS57: 0 | BT57: 1 | BU57: 1 | BV57: 0 | BW57: 0 | BX57: 0 | BY57: 0 | BZ57: 0 | CA57: 433 | CB57: 0 | CC57: 0 | CD57: 0 | CE57: 0 | CF57: 0 | CG57: 0 | CH57: 0 | CI57: 0 | CJ57: 1 | CK57: 1 | CL57: 1 | CM57: 0 | CN57: 0 | CO57: 0 | CP57: 0 | CQ57: 0 | CR57: 0 | CS57: 0 | CT57: 0 | CU57: 0 | CV57: 0 | CX57: 10440.23497 | CY57: 23327.40002 | CZ57: 37030.20842 | DA57: 43229.09794 | DB57: 42902.84059 | DC57: 62152.02382 | DD57: 75202.31754 | DE57: 79606.79167 | DF57: 72592.2588 | DG57: 90210.15531 | DH57: 76996.73293 | DI57: 50733.01682 | DJ57: 67372.14131 | DK57: 68024.656 | DL57: 56768.77767 | DM57: 53179.94689 | DN57: 52527.43221 | DO57: 52527.43221 | DP57: 52527.43221 | DQ57: 52364.30354 | DR57: 52527.43221 | DS57: 52690.56088 | DT57: 52527.43221 | DU57: 52527.43221 | DV57: 52527.43221 | DW57: 52364.30354 | DX57: 52527.43221 | DY57: 52364.30354 | DZ57: 52364.30354 | EA57: 52527.43221 | EB57: 0 | EC57: 0 | ED57: 0 | EE57: 0 | EF57: 0 | EG57: 0 | EH57: 163.1286715 | EI57: 163.1286715 | EJ57: 0 | EK57: 163.1286715 | EL57: 163.1286715 | EM57: 163.1286715 | EN57: 163.1286715 | EO57: 326.2573429 | EP57: 163.1286715 | EQ57: 326.2573429 | ER57: 326.2573429 | ES57: 326.2573429 | ET57: 326.2573429 | EU57: 163.1286715 | EV57: 163.1286715 | EW57: 163.1286715 | EX57: 163.1286715 | EY57: 163.1286715 | EZ57: 0 | FA57: 0 | FB57: 163.1286715 | FC57: 0 | FD57: 0 | FE57: 0 | FF57: 163.1286715 | FG57: 0 | FH57: 163.1286715 | FI57: 163.1286715 | FJ57: 0 | FK57: 0 | FL57: 0 | FM57: 0 | FN57: 0 | FO57: 70634.71474 | FP57: 0 | FQ57: 0 | FR57: 0 | FS57: 0 | FT57: 0 | FU57: 0 | FV57: 0 | FW57: 0 | FX57: 163.1286715 | FY57: 163.1286715 | FZ57: 163.1286715 | GA57: 0 | GB57: 0 | GC57: 0 | GD57: 0 | GE57: 0 | GF57: 0 | GG57: 0 | GH57: 0 | GI57: 0 | GJ57: 0
A58: 3 | D58: UNDERGROUND CABLES | E58: > 1 kV & < = 11 kV | F58: 610.1107977 | G58: 69.16445373 | H58: 8.316516923 | I58: 2 | J58: 15 | K58: 64 | L58: 95 | M58: 128 | N58: 185 | O58: 219 | P58: 269 | Q58: 331 | R58: 398 | S58: 305 | T58: 210 | U58: 134 | V58: 437 | W58: 236 | X58: 192 | Y58: 330 | Z58: 123 | AA58: 103 | AB58: 101 | AC58: 100 | AD58: 98 | AE58: 101 | AF58: 98 | AG58: 106 | AH58: 102 | AI58: 106 | AJ58: 105 | AK58: 103 | AL58: 105 | AM58: 99 | AN58: 7 | AO58: 8 | AP58: 3 | AQ58: 5 | AR58: 4 | AS58: 1 | AT58: 14 | AU58: 9 | AV58: 13 | AW58: 10 | AX58: 1 | AY58: 15 | AZ58: 8 | BA58: 13 | BB58: 8 | BC58: 5 | BD58: 3 | BE58: 8 | BF58: 4 | BG58: 2 | BH58: 1 | BI58: 5 | BJ58: 5 | BK58: 0 | BL58: 0 | BM58: 0 | BN58: 1 | BO58: 2 | BP58: 0 | BQ58: 0 | BR58: 1 | BS58: 0 | BT58: 0 | BU58: 0 | BV58: 0 | BW58: 0 | BX58: 0 | BY58: 0 | BZ58: 0 | CA58: 250 | CB58: 0 | CC58: 0 | CD58: 0 | CE58: 0 | CF58: 0 | CG58: 0 | CH58: 1 | CI58: 0 | CJ58: 0 | CK58: 0 | CL58: 0 | CM58: 0 | CN58: 2 | CO58: 0 | CP58: 0 | CQ58: 0 | CR58: 0 | CS58: 0 | CT58: 0 | CU58: 0 | CV58: 0 | CX58: 9151.661965 | CY58: 39047.09105 | CZ58: 57960.52578 | DA58: 78094.1821 | DB58: 112870.4976 | DC58: 133614.2647 | DD58: 164119.8046 | DE58: 201946.674 | DF58: 242824.0975 | DG58: 186083.7933 | DH58: 128123.2675 | DI58: 81754.84689 | DJ58: 266618.4186 | DK58: 143986.1483 | DL58: 117141.2732 | DM58: 201336.5632 | DN58: 75043.62811 | DO58: 62841.41216 | DP58: 61621.19057 | DQ58: 61011.07977 | DR58: 59790.85817 | DS58: 61621.19057 | DT58: 59790.85817 | DU58: 64671.74455 | DV58: 62231.30136 | DW58: 64671.74455 | DX58: 64061.63376 | DY58: 62841.41216 | DZ58: 64061.63376 | EA58: 60400.96897 | EB58: 4270.775584 | EC58: 4880.886381 | ED58: 1830.332393 | EE58: 3050.553988 | EF58: 2440.443191 | EG58: 610.1107977 | EH58: 8541.551168 | EI58: 5490.997179 | EJ58: 7931.44037 | EK58: 6101.107977 | EL58: 610.1107977 | EM58: 9151.661965 | EN58: 4880.886381 | EO58: 7931.44037 | EP58: 4880.886381 | EQ58: 3050.553988 | ER58: 1830.332393 | ES58: 4880.886381 | ET58: 2440.443191 | EU58: 1220.221595 | EV58: 610.1107977 | EW58: 3050.553988 | EX58: 3050.553988 | EY58: 0 | EZ58: 0 | FA58: 0 | FB58: 610.1107977 | FC58: 1220.221595 | FD58: 0 | FE58: 0 | FF58: 610.1107977 | FG58: 0 | FH58: 0 | FI58: 0 | FJ58: 0 | FK58: 0 | FL58: 0 | FM58: 0 | FN58: 0 | FO58: 152527.6994 | FP58: 0 | FQ58: 0 | FR58: 0 | FS58: 0 | FT58: 0 | FU58: 0 | FV58: 610.1107977 | FW58: 0 | FX58: 0 | FY58: 0 | FZ58: 0 | GA58: 0 | GB58: 1220.221595 | GC58: 0 | GD58: 0 | GE58: 0 | GF58: 0 | GG58: 0 | GH58: 0 | GI58: 0 | GJ58: 0
E59: > 11 kV & < = 22 kV | F59: 522.0756578 | G59: 0 | H59: 0 | I59: 2
A60: 3 | D60: UNDERGROUND CABLES | E60: > 22 kV & < = 33 kV | F60: 738.9735413 | G60: 69.52495101 | H60: 8.338162328 | I60: 2 | J60: 0 | K60: 7 | L60: 7 | M60: 42 | N60: 10 | O60: 30 | P60: 28 | Q60: 47 | R60: 59 | S60: 56 | T60: 12 | U60: 42 | V60: 72 | W60: 41 | X60: 73 | Y60: 1 | Z60: 8 | AA60: 1 | AB60: 0 | AC60: 0 | AD60: 0 | AE60: 0 | AF60: 0 | AG60: 8 | AH60: 9 | AI60: 0 | AJ60: 0 | AK60: 8 | AL60: 2 | AM60: 0 | AN60: 3 | AO60: 0 | AP60: 0 | AQ60: 0 | AR60: 0 | AS60: 0 | AT60: 25 | AU60: 0 | AV60: 4 | AW60: 5 | AX60: 6 | AY60: 9 | AZ60: 11 | BA60: 53 | BB60: 9 | BC60: 17 | BD60: 0 | BE60: 22 | BF60: 13 | BG60: 0 | BH60: 3 | BI60: 3 | BJ60: 1 | BK60: 0 | BL60: 0 | BM60: 26 | BN60: 7 | BO60: 0 | BP60: 0 | BQ60: 0 | BR60: 35 | BS60: 0 | BT60: 0 | BU60: 0 | BV60: 0 | BW60: 0 | BX60: 0 | BY60: 0 | BZ60: 0 | CA60: 67 | CB60: 0 | CC60: 0 | CD60: 0 | CE60: 0 | CF60: 0 | CG60: 0 | CH60: 6 | CI60: 3 | CJ60: 0 | CK60: 0 | CL60: 0 | CM60: 0 | CN60: 0 | CO60: 0 | CP60: 0 | CQ60: 0 | CR60: 0 | CS60: 0 | CT60: 0 | CU60: 0 | CV60: 0 | CX60: 0 | CY60: 5172.814789 | CZ60: 5172.814789 | DA60: 31036.88874 | DB60: 7389.735413 | DC60: 22169.20624 | DD60: 20691.25916 | DE60: 34731.75644 | DF60: 43599.43894 | DG60: 41382.51831 | DH60: 8867.682496 | DI60: 31036.88874 | DJ60: 53206.09498 | DK60: 30297.91519 | DL60: 53945.06852 | DM60: 738.9735413 | DN60: 5911.788331 | DO60: 738.9735413 | DP60: 0 | DQ60: 0 | DR60: 0 | DS60: 0 | DT60: 0 | DU60: 5911.788331 | DV60: 6650.761872 | DW60: 0 | DX60: 0 | DY60: 5911.788331 | DZ60: 1477.947083 | EA60: 0 | EB60: 2216.920624 | EC60: 0 | ED60: 0 | EE60: 0 | EF60: 0 | EG60: 0 | EH60: 18474.33853 | EI60: 0 | EJ60: 2955.894165 | EK60: 3694.867707 | EL60: 4433.841248 | EM60: 6650.761872 | EN60: 8128.708955 | EO60: 39165.59769 | EP60: 6650.761872 | EQ60: 12562.5502 | ER60: 0 | ES60: 16257.41791 | ET60: 9606.656037 | EU60: 0 | EV60: 2216.920624 | EW60: 2216.920624 | EX60: 738.9735413 | EY60: 0 | EZ60: 0 | FA60: 19213.31207 | FB60: 5172.814789 | FC60: 0 | FD60: 0 | FE60: 0 | FF60: 25864.07395 | FG60: 0 | FH60: 0 | FI60: 0 | FJ60: 0 | FK60: 0 | FL60: 0 | FM60: 0 | FN60: 0 | FO60: 49511.22727 | FP60: 0 | FQ60: 0 | FR60: 0 | FS60: 0 | FT60: 0 | FU60: 0 | FV60: 4433.841248 | FW60: 2216.920624 | FX60: 0 | FY60: 0 | FZ60: 0 | GA60: 0 | GB60: 0 | GC60: 0 | GD60: 0 | GE60: 0 | GF60: 0 | GG60: 0 | GH60: 0 | GI60: 0 | GJ60: 0
E61: > 33 kV & < = 66 kV | F61: 156.9692204 | G61: 0 | H61: 0 | I61: 2
A62: 3 | D62: UNDERGROUND CABLES | E62: > 66 kV & < = 132 kV | F62: 3019.570588 | G62: 69.16445373 | H62: 8.316516923 | I62: 2 | J62: 0 | K62: 1 | L62: 6 | M62: 1 | N62: 7 | O62: 0 | P62: 9 | Q62: 29 | R62: 22 | S62: 2 | T62: 2 | U62: 1 | V62: 15 | W62: 2 | X62: 32 | Y62: 13 | Z62: 0 | AA62: 0 | AB62: 0 | AC62: 0 | AD62: 0 | AE62: 0 | AF62: 0 | AG62: 0 | AH62: 0 | AI62: 0 | AJ62: 3 | AK62: 0 | AL62: 0 | AM62: 0 | AN62: 0 | AO62: 0 | AP62: 0 | AQ62: 0 | AR62: 0 | AS62: 0 | AT62: 1 | AU62: 0 | AV62: 0 | AW62: 0 | AX62: 0 | AY62: 0 | AZ62: 0 | BA62: 0 | BB62: 0 | BC62: 0 | BD62: 0 | BE62: 0 | BF62: 0 | BG62: 0 | BH62: 0 | BI62: 0 | BJ62: 0 | BK62: 0 | BL62: 0 | BM62: 0 | BN62: 0 | BO62: 0 | BP62: 0 | BQ62: 0 | BR62: 0 | BS62: 0 | BT62: 0 | BU62: 0 | BV62: 0 | BW62: 0 | BX62: 0 | BY62: 0 | BZ62: 0 | CA62: 0 | CB62: 0 | CC62: 0 | CD62: 0 | CE62: 0 | CF62: 0 | CG62: 0 | CH62: 0 | CI62: 0 | CJ62: 0 | CK62: 0 | CL62: 0 | CM62: 0 | CN62: 0 | CO62: 0 | CP62: 0 | CQ62: 0 | CR62: 0 | CS62: 0 | CT62: 0 | CU62: 0 | CV62: 0 | CX62: 0 | CY62: 3019.570588 | CZ62: 18117.42353 | DA62: 3019.570588 | DB62: 21136.99412 | DC62: 0 | DD62: 27176.13529 | DE62: 87567.54706 | DF62: 66430.55294 | DG62: 6039.141177 | DH62: 6039.141177 | DI62: 3019.570588 | DJ62: 45293.55882 | DK62: 6039.141177 | DL62: 96626.25882 | DM62: 39254.41765 | DN62: 0 | DO62: 0 | DP62: 0 | DQ62: 0 | DR62: 0 | DS62: 0 | DT62: 0 | DU62: 0 | DV62: 0 | DW62: 0 | DX62: 9058.711765 | DY62: 0 | DZ62: 0 | EA62: 0 | EB62: 0 | EC62: 0 | ED62: 0 | EE62: 0 | EF62: 0 | EG62: 0 | EH62: 3019.570588 | EI62: 0 | EJ62: 0 | EK62: 0 | EL62: 0 | EM62: 0 | EN62: 0 | EO62: 0 | EP62: 0 | EQ62: 0 | ER62: 0 | ES62: 0 | ET62: 0 | EU62: 0 | EV62: 0 | EW62: 0 | EX62: 0 | EY62: 0 | EZ62: 0 | FA62: 0 | FB62: 0 | FC62: 0 | FD62: 0 | FE62: 0 | FF62: 0 | FG62: 0 | FH62: 0 | FI62: 0 | FJ62: 0 | FK62: 0 | FL62: 0 | FM62: 0 | FN62: 0 | FO62: 0 | FP62: 0 | FQ62: 0 | FR62: 0 | FS62: 0 | FT62: 0 | FU62: 0 | FV62: 0 | FW62: 0 | FX62: 0 | FY62: 0 | FZ62: 0 | GA62: 0 | GB62: 0 | GC62: 0 | GD62: 0 | GE62: 0 | GF62: 0 | GG62: 0 | GH62: 0 | GI62: 0 | GJ62: 0
E63: > 132 kV | F63: 0.0001 | G63: 0 | H63: 0 | I63: 2
E64: Other | F64: 0.0001 | G64: 0 | H64: 0 | I64: 2
A65: 4 | D65: SERVICE LINES | E65: ˂ = 11 kV ; Residential ; Simple Type | F65: 0.6772914626 | G65: 39.82150394 | H65: 6.31042819 | I65: 2 | J65: 16959.28 | K65: 13281.85938 | L65: 20132.17938 | M65: 19227.81938 | N65: 21318.05938 | O65: 27044.13938 | P65: 34786.11612 | Q65: 31044.69303 | R65: 5927.379382 | S65: 5927.379382 | T65: 22750.02862 | U65: 23279.47528 | V65: 18161.49086 | W65: 17914.41575 | X65: 21091.09574 | Y65: 19467.4593 | Z65: 15655.44332 | AA65: 2435.98832 | AB65: 8172.625048 | AC65: 8172.625048 | AD65: 8172.625048 | AE65: 8172.625048 | AF65: 8172.625048 | AG65: 8172.625048 | AH65: 8172.625048 | AI65: 8172.625048 | AJ65: 8172.625048 | AK65: 8172.625048 | AL65: 9185.48929 | AM65: 9185.48929 | AN65: 9185.48929 | AO65: 9185.48929 | AP65: 9185.48929 | AQ65: 9185.48929 | AR65: 9185.48929 | AS65: 9185.48929 | AT65: 9185.48929 | AU65: 9185.48929 | AV65: 9185.48929 | AW65: 956.6647879 | AX65: 956.6647879 | AY65: 956.6647879 | AZ65: 956.6647879 | BA65: 956.6647879 | BB65: 956.6647879 | BC65: 956.6647879 | BD65: 956.6647879 | BE65: 956.6647879 | BF65: 956.6647879 | BG65: 956.6647879 | BH65: 956.6647879 | BI65: 956.6647879 | BJ65: 956.6647879 | BK65: 956.6647879 | BL65: 956.6647879 | BM65: 956.6647879 | BN65: 956.6647879 | BO65: 956.6647879 | BP65: 956.6647879 | BQ65: 956.6647879 | BR65: 956.6647879 | BS65: 0 | BT65: 0 | BU65: 0 | BV65: 0 | BW65: 0 | BX65: 0 | BY65: 0 | BZ65: 0 | CA65: 0 | CB65: 0 | CC65: 0 | CD65: 0 | CE65: 0 | CF65: 0 | CG65: 0 | CH65: 0 | CI65: 0 | CJ65: 0 | CK65: 0 | CL65: 0 | CM65: 0 | CN65: 0 | CO65: 0 | CP65: 0 | CQ65: 0 | CR65: 0 | CS65: 0 | CT65: 0 | CU65: 0 | CV65: 0 | CX65: 11486.37556 | CY65: 8995.689967 | CZ65: 13635.35322 | DA65: 13022.83791 | DB65: 14438.53962 | DC65: 18316.76472 | DD65: 23560.33946 | DE65: 21026.30554 | DF65: 4014.563451 | DG65: 4014.563451 | DH65: 15408.40016 | DI65: 15766.98986 | DJ65: 12300.62271 | DK65: 12133.28084 | DL65: 14284.81908 | DM65: 13185.14398 | DN65: 10603.2981 | DO65: 1649.874092 | DP65: 5535.249171 | DQ65: 5535.249171 | DR65: 5535.249171 | DS65: 5535.249171 | DT65: 5535.249171 | DU65: 5535.249171 | DV65: 5535.249171 | DW65: 5535.249171 | DX65: 5535.249171 | DY65: 5535.249171 | DZ65: 6221.253476 | EA65: 6221.253476 | EB65: 6221.253476 | EC65: 6221.253476 | ED65: 6221.253476 | EE65: 6221.253476 | EF65: 6221.253476 | EG65: 6221.253476 | EH65: 6221.253476 | EI65: 6221.253476 | EJ65: 6221.253476 | EK65: 647.9408934 | EL65: 647.9408934 | EM65: 647.9408934 | EN65: 647.9408934 | EO65: 647.9408934 | EP65: 647.9408934 | EQ65: 647.9408934 | ER65: 647.9408934 | ES65: 647.9408934 | ET65: 647.9408934 | EU65: 647.9408934 | EV65: 647.9408934 | EW65: 647.9408934 | EX65: 647.9408934 | EY65: 647.9408934 | EZ65: 647.9408934 | FA65: 647.9408934 | FB65: 647.9408934 | FC65: 647.9408934 | FD65: 647.9408934 | FE65: 647.9408934 | FF65: 647.9408934 | FG65: 0 | FH65: 0 | FI65: 0 | FJ65: 0 | FK65: 0 | FL65: 0 | FM65: 0 | FN65: 0 | FO65: 0 | FP65: 0 | FQ65: 0 | FR65: 0 | FS65: 0 | FT65: 0 | FU65: 0 | FV65: 0 | FW65: 0 | FX65: 0 | FY65: 0 | FZ65: 0 | GA65: 0 | GB65: 0 | GC65: 0 | GD65: 0 | GE65: 0 | GF65: 0 | GG65: 0 | GH65: 0 | GI65: 0 | GJ65: 0
A66: 4 | D66: SERVICE LINES | E66: ˂ = 11 kV ; Commercial & Industrial ; Simple Type | F66: 0.6792315943 | G66: 39.2912979 | H66: 6.268277108 | I66: 2 | J66: 1474.72 | K66: 1154.944294 | L66: 1750.624294 | M66: 1671.984294 | N66: 1853.744294 | O66: 2351.664294 | P66: 3024.879663 | Q66: 2699.538524 | R66: 515.4242941 | S66: 515.4242941 | T66: 1978.263358 | U66: 2024.302198 | V66: 1579.260075 | W66: 1557.775283 | X66: 1834.008325 | Y66: 1692.822548 | Z66: 1361.342897 | AA66: 211.8250713 | AB66: 710.6630476 | AC66: 710.6630476 | AD66: 710.6630476 | AE66: 710.6630476 | AF66: 710.6630476 | AG66: 710.6630476 | AH66: 710.6630476 | AI66: 710.6630476 | AJ66: 710.6630476 | AK66: 710.6630476 | AL66: 798.7381991 | AM66: 798.7381991 | AN66: 798.7381991 | AO66: 798.7381991 | AP66: 798.7381991 | AQ66: 798.7381991 | AR66: 798.7381991 | AS66: 798.7381991 | AT66: 798.7381991 | AU66: 798.7381991 | AV66: 798.7381991 | AW66: 83.18824242 | AX66: 83.18824242 | AY66: 83.18824242 | AZ66: 83.18824242 | BA66: 83.18824242 | BB66: 83.18824242 | BC66: 83.18824242 | BD66: 83.18824242 | BE66: 83.18824242 | BF66: 83.18824242 | BG66: 83.18824242 | BH66: 83.18824242 | BI66: 83.18824242 | BJ66: 83.18824242 | BK66: 83.18824242 | BL66: 83.18824242 | BM66: 83.18824242 | BN66: 83.18824242 | BO66: 83.18824242 | BP66: 83.18824242 | BQ66: 83.18824242 | BR66: 83.18824242 | BS66: 0 | BT66: 0 | BU66: 0 | BV66: 0 | BW66: 0 | BX66: 0 | BY66: 0 | BZ66: 0 | CA66: 0 | CB66: 0 | CC66: 0 | CD66: 0 | CE66: 0 | CF66: 0 | CG66: 0 | CH66: 0 | CI66: 0 | CJ66: 0 | CK66: 0 | CL66: 0 | CM66: 0 | CN66: 0 | CO66: 0 | CP66: 0 | CQ66: 0 | CR66: 0 | CS66: 0 | CT66: 0 | CU66: 0 | CV66: 0 | CX66: 1001.676417 | CY66: 784.4746542 | CZ66: 1189.07933 | DA66: 1135.664558 | DB66: 1259.121692 | DC66: 1597.324688 | DD66: 2054.593836 | DE66: 1833.611855 | DF66: 350.092465 | DG66: 350.092465 | DH66: 1343.698975 | DI66: 1374.970009 | DJ66: 1072.683338 | DK66: 1058.090189 | DL66: 1245.716398 | DM66: 1149.818558 | DN66: 924.6671062 | DO66: 143.8782809 | DP66: 482.7047948 | DQ66: 482.7047948 | DR66: 482.7047948 | DS66: 482.7047948 | DT66: 482.7047948 | DU66: 482.7047948 | DV66: 482.7047948 | DW66: 482.7047948 | DX66: 482.7047948 | DY66: 482.7047948 | DZ66: 542.5282204 | EA66: 542.5282204 | EB66: 542.5282204 | EC66: 542.5282204 | ED66: 542.5282204 | EE66: 542.5282204 | EF66: 542.5282204 | EG66: 542.5282204 | EH66: 542.5282204 | EI66: 542.5282204 | EJ66: 542.5282204 | EK66: 56.50408252 | EL66: 56.50408252 | EM66: 56.50408252 | EN66: 56.50408252 | EO66: 56.50408252 | EP66: 56.50408252 | EQ66: 56.50408252 | ER66: 56.50408252 | ES66: 56.50408252 | ET66: 56.50408252 | EU66: 56.50408252 | EV66: 56.50408252 | EW66: 56.50408252 | EX66: 56.50408252 | EY66: 56.50408252 | EZ66: 56.50408252 | FA66: 56.50408252 | FB66: 56.50408252 | FC66: 56.50408252 | FD66: 56.50408252 | FE66: 56.50408252 | FF66: 56.50408252 | FG66: 0 | FH66: 0 | FI66: 0 | FJ66: 0 | FK66: 0 | FL66: 0 | FM66: 0 | FN66: 0 | FO66: 0 | FP66: 0 | FQ66: 0 | FR66: 0 | FS66: 0 | FT66: 0 | FU66: 0 | FV66: 0 | FW66: 0 | FX66: 0 | FY66: 0 | FZ66: 0 | GA66: 0 | GB66: 0 | GC66: 0 | GD66: 0 | GE66: 0 | GF66: 0 | GG66: 0 | GH66: 0 | GI66: 0 | GJ66: 0
E67: ˂ = 11 kV ; Residential ; Complex Type | F67: 0.4708645922 | G67: 0 | H67: 0 | I67: 2
E68: ˂ = 11 kV ; Commercial & Industrial ; Complex Type | F68: 0.5117431138 | G68: 0 | H68: 0 | I68: 2
E69: ˂ = 11 kV ; Subdivision ; Complex Type | F69: 0.0001 | G69: 0 | H69: 0 | I69: 2
E70: > 11 kV & < = 22 kV ; Commercial & Industrial | F70: 0.0001 | G70: 0 | H70: 0 | I70: 2
E71: > 11 kV & < = 22 kV ; Subdivision | F71: 0.0001 | G71: 0 | H71: 0 | I71: 2
E72: > 22 kV & < = 33 kV ; Commercial & Industrial | F72: 0.0001 | G72: 0 | H72: 0 | I72: 2
E73: > 22 kV & < = 33 kV ; Subdivision | F73: 0.0001 | G73: 0 | H73: 0 | I73: 2
E74: > 33 kV & < = 66 kV ; Commercial & Industrial | F74: 0.0001 | G74: 0 | H74: 0 | I74: 2
E75: > 33 kV & < = 66 kV ; Subdivision | F75: 0.0001 | G75: 0 | H75: 0 | I75: 2
E76: > 66 kV & < = 132 kV ; Commercial & Industrial | F76: 0.0001 | G76: 0 | H76: 0 | I76: 2
E77: > 66 kV & < = 132 kV ; Subdivision | F77: 0.0001 | G77: 0 | H77: 0 | I77: 2
E78: > 132 kV ; Commercial & Industrial | F78: 0.0001 | G78: 0 | H78: 0 | I78: 2
E79: > 132 kV ; Subdivision | F79: 0.0001 | G79: 0 | H79: 0 | I79: 2
E80: Other | F80: 0.0001 | G80: 0 | H80: 0 | I80: 2
A81: 5 | D81: TRANSFORMERS | E81: Pole Mounted ; < = 22kV ; < = 60 kVA ; Single Phase | F81: 14.92636095 | G81: 52.23537166 | H81: 7.227404213 | I81: 2 | J81: 5 | K81: 118 | L81: 160 | M81: 154 | N81: 192 | O81: 249 | P81: 209 | Q81: 155 | R81: 55 | S81: 27 | T81: 80 | U81: 82 | V81: 64 | W81: 12 | X81: 62 | Y81: 15 | Z81: 3 | AA81: 10 | AB81: 65 | AC81: 142 | AD81: 237 | AE81: 159 | AF81: 167 | AG81: 187 | AH81: 169 | AI81: 335 | AJ81: 5 | AK81: 3 | AL81: 428 | AM81: 171 | AN81: 128 | AO81: 200 | AP81: 263 | AQ81: 160 | AR81: 285 | AS81: 140 | AT81: 258 | AU81: 178 | AV81: 80 | AW81: 28 | AX81: 51 | AY81: 35 | AZ81: 44 | BA81: 31 | BB81: 17 | BC81: 26 | BD81: 18 | BE81: 0 | BF81: 24 | BG81: 45 | BH81: 23 | BI81: 10 | BJ81: 8 | BK81: 8 | BL81: 0 | BM81: 0 | BN81: 0 | BO81: 0 | BP81: 0 | BQ81: 0 | BR81: 0 | BS81: 0 | BT81: 0 | BU81: 0 | BV81: 0 | BW81: 6 | BX81: 1 | BY81: 0 | BZ81: 0 | CA81: 0 | CB81: 0 | CC81: 0 | CD81: 0 | CE81: 0 | CF81: 0 | CG81: 0 | CH81: 0 | CI81: 0 | CJ81: 0 | CK81: 0 | CL81: 0 | CM81: 0 | CN81: 0 | CO81: 0 | CP81: 0 | CQ81: 0 | CR81: 0 | CS81: 0 | CT81: 0 | CU81: 0 | CV81: 0 | CX81: 74.63180475 | CY81: 1761.310592 | CZ81: 2388.217752 | DA81: 2298.659586 | DB81: 2865.861302 | DC81: 3716.663876 | DD81: 3119.609438 | DE81: 2313.585947 | DF81: 820.9498522 | DG81: 403.0117456 | DH81: 1194.108876 | DI81: 1223.961598 | DJ81: 955.2871007 | DK81: 179.1163314 | DL81: 925.4343789 | DM81: 223.8954142 | DN81: 44.77908285 | DO81: 149.2636095 | DP81: 970.2134617 | DQ81: 2119.543255 | DR81: 3537.547545 | DS81: 2373.291391 | DT81: 2492.702279 | DU81: 2791.229498 | DV81: 2522.555 | DW81: 5000.330918 | DX81: 74.63180475 | DY81: 44.77908285 | DZ81: 6388.482486 | EA81: 2552.407722 | EB81: 1910.574201 | EC81: 2985.27219 | ED81: 3925.63293 | EE81: 2388.217752 | EF81: 4254.012871 | EG81: 2089.690533 | EH81: 3851.001125 | EI81: 2656.892249 | EJ81: 1194.108876 | EK81: 417.9381066 | EL81: 761.2444084 | EM81: 522.4226332 | EN81: 656.7598818 | EO81: 462.7171894 | EP81: 253.7481361 | EQ81: 388.0853847 | ER81: 268.6744971 | ES81: 0 | ET81: 358.2326628 | EU81: 671.6862427 | EV81: 343.3063018 | EW81: 149.2636095 | EX81: 119.4108876 | EY81: 119.4108876 | EZ81: 0 | FA81: 0 | FB81: 0 | FC81: 0 | FD81: 0 | FE81: 0 | FF81: 0 | FG81: 0 | FH81: 0 | FI81: 0 | FJ81: 0 | FK81: 89.5581657 | FL81: 14.92636095 | FM81: 0 | FN81: 0 | FO81: 0 | FP81: 0 | FQ81: 0 | FR81: 0 | FS81: 0 | FT81: 0 | FU81: 0 | FV81: 0 | FW81: 0 | FX81: 0 | FY81: 0 | FZ81: 0 | GA81: 0 | GB81: 0 | GC81: 0 | GD81: 0 | GE81: 0 | GF81: 0 | GG81: 0 | GH81: 0 | GI81: 0 | GJ81: 0
A82: 5 | D82: TRANSFORMERS | E82: Pole Mounted ; < = 22kV ; > 60 kVA and < = 600 kVA ; Single Phase | F82: 19.86916228 | G82: 52.23537166 | H82: 7.227404213 | I82: 2 | J82: 0 | K82: 0 | L82: 2 | M82: 1 | N82: 2 | O82: 0 | P82: 0 | Q82: 0 | R82: 0 | S82: 0 | T82: 0 | U82: 0 | V82: 0 | W82: 0 | X82: 0 | Y82: 0 | Z82: 0 | AA82: 0 | AB82: 0 | AC82: 0 | AD82: 0 | AE82: 0 | AF82: 0 | AG82: 0 | AH82: 2 | AI82: 0 | AJ82: 0 | AK82: 0 | AL82: 0 | AM82: 0 | AN82: 0 | AO82: 0 | AP82: 0 | AQ82: 0 | AR82: 0 | AS82: 0 | AT82: 0 | AU82: 0 | AV82: 0 | AW82: 0 | AX82: 0 | AY82: 0 | AZ82: 0 | BA82: 0 | BB82: 0 | BC82: 0 | BD82: 0 | BE82: 0 | BF82: 0 | BG82: 0 | BH82: 0 | BI82: 0 | BJ82: 0 | BK82: 0 | BL82: 0 | BM82: 0 | BN82: 0 | BO82: 0 | BP82: 0 | BQ82: 0 | BR82: 0 | BS82: 0 | BT82: 0 | BU82: 0 | BV82: 0 | BW82: 0 | BX82: 0 | BY82: 0 | BZ82: 0 | CA82: 0 | CB82: 0 | CC82: 0 | CD82: 0 | CE82: 0 | CF82: 0 | CG82: 0 | CH82: 0 | CI82: 0 | CJ82: 0 | CK82: 0 | CL82: 0 | CM82: 0 | CN82: 0 | CO82: 0 | CP82: 0 | CQ82: 0 | CR82: 0 | CS82: 0 | CT82: 0 | CU82: 0 | CV82: 0 | CX82: 0 | CY82: 0 | CZ82: 39.73832456 | DA82: 19.86916228 | DB82: 39.73832456 | DC82: 0 | DD82: 0 | DE82: 0 | DF82: 0 | DG82: 0 | DH82: 0 | DI82: 0 | DJ82: 0 | DK82: 0 | DL82: 0 | DM82: 0 | DN82: 0 | DO82: 0 | DP82: 0 | DQ82: 0 | DR82: 0 | DS82: 0 | DT82: 0 | DU82: 0 | DV82: 39.73832456 | DW82: 0 | DX82: 0 | DY82: 0 | DZ82: 0 | EA82: 0 | EB82: 0 | EC82: 0 | ED82: 0 | EE82: 0 | EF82: 0 | EG82: 0 | EH82: 0 | EI82: 0 | EJ82: 0 | EK82: 0 | EL82: 0 | EM82: 0 | EN82: 0 | EO82: 0 | EP82: 0 | EQ82: 0 | ER82: 0 | ES82: 0 | ET82: 0 | EU82: 0 | EV82: 0 | EW82: 0 | EX82: 0 | EY82: 0 | EZ82: 0 | FA82: 0 | FB82: 0 | FC82: 0 | FD82: 0 | FE82: 0 | FF82: 0 | FG82: 0 | FH82: 0 | FI82: 0 | FJ82: 0 | FK82: 0 | FL82: 0 | FM82: 0 | FN82: 0 | FO82: 0 | FP82: 0 | FQ82: 0 | FR82: 0 | FS82: 0 | FT82: 0 | FU82: 0 | FV82: 0 | FW82: 0 | FX82: 0 | FY82: 0 | FZ82: 0 | GA82: 0 | GB82: 0 | GC82: 0 | GD82: 0 | GE82: 0 | GF82: 0 | GG82: 0 | GH82: 0 | GI82: 0 | GJ82: 0
E83: Pole Mounted ; < = 22kV ; > 600 kVA ; Single Phase | F83: 0.0001 | G83: 0 | H83: 0 | I83: 2
A84: 5 | D84: TRANSFORMERS | E84: Pole Mounted ; < = 22kV ; < = 60 kVA ; Multiple Phase | F84: 10.23839298 | G84: 49.6690961 | H84: 7.047630531 | I84: 2 | J84: 34 | K84: 194 | L84: 152 | M84: 192 | N84: 228 | O84: 223 | P84: 235 | Q84: 152 | R84: 47 | S84: 35 | T84: 93 | U84: 70 | V84: 53 | W84: 8 | X84: 6 | Y84: 4 | Z84: 5 | AA84: 6 | AB84: 30 | AC84: 162 | AD84: 203 | AE84: 143 | AF84: 164 | AG84: 188 | AH84: 93 | AI84: 358 | AJ84: 1 | AK84: 4 | AL84: 401 | AM84: 249 | AN84: 156 | AO84: 188 | AP84: 242 | AQ84: 226 | AR84: 137 | AS84: 112 | AT84: 110 | AU84: 52 | AV84: 78 | AW84: 1 | AX84: 74 | AY84: 55 | AZ84: 90 | BA84: 142 | BB84: 104 | BC84: 84 | BD84: 31 | BE84: 32 | BF84: 99 | BG84: 119 | BH84: 70 | BI84: 59 | BJ84: 59 | BK84: 1 | BL84: 66 | BM84: 57 | BN84: 5 | BO84: 24 | BP84: 7 | BQ84: 7 | BR84: 0 | BS84: 1 | BT84: 21 | BU84: 0 | BV84: 7 | BW84: 8 | BX84: 26 | BY84: 8 | BZ84: 5 | CA84: 2 | CB84: 13 | CC84: 1 | CD84: 0 | CE84: 5 | CF84: 5 | CG84: 6 | CH84: 2 | CI84: 9 | CJ84: 1 | CK84: 5 | CL84: 2 | CM84: 0 | CN84: 1 | CO84: 0 | CP84: 0 | CQ84: 0 | CR84: 0 | CS84: 0 | CT84: 0 | CU84: 0 | CV84: 0 | CX84: 348.1053612 | CY84: 1986.248238 | CZ84: 1556.235733 | DA84: 1965.771452 | DB84: 2334.353599 | DC84: 2283.161634 | DD84: 2406.02235 | DE84: 1556.235733 | DF84: 481.2044699 | DG84: 358.3437542 | DH84: 952.1705469 | DI84: 716.6875084 | DJ84: 542.6348278 | DK84: 81.90714382 | DL84: 61.43035786 | DM84: 40.95357191 | DN84: 51.19196488 | DO84: 61.43035786 | DP84: 307.1517893 | DQ84: 1658.619662 | DR84: 2078.393774 | DS84: 1464.090196 | DT84: 1679.096448 | DU84: 1924.81788 | DV84: 952.1705469 | DW84: 3665.344686 | DX84: 10.23839298 | DY84: 40.95357191 | DZ84: 4105.595584 | EA84: 2549.359851 | EB84: 1597.189304 | EC84: 1924.81788 | ED84: 2477.6911 | EE84: 2313.876813 | EF84: 1402.659838 | EG84: 1146.700013 | EH84: 1126.223227 | EI84: 532.3964348 | EJ84: 798.5946522 | EK84: 10.23839298 | EL84: 757.6410803 | EM84: 563.1116137 | EN84: 921.4553679 | EO84: 1453.851803 | EP84: 1064.79287 | EQ84: 860.0250101 | ER84: 317.3901823 | ES84: 327.6285753 | ET84: 1013.600905 | EU84: 1218.368764 | EV84: 716.6875084 | EW84: 604.0651856 | EX84: 604.0651856 | EY84: 10.23839298 | EZ84: 675.7339365 | FA84: 583.5883997 | FB84: 51.19196488 | FC84: 245.7214314 | FD84: 71.66875084 | FE84: 71.66875084 | FF84: 0 | FG84: 10.23839298 | FH84: 215.0062525 | FI84: 0 | FJ84: 71.66875084 | FK84: 81.90714382 | FL84: 266.1982174 | FM84: 81.90714382 | FN84: 51.19196488 | FO84: 20.47678595 | FP84: 133.0991087 | FQ84: 10.23839298 | FR84: 0 | FS84: 51.19196488 | FT84: 51.19196488 | FU84: 61.43035786 | FV84: 20.47678595 | FW84: 92.14553679 | FX84: 10.23839298 | FY84: 51.19196488 | FZ84: 20.47678595 | GA84: 0 | GB84: 10.23839298 | GC84: 0 | GD84: 0 | GE84: 0 | GF84: 0 | GG84: 0 | GH84: 0 | GI84: 0 | GJ84: 0
A85: 5 | D85: TRANSFORMERS | E85: Pole Mounted ; < = 22kV ; > 60 kVA and < = 600 kVA ; Multiple Phase | F85: 21.59494207 | G85: 44.09483803 | H85: 6.640394418 | I85: 2 | J85: 225 | K85: 834 | L85: 1029 | M85: 1292 | N85: 1404 | O85: 1720 | P85: 1796 | Q85: 1442 | R85: 695 | S85: 178 | T85: 913 | U85: 669 | V85: 396 | W85: 185 | X85: 94 | Y85: 94 | Z85: 74 | AA85: 59 | AB85: 296 | AC85: 692 | AD85: 659 | AE85: 279 | AF85: 346 | AG85: 416 | AH85: 212 | AI85: 722 | AJ85: 9 | AK85: 4 | AL85: 527 | AM85: 390 | AN85: 539 | AO85: 405 | AP85: 338 | AQ85: 437 | AR85: 229 | AS85: 166 | AT85: 145 | AU85: 44 | AV85: 176 | AW85: 24 | AX85: 233 | AY85: 99 | AZ85: 89 | BA85: 153 | BB85: 55 | BC85: 36 | BD85: 27 | BE85: 67 | BF85: 70 | BG85: 39 | BH85: 35 | BI85: 13 | BJ85: 20 | BK85: 17 | BL85: 21 | BM85: 4 | BN85: 8 | BO85: 1 | BP85: 1 | BQ85: 8 | BR85: 1 | BS85: 0 | BT85: 7 | BU85: 0 | BV85: 25 | BW85: 17 | BX85: 19 | BY85: 7 | BZ85: 5 | CA85: 3 | CB85: 3 | CC85: 5 | CD85: 7 | CE85: 0 | CF85: 1 | CG85: 3 | CH85: 0 | CI85: 1 | CJ85: 1 | CK85: 0 | CL85: 1 | CM85: 1 | CN85: 1 | CO85: 0 | CP85: 0 | CQ85: 0 | CR85: 0 | CS85: 0 | CT85: 0 | CU85: 0 | CV85: 0 | CX85: 4858.861966 | CY85: 18010.18169 | CZ85: 22221.19539 | DA85: 27900.66516 | DB85: 30319.29867 | DC85: 37143.30036 | DD85: 38784.51596 | DE85: 31139.90647 | DF85: 15008.48474 | DG85: 3843.899689 | DH85: 19716.18211 | DI85: 14447.01625 | DJ85: 8551.59706 | DK85: 3995.064283 | DL85: 2029.924555 | DM85: 2029.924555 | DN85: 1598.025713 | DO85: 1274.101582 | DP85: 6392.102853 | DQ85: 14943.69991 | DR85: 14231.06682 | DS85: 6024.988838 | DT85: 7471.849956 | DU85: 8983.495901 | DV85: 4578.127719 | DW85: 15591.54817 | DX85: 194.3544786 | DY85: 86.37976828 | DZ85: 11380.53447 | EA85: 8422.027408 | EB85: 11639.67378 | EC85: 8745.951539 | ED85: 7299.09042 | EE85: 9436.989685 | EF85: 4945.241734 | EG85: 3584.760384 | EH85: 3131.2666 | EI85: 950.1774511 | EJ85: 3800.709804 | EK85: 518.2786097 | EL85: 5031.621502 | EM85: 2137.899265 | EN85: 1921.949844 | EO85: 3304.026137 | EP85: 1187.721814 | EQ85: 777.4179145 | ER85: 583.0634359 | ES85: 1446.861119 | ET85: 1511.645945 | EU85: 842.2027408 | EV85: 755.8229725 | EW85: 280.7342469 | EX85: 431.8988414 | EY85: 367.1140152 | EZ85: 453.4937835 | FA85: 86.37976828 | FB85: 172.7595366 | FC85: 21.59494207 | FD85: 21.59494207 | FE85: 172.7595366 | FF85: 21.59494207 | FG85: 0 | FH85: 151.1645945 | FI85: 0 | FJ85: 539.8735518 | FK85: 367.1140152 | FL85: 410.3038993 | FM85: 151.1645945 | FN85: 107.9747104 | FO85: 64.78482621 | FP85: 64.78482621 | FQ85: 107.9747104 | FR85: 151.1645945 | FS85: 0 | FT85: 21.59494207 | FU85: 64.78482621 | FV85: 0 | FW85: 21.59494207 | FX85: 21.59494207 | FY85: 0 | FZ85: 21.59494207 | GA85: 21.59494207 | GB85: 21.59494207 | GC85: 0 | GD85: 0 | GE85: 0 | GF85: 0 | GG85: 0 | GH85: 0 | GI85: 0 | GJ85: 0
E86: Pole Mounted ; < = 22kV ; > 600 kVA ; Multiple Phase | F86: 46.04419824 | G86: 0 | H86: 0 | I86: 2 | CX86: =$F86*J86 ->  | CY86: =$F86*K86 ->  | CZ86: =$F86*L86 ->  | DA86: =$F86*M86 ->  | DB86: =$F86*N86 ->  | DC86: =$F86*O86 ->  | DD86: =$F86*P86 ->  | DE86: =$F86*Q86 ->  | DF86: =$F86*R86 ->  | DG86: =$F86*S86 ->  | DH86: =$F86*T86 ->  | DI86: =$F86*U86 ->  | DJ86: =$F86*V86 ->  | DK86: =$F86*W86 ->  | DL86: =$F86*X86 ->  | DM86: =$F86*Y86 ->  | DN86: =$F86*Z86 ->  | DO86: =$F86*AA86 ->  | DP86: =$F86*AB86 ->  | DQ86: =$F86*AC86 ->  | DR86: =$F86*AD86 ->  | DS86: =$F86*AE86 ->  | DT86: =$F86*AF86 ->  | DU86: =$F86*AG86 ->  | DV86: =$F86*AH86 ->  | DW86: =$F86*AI86 ->  | DX86: =$F86*AJ86 ->  | DY86: =$F86*AK86 ->  | DZ86: =$F86*AL86 ->  | EA86: =$F86*AM86 ->  | EB86: =$F86*AN86 ->  | EC86: =$F86*AO86 ->  | ED86: =$F86*AP86 ->  | EE86: =$F86*AQ86 ->  | EF86: =$F86*AR86 ->  | EG86: =$F86*AS86 ->  | EH86: =$F86*AT86 ->  | EI86: =$F86*AU86 ->  | EJ86: =$F86*AV86 ->  | EK86: =$F86*AW86 ->  | EL86: =$F86*AX86 ->  | EM86: =$F86*AY86 ->  | EN86: =$F86*AZ86 ->  | EO86: =$F86*BA86 ->  | EP86: =$F86*BB86 ->  | EQ86: =$F86*BC86 ->  | ER86: =$F86*BD86 ->  | ES86: =$F86*BE86 ->  | ET86: =$F86*BF86 ->  | EU86: =$F86*BG86 ->  | EV86: =$F86*BH86 ->  | EW86: =$F86*BI86 ->  | EX86: =$F86*BJ86 ->  | EY86: =$F86*BK86 ->  | EZ86: =$F86*BL86 ->  | FA86: =$F86*BM86 ->  | FB86: =$F86*BN86 ->  | FC86: =$F86*BO86 ->  | FD86: =$F86*BP86 ->  | FE86: =$F86*BQ86 ->  | FF86: =$F86*BR86 ->  | FG86: =$F86*BS86 ->  | FH86: =$F86*BT86 ->  | FI86: =$F86*BU86 ->  | FJ86: =$F86*BV86 ->  | FK86: =$F86*BW86 ->  | FL86: =$F86*BX86 ->  | FM86: =$F86*BY86 ->  | FN86: =$F86*BZ86 ->  | FO86: =$F86*CA86 ->  | FP86: =$F86*CB86 ->  | FQ86: =$F86*CC86 ->  | FR86: =$F86*CD86 ->  | FS86: =$F86*CE86 ->  | FT86: =$F86*CF86 ->  | FU86: =$F86*CG86 ->  | FV86: =$F86*CH86 ->  | FW86: =$F86*CI86 ->  | FX86: =$F86*CJ86 ->  | FY86: =$F86*CK86 ->  | FZ86: =$F86*CL86 ->  | GA86: =$F86*CM86 ->  | GB86: =$F86*CN86 ->  | GC86: =$F86*CO86 ->  | GD86: =$F86*CP86 ->  | GE86: =$F86*CQ86 ->  | GF86: =$F86*CR86 ->  | GG86: =$F86*CS86 ->  | GH86: =$F86*CT86 ->  | GI86: =$F86*CU86 ->  | GJ86: =$F86*CV86 -> 
E87: Kiosk Mounted ; < = 22kV ; < = 60 kVA ; Single Phase | F87: 30.08150727 | G87: 0 | H87: 0 | I87: 2
E88: Kiosk Mounted ; < = 22kV ; > 60 kVA and < = 600 kVA ; Single Phase | F88: 65.99544495 | G88: 0 | H88: 0 | I88: 2
E89: Kiosk Mounted ; < = 22kV ; > 600 kVA ; Single Phase | F89: 0.0001 | G89: 0 | H89: 0 | I89: 2
E90: Kiosk Mounted ; < = 22kV ; < = 60 kVA ; Multiple Phase | F90: 61.27796189 | G90: 0 | H90: 0 | I90: 2
A91: 5 | D91: TRANSFORMERS | E91: Kiosk Mounted ; < = 22kV ; > 60 kVA and < = 600 kVA ; Multiple Phase | F91: 21.7997188 | G91: 42.46666728 | H91: 6.516645401 | I91: 2 | J91: 74 | K91: 202 | L91: 194 | M91: 446 | N91: 604 | O91: 725 | P91: 807 | Q91: 666 | R91: 574 | S91: 164 | T91: 459 | U91: 314 | V91: 48 | W91: 146 | X91: 159 | Y91: 118 | Z91: 220 | AA91: 107 | AB91: 168 | AC91: 137 | AD91: 149 | AE91: 78 | AF91: 101 | AG91: 117 | AH91: 185 | AI91: 11 | AJ91: 411 | AK91: 4 | AL91: 217 | AM91: 0 | AN91: 7 | AO91: 223 | AP91: 126 | AQ91: 77 | AR91: 143 | AS91: 58 | AT91: 2 | AU91: 11 | AV91: 39 | AW91: 27 | AX91: 11 | AY91: 2 | AZ91: 18 | BA91: 16 | BB91: 16 | BC91: 7 | BD91: 2 | BE91: 1 | BF91: 0 | BG91: 0 | BH91: 0 | BI91: 0 | BJ91: 0 | BK91: 0 | BL91: 0 | BM91: 0 | BN91: 0 | BO91: 0 | BP91: 0 | BQ91: 0 | BR91: 0 | BS91: 0 | BT91: 0 | BU91: 0 | BV91: 0 | BW91: 0 | BX91: 0 | BY91: 0 | BZ91: 0 | CA91: 0 | CB91: 0 | CC91: 0 | CD91: 0 | CE91: 0 | CF91: 0 | CG91: 0 | CH91: 0 | CI91: 0 | CJ91: 0 | CK91: 0 | CL91: 0 | CM91: 0 | CN91: 0 | CO91: 0 | CP91: 0 | CQ91: 0 | CR91: 0 | CS91: 0 | CT91: 0 | CU91: 0 | CV91: 0 | CX91: 1613.179191 | CY91: 4403.543197 | CZ91: 4229.145447 | DA91: 9722.674583 | DB91: 13167.03015 | DC91: 15804.79613 | DD91: 17592.37307 | DE91: 14518.61272 | DF91: 12513.03859 | DG91: 3575.153883 | DH91: 10006.07093 | DI91: 6845.111702 | DJ91: 1046.386502 | DK91: 3182.758944 | DL91: 3466.155289 | DM91: 2572.366818 | DN91: 4795.938135 | DO91: 2332.569911 | DP91: 3662.352758 | DQ91: 2986.561475 | DR91: 3248.158101 | DS91: 1700.378066 | DT91: 2201.771598 | DU91: 2550.567099 | DV91: 4032.947977 | DW91: 239.7969068 | DX91: 8959.684426 | DY91: 87.19887519 | DZ91: 4730.538979 | EA91: 0 | EB91: 152.5980316 | EC91: 4861.337292 | ED91: 2746.764568 | EE91: 1678.578347 | EF91: 3117.359788 | EG91: 1264.38369 | EH91: 43.59943759 | EI91: 239.7969068 | EJ91: 850.1890331 | EK91: 588.5924075 | EL91: 239.7969068 | EM91: 43.59943759 | EN91: 392.3949383 | EO91: 348.7955007 | EP91: 348.7955007 | EQ91: 152.5980316 | ER91: 43.59943759 | ES91: 21.7997188 | ET91: 0 | EU91: 0 | EV91: 0 | EW91: 0 | EX91: 0 | EY91: 0 | EZ91: 0 | FA91: 0 | FB91: 0 | FC91: 0 | FD91: 0 | FE91: 0 | FF91: 0 | FG91: 0 | FH91: 0 | FI91: 0 | FJ91: 0 | FK91: 0 | FL91: 0 | FM91: 0 | FN91: 0 | FO91: 0 | FP91: 0 | FQ91: 0 | FR91: 0 | FS91: 0 | FT91: 0 | FU91: 0 | FV91: 0 | FW91: 0 | FX91: 0 | FY91: 0 | FZ91: 0 | GA91: 0 | GB91: 0 | GC91: 0 | GD91: 0 | GE91: 0 | GF91: 0 | GG91: 0 | GH91: 0 | GI91: 0 | GJ91: 0
A92: 5 | D92: TRANSFORMERS | E92: Kiosk Mounted ; < = 22kV ; > 600 kVA ; Multiple Phase | F92: 69.67929396 | G92: 52.23537166 | H92: 7.227404213 | I92: 2 | J92: 21 | K92: 117 | L92: 92 | M92: 186 | N92: 217 | O92: 290 | P92: 290 | Q92: 292 | R92: 276 | S92: 55 | T92: 106 | U92: 78 | V92: 32 | W92: 28 | X92: 34 | Y92: 8 | Z92: 48 | AA92: 27 | AB92: 22 | AC92: 32 | AD92: 12 | AE92: 11 | AF92: 4 | AG92: 0 | AH92: 0 | AI92: 0 | AJ92: 0 | AK92: 0 | AL92: 0 | AM92: 0 | AN92: 0 | AO92: 0 | AP92: 0 | AQ92: 0 | AR92: 0 | AS92: 0 | AT92: 0 | AU92: 0 | AV92: 0 | AW92: 0 | AX92: 0 | AY92: 0 | AZ92: 0 | BA92: 0 | BB92: 0 | BC92: 0 | BD92: 0 | BE92: 0 | BF92: 0 | BG92: 0 | BH92: 0 | BI92: 0 | BJ92: 0 | BK92: 0 | BL92: 0 | BM92: 0 | BN92: 0 | BO92: 0 | BP92: 0 | BQ92: 0 | BR92: 0 | BS92: 0 | BT92: 0 | BU92: 0 | BV92: 0 | BW92: 0 | BX92: 0 | BY92: 0 | BZ92: 0 | CA92: 0 | CB92: 0 | CC92: 0 | CD92: 0 | CE92: 0 | CF92: 0 | CG92: 0 | CH92: 0 | CI92: 0 | CJ92: 0 | CK92: 0 | CL92: 0 | CM92: 0 | CN92: 0 | CO92: 0 | CP92: 0 | CQ92: 0 | CR92: 0 | CS92: 0 | CT92: 0 | CU92: 0 | CV92: 0 | CX92: 1463.265173 | CY92: 8152.477393 | CZ92: 6410.495044 | DA92: 12960.34868 | DB92: 15120.40679 | DC92: 20206.99525 | DD92: 20206.99525 | DE92: 20346.35384 | DF92: 19231.48513 | DG92: 3832.361168 | DH92: 7386.005159 | DI92: 5434.984929 | DJ92: 2229.737407 | DK92: 1951.020231 | DL92: 2369.095995 | DM92: 557.4343517 | DN92: 3344.60611 | DO92: 1881.340937 | DP92: 1532.944467 | DQ92: 2229.737407 | DR92: 836.1515275 | DS92: 766.4722335 | DT92: 278.7171758 | DU92: 0 | DV92: 0 | DW92: 0 | DX92: 0 | DY92: 0 | DZ92: 0 | EA92: 0 | EB92: 0 | EC92: 0 | ED92: 0 | EE92: 0 | EF92: 0 | EG92: 0 | EH92: 0 | EI92: 0 | EJ92: 0 | EK92: 0 | EL92: 0 | EM92: 0 | EN92: 0 | EO92: 0 | EP92: 0 | EQ92: 0 | ER92: 0 | ES92: 0 | ET92: 0 | EU92: 0 | EV92: 0 | EW92: 0 | EX92: 0 | EY92: 0 | EZ92: 0 | FA92: 0 | FB92: 0 | FC92: 0 | FD92: 0 | FE92: 0 | FF92: 0 | FG92: 0 | FH92: 0 | FI92: 0 | FJ92: 0 | FK92: 0 | FL92: 0 | FM92: 0 | FN92: 0 | FO92: 0 | FP92: 0 | FQ92: 0 | FR92: 0 | FS92: 0 | FT92: 0 | FU92: 0 | FV92: 0 | FW92: 0 | FX92: 0 | FY92: 0 | FZ92: 0 | GA92: 0 | GB92: 0 | GC92: 0 | GD92: 0 | GE92: 0 | GF92: 0 | GG92: 0 | GH92: 0 | GI92: 0 | GJ92: 0
E93: Ground Outdoor / Indoor Chamber Mounted; ˂ 22 kV ; < = 60 kVA ; Single Phase | F93: 16.94501973 | G93: 0 | H93: 0 | I93: 2
E94: Ground Outdoor / Indoor Chamber Mounted; ˂ 22 kV ; > 60 kVA and < = 600 kVA ; Single Phase | F94: 147.2963158 | G94: 0 | H94: 0 | I94: 2
E95: Ground Outdoor / Indoor Chamber Mounted; ˂ 22 kV ; > 600 kVA ; Single Phase | F95: 0.0001 | G95: 0 | H95: 0 | I95: 2
A96: 5 | D96: TRANSFORMERS | E96: Ground Outdoor / Indoor Chamber Mounted; ˂ 22 kV ; < = 60 kVA ; Multiple Phase | F96: 108.9735123 | G96: 52.23537166 | H96: 7.227404213 | I96: 2 | J96: 0 | K96: 0 | L96: 0 | M96: 0 | N96: 0 | O96: 0 | P96: 0 | Q96: 0 | R96: 0 | S96: 0 | T96: 0 | U96: 0 | V96: 0 | W96: 0 | X96: 0 | Y96: 0 | Z96: 0 | AA96: 0 | AB96: 0 | AC96: 0 | AD96: 0 | AE96: 0 | AF96: 0 | AG96: 0 | AH96: 0 | AI96: 0 | AJ96: 0 | AK96: 0 | AL96: 0 | AM96: 0 | AN96: 0 | AO96: 0 | AP96: 0 | AQ96: 0 | AR96: 0 | AS96: 0 | AT96: 0 | AU96: 0 | AV96: 0 | AW96: 0 | AX96: 0 | AY96: 0 | AZ96: 0 | BA96: 0 | BB96: 0 | BC96: 0 | BD96: 0 | BE96: 1 | BF96: 0 | BG96: 0 | BH96: 0 | BI96: 0 | BJ96: 1 | BK96: 0 | BL96: 0 | BM96: 0 | BN96: 0 | BO96: 0 | BP96: 0 | BQ96: 0 | BR96: 0 | BS96: 0 | BT96: 0 | BU96: 0 | BV96: 0 | BW96: 0 | BX96: 0 | BY96: 0 | BZ96: 0 | CA96: 0 | CB96: 0 | CC96: 0 | CD96: 0 | CE96: 0 | CF96: 0 | CG96: 0 | CH96: 0 | CI96: 0 | CJ96: 0 | CK96: 0 | CL96: 0 | CM96: 0 | CN96: 0 | CO96: 0 | CP96: 0 | CQ96: 0 | CR96: 0 | CS96: 0 | CT96: 0 | CU96: 0 | CV96: 0 | CX96: 0 | CY96: 0 | CZ96: 0 | DA96: 0 | DB96: 0 | DC96: 0 | DD96: 0 | DE96: 0 | DF96: 0 | DG96: 0 | DH96: 0 | DI96: 0 | DJ96: 0 | DK96: 0 | DL96: 0 | DM96: 0 | DN96: 0 | DO96: 0 | DP96: 0 | DQ96: 0 | DR96: 0 | DS96: 0 | DT96: 0 | DU96: 0 | DV96: 0 | DW96: 0 | DX96: 0 | DY96: 0 | DZ96: 0 | EA96: 0 | EB96: 0 | EC96: 0 | ED96: 0 | EE96: 0 | EF96: 0 | EG96: 0 | EH96: 0 | EI96: 0 | EJ96: 0 | EK96: 0 | EL96: 0 | EM96: 0 | EN96: 0 | EO96: 0 | EP96: 0 | EQ96: 0 | ER96: 0 | ES96: 108.9735123 | ET96: 0 | EU96: 0 | EV96: 0 | EW96: 0 | EX96: 108.9735123 | EY96: 0 | EZ96: 0 | FA96: 0 | FB96: 0 | FC96: 0 | FD96: 0 | FE96: 0 | FF96: 0 | FG96: 0 | FH96: 0 | FI96: 0 | FJ96: 0 | FK96: 0 | FL96: 0 | FM96: 0 | FN96: 0 | FO96: 0 | FP96: 0 | FQ96: 0 | FR96: 0 | FS96: 0 | FT96: 0 | FU96: 0 | FV96: 0 | FW96: 0 | FX96: 0 | FY96: 0 | FZ96: 0 | GA96: 0 | GB96: 0 | GC96: 0 | GD96: 0 | GE96: 0 | GF96: 0 | GG96: 0 | GH96: 0 | GI96: 0 | GJ96: 0
A97: 5 | D97: TRANSFORMERS | E97: Ground Outdoor / Indoor Chamber Mounted; ˂ 22 kV ; > 60 kVA and < = 600 kVA ; Multiple Phase | F97: 69.10119907 | G97: 52.23537166 | H97: 7.227404213 | I97: 2 | J97: 0 | K97: 10 | L97: 3 | M97: 10 | N97: 10 | O97: 9 | P97: 8 | Q97: 5 | R97: 22 | S97: 8 | T97: 8 | U97: 3 | V97: 2 | W97: 0 | X97: 7 | Y97: 1 | Z97: 1 | AA97: 0 | AB97: 2 | AC97: 1 | AD97: 12 | AE97: 7 | AF97: 0 | AG97: 0 | AH97: 5 | AI97: 3 | AJ97: 0 | AK97: 35 | AL97: 28 | AM97: 3 | AN97: 10 | AO97: 64 | AP97: 1 | AQ97: 44 | AR97: 20 | AS97: 14 | AT97: 10 | AU97: 1 | AV97: 2 | AW97: 0 | AX97: 11 | AY97: 0 | AZ97: 2 | BA97: 23 | BB97: 8 | BC97: 25 | BD97: 0 | BE97: 26 | BF97: 37 | BG97: 23 | BH97: 16 | BI97: 13 | BJ97: 11 | BK97: 4 | BL97: 9 | BM97: 3 | BN97: 2 | BO97: 4 | BP97: 0 | BQ97: 7 | BR97: 4 | BS97: 1 | BT97: 19 | BU97: 9 | BV97: 3 | BW97: 12 | BX97: 11 | BY97: 7 | BZ97: 2 | CA97: 2 | CB97: 1 | CC97: 1 | CD97: 1 | CE97: 0 | CF97: 4 | CG97: 0 | CH97: 3 | CI97: 0 | CJ97: 3 | CK97: 0 | CL97: 0 | CM97: 0 | CN97: 0 | CO97: 0 | CP97: 0 | CQ97: 0 | CR97: 0 | CS97: 0 | CT97: 0 | CU97: 0 | CV97: 0 | CX97: 0 | CY97: 691.0119907 | CZ97: 207.3035972 | DA97: 691.0119907 | DB97: 691.0119907 | DC97: 621.9107916 | DD97: 552.8095925 | DE97: 345.5059953 | DF97: 1520.226379 | DG97: 552.8095925 | DH97: 552.8095925 | DI97: 207.3035972 | DJ97: 138.2023981 | DK97: 0 | DL97: 483.7083935 | DM97: 69.10119907 | DN97: 69.10119907 | DO97: 0 | DP97: 138.2023981 | DQ97: 69.10119907 | DR97: 829.2143888 | DS97: 483.7083935 | DT97: 0 | DU97: 0 | DV97: 345.5059953 | DW97: 207.3035972 | DX97: 0 | DY97: 2418.541967 | DZ97: 1934.833574 | EA97: 207.3035972 | EB97: 691.0119907 | EC97: 4422.47674 | ED97: 69.10119907 | EE97: 3040.452759 | EF97: 1382.023981 | EG97: 967.4167869 | EH97: 691.0119907 | EI97: 69.10119907 | EJ97: 138.2023981 | EK97: 0 | EL97: 760.1131897 | EM97: 0 | EN97: 138.2023981 | EO97: 1589.327579 | EP97: 552.8095925 | EQ97: 1727.529977 | ER97: 0 | ES97: 1796.631176 | ET97: 2556.744365 | EU97: 1589.327579 | EV97: 1105.619185 | EW97: 898.3155879 | EX97: 760.1131897 | EY97: 276.4047963 | EZ97: 621.9107916 | FA97: 207.3035972 | FB97: 138.2023981 | FC97: 276.4047963 | FD97: 0 | FE97: 483.7083935 | FF97: 276.4047963 | FG97: 69.10119907 | FH97: 1312.922782 | FI97: 621.9107916 | FJ97: 207.3035972 | FK97: 829.2143888 | FL97: 760.1131897 | FM97: 483.7083935 | FN97: 138.2023981 | FO97: 138.2023981 | FP97: 69.10119907 | FQ97: 69.10119907 | FR97: 69.10119907 | FS97: 0 | FT97: 276.4047963 | FU97: 0 | FV97: 207.3035972 | FW97: 0 | FX97: 207.3035972 | FY97: 0 | FZ97: 0 | GA97: 0 | GB97: 0 | GC97: 0 | GD97: 0 | GE97: 0 | GF97: 0 | GG97: 0 | GH97: 0 | GI97: 0 | GJ97: 0
A98: 5 | D98: TRANSFORMERS | E98: Ground Outdoor / Indoor Chamber Mounted; ˂ 22 kV ; > 600 kVA ; Multiple Phase | F98: 120.2413178 | G98: 52.23537166 | H98: 7.227404213 | I98: 2 | J98: 12 | K98: 36 | L98: 61 | M98: 132 | N98: 112 | O98: 158 | P98: 282 | Q98: 240 | R98: 169 | S98: 26 | T98: 108 | U98: 78 | V98: 62 | W98: 13 | X98: 19 | Y98: 6 | Z98: 15 | AA98: 13 | AB98: 57 | AC98: 66 | AD98: 69 | AE98: 46 | AF98: 15 | AG98: 32 | AH98: 10 | AI98: 81 | AJ98: 30 | AK98: 199 | AL98: 132 | AM98: 118 | AN98: 46 | AO98: 126 | AP98: 27 | AQ98: 102 | AR98: 60 | AS98: 66 | AT98: 26 | AU98: 9 | AV98: 11 | AW98: 29 | AX98: 10 | AY98: 0 | AZ98: 17 | BA98: 17 | BB98: 6 | BC98: 12 | BD98: 2 | BE98: 6 | BF98: 17 | BG98: 9 | BH98: 10 | BI98: 1 | BJ98: 2 | BK98: 5 | BL98: 0 | BM98: 2 | BN98: 1 | BO98: 0 | BP98: 5 | BQ98: 2 | BR98: 0 | BS98: 0 | BT98: 0 | BU98: 4 | BV98: 2 | BW98: 0 | BX98: 1 | BY98: 0 | BZ98: 0 | CA98: 0 | CB98: 0 | CC98: 1 | CD98: 0 | CE98: 0 | CF98: 0 | CG98: 0 | CH98: 0 | CI98: 0 | CJ98: 0 | CK98: 0 | CL98: 0 | CM98: 0 | CN98: 0 | CO98: 0 | CP98: 0 | CQ98: 0 | CR98: 0 | CS98: 0 | CT98: 0 | CU98: 0 | CV98: 0 | CX98: 1442.895814 | CY98: 4328.687442 | CZ98: 7334.720387 | DA98: 15871.85395 | DB98: 13467.0276 | DC98: 18998.12822 | DD98: 33908.05163 | DE98: 28857.91628 | DF98: 20320.78271 | DG98: 3126.274264 | DH98: 12986.06233 | DI98: 9378.822791 | DJ98: 7454.961705 | DK98: 1563.137132 | DL98: 2284.585039 | DM98: 721.447907 | DN98: 1803.619767 | DO98: 1563.137132 | DP98: 6853.755116 | DQ98: 7935.926977 | DR98: 8296.65093 | DS98: 5531.10062 | DT98: 1803.619767 | DU98: 3847.72217 | DV98: 1202.413178 | DW98: 9739.546744 | DX98: 3607.239535 | DY98: 23928.02225 | DZ98: 15871.85395 | EA98: 14188.4755 | EB98: 5531.10062 | EC98: 15150.40605 | ED98: 3246.515581 | EE98: 12264.61442 | EF98: 7214.47907 | EG98: 7935.926977 | EH98: 3126.274264 | EI98: 1082.17186 | EJ98: 1322.654496 | EK98: 3486.998217 | EL98: 1202.413178 | EM98: 0 | EN98: 2044.102403 | EO98: 2044.102403 | EP98: 721.447907 | EQ98: 1442.895814 | ER98: 240.4826357 | ES98: 721.447907 | ET98: 2044.102403 | EU98: 1082.17186 | EV98: 1202.413178 | EW98: 120.2413178 | EX98: 240.4826357 | EY98: 601.2065891 | EZ98: 0 | FA98: 240.4826357 | FB98: 120.2413178 | FC98: 0 | FD98: 601.2065891 | FE98: 240.4826357 | FF98: 0 | FG98: 0 | FH98: 0 | FI98: 480.9652713 | FJ98: 240.4826357 | FK98: 0 | FL98: 120.2413178 | FM98: 0 | FN98: 0 | FO98: 0 | FP98: 0 | FQ98: 120.2413178 | FR98: 0 | FS98: 0 | FT98: 0 | FU98: 0 | FV98: 0 | FW98: 0 | FX98: 0 | FY98: 0 | FZ98: 0 | GA98: 0 | GB98: 0 | GC98: 0 | GD98: 0 | GE98: 0 | GF98: 0 | GG98: 0 | GH98: 0 | GI98: 0 | GJ98: 0
A99: 5 | D99: TRANSFORMERS | E99: Ground Outdoor / Indoor Chamber Mounted; > = 22 kV & < = 33 kV ; < = 15 MVA | F99: 1343.144929 | G99: 68.14774494 | H99: 8.255164743 | I99: 2 | J99: 0 | K99: 0 | L99: 0 | M99: 2 | N99: 12 | O99: 12 | P99: 2 | Q99: 2 | R99: 2 | S99: 7 | T99: 14 | U99: 8 | V99: 11 | W99: 12 | X99: 7 | Y99: 2 | Z99: 1 | AA99: 1 | AB99: 2 | AC99: 5 | AD99: 0 | AE99: 1 | AF99: 0 | AG99: 0 | AH99: 5 | AI99: 1 | AJ99: 4 | AK99: 0 | AL99: 2 | AM99: 0 | AN99: 1 | AO99: 5 | AP99: 2 | AQ99: 6 | AR99: 0 | AS99: 1 | AT99: 0 | AU99: 1 | AV99: 17 | AW99: 0 | AX99: 1 | AY99: 9 | AZ99: 2 | BA99: 7 | BB99: 7 | BC99: 2 | BD99: 5 | BE99: 13 | BF99: 8 | BG99: 9 | BH99: 6 | BI99: 2 | BJ99: 8 | BK99: 0 | BL99: 4 | BM99: 0 | BN99: 1 | BO99: 4 | BP99: 0 | BQ99: 0 | BR99: 5 | BS99: 0 | BT99: 0 | BU99: 0 | BV99: 1 | BW99: 6 | BX99: 0 | BY99: 6 | BZ99: 0 | CA99: 0 | CB99: 1 | CC99: 0 | CD99: 0 | CE99: 0 | CF99: 0 | CG99: 0 | CH99: 0 | CI99: 0 | CJ99: 0 | CK99: 0 | CL99: 0 | CM99: 0 | CN99: 0 | CO99: 0 | CP99: 0 | CQ99: 0 | CR99: 0 | CS99: 0 | CT99: 0 | CU99: 0 | CV99: 0 | CX99: 0 | CY99: 0 | CZ99: 0 | DA99: 2686.289857 | DB99: 16117.73914 | DC99: 16117.73914 | DD99: 2686.289857 | DE99: 2686.289857 | DF99: 2686.289857 | DG99: 9402.0145 | DH99: 18804.029 | DI99: 10745.15943 | DJ99: 14774.59421 | DK99: 16117.73914 | DL99: 9402.0145 | DM99: 2686.289857 | DN99: 1343.144929 | DO99: 1343.144929 | DP99: 2686.289857 | DQ99: 6715.724643 | DR99: 0 | DS99: 1343.144929 | DT99: 0 | DU99: 0 | DV99: 6715.724643 | DW99: 1343.144929 | DX99: 5372.579714 | DY99: 0 | DZ99: 2686.289857 | EA99: 0 | EB99: 1343.144929 | EC99: 6715.724643 | ED99: 2686.289857 | EE99: 8058.869572 | EF99: 0 | EG99: 1343.144929 | EH99: 0 | EI99: 1343.144929 | EJ99: 22833.46379 | EK99: 0 | EL99: 1343.144929 | EM99: 12088.30436 | EN99: 2686.289857 | EO99: 9402.0145 | EP99: 9402.0145 | EQ99: 2686.289857 | ER99: 6715.724643 | ES99: 17460.88407 | ET99: 10745.15943 | EU99: 12088.30436 | EV99: 8058.869572 | EW99: 2686.289857 | EX99: 10745.15943 | EY99: 0 | EZ99: 5372.579714 | FA99: 0 | FB99: 1343.144929 | FC99: 5372.579714 | FD99: 0 | FE99: 0 | FF99: 6715.724643 | FG99: 0 | FH99: 0 | FI99: 0 | FJ99: 1343.144929 | FK99: 8058.869572 | FL99: 0 | FM99: 8058.869572 | FN99: 0 | FO99: 0 | FP99: 1343.144929 | FQ99: 0 | FR99: 0 | FS99: 0 | FT99: 0 | FU99: 0 | FV99: 0 | FW99: 0 | FX99: 0 | FY99: 0 | FZ99: 0 | GA99: 0 | GB99: 0 | GC99: 0 | GD99: 0 | GE99: 0 | GF99: 0 | GG99: 0 | GH99: 0 | GI99: 0 | GJ99: 0
A100: 5 | D100: TRANSFORMERS | E100: Ground Outdoor / Indoor Chamber Mounted; > = 22 kV & < = 33 kV ; > 15 MVA and < = 40 MVA | F100: 1954.504587 | G100: 43.75485458 | H100: 6.614745239 | I100: 2 | J100: 0 | K100: 0 | L100: 2 | M100: 13 | N100: 22 | O100: 24 | P100: 18 | Q100: 13 | R100: 21 | S100: 39 | T100: 27 | U100: 2 | V100: 5 | W100: 1 | X100: 1 | Y100: 6 | Z100: 0 | AA100: 2 | AB100: 0 | AC100: 5 | AD100: 2 | AE100: 0 | AF100: 0 | AG100: 2 | AH100: 0 | AI100: 0 | AJ100: 0 | AK100: 0 | AL100: 0 | AM100: 0 | AN100: 5 | AO100: 3 | AP100: 0 | AQ100: 0 | AR100: 0 | AS100: 0 | AT100: 1 | AU100: 8 | AV100: 0 | AW100: 0 | AX100: 7 | AY100: 0 | AZ100: 0 | BA100: 2 | BB100: 0 | BC100: 2 | BD100: 0 | BE100: 0 | BF100: 0 | BG100: 0 | BH100: 0 | BI100: 0 | BJ100: 0 | BK100: 0 | BL100: 0 | BM100: 0 | BN100: 0 | BO100: 0 | BP100: 0 | BQ100: 0 | BR100: 0 | BS100: 0 | BT100: 0 | BU100: 0 | BV100: 0 | BW100: 1 | BX100: 0 | BY100: 0 | BZ100: 0 | CA100: 0 | CB100: 0 | CC100: 0 | CD100: 0 | CE100: 0 | CF100: 0 | CG100: 0 | CH100: 0 | CI100: 0 | CJ100: 0 | CK100: 0 | CL100: 0 | CM100: 0 | CN100: 0 | CO100: 0 | CP100: 0 | CQ100: 0 | CR100: 0 | CS100: 0 | CT100: 0 | CU100: 0 | CV100: 0 | CX100: 0 | CY100: 0 | CZ100: 3909.009175 | DA100: 25408.55964 | DB100: 42999.10092 | DC100: 46908.1101 | DD100: 35181.08257 | DE100: 25408.55964 | DF100: 41044.59634 | DG100: 76225.67891 | DH100: 52771.62386 | DI100: 3909.009175 | DJ100: 9772.522937 | DK100: 1954.504587 | DL100: 1954.504587 | DM100: 11727.02752 | DN100: 0 | DO100: 3909.009175 | DP100: 0 | DQ100: 9772.522937 | DR100: 3909.009175 | DS100: 0 | DT100: 0 | DU100: 3909.009175 | DV100: 0 | DW100: 0 | DX100: 0 | DY100: 0 | DZ100: 0 | EA100: 0 | EB100: 9772.522937 | EC100: 5863.513762 | ED100: 0 | EE100: 0 | EF100: 0 | EG100: 0 | EH100: 1954.504587 | EI100: 15636.0367 | EJ100: 0 | EK100: 0 | EL100: 13681.53211 | EM100: 0 | EN100: 0 | EO100: 3909.009175 | EP100: 0 | EQ100: 3909.009175 | ER100: 0 | ES100: 0 | ET100: 0 | EU100: 0 | EV100: 0 | EW100: 0 | EX100: 0 | EY100: 0 | EZ100: 0 | FA100: 0 | FB100: 0 | FC100: 0 | FD100: 0 | FE100: 0 | FF100: 0 | FG100: 0 | FH100: 0 | FI100: 0 | FJ100: 0 | FK100: 1954.504587 | FL100: 0 | FM100: 0 | FN100: 0 | FO100: 0 | FP100: 0 | FQ100: 0 | FR100: 0 | FS100: 0 | FT100: 0 | FU100: 0 | FV100: 0 | FW100: 0 | FX100: 0 | FY100: 0 | FZ100: 0 | GA100: 0 | GB100: 0 | GC100: 0 | GD100: 0 | GE100: 0 | GF100: 0 | GG100: 0 | GH100: 0 | GI100: 0 | GJ100: 0
E101: Ground Outdoor / Indoor Chamber Mounted; > = 22 kV & < = 33 kV ; > 40 MVA | F101: 634.3753382 | G101: 0 | H101: 0 | I101: 2
E102: Ground Outdoor / Indoor Chamber Mounted; > 33 kV & < = 66 kV ; < = 15 MVA | F102: 1236.257379 | G102: 0 | H102: 0 | I102: 2
A103: 5 | D103: TRANSFORMERS | E103: Ground Outdoor / Indoor Chamber Mounted; > 33 kV & < = 66 kV ; > 15 MVA and < = 40 MVA | F103: 1742.501519 | G103: 52.23537166 | H103: 7.227404213 | I103: 2 | J103: 0 | K103: 0 | L103: 0 | M103: 0 | N103: 0 | O103: 0 | P103: 0 | Q103: 0 | R103: 0 | S103: 0 | T103: 0 | U103: 1 | V103: 0 | W103: 0 | X103: 0 | Y103: 0 | Z103: 0 | AA103: 0 | AB103: 0 | AC103: 0 | AD103: 0 | AE103: 0 | AF103: 0 | AG103: 0 | AH103: 0 | AI103: 0 | AJ103: 0 | AK103: 0 | AL103: 0 | AM103: 0 | AN103: 0 | AO103: 0 | AP103: 0 | AQ103: 0 | AR103: 0 | AS103: 0 | AT103: 0 | AU103: 0 | AV103: 0 | AW103: 0 | AX103: 0 | AY103: 0 | AZ103: 0 | BA103: 0 | BB103: 0 | BC103: 0 | BD103: 0 | BE103: 0 | BF103: 0 | BG103: 0 | BH103: 0 | BI103: 0 | BJ103: 0 | BK103: 0 | BL103: 0 | BM103: 0 | BN103: 0 | BO103: 0 | BP103: 0 | BQ103: 0 | BR103: 0 | BS103: 0 | BT103: 0 | BU103: 0 | BV103: 0 | BW103: 0 | BX103: 0 | BY103: 0 | BZ103: 0 | CA103: 0 | CB103: 0 | CC103: 0 | CD103: 0 | CE103: 0 | CF103: 0 | CG103: 0 | CH103: 0 | CI103: 0 | CJ103: 0 | CK103: 0 | CL103: 0 | CM103: 0 | CN103: 0 | CO103: 0 | CP103: 0 | CQ103: 0 | CR103: 0 | CS103: 0 | CT103: 0 | CU103: 0 | CV103: 0 | CX103: 0 | CY103: 0 | CZ103: 0 | DA103: 0 | DB103: 0 | DC103: 0 | DD103: 0 | DE103: 0 | DF103: 0 | DG103: 0 | DH103: 0 | DI103: 1742.501519 | DJ103: 0 | DK103: 0 | DL103: 0 | DM103: 0 | DN103: 0 | DO103: 0 | DP103: 0 | DQ103: 0 | DR103: 0 | DS103: 0 | DT103: 0 | DU103: 0 | DV103: 0 | DW103: 0 | DX103: 0 | DY103: 0 | DZ103: 0 | EA103: 0 | EB103: 0 | EC103: 0 | ED103: 0 | EE103: 0 | EF103: 0 | EG103: 0 | EH103: 0 | EI103: 0 | EJ103: 0 | EK103: 0 | EL103: 0 | EM103: 0 | EN103: 0 | EO103: 0 | EP103: 0 | EQ103: 0 | ER103: 0 | ES103: 0 | ET103: 0 | EU103: 0 | EV103: 0 | EW103: 0 | EX103: 0 | EY103: 0 | EZ103: 0 | FA103: 0 | FB103: 0 | FC103: 0 | FD103: 0 | FE103: 0 | FF103: 0 | FG103: 0 | FH103: 0 | FI103: 0 | FJ103: 0 | FK103: 0 | FL103: 0 | FM103: 0 | FN103: 0 | FO103: 0 | FP103: 0 | FQ103: 0 | FR103: 0 | FS103: 0 | FT103: 0 | FU103: 0 | FV103: 0 | FW103: 0 | FX103: 0 | FY103: 0 | FZ103: 0 | GA103: 0 | GB103: 0 | GC103: 0 | GD103: 0 | GE103: 0 | GF103: 0 | GG103: 0 | GH103: 0 | GI103: 0 | GJ103: 0
E104: Ground Outdoor / Indoor Chamber Mounted; > 33 kV & < = 66 kV ; > 40 MVA | F104: 351.1457261 | G104: 0 | H104: 0 | I104: 2
A105: 5 | D105: TRANSFORMERS | E105: Ground Outdoor / Indoor Chamber Mounted; > 66 kV & < = 132 kV ; < = 100 MVA | F105: 3705.892881 | G105: 56.79866786 | H105: 7.536489094 | I105: 2 | J105: 0 | K105: 0 | L105: 1 | M105: 7 | N105: 6 | O105: 7 | P105: 5 | Q105: 6 | R105: 20 | S105: 16 | T105: 7 | U105: 1 | V105: 8 | W105: 5 | X105: 1 | Y105: 6 | Z105: 2 | AA105: 0 | AB105: 0 | AC105: 2 | AD105: 0 | AE105: 0 | AF105: 0 | AG105: 0 | AH105: 4 | AI105: 0 | AJ105: 1 | AK105: 0 | AL105: 4 | AM105: 0 | AN105: 7 | AO105: 4 | AP105: 0 | AQ105: 8 | AR105: 1 | AS105: 0 | AT105: 2 | AU105: 2 | AV105: 2 | AW105: 2 | AX105: 4 | AY105: 0 | AZ105: 0 | BA105: 2 | BB105: 0 | BC105: 0 | BD105: 0 | BE105: 0 | BF105: 0 | BG105: 0 | BH105: 0 | BI105: 0 | BJ105: 1 | BK105: 0 | BL105: 0 | BM105: 0 | BN105: 0 | BO105: 0 | BP105: 0 | BQ105: 0 | BR105: 4 | BS105: 0 | BT105: 0 | BU105: 0 | BV105: 0 | BW105: 0 | BX105: 0 | BY105: 0 | BZ105: 0 | CA105: 0 | CB105: 0 | CC105: 0 | CD105: 0 | CE105: 0 | CF105: 0 | CG105: 0 | CH105: 0 | CI105: 0 | CJ105: 0 | CK105: 0 | CL105: 0 | CM105: 0 | CN105: 0 | CO105: 0 | CP105: 0 | CQ105: 0 | CR105: 0 | CS105: 0 | CT105: 0 | CU105: 0 | CV105: 0 | CX105: 0 | CY105: 0 | CZ105: 3705.892881 | DA105: 25941.25017 | DB105: 22235.35728 | DC105: 25941.25017 | DD105: 18529.4644 | DE105: 22235.35728 | DF105: 74117.85762 | DG105: 59294.28609 | DH105: 25941.25017 | DI105: 3705.892881 | DJ105: 29647.14305 | DK105: 18529.4644 | DL105: 3705.892881 | DM105: 22235.35728 | DN105: 7411.785762 | DO105: 0 | DP105: 0 | DQ105: 7411.785762 | DR105: 0 | DS105: 0 | DT105: 0 | DU105: 0 | DV105: 14823.57152 | DW105: 0 | DX105: 3705.892881 | DY105: 0 | DZ105: 14823.57152 | EA105: 0 | EB105: 25941.25017 | EC105: 14823.57152 | ED105: 0 | EE105: 29647.14305 | EF105: 3705.892881 | EG105: 0 | EH105: 7411.785762 | EI105: 7411.785762 | EJ105: 7411.785762 | EK105: 7411.785762 | EL105: 14823.57152 | EM105: 0 | EN105: 0 | EO105: 7411.785762 | EP105: 0 | EQ105: 0 | ER105: 0 | ES105: 0 | ET105: 0 | EU105: 0 | EV105: 0 | EW105: 0 | EX105: 3705.892881 | EY105: 0 | EZ105: 0 | FA105: 0 | FB105: 0 | FC105: 0 | FD105: 0 | FE105: 0 | FF105: 14823.57152 | FG105: 0 | FH105: 0 | FI105: 0 | FJ105: 0 | FK105: 0 | FL105: 0 | FM105: 0 | FN105: 0 | FO105: 0 | FP105: 0 | FQ105: 0 | FR105: 0 | FS105: 0 | FT105: 0 | FU105: 0 | FV105: 0 | FW105: 0 | FX105: 0 | FY105: 0 | FZ105: 0 | GA105: 0 | GB105: 0 | GC105: 0 | GD105: 0 | GE105: 0 | GF105: 0 | GG105: 0 | GH105: 0 | GI105: 0 | GJ105: 0
A106: 5 | D106: TRANSFORMERS | E106: Ground Outdoor / Indoor Chamber Mounted; > 66 kV & < = 132 kV ; > 100 MVA | F106: 4267.16617 | G106: 52.23537166 | H106: 7.227404213 | I106: 2 | J106: 0 | K106: 0 | L106: 0 | M106: 0 | N106: 0 | O106: 1 | P106: 3 | Q106: 0 | R106: 0 | S106: 0 | T106: 1 | U106: 0 | V106: 0 | W106: 0 | X106: 1 | Y106: 1 | Z106: 0 | AA106: 0 | AB106: 0 | AC106: 0 | AD106: 0 | AE106: 0 | AF106: 0 | AG106: 0 | AH106: 0 | AI106: 0 | AJ106: 0 | AK106: 0 | AL106: 0 | AM106: 0 | AN106: 0 | AO106: 0 | AP106: 0 | AQ106: 0 | AR106: 0 | AS106: 0 | AT106: 0 | AU106: 0 | AV106: 0 | AW106: 0 | AX106: 0 | AY106: 0 | AZ106: 0 | BA106: 0 | BB106: 0 | BC106: 0 | BD106: 0 | BE106: 0 | BF106: 0 | BG106: 0 | BH106: 0 | BI106: 0 | BJ106: 0 | BK106: 0 | BL106: 0 | BM106: 0 | BN106: 0 | BO106: 0 | BP106: 0 | BQ106: 0 | BR106: 0 | BS106: 0 | BT106: 0 | BU106: 0 | BV106: 0 | BW106: 0 | BX106: 0 | BY106: 0 | BZ106: 0 | CA106: 0 | CB106: 0 | CC106: 0 | CD106: 0 | CE106: 0 | CF106: 0 | CG106: 0 | CH106: 0 | CI106: 0 | CJ106: 0 | CK106: 0 | CL106: 0 | CM106: 0 | CN106: 0 | CO106: 0 | CP106: 0 | CQ106: 0 | CR106: 0 | CS106: 0 | CT106: 0 | CU106: 0 | CV106: 0 | CX106: 0 | CY106: 0 | CZ106: 0 | DA106: 0 | DB106: 0 | DC106: 4267.16617 | DD106: 12801.49851 | DE106: 0 | DF106: 0 | DG106: 0 | DH106: 4267.16617 | DI106: 0 | DJ106: 0 | DK106: 0 | DL106: 4267.16617 | DM106: 4267.16617 | DN106: 0 | DO106: 0 | DP106: 0 | DQ106: 0 | DR106: 0 | DS106: 0 | DT106: 0 | DU106: 0 | DV106: 0 | DW106: 0 | DX106: 0 | DY106: 0 | DZ106: 0 | EA106: 0 | EB106: 0 | EC106: 0 | ED106: 0 | EE106: 0 | EF106: 0 | EG106: 0 | EH106: 0 | EI106: 0 | EJ106: 0 | EK106: 0 | EL106: 0 | EM106: 0 | EN106: 0 | EO106: 0 | EP106: 0 | EQ106: 0 | ER106: 0 | ES106: 0 | ET106: 0 | EU106: 0 | EV106: 0 | EW106: 0 | EX106: 0 | EY106: 0 | EZ106: 0 | FA106: 0 | FB106: 0 | FC106: 0 | FD106: 0 | FE106: 0 | FF106: 0 | FG106: 0 | FH106: 0 | FI106: 0 | FJ106: 0 | FK106: 0 | FL106: 0 | FM106: 0 | FN106: 0 | FO106: 0 | FP106: 0 | FQ106: 0 | FR106: 0 | FS106: 0 | FT106: 0 | FU106: 0 | FV106: 0 | FW106: 0 | FX106: 0 | FY106: 0 | FZ106: 0 | GA106: 0 | GB106: 0 | GC106: 0 | GD106: 0 | GE106: 0 | GF106: 0 | GG106: 0 | GH106: 0 | GI106: 0 | GJ106: 0
E107: Ground Outdoor / Indoor Chamber Mounted; > 132 kV ; < = 100 MVA | F107: 0.0001 | G107: 0 | H107: 0 | I107: 2
E108: Ground Outdoor / Indoor Chamber Mounted; > 132 kV ; > 100 MVA | F108: 0.0001 | G108: 0 | H108: 0 | I108: 2
E109: Other | F109: 0.0001 | G109: 0 | H109: 0 | I109: 2
E110: ˂ = 11 kV ; Fuse | F110: 1.647177725 | G110: 0 | H110: 0 | I110: 2
A111: 6 | D111: SWITCHGEAR | E111: ˂ = 11 kV ; Switch | F111: 14.72160831 | G111: 47.92354947 | H111: 6.92268369 | I111: 2 | J111: 10797 | K111: 14118 | L111: 11402 | M111: 13828 | N111: 9903 | O111: 10313 | P111: 10844 | Q111: 10073 | R111: 9679 | S111: 9330 | T111: 5269 | U111: 3290 | V111: 2869 | W111: 2869 | X111: 2869 | Y111: 2869 | Z111: 2194 | AA111: 2127 | AB111: 2091 | AC111: 2193 | AD111: 2215 | AE111: 2261 | AF111: 2264 | AG111: 2399 | AH111: 2443 | AI111: 2602 | AJ111: 2287 | AK111: 2327 | AL111: 2396 | AM111: 2264 | AN111: 2153 | AO111: 2045 | AP111: 1981 | AQ111: 1953 | AR111: 1973 | AS111: 1921 | AT111: 5273 | AU111: 1910 | AV111: 1896 | AW111: 1902 | AX111: 1887 | AY111: 1886 | AZ111: 1899 | BA111: 1894 | BB111: 1955 | BC111: 1886 | BD111: 1892 | BE111: 1882 | BF111: 1902 | BG111: 21 | BH111: 7 | BI111: 12 | BJ111: 6 | BK111: 2 | BL111: 0 | BM111: 1 | BN111: 0 | BO111: 10 | BP111: 1 | BQ111: 2 | BR111: 0 | BS111: 2 | BT111: 1 | BU111: 0 | BV111: 1 | BW111: 0 | BX111: 0 | BY111: 1 | BZ111: 0 | CA111: 0 | CB111: 0 | CC111: 0 | CD111: 0 | CE111: 0 | CF111: 0 | CG111: 0 | CH111: 0 | CI111: 0 | CJ111: 0 | CK111: 0 | CL111: 0 | CM111: 1 | CN111: 0 | CO111: 0 | CP111: 0 | CQ111: 0 | CR111: 0 | CS111: 0 | CT111: 0 | CU111: 0 | CV111: 0 | CX111: 158949.205 | CY111: 207839.6662 | CZ111: 167855.778 | DA111: 203570.3998 | DB111: 145788.0871 | DC111: 151823.9465 | DD111: 159641.1205 | DE111: 148290.7605 | DF111: 142490.4469 | DG111: 137352.6056 | DH111: 77568.1542 | DI111: 48434.09135 | DJ111: 42236.29425 | DK111: 42236.29425 | DL111: 42236.29425 | DM111: 42236.29425 | DN111: 32299.20864 | DO111: 31312.86088 | DP111: 30782.88298 | DQ111: 32284.48703 | DR111: 32608.36241 | DS111: 33285.5564 | DT111: 33329.72122 | DU111: 35317.13834 | DV111: 35964.88911 | DW111: 38305.62483 | DX111: 33668.31821 | DY111: 34257.18254 | DZ111: 35272.97352 | EA111: 33329.72122 | EB111: 31695.6227 | EC111: 30105.689 | ED111: 29163.50607 | EE111: 28751.30104 | EF111: 29045.7332 | EG111: 28280.20957 | EH111: 77627.04063 | EI111: 28118.27188 | EJ111: 27912.16936 | EK111: 28000.49901 | EL111: 27779.67489 | EM111: 27764.95328 | EN111: 27956.33419 | EO111: 27882.72614 | EP111: 28780.74425 | EQ111: 27764.95328 | ER111: 27853.28293 | ES111: 27706.06684 | ET111: 28000.49901 | EU111: 309.1537746 | EV111: 103.0512582 | EW111: 176.6592998 | EX111: 88.32964988 | EY111: 29.44321663 | EZ111: 0 | FA111: 14.72160831 | FB111: 0 | FC111: 147.2160831 | FD111: 14.72160831 | FE111: 29.44321663 | FF111: 0 | FG111: 29.44321663 | FH111: 14.72160831 | FI111: 0 | FJ111: 14.72160831 | FK111: 0 | FL111: 0 | FM111: 14.72160831 | FN111: 0 | FO111: 0 | FP111: 0 | FQ111: 0 | FR111: 0 | FS111: 0 | FT111: 0 | FU111: 0 | FV111: 0 | FW111: 0 | FX111: 0 | FY111: 0 | FZ111: 0 | GA111: 14.72160831 | GB111: 0 | GC111: 0 | GD111: 0 | GE111: 0 | GF111: 0 | GG111: 0 | GH111: 0 | GI111: 0 | GJ111: 0
A112: 6 | D112: SWITCHGEAR | E112: ˂ = 11 kV ; Circuit Breaker | F112: 182.5231899 | G112: 46.54896775 | H112: 6.822680394 | I112: 2 | J112: 88 | K112: 171 | L112: 355 | M112: 134 | N112: 164 | O112: 399 | P112: 272 | Q112: 386 | R112: 340 | S112: 402 | T112: 192 | U112: 82 | V112: 143 | W112: 96 | X112: 167 | Y112: 67 | Z112: 31 | AA112: 43 | AB112: 33 | AC112: 57 | AD112: 39 | AE112: 33 | AF112: 33 | AG112: 30 | AH112: 39 | AI112: 76 | AJ112: 72 | AK112: 35 | AL112: 84 | AM112: 103 | AN112: 170 | AO112: 119 | AP112: 77 | AQ112: 34 | AR112: 38 | AS112: 3 | AT112: 67 | AU112: 60 | AV112: 52 | AW112: 68 | AX112: 5 | AY112: 39 | AZ112: 62 | BA112: 67 | BB112: 74 | BC112: 32 | BD112: 15 | BE112: 50 | BF112: 47 | BG112: 26 | BH112: 0 | BI112: 12 | BJ112: 20 | BK112: 0 | BL112: 0 | BM112: 0 | BN112: 0 | BO112: 1 | BP112: 0 | BQ112: 0 | BR112: 0 | BS112: 0 | BT112: 0 | BU112: 0 | BV112: 0 | BW112: 0 | BX112: 0 | BY112: 0 | BZ112: 2 | CA112: 0 | CB112: 0 | CC112: 0 | CD112: 0 | CE112: 0 | CF112: 0 | CG112: 0 | CH112: 0 | CI112: 0 | CJ112: 0 | CK112: 0 | CL112: 0 | CM112: 0 | CN112: 0 | CO112: 0 | CP112: 0 | CQ112: 0 | CR112: 0 | CS112: 0 | CT112: 0 | CU112: 0 | CV112: 0 | CX112: 16062.04071 | CY112: 31211.46548 | CZ112: 64795.73242 | DA112: 24458.10745 | DB112: 29933.80315 | DC112: 72826.75278 | DD112: 49646.30766 | DE112: 70453.95131 | DF112: 62057.88457 | DG112: 73374.32235 | DH112: 35044.45246 | DI112: 14966.90157 | DJ112: 26100.81616 | DK112: 17522.22623 | DL112: 30481.37272 | DM112: 12229.05372 | DN112: 5658.218888 | DO112: 7848.497167 | DP112: 6023.265267 | DQ112: 10403.82183 | DR112: 7118.404407 | DS112: 6023.265267 | DT112: 6023.265267 | DU112: 5475.695698 | DV112: 7118.404407 | DW112: 13871.76243 | DX112: 13141.66967 | DY112: 6388.311647 | DZ112: 15331.94795 | EA112: 18799.88856 | EB112: 31028.94229 | EC112: 21720.2596 | ED112: 14054.28562 | EE112: 6205.788457 | EF112: 6935.881217 | EG112: 547.5695698 | EH112: 12229.05372 | EI112: 10951.3914 | EJ112: 9491.205876 | EK112: 12411.57691 | EL112: 912.6159496 | EM112: 7118.404407 | EN112: 11316.43778 | EO112: 12229.05372 | EP112: 13506.71605 | EQ112: 5840.742077 | ER112: 2737.847849 | ES112: 9126.159496 | ET112: 8578.589926 | EU112: 4745.602938 | EV112: 0 | EW112: 2190.278279 | EX112: 3650.463798 | EY112: 0 | EZ112: 0 | FA112: 0 | FB112: 0 | FC112: 182.5231899 | FD112: 0 | FE112: 0 | FF112: 0 | FG112: 0 | FH112: 0 | FI112: 0 | FJ112: 0 | FK112: 0 | FL112: 0 | FM112: 0 | FN112: 365.0463798 | FO112: 0 | FP112: 0 | FQ112: 0 | FR112: 0 | FS112: 0 | FT112: 0 | FU112: 0 | FV112: 0 | FW112: 0 | FX112: 0 | FY112: 0 | FZ112: 0 | GA112: 0 | GB112: 0 | GC112: 0 | GD112: 0 | GE112: 0 | GF112: 0 | GG112: 0 | GH112: 0 | GI112: 0 | GJ112: 0
A113: 6 | D113: SWITCHGEAR | E113: > 11 kV & < = 22 kV ; Switch | F113: 9.836411827 | G113: 48.67804505 | H113: 6.976965318 | I113: 2 | J113: 0 | K113: 0 | L113: 0 | M113: 0 | N113: 0 | O113: 1 | P113: 0 | Q113: 0 | R113: 0 | S113: 0 | T113: 0 | U113: 0 | V113: 0 | W113: 0 | X113: 0 | Y113: 0 | Z113: 0 | AA113: 0 | AB113: 0 | AC113: 0 | AD113: 0 | AE113: 0 | AF113: 0 | AG113: 0 | AH113: 0 | AI113: 0 | AJ113: 0 | AK113: 0 | AL113: 0 | AM113: 0 | AN113: 0 | AO113: 0 | AP113: 0 | AQ113: 0 | AR113: 0 | AS113: 0 | AT113: 0 | AU113: 0 | AV113: 0 | AW113: 0 | AX113: 0 | AY113: 0 | AZ113: 0 | BA113: 0 | BB113: 0 | BC113: 0 | BD113: 0 | BE113: 0 | BF113: 0 | BG113: 0 | BH113: 0 | BI113: 0 | BJ113: 0 | BK113: 0 | BL113: 0 | BM113: 0 | BN113: 0 | BO113: 0 | BP113: 0 | BQ113: 0 | BR113: 0 | BS113: 0 | BT113: 0 | BU113: 0 | BV113: 0 | BW113: 0 | BX113: 0 | BY113: 0 | BZ113: 0 | CA113: 0 | CB113: 0 | CC113: 0 | CD113: 0 | CE113: 0 | CF113: 0 | CG113: 0 | CH113: 0 | CI113: 0 | CJ113: 0 | CK113: 0 | CL113: 0 | CM113: 0 | CN113: 0 | CO113: 0 | CP113: 0 | CQ113: 0 | CR113: 0 | CS113: 0 | CT113: 0 | CU113: 0 | CV113: 0 | CX113: 0 | CY113: 0 | CZ113: 0 | DA113: 0 | DB113: 0 | DC113: 9.836411827 | DD113: 0 | DE113: 0 | DF113: 0 | DG113: 0 | DH113: 0 | DI113: 0 | DJ113: 0 | DK113: 0 | DL113: 0 | DM113: 0 | DN113: 0 | DO113: 0 | DP113: 0 | DQ113: 0 | DR113: 0 | DS113: 0 | DT113: 0 | DU113: 0 | DV113: 0 | DW113: 0 | DX113: 0 | DY113: 0 | DZ113: 0 | EA113: 0 | EB113: 0 | EC113: 0 | ED113: 0 | EE113: 0 | EF113: 0 | EG113: 0 | EH113: 0 | EI113: 0 | EJ113: 0 | EK113: 0 | EL113: 0 | EM113: 0 | EN113: 0 | EO113: 0 | EP113: 0 | EQ113: 0 | ER113: 0 | ES113: 0 | ET113: 0 | EU113: 0 | EV113: 0 | EW113: 0 | EX113: 0 | EY113: 0 | EZ113: 0 | FA113: 0 | FB113: 0 | FC113: 0 | FD113: 0 | FE113: 0 | FF113: 0 | FG113: 0 | FH113: 0 | FI113: 0 | FJ113: 0 | FK113: 0 | FL113: 0 | FM113: 0 | FN113: 0 | FO113: 0 | FP113: 0 | FQ113: 0 | FR113: 0 | FS113: 0 | FT113: 0 | FU113: 0 | FV113: 0 | FW113: 0 | FX113: 0 | FY113: 0 | FZ113: 0 | GA113: 0 | GB113: 0 | GC113: 0 | GD113: 0 | GE113: 0 | GF113: 0 | GG113: 0 | GH113: 0 | GI113: 0 | GJ113: 0
A114: 6 | D114: SWITCHGEAR | E114: > 11 kV & < = 22 kV ; Circuit Breaker | F114: 89.19023228 | G114: 48.67804505 | H114: 6.976965318 | I114: 2 | J114: 0 | K114: 0 | L114: 0 | M114: 0 | N114: 0 | O114: 1 | P114: 0 | Q114: 0 | R114: 0 | S114: 0 | T114: 0 | U114: 0 | V114: 0 | W114: 0 | X114: 0 | Y114: 0 | Z114: 0 | AA114: 0 | AB114: 0 | AC114: 0 | AD114: 0 | AE114: 0 | AF114: 0 | AG114: 0 | AH114: 0 | AI114: 0 | AJ114: 0 | AK114: 0 | AL114: 0 | AM114: 0 | AN114: 0 | AO114: 0 | AP114: 0 | AQ114: 0 | AR114: 0 | AS114: 0 | AT114: 0 | AU114: 0 | AV114: 0 | AW114: 0 | AX114: 0 | AY114: 0 | AZ114: 0 | BA114: 0 | BB114: 0 | BC114: 0 | BD114: 0 | BE114: 0 | BF114: 0 | BG114: 0 | BH114: 0 | BI114: 0 | BJ114: 0 | BK114: 0 | BL114: 0 | BM114: 0 | BN114: 0 | BO114: 0 | BP114: 0 | BQ114: 0 | BR114: 0 | BS114: 0 | BT114: 0 | BU114: 0 | BV114: 0 | BW114: 0 | BX114: 0 | BY114: 0 | BZ114: 0 | CA114: 0 | CB114: 0 | CC114: 0 | CD114: 0 | CE114: 0 | CF114: 0 | CG114: 0 | CH114: 0 | CI114: 0 | CJ114: 0 | CK114: 0 | CL114: 0 | CM114: 0 | CN114: 0 | CO114: 0 | CP114: 0 | CQ114: 0 | CR114: 0 | CS114: 0 | CT114: 0 | CU114: 0 | CV114: 0 | CX114: 0 | CY114: 0 | CZ114: 0 | DA114: 0 | DB114: 0 | DC114: 89.19023228 | DD114: 0 | DE114: 0 | DF114: 0 | DG114: 0 | DH114: 0 | DI114: 0 | DJ114: 0 | DK114: 0 | DL114: 0 | DM114: 0 | DN114: 0 | DO114: 0 | DP114: 0 | DQ114: 0 | DR114: 0 | DS114: 0 | DT114: 0 | DU114: 0 | DV114: 0 | DW114: 0 | DX114: 0 | DY114: 0 | DZ114: 0 | EA114: 0 | EB114: 0 | EC114: 0 | ED114: 0 | EE114: 0 | EF114: 0 | EG114: 0 | EH114: 0 | EI114: 0 | EJ114: 0 | EK114: 0 | EL114: 0 | EM114: 0 | EN114: 0 | EO114: 0 | EP114: 0 | EQ114: 0 | ER114: 0 | ES114: 0 | ET114: 0 | EU114: 0 | EV114: 0 | EW114: 0 | EX114: 0 | EY114: 0 | EZ114: 0 | FA114: 0 | FB114: 0 | FC114: 0 | FD114: 0 | FE114: 0 | FF114: 0 | FG114: 0 | FH114: 0 | FI114: 0 | FJ114: 0 | FK114: 0 | FL114: 0 | FM114: 0 | FN114: 0 | FO114: 0 | FP114: 0 | FQ114: 0 | FR114: 0 | FS114: 0 | FT114: 0 | FU114: 0 | FV114: 0 | FW114: 0 | FX114: 0 | FY114: 0 | FZ114: 0 | GA114: 0 | GB114: 0 | GC114: 0 | GD114: 0 | GE114: 0 | GF114: 0 | GG114: 0 | GH114: 0 | GI114: 0 | GJ114: 0
A115: 6 | D115: SWITCHGEAR | E115: > 22 kV & < = 33 kV ; Switch | F115: 58.72116244 | G115: 48.67804505 | H115: 6.976965318 | I115: 2 | J115: 140 | K115: 125 | L115: 177 | M115: 302 | N115: 113 | O115: 176 | P115: 177 | Q115: 109 | R115: 107 | S115: 134 | T115: 31 | U115: 44 | V115: 75 | W115: 73 | X115: 594 | Y115: 70 | Z115: 1 | AA115: 2 | AB115: 2 | AC115: 1 | AD115: 0 | AE115: 0 | AF115: 17 | AG115: 1 | AH115: 4 | AI115: 2 | AJ115: 0 | AK115: 2 | AL115: 4 | AM115: 3 | AN115: 3 | AO115: 0 | AP115: 0 | AQ115: 1 | AR115: 5 | AS115: 0 | AT115: 400 | AU115: 2 | AV115: 0 | AW115: 0 | AX115: 0 | AY115: 0 | AZ115: 0 | BA115: 0 | BB115: 0 | BC115: 0 | BD115: 0 | BE115: 0 | BF115: 3 | BG115: 0 | BH115: 0 | BI115: 0 | BJ115: 0 | BK115: 0 | BL115: 0 | BM115: 0 | BN115: 1 | BO115: 6 | BP115: 0 | BQ115: 0 | BR115: 0 | BS115: 0 | BT115: 0 | BU115: 0 | BV115: 0 | BW115: 0 | BX115: 0 | BY115: 0 | BZ115: 0 | CA115: 0 | CB115: 0 | CC115: 0 | CD115: 0 | CE115: 0 | CF115: 0 | CG115: 0 | CH115: 0 | CI115: 0 | CJ115: 0 | CK115: 0 | CL115: 0 | CM115: 0 | CN115: 0 | CO115: 0 | CP115: 0 | CQ115: 0 | CR115: 0 | CS115: 0 | CT115: 0 | CU115: 0 | CV115: 0 | CX115: 8220.962741 | CY115: 7340.145305 | CZ115: 10393.64575 | DA115: 17733.79106 | DB115: 6635.491356 | DC115: 10334.92459 | DD115: 10393.64575 | DE115: 6400.606706 | DF115: 6283.164381 | DG115: 7868.635767 | DH115: 1820.356036 | DI115: 2583.731147 | DJ115: 4404.087183 | DK115: 4286.644858 | DL115: 34880.37049 | DM115: 4110.481371 | DN115: 58.72116244 | DO115: 117.4423249 | DP115: 117.4423249 | DQ115: 58.72116244 | DR115: 0 | DS115: 0 | DT115: 998.2597615 | DU115: 58.72116244 | DV115: 234.8846498 | DW115: 117.4423249 | DX115: 0 | DY115: 117.4423249 | DZ115: 234.8846498 | EA115: 176.1634873 | EB115: 176.1634873 | EC115: 0 | ED115: 0 | EE115: 58.72116244 | EF115: 293.6058122 | EG115: 0 | EH115: 23488.46498 | EI115: 117.4423249 | EJ115: 0 | EK115: 0 | EL115: 0 | EM115: 0 | EN115: 0 | EO115: 0 | EP115: 0 | EQ115: 0 | ER115: 0 | ES115: 0 | ET115: 176.1634873 | EU115: 0 | EV115: 0 | EW115: 0 | EX115: 0 | EY115: 0 | EZ115: 0 | FA115: 0 | FB115: 58.72116244 | FC115: 352.3269746 | FD115: 0 | FE115: 0 | FF115: 0 | FG115: 0 | FH115: 0 | FI115: 0 | FJ115: 0 | FK115: 0 | FL115: 0 | FM115: 0 | FN115: 0 | FO115: 0 | FP115: 0 | FQ115: 0 | FR115: 0 | FS115: 0 | FT115: 0 | FU115: 0 | FV115: 0 | FW115: 0 | FX115: 0 | FY115: 0 | FZ115: 0 | GA115: 0 | GB115: 0 | GC115: 0 | GD115: 0 | GE115: 0 | GF115: 0 | GG115: 0 | GH115: 0 | GI115: 0 | GJ115: 0
A116: 6 | D116: SWITCHGEAR | E116: > 22 kV & < = 33 kV ; Circuit Breaker | F116: 223.4751099 | G116: 62.70859935 | H116: 7.918876142 | I116: 2 | J116: 17 | K116: 15 | L116: 33 | M116: 33 | N116: 63 | O116: 117 | P116: 184 | Q116: 61 | R116: 108 | S116: 201 | T116: 56 | U116: 36 | V116: 44 | W116: 46 | X116: 73 | Y116: 38 | Z116: 4 | AA116: 10 | AB116: 4 | AC116: 15 | AD116: 12 | AE116: 16 | AF116: 11 | AG116: 2 | AH116: 1 | AI116: 33 | AJ116: 1 | AK116: 8 | AL116: 5 | AM116: 12 | AN116: 2 | AO116: 14 | AP116: 1 | AQ116: 0 | AR116: 1 | AS116: 5 | AT116: 11 | AU116: 28 | AV116: 7 | AW116: 15 | AX116: 11 | AY116: 31 | AZ116: 3 | BA116: 36 | BB116: 5 | BC116: 38 | BD116: 0 | BE116: 21 | BF116: 20 | BG116: 6 | BH116: 12 | BI116: 16 | BJ116: 11 | BK116: 2 | BL116: 4 | BM116: 16 | BN116: 16 | BO116: 1 | BP116: 0 | BQ116: 0 | BR116: 22 | BS116: 0 | BT116: 8 | BU116: 1 | BV116: 0 | BW116: 0 | BX116: 0 | BY116: 0 | BZ116: 0 | CA116: 0 | CB116: 0 | CC116: 0 | CD116: 0 | CE116: 0 | CF116: 0 | CG116: 0 | CH116: 0 | CI116: 0 | CJ116: 0 | CK116: 0 | CL116: 0 | CM116: 0 | CN116: 0 | CO116: 0 | CP116: 0 | CQ116: 0 | CR116: 0 | CS116: 0 | CT116: 0 | CU116: 0 | CV116: 0 | CX116: 3799.076868 | CY116: 3352.126649 | CZ116: 7374.678627 | DA116: 7374.678627 | DB116: 14078.93192 | DC116: 26146.58786 | DD116: 41119.42022 | DE116: 13631.9817 | DF116: 24135.31187 | DG116: 44918.49709 | DH116: 12514.60615 | DI116: 8045.103957 | DJ116: 9832.904836 | DK116: 10279.85506 | DL116: 16313.68302 | DM116: 8492.054176 | DN116: 893.9004396 | DO116: 2234.751099 | DP116: 893.9004396 | DQ116: 3352.126649 | DR116: 2681.701319 | DS116: 3575.601758 | DT116: 2458.226209 | DU116: 446.9502198 | DV116: 223.4751099 | DW116: 7374.678627 | DX116: 223.4751099 | DY116: 1787.800879 | DZ116: 1117.37555 | EA116: 2681.701319 | EB116: 446.9502198 | EC116: 3128.651539 | ED116: 223.4751099 | EE116: 0 | EF116: 223.4751099 | EG116: 1117.37555 | EH116: 2458.226209 | EI116: 6257.303077 | EJ116: 1564.325769 | EK116: 3352.126649 | EL116: 2458.226209 | EM116: 6927.728407 | EN116: 670.4253297 | EO116: 8045.103957 | EP116: 1117.37555 | EQ116: 8492.054176 | ER116: 0 | ES116: 4692.977308 | ET116: 4469.502198 | EU116: 1340.850659 | EV116: 2681.701319 | EW116: 3575.601758 | EX116: 2458.226209 | EY116: 446.9502198 | EZ116: 893.9004396 | FA116: 3575.601758 | FB116: 3575.601758 | FC116: 223.4751099 | FD116: 0 | FE116: 0 | FF116: 4916.452418 | FG116: 0 | FH116: 1787.800879 | FI116: 223.4751099 | FJ116: 0 | FK116: 0 | FL116: 0 | FM116: 0 | FN116: 0 | FO116: 0 | FP116: 0 | FQ116: 0 | FR116: 0 | FS116: 0 | FT116: 0 | FU116: 0 | FV116: 0 | FW116: 0 | FX116: 0 | FY116: 0 | FZ116: 0 | GA116: 0 | GB116: 0 | GC116: 0 | GD116: 0 | GE116: 0 | GF116: 0 | GG116: 0 | GH116: 0 | GI116: 0 | GJ116: 0
A117: 6 | D117: SWITCHGEAR | E117: > 33 kV & < = 66 kV ; Switch | F117: 71.66604134 | G117: 48.67804505 | H117: 6.976965318 | I117: 2 | J117: 0 | K117: 0 | L117: 0 | M117: 0 | N117: 0 | O117: 0 | P117: 0 | Q117: 0 | R117: 0 | S117: 2 | T117: 0 | U117: 0 | V117: 0 | W117: 0 | X117: 7 | Y117: 0 | Z117: 0 | AA117: 0 | AB117: 0 | AC117: 0 | AD117: 0 | AE117: 0 | AF117: 0 | AG117: 0 | AH117: 0 | AI117: 0 | AJ117: 0 | AK117: 0 | AL117: 0 | AM117: 0 | AN117: 0 | AO117: 0 | AP117: 0 | AQ117: 0 | AR117: 0 | AS117: 0 | AT117: 0 | AU117: 0 | AV117: 0 | AW117: 0 | AX117: 0 | AY117: 0 | AZ117: 0 | BA117: 0 | BB117: 0 | BC117: 0 | BD117: 0 | BE117: 0 | BF117: 0 | BG117: 0 | BH117: 0 | BI117: 0 | BJ117: 0 | BK117: 0 | BL117: 0 | BM117: 0 | BN117: 0 | BO117: 0 | BP117: 0 | BQ117: 0 | BR117: 0 | BS117: 0 | BT117: 0 | BU117: 0 | BV117: 0 | BW117: 0 | BX117: 0 | BY117: 0 | BZ117: 0 | CA117: 0 | CB117: 0 | CC117: 0 | CD117: 0 | CE117: 0 | CF117: 0 | CG117: 0 | CH117: 0 | CI117: 0 | CJ117: 0 | CK117: 0 | CL117: 0 | CM117: 0 | CN117: 0 | CO117: 0 | CP117: 0 | CQ117: 0 | CR117: 0 | CS117: 0 | CT117: 0 | CU117: 0 | CV117: 0 | CX117: 0 | CY117: 0 | CZ117: 0 | DA117: 0 | DB117: 0 | DC117: 0 | DD117: 0 | DE117: 0 | DF117: 0 | DG117: 143.3320827 | DH117: 0 | DI117: 0 | DJ117: 0 | DK117: 0 | DL117: 501.6622894 | DM117: 0 | DN117: 0 | DO117: 0 | DP117: 0 | DQ117: 0 | DR117: 0 | DS117: 0 | DT117: 0 | DU117: 0 | DV117: 0 | DW117: 0 | DX117: 0 | DY117: 0 | DZ117: 0 | EA117: 0 | EB117: 0 | EC117: 0 | ED117: 0 | EE117: 0 | EF117: 0 | EG117: 0 | EH117: 0 | EI117: 0 | EJ117: 0 | EK117: 0 | EL117: 0 | EM117: 0 | EN117: 0 | EO117: 0 | EP117: 0 | EQ117: 0 | ER117: 0 | ES117: 0 | ET117: 0 | EU117: 0 | EV117: 0 | EW117: 0 | EX117: 0 | EY117: 0 | EZ117: 0 | FA117: 0 | FB117: 0 | FC117: 0 | FD117: 0 | FE117: 0 | FF117: 0 | FG117: 0 | FH117: 0 | FI117: 0 | FJ117: 0 | FK117: 0 | FL117: 0 | FM117: 0 | FN117: 0 | FO117: 0 | FP117: 0 | FQ117: 0 | FR117: 0 | FS117: 0 | FT117: 0 | FU117: 0 | FV117: 0 | FW117: 0 | FX117: 0 | FY117: 0 | FZ117: 0 | GA117: 0 | GB117: 0 | GC117: 0 | GD117: 0 | GE117: 0 | GF117: 0 | GG117: 0 | GH117: 0 | GI117: 0 | GJ117: 0
A118: 6 | D118: SWITCHGEAR | E118: > 33 kV & < = 66 kV ; Circuit Breaker | F118: 143.537987 | G118: 48.67804505 | H118: 6.976965318 | I118: 2 | J118: 0 | K118: 0 | L118: 0 | M118: 0 | N118: 0 | O118: 0 | P118: 0 | Q118: 0 | R118: 0 | S118: 0 | T118: 0 | U118: 1 | V118: 0 | W118: 0 | X118: 2 | Y118: 0 | Z118: 0 | AA118: 0 | AB118: 0 | AC118: 0 | AD118: 0 | AE118: 0 | AF118: 0 | AG118: 0 | AH118: 0 | AI118: 0 | AJ118: 0 | AK118: 0 | AL118: 0 | AM118: 0 | AN118: 0 | AO118: 0 | AP118: 0 | AQ118: 0 | AR118: 0 | AS118: 0 | AT118: 0 | AU118: 0 | AV118: 0 | AW118: 0 | AX118: 0 | AY118: 0 | AZ118: 0 | BA118: 0 | BB118: 0 | BC118: 0 | BD118: 0 | BE118: 0 | BF118: 0 | BG118: 0 | BH118: 0 | BI118: 0 | BJ118: 0 | BK118: 0 | BL118: 0 | BM118: 0 | BN118: 0 | BO118: 0 | BP118: 0 | BQ118: 0 | BR118: 0 | BS118: 0 | BT118: 0 | BU118: 0 | BV118: 0 | BW118: 0 | BX118: 0 | BY118: 0 | BZ118: 0 | CA118: 0 | CB118: 0 | CC118: 0 | CD118: 0 | CE118: 0 | CF118: 0 | CG118: 0 | CH118: 0 | CI118: 0 | CJ118: 0 | CK118: 0 | CL118: 0 | CM118: 0 | CN118: 0 | CO118: 0 | CP118: 0 | CQ118: 0 | CR118: 0 | CS118: 0 | CT118: 0 | CU118: 0 | CV118: 0 | CX118: 0 | CY118: 0 | CZ118: 0 | DA118: 0 | DB118: 0 | DC118: 0 | DD118: 0 | DE118: 0 | DF118: 0 | DG118: 0 | DH118: 0 | DI118: 143.537987 | DJ118: 0 | DK118: 0 | DL118: 287.075974 | DM118: 0 | DN118: 0 | DO118: 0 | DP118: 0 | DQ118: 0 | DR118: 0 | DS118: 0 | DT118: 0 | DU118: 0 | DV118: 0 | DW118: 0 | DX118: 0 | DY118: 0 | DZ118: 0 | EA118: 0 | EB118: 0 | EC118: 0 | ED118: 0 | EE118: 0 | EF118: 0 | EG118: 0 | EH118: 0 | EI118: 0 | EJ118: 0 | EK118: 0 | EL118: 0 | EM118: 0 | EN118: 0 | EO118: 0 | EP118: 0 | EQ118: 0 | ER118: 0 | ES118: 0 | ET118: 0 | EU118: 0 | EV118: 0 | EW118: 0 | EX118: 0 | EY118: 0 | EZ118: 0 | FA118: 0 | FB118: 0 | FC118: 0 | FD118: 0 | FE118: 0 | FF118: 0 | FG118: 0 | FH118: 0 | FI118: 0 | FJ118: 0 | FK118: 0 | FL118: 0 | FM118: 0 | FN118: 0 | FO118: 0 | FP118: 0 | FQ118: 0 | FR118: 0 | FS118: 0 | FT118: 0 | FU118: 0 | FV118: 0 | FW118: 0 | FX118: 0 | FY118: 0 | FZ118: 0 | GA118: 0 | GB118: 0 | GC118: 0 | GD118: 0 | GE118: 0 | GF118: 0 | GG118: 0 | GH118: 0 | GI118: 0 | GJ118: 0
A119: 6 | D119: SWITCHGEAR | E119: > 66 kV & < = 132 kV ; Switch | F119: 152.263602 | G119: 48.67804505 | H119: 6.976965318 | I119: 2 | J119: 92 | K119: 160 | L119: 57 | M119: 165 | N119: 119 | O119: 62 | P119: 41 | Q119: 96 | R119: 38 | S119: 37 | T119: 10 | U119: 74 | V119: 108 | W119: 100 | X119: 283 | Y119: 14 | Z119: 8 | AA119: 0 | AB119: 2 | AC119: 0 | AD119: 0 | AE119: 0 | AF119: 0 | AG119: 0 | AH119: 0 | AI119: 7 | AJ119: 15 | AK119: 0 | AL119: 6 | AM119: 3 | AN119: 13 | AO119: 2 | AP119: 0 | AQ119: 0 | AR119: 0 | AS119: 0 | AT119: 18 | AU119: 0 | AV119: 0 | AW119: 0 | AX119: 0 | AY119: 0 | AZ119: 0 | BA119: 0 | BB119: 0 | BC119: 3 | BD119: 0 | BE119: 0 | BF119: 0 | BG119: 2 | BH119: 0 | BI119: 0 | BJ119: 0 | BK119: 0 | BL119: 0 | BM119: 0 | BN119: 0 | BO119: 4 | BP119: 0 | BQ119: 0 | BR119: 0 | BS119: 0 | BT119: 0 | BU119: 0 | BV119: 0 | BW119: 0 | BX119: 0 | BY119: 0 | BZ119: 0 | CA119: 0 | CB119: 0 | CC119: 0 | CD119: 0 | CE119: 0 | CF119: 0 | CG119: 0 | CH119: 0 | CI119: 0 | CJ119: 0 | CK119: 0 | CL119: 0 | CM119: 0 | CN119: 0 | CO119: 0 | CP119: 0 | CQ119: 0 | CR119: 0 | CS119: 0 | CT119: 0 | CU119: 0 | CV119: 0 | CX119: 14008.25139 | CY119: 24362.17633 | CZ119: 8679.025316 | DA119: 25123.49434 | DB119: 18119.36864 | DC119: 9440.343326 | DD119: 6242.807683 | DE119: 14617.3058 | DF119: 5786.016877 | DG119: 5633.753275 | DH119: 1522.63602 | DI119: 11267.50655 | DJ119: 16444.46902 | DK119: 15226.3602 | DL119: 43090.59938 | DM119: 2131.690429 | DN119: 1218.108816 | DO119: 0 | DP119: 304.5272041 | DQ119: 0 | DR119: 0 | DS119: 0 | DT119: 0 | DU119: 0 | DV119: 0 | DW119: 1065.845214 | DX119: 2283.954031 | DY119: 0 | DZ119: 913.5816122 | EA119: 456.7908061 | EB119: 1979.426826 | EC119: 304.5272041 | ED119: 0 | EE119: 0 | EF119: 0 | EG119: 0 | EH119: 2740.744837 | EI119: 0 | EJ119: 0 | EK119: 0 | EL119: 0 | EM119: 0 | EN119: 0 | EO119: 0 | EP119: 0 | EQ119: 456.7908061 | ER119: 0 | ES119: 0 | ET119: 0 | EU119: 304.5272041 | EV119: 0 | EW119: 0 | EX119: 0 | EY119: 0 | EZ119: 0 | FA119: 0 | FB119: 0 | FC119: 609.0544081 | FD119: 0 | FE119: 0 | FF119: 0 | FG119: 0 | FH119: 0 | FI119: 0 | FJ119: 0 | FK119: 0 | FL119: 0 | FM119: 0 | FN119: 0 | FO119: 0 | FP119: 0 | FQ119: 0 | FR119: 0 | FS119: 0 | FT119: 0 | FU119: 0 | FV119: 0 | FW119: 0 | FX119: 0 | FY119: 0 | FZ119: 0 | GA119: 0 | GB119: 0 | GC119: 0 | GD119: 0 | GE119: 0 | GF119: 0 | GG119: 0 | GH119: 0 | GI119: 0 | GJ119: 0
A120: 6 | D120: SWITCHGEAR | E120: > 66 kV & < = 132 kV ; Circuit Breaker | F120: 325.0205071 | G120: 48.67804505 | H120: 6.976965318 | I120: 2 | J120: 20 | K120: 6 | L120: 7 | M120: 19 | N120: 37 | O120: 21 | P120: 39 | Q120: 31 | R120: 40 | S120: 17 | T120: 2 | U120: 29 | V120: 1 | W120: 15 | X120: 16 | Y120: 8 | Z120: 0 | AA120: 2 | AB120: 0 | AC120: 0 | AD120: 0 | AE120: 0 | AF120: 0 | AG120: 0 | AH120: 6 | AI120: 1 | AJ120: 1 | AK120: 4 | AL120: 0 | AM120: 3 | AN120: 1 | AO120: 4 | AP120: 1 | AQ120: 1 | AR120: 0 | AS120: 0 | AT120: 1 | AU120: 0 | AV120: 0 | AW120: 4 | AX120: 0 | AY120: 0 | AZ120: 0 | BA120: 0 | BB120: 4 | BC120: 0 | BD120: 2 | BE120: 0 | BF120: 1 | BG120: 2 | BH120: 0 | BI120: 0 | BJ120: 0 | BK120: 0 | BL120: 0 | BM120: 0 | BN120: 0 | BO120: 0 | BP120: 0 | BQ120: 0 | BR120: 0 | BS120: 0 | BT120: 0 | BU120: 0 | BV120: 0 | BW120: 0 | BX120: 0 | BY120: 0 | BZ120: 0 | CA120: 0 | CB120: 0 | CC120: 0 | CD120: 0 | CE120: 0 | CF120: 0 | CG120: 0 | CH120: 0 | CI120: 0 | CJ120: 0 | CK120: 0 | CL120: 0 | CM120: 0 | CN120: 0 | CO120: 0 | CP120: 0 | CQ120: 0 | CR120: 0 | CS120: 0 | CT120: 0 | CU120: 0 | CV120: 0 | CX120: 6500.410142 | CY120: 1950.123043 | CZ120: 2275.14355 | DA120: 6175.389635 | DB120: 12025.75876 | DC120: 6825.430649 | DD120: 12675.79978 | DE120: 10075.63572 | DF120: 13000.82028 | DG120: 5525.348621 | DH120: 650.0410142 | DI120: 9425.594706 | DJ120: 325.0205071 | DK120: 4875.307607 | DL120: 5200.328114 | DM120: 2600.164057 | DN120: 0 | DO120: 650.0410142 | DP120: 0 | DQ120: 0 | DR120: 0 | DS120: 0 | DT120: 0 | DU120: 0 | DV120: 1950.123043 | DW120: 325.0205071 | DX120: 325.0205071 | DY120: 1300.082028 | DZ120: 0 | EA120: 975.0615213 | EB120: 325.0205071 | EC120: 1300.082028 | ED120: 325.0205071 | EE120: 325.0205071 | EF120: 0 | EG120: 0 | EH120: 325.0205071 | EI120: 0 | EJ120: 0 | EK120: 1300.082028 | EL120: 0 | EM120: 0 | EN120: 0 | EO120: 0 | EP120: 1300.082028 | EQ120: 0 | ER120: 650.0410142 | ES120: 0 | ET120: 325.0205071 | EU120: 650.0410142 | EV120: 0 | EW120: 0 | EX120: 0 | EY120: 0 | EZ120: 0 | FA120: 0 | FB120: 0 | FC120: 0 | FD120: 0 | FE120: 0 | FF120: 0 | FG120: 0 | FH120: 0 | FI120: 0 | FJ120: 0 | FK120: 0 | FL120: 0 | FM120: 0 | FN120: 0 | FO120: 0 | FP120: 0 | FQ120: 0 | FR120: 0 | FS120: 0 | FT120: 0 | FU120: 0 | FV120: 0 | FW120: 0 | FX120: 0 | FY120: 0 | FZ120: 0 | GA120: 0 | GB120: 0 | GC120: 0 | GD120: 0 | GE120: 0 | GF120: 0 | GG120: 0 | GH120: 0 | GI120: 0 | GJ120: 0
A121: 6 | D121: SWITCHGEAR | E121: > 132 kV ; Switch | F121: 71.66604134 | G121: 48.67804505 | H121: 6.976965318 | I121: 2 | J121: 0 | K121: 0 | L121: 0 | M121: 0 | N121: 0 | O121: 0 | P121: 0 | Q121: 22 | R121: 0 | S121: 0 | T121: 2 | U121: 22 | V121: 60 | W121: 0 | X121: 45 | Y121: 0 | Z121: 0 | AA121: 0 | AB121: 0 | AC121: 0 | AD121: 0 | AE121: 0 | AF121: 0 | AG121: 0 | AH121: 0 | AI121: 0 | AJ121: 0 | AK121: 0 | AL121: 0 | AM121: 0 | AN121: 0 | AO121: 0 | AP121: 0 | AQ121: 0 | AR121: 0 | AS121: 0 | AT121: 0 | AU121: 0 | AV121: 0 | AW121: 0 | AX121: 0 | AY121: 0 | AZ121: 0 | BA121: 0 | BB121: 0 | BC121: 0 | BD121: 0 | BE121: 0 | BF121: 0 | BG121: 0 | BH121: 0 | BI121: 0 | BJ121: 0 | BK121: 0 | BL121: 0 | BM121: 0 | BN121: 0 | BO121: 0 | BP121: 0 | BQ121: 0 | BR121: 0 | BS121: 0 | BT121: 0 | BU121: 0 | BV121: 0 | BW121: 0 | BX121: 0 | BY121: 0 | BZ121: 0 | CA121: 0 | CB121: 0 | CC121: 0 | CD121: 0 | CE121: 0 | CF121: 0 | CG121: 0 | CH121: 0 | CI121: 0 | CJ121: 0 | CK121: 0 | CL121: 0 | CM121: 0 | CN121: 0 | CO121: 0 | CP121: 0 | CQ121: 0 | CR121: 0 | CS121: 0 | CT121: 0 | CU121: 0 | CV121: 0 | CX121: 0 | CY121: 0 | CZ121: 0 | DA121: 0 | DB121: 0 | DC121: 0 | DD121: 0 | DE121: 1576.65291 | DF121: 0 | DG121: 0 | DH121: 143.3320827 | DI121: 1576.65291 | DJ121: 4299.962481 | DK121: 0 | DL121: 3224.97186 | DM121: 0 | DN121: 0 | DO121: 0 | DP121: 0 | DQ121: 0 | DR121: 0 | DS121: 0 | DT121: 0 | DU121: 0 | DV121: 0 | DW121: 0 | DX121: 0 | DY121: 0 | DZ121: 0 | EA121: 0 | EB121: 0 | EC121: 0 | ED121: 0 | EE121: 0 | EF121: 0 | EG121: 0 | EH121: 0 | EI121: 0 | EJ121: 0 | EK121: 0 | EL121: 0 | EM121: 0 | EN121: 0 | EO121: 0 | EP121: 0 | EQ121: 0 | ER121: 0 | ES121: 0 | ET121: 0 | EU121: 0 | EV121: 0 | EW121: 0 | EX121: 0 | EY121: 0 | EZ121: 0 | FA121: 0 | FB121: 0 | FC121: 0 | FD121: 0 | FE121: 0 | FF121: 0 | FG121: 0 | FH121: 0 | FI121: 0 | FJ121: 0 | FK121: 0 | FL121: 0 | FM121: 0 | FN121: 0 | FO121: 0 | FP121: 0 | FQ121: 0 | FR121: 0 | FS121: 0 | FT121: 0 | FU121: 0 | FV121: 0 | FW121: 0 | FX121: 0 | FY121: 0 | FZ121: 0 | GA121: 0 | GB121: 0 | GC121: 0 | GD121: 0 | GE121: 0 | GF121: 0 | GG121: 0 | GH121: 0 | GI121: 0 | GJ121: 0
A122: 6 | D122: SWITCHGEAR | E122: > 132 kV ; Circuit Breaker | F122: 143.537987 | G122: 48.67804505 | H122: 6.976965318 | I122: 2 | J122: 0 | K122: 0 | L122: 0 | M122: 0 | N122: 0 | O122: 0 | P122: 0 | Q122: 0 | R122: 0 | S122: 0 | T122: 1 | U122: 0 | V122: 7 | W122: 0 | X122: 0 | Y122: 0 | Z122: 0 | AA122: 0 | AB122: 0 | AC122: 0 | AD122: 0 | AE122: 0 | AF122: 0 | AG122: 0 | AH122: 0 | AI122: 0 | AJ122: 0 | AK122: 0 | AL122: 0 | AM122: 0 | AN122: 0 | AO122: 0 | AP122: 0 | AQ122: 0 | AR122: 0 | AS122: 0 | AT122: 0 | AU122: 0 | AV122: 0 | AW122: 0 | AX122: 0 | AY122: 0 | AZ122: 0 | BA122: 0 | BB122: 0 | BC122: 0 | BD122: 0 | BE122: 0 | BF122: 0 | BG122: 0 | BH122: 0 | BI122: 0 | BJ122: 0 | BK122: 0 | BL122: 0 | BM122: 0 | BN122: 0 | BO122: 0 | BP122: 0 | BQ122: 0 | BR122: 0 | BS122: 0 | BT122: 0 | BU122: 0 | BV122: 0 | BW122: 0 | BX122: 0 | BY122: 0 | BZ122: 0 | CA122: 0 | CB122: 0 | CC122: 0 | CD122: 0 | CE122: 0 | CF122: 0 | CG122: 0 | CH122: 0 | CI122: 0 | CJ122: 0 | CK122: 0 | CL122: 0 | CM122: 0 | CN122: 0 | CO122: 0 | CP122: 0 | CQ122: 0 | CR122: 0 | CS122: 0 | CT122: 0 | CU122: 0 | CV122: 0 | CX122: 0 | CY122: 0 | CZ122: 0 | DA122: 0 | DB122: 0 | DC122: 0 | DD122: 0 | DE122: 0 | DF122: 0 | DG122: 0 | DH122: 143.537987 | DI122: 0 | DJ122: 1004.765909 | DK122: 0 | DL122: 0 | DM122: 0 | DN122: 0 | DO122: 0 | DP122: 0 | DQ122: 0 | DR122: 0 | DS122: 0 | DT122: 0 | DU122: 0 | DV122: 0 | DW122: 0 | DX122: 0 | DY122: 0 | DZ122: 0 | EA122: 0 | EB122: 0 | EC122: 0 | ED122: 0 | EE122: 0 | EF122: 0 | EG122: 0 | EH122: 0 | EI122: 0 | EJ122: 0 | EK122: 0 | EL122: 0 | EM122: 0 | EN122: 0 | EO122: 0 | EP122: 0 | EQ122: 0 | ER122: 0 | ES122: 0 | ET122: 0 | EU122: 0 | EV122: 0 | EW122: 0 | EX122: 0 | EY122: 0 | EZ122: 0 | FA122: 0 | FB122: 0 | FC122: 0 | FD122: 0 | FE122: 0 | FF122: 0 | FG122: 0 | FH122: 0 | FI122: 0 | FJ122: 0 | FK122: 0 | FL122: 0 | FM122: 0 | FN122: 0 | FO122: 0 | FP122: 0 | FQ122: 0 | FR122: 0 | FS122: 0 | FT122: 0 | FU122: 0 | FV122: 0 | FW122: 0 | FX122: 0 | FY122: 0 | FZ122: 0 | GA122: 0 | GB122: 0 | GC122: 0 | GD122: 0 | GE122: 0 | GF122: 0 | GG122: 0 | GH122: 0 | GI122: 0 | GJ122: 0
